Workbook

Sheet Willkommen
C10: =Daten_Willkommen!B3 -> Version: | D10: =Daten_Willkommen!C3 -> 2.33.1
C11: =Daten_Willkommen!B4 -> Stand: | D11: =Daten_Willkommen!C4 -> 2023-02-27
C13: Stiftungsvermögen
C14: rechtssicher
C15: steuern | J15: 17:03 32:34
J17: nächstes Video
C18: Was möchten Sie tun?
F20: =Daten_Willkommen!C80 -> 1 | G20: =Daten_Willkommen!C80 -> 1 | I20: WILLKOMMEN
F22: =Daten_Willkommen!C81 -> 1 | G22: =Daten_Willkommen!C81 -> 1
F23: =Daten_Willkommen!C89 -> 0 | G23: =Daten_Willkommen!C89 -> 0 | I23: Wozu das Ganze? | J23: Herzlich Willkommen im Stiftungscockpit. Diese Applikation soll Sie dabei unterstützen, Ihre haupt- oder ehrenamtliche Funktion im Stiftungsgremium oder als Mitarbeiter/-in der Geschäftsführung effizient und erfolgreich auszufüllen. Im Stiftungswesen insgesamt will es zur Entstehung anerkannter Standards beitragen.
F24: =Daten_Willkommen!C90 -> 0 | G24: =F24 -> 0
F25: =Daten_Willkommen!C91 -> 0 | G25: 0 | I25: Methodik | J25: Hierzu systematisiert das Cockpit typische Planungs-, Berichts- und Dokumenationsprozesse in steuerbergünstigten Stiftungen. Ausgangspunkte sind stets die aus dem Stiftungszweck abgeleiteten Anlageziele. Eine ordnungsgemäße Finanzbuchhaltung, Vermögens-, Rechts- und Steuerberatung kann und will das Cockpit hingegen nicht ersetzen.
F26: =Daten_Willkommen!C92 -> 0 | G26: 0
F27: =Daten_Willkommen!C93 -> 0 | G27: 0 | I27: Rechtliche Hinweise | J27: Der Anbieter stellt das Stiftungscockpit Stiftungen kostenfrei zur Verfügung. Jegliche Haftung für Schäden, die Nutzerinnen und Nutzern oder Dritten durch die Nutzung der Anwendung entstehen, ist ausgeschlossen. Trotz sorgfältiger Auswahl können wir keine Haftung für Inhalte externer Links übernehmen. Dafür sind ausschließlich die Anbieter der verlinkten Seiten verantwortlich.
F28: =Daten_Willkommen!C94 -> 0 | G28: 0
F29: =Daten_Willkommen!C95 -> 0 | G29: 0 | I29: Philosophie | J29: "In der Ökonomie geht es um Gut und Böse. Es geht um Menschen, die Menschen Geschichten über andere Menschen erzählen. Selbst das ausgefeilteste mathematische Modell ist eine Parabel, eine Geschichte, mit der wir die Welt um uns herum zu begreifen versuchen." [aus Tomás Sedlácek: Die Ökonomie von Gut und Böse]
L33: Late-Night-Show
L34: Bestes Buch Unterhaltung - Deutscher Fernsehpreis
I100: INFO-TEXTE | J100: INFOSCREEN (Nicht verschieben - Makro-Bezüge!)
I102: WILLKOMMEN
I105: Wozu das Ganze? | J105: Herzlich Willkommen im Stiftungscockpit. Diese Applikation soll Sie dabei unterstützen, Ihre haupt- oder ehrenamtliche Funktion im Stiftungsgremium oder als Mitarbeiter/-in der Geschäftsführung effizient und erfolgreich auszufüllen. Im Stiftungswesen insgesamt will es zur Entstehung anerkannter Standards beitragen.
I107: Methodik | J107: Hierzu systematisiert das Cockpit typische Planungs-, Berichts- und Dokumenationsprozesse in steuerbergünstigten Stiftungen. Ausgangspunkte sind stets die aus dem Stiftungszweck abgeleiteten Anlageziele. Eine ordnungsgemäße Finanzbuchhaltung, Vermögens-, Rechts- und Steuerberatung kann und will das Cockpit hingegen nicht ersetzen.
I109: Rechtliche Hinweise | J109: Der Anbieter stellt das Stiftungscockpit Stiftungen kostenfrei zur Verfügung. Jegliche Haftung für Schäden, die Nutzerinnen und Nutzern oder Dritten durch die Nutzung der Anwendung entstehen, ist ausgeschlossen. Trotz sorgfältiger Auswahl können wir keine Haftung für Inhalte externer Links übernehmen. Dafür sind ausschließlich die Anbieter der verlinkten Seiten verantwortlich.
I111: Philosophie | J111: "In der Ökonomie geht es um Gut und Böse. Es geht um Menschen, die Menschen Geschichten über andere Menschen erzählen. Selbst das ausgefeilteste mathematische Modell ist eine Parabel, eine Geschichte, mit der wir die Welt um uns herum zu begreifen versuchen." [aus Tomás Sedlácek: Die Ökonomie von Gut und Böse]
I114: ÜBER DAS STIFTUNGSCOCKPIT
I117: Autor | J117: Stefan Fritz
I118: Partner | J118: DVFA e.V. für den von ihm entwickelten und ins Stiftungscockpit integrierten Teilbereich Nachhaltigkeitsmessung/-systematik
I119: Dank an | J119: Den Bundesverband Deutscher Stiftungsn in Person seines damaligen Generalsekretärs Felix Oldenburg für die Inspiration und Ermutigung zur Realisierung dieses Projekts
I120: Kontakt | J120: info@stiftungscockpit.de
I121: Nutzung | J121: Shareware (unbefristet kostenfrei für steuerbegünstigte Stiftungen); in dieser Version nicht für Beratungszwecke
I122: Download | J122: www.stiftungen.org/stiftungscockpit
I125: HÄUFIGE FRAGEN
I128: Kann ich die Eingaben in beliebiger Reihenfolge vornehmen? | J128: Technisch ja. Es empfiehlt sich allerdings, sich an die mit den nebenstehenden Boarding-Ampeln angezeigte Reihenfolge zu halten, da die Eingaben teilweise aufeinander aufbauen. Der Investment-Check für Einzelanlagen kann stets isoliert verwendet werden.
I130: Warum sind die Tabellenblätter gesperrt? | J130: Außerhalb der Eingabefelder sollen die Tabellenblätter nicht verändert werden, damit nicht zu viele Versionen im Umlauf sind. Anderenfalls ist eine zentrale Qualtitässicherung unmöglich. Änderungs- und Ergänzungswünsche bitte gerne an: info@stiftungsockpit.de.
I132: Gibt es eine Schnittstelle zu Buchhaltungs-programmen? | J132: Nein, bis jetzt nicht.
I134: Ist der Eingabeaufwand nicht übertrieben? | J134: Bei den hier einzugebenden Daten handelt es sich um alle wesentlichen Kennzahlen für das Vermögensmanagement, die ein/e ordentliche/r Geschäftsführer/in präsent haben sollte. Wenn alle diese Daten bereits an anderer Stelle strukturiert erfasst wurden, lohnt sich der Aufwand vielleicht eher nicht. Sonst ganz bestimmt.
I137: Ist das ganze Flugzeuggedöns nicht etwas übertrieben? | J137: Mag sein. Aber mir hat es so mehr Spaß gemacht, das Cockpit aufzusetzen, und manchen Nutzerinnen und Nutzern macht es so mehr Spaß, damit zu arbeiten.
I140: EINSTELLUNGEN VORNEHMEN
I143: Ihre Aufgabe | J143: Nehmen Sie die Grundeinstellungen für Ihre Stiftung vor. Auf diese Eingaben greift das System immer wieder an unterschiedlichen Stellen zurück. Die meisten der hier vorzunehmenden Eingaben ergeben sich aus der Stiftungssatzung oder sind ohnehin bekannt.
I145: Ihr Aufwand | J145: Ca. 10 Minuten. Die hier einzugebenden Stiftungsdaten düften Ihnen geläufig sein. Unterlagen werden normalerweise nicht benötigt.
I147: Ihr Nutzen | J147: Die Vornahme der Einstellungen ist Voraussetzung für die erfolgreiche Bearbeitung der weiteren Aufgaben.
I149: Philosophie | J149: „Alles, was es wert ist, getan zu werden, ist es auch wert, unvollkommen getan zu werden.“ [Marshall B. Rosenberg]
I152: ANLAGEZIELE DEFINIEREN
I155: Ihre Aufgabe | J155: Geben Sie für die Anlageziele Vermögen(serhaltung), Erträge, Risiko und Nachhaltigkeit jeweils eine von mehreren vorgegebenen Kategorien und die Zielgrößen an. Die benötigten Informationen sollten sich aus der Satzung und/oder den Anlagerichtlinien ableiten lassen.
I157: Ihr Aufwand | J157: Je nach Vorkenntnissen ca. 5 bis 15 Minuten; keine vertieften Anlagekenntnisse erforderlich.
I159: Ihr Nutzen | J159: Dies ist der Ausgangspunkt für alle weiteren Funktionen des Stiftungscockpits. Die Eingabe aktiviert die vier Rundinstrumente und schaltet die nächste Ebene "Vermögenserhaltung berechnen" frei. Die Eingaben werden automatisch in die Anlagerichtlinie übernommen. Quantifizierte Anlageziele sind Grundlage jeder Vermögensberatung.
I161: Philosophie | J161: "Wer den Hafen nicht kennt, für den ist kein Wind günstig". [nach Lucius Annaeas Seneca]
I164: VERMÖGENSERHALTUNG BERECHNEN
I167: Ihre Aufgabe | J167: Die Vermögenserhaltung ist bei Stiftungen ein zentrales Anlagekriterium. Die meisten deutschen Stiftungen müssen ihr Vermögen real, also unter Inflationsausgleich erhalten. Für sie spielt die Vermögenserhaltungsrechnung eine besondere Rolle: der Vergleich der um die Inflation korrigierten Buchwerte mit dem tatsächlich vorhandenen Vermögen.
I169: Ihr Aufwand | J169: Ca. 5 Minuten. Sie benötigen die anfängliche Vermögensausstattung und spätere Zustiftungen nach Zeit und Höhe. Diese Informationen entnehmen Sie den Jahresrechnungen bzw. -abschlüssen.
I171: Ihr Nutzen | J171: Sie können einschätzen, in welchem Maß die Anlagepolitik Ihrer Stiftung künftig auf Vermögenszuwachs ausgelegt sein sollte. Die Angaben schalten die nächste Ebene "Anlagerichtlinie erstellen" frei.
I173: Philosophie | J173: "Aufgrund seiner Geschichte fürchtet Deutschland sich mehr vor der Inflation als vor der Rezession. Im Rest der Welt ist das genau umgekehrt." [George Soros]
I176: ANLAGERICHTLINIEN ERSTELLEN
I179: Ihre Aufgabe | J179: Bringen Sie die Anlagestrategie Ihrer Stiftung strukturiert und widerspruchsfrei zu Papier. Auf Basis Ihrer Anlageziele wählen Sie die Anlageklassen und -instrumente aus. Aus Ihren Eingaben erstellt das Cockpit eine ausformulierte Anlagerichtlinie und sorgt dafür, dass Sie nichts Wichtiges vergessen.
I181: Ihr Aufwand | J181: Ab 30 Minuten. Sofern vorhanden, sollte Ihnen die geltende Anlagerichtlinie vorliegen. Grundkenntnisse über die Funktion der Anlageklassen und -instrumente sind hilfreich.
I183: Ihr Nutzen | J183: Schriftliche Anlagerichtlnien gehören heute zum Standard einer guten Stiftungsgeschäftsführung. Sie erleichtern die stiftungsinterne Vermögenskommunikation ebenso wie die externe mit Beraterinnen/Beratern, Aufsichtsbehörden oder potenziellen Zustifterinnen/Zustiftern. Im Zweifelsfall dient sie dem Nachweis einer planmäßigen Anlagepolitik.
I185: Philosophie | J185: "Regeln sind gut und Regeln sind wichtig. Aber niemand wird dadurch gezwungen, das Hirn auszuschalten." [Autor unbekannt]
I188: SZENARIEN VERGLEICHEN
I191: Ihre Aufgabe | J191: Erfassen Sie sämtliche Vermögensgegenstände der Stiftung getrennt nach Anlageklassen und mit Angaben zu Nachhaltigkeitskriterien. Wählen Sie ein volkswirtschaftliches Basisszenario und eines als Worst Case-Szenario sowie ein drittes Szenario.
I193: Ihr Aufwand | J193: Der Zeitaufwand richtet sich nach Art und Anzahl der Vermögensgegenstände und der Verfügbarkeit der Informationen dazu.
I195: Ihr Nutzen | J195: Einmal eingegeben, stehen die Vermögensdaten für unterschiedliche Auswertungen zur Verfügung. Die Projektion in den gewählten Szenarien zeigt Ihnen, ob das Vermögen für die Zukunft gut aufgestellt ist, oder ob Handlungsbedarf besteht. Mit dem Vermögenbericht erhalten Sie eine strukturierte Auswertung.
I197: Philosophie | J197: „Glücklich, wem Vermögen mit Verstand gepaart zu eigen ist; denn er macht davon in allem, was nötig ist, den richtigen Gebrauch.“ [Demokrit]
I200: INVESTITION PRÜFEN
I203: Ihre Aufgabe | J203: Wenn Sie Veränderungbedarf erkannt haben, gilt es diese Veränderung herbeizuführen. Eine Investition stellt eine Umschichtung im Stiftungsvermögen dar. Sie ist der notwendige Eingriff in die Vermögensstruktur. Dokumentieren Sie die Beweggründe und verwendeten Informationen sorgfältig, damit die Entscheidung auch im Zeitverlauf nachvollziehbar bleibt.
I205: Ihr Aufwand | J205: Sie benötigen den konkreten Vorschlag einer Anlagealternative zum vorhandenen Bestand. Liegen Ihnen die erforderlichen Parameter vor, benötigen Sie nur wenige Minuten, um diese zu erfassen.
I207: Ihr Nutzen | J207: Das Cockpit macht die Auswirkungen einer möglichen Umschichtung auf die Erreichung jedes einzelnen Anlageziels sichtbar. Aus den Eingaben erstellt es einen Formulierungsvorschlag für die Gremienentscheidung. Es untersützt die Verantwortlichen dabei, die Entscheidungsmotive zu dokumentieren Haftungsrisiken zu reduzieren.
I209: Philosophie | J209: "Für Wunder muss man beten,für Veränderungen aber arbeiten." [Thomas von Aquin]
I212: VERGABE DURCHFÜHREN
I215: Ihre Aufgabe | J215: Um eine passende und preiswerte Vermögensanlage zu finden, empfiehlt es sich in der Regel, mindestens drei Angebote einzuholen. Damit erfüllen Sie auch die Anforderung des Business Judgement Rule nach einer angemessenen Informationsgrundlage und der Orientierung am Stiftungswohl.
I217: Ihr Aufwand | J217: Besprechen Sie im Gremium, welche Anbieter in Frage kommen, und holen Sie entsprechende Angebote ein. Die Anbieter müssen Ihre Anlageziele z.B. in Form der Anlagerichtlinien kennen, aber nicht die Entscheidungskriterien in ihre Gewichtung im Einzelnen.
I219: Ihr Nutzen | J219: Die Gefahr, dass jemand den Vorwurf erhebt, ein Anbieter sei aus nicht sachbezogenen Gründen bevorzugt oder benachteiligt werden, reduziert sich erheblich, wenn eine vorab derfinierte Kriterienmatrix zum Einsatz kommt. Umgekehr steigt die Wahrscheinlichkeit, das geeignetste Anlageprodukt zu finden.
I221: Philosophie | J221: "Sometimes you make the right decision, sometimes you make the decision right." [Phil McGraw]
I224: FINANZSTATUS ERSTELLEN
I227: Ihre Aufgabe | J227: Der Finanzstatus dokumentiert umfangreich die Finanzdaten und -bezüge der Stiftung zu einem bestimmten Zeitpunkt. Er erfasst die steuerungsrelevanten Kennzahlen und gibt Auskunft über einige Aspekte der Stiftungsgovernance im Hinblick auf die Anforderungen der Business Judgement Rule.
I229: Ihr Aufwand | J229: Der Finanzstatus stellt eine Drittleistung durch qualifizierte Beraterinnen und Berater dar. Der Aufwand auf Stiftungssseite beschränkt sich in diesem Fall darauf, die benötigten Statuten und Finandaten zu übermitteln. Die betreffenden Funktionalitäten des Stiftungscockpits stehen nur in der lizenzierten Pro-Version zur Verfügung.
I231: Ihr Nutzen | J231: Mit dem Finanzstatus erhalten die Stiftungsverantwortlichen ein sehr umfassendes Bild vom status quo der Stiftungsfinanzen und möglichem Handlungsbedarf aus neutraler Sicht. Dies kann vor allem in Sondersituationen wie einem Vorstandswechsel oder geplanten Satzungsänderungen die Handlungs- und Haftungssicherheit für alle Beteiligten erhöhen.
I233: Philosophie | J233: "Es ist kein Drama, wenn das Projekt nicht nach Plan läuft. Es ist ein Drama, wenn der Projektmanager nichts davon weiß." [Peter Hobbs]
I236: INSTRUMENT VERMÖGEN
I239: Bedeutung | J239: Dieses Instrument zeigt an, wo Ihre Stiftung aktuell bei der Erreichung ihres Vermögenserhaltungsziels steht. Steht die Nadel im roten Bereich, ist das Ziel aktuell nicht erfüllt, im gelben ist es übererfüllt. Dies kann ein Nachteil sein, wenn gleichzeitig andere Anlageziele nicht erreicht werden. Der grüne Bereich lässt sich auf dem Tabellenblatt "Einstellungen" festlegen.
I241: Funktion | J241: Das System gleicht die gewählte Art der Vermögenserhaltung mit dem tatsächlich vorhandenen Vermögen ab. Ist reale Vermögenserhaltung als Ziel gewählt, wird als Soll das Grundstockvermögen ab Zufluss mit dem Verbrauchpreisindex inflationiert.
I243: Ihre Eingaben | J243: Um dieses Instrument zu aktivieren, bearbeiten Sie die Tabellenblätter Einstellungen, Anlageziele, Vermögen und Vermögenserhaltung.
I246: INSTRUMENT ERTRAG
I249: Bedeutung | J249: Dieses Instrument zeigt an, inwieweit das aktuelle Ertragspotenzial des Vermögens der jährlichen Ertragserwartung entspricht. Steht die Nadel im roten Bereich, ist das Ziel aktuell nicht erfüllt, im gelben ist es übererfüllt. Dies kann ein Nachteil sein, wenn gleichzeitig andere Anlageziele nicht erreicht werden.
I251: Funktion | J251: Das System gleicht die Zielhöhe der jährlichen Einnahmen mit den aus dem aktuellen Vermögensbestand zu erwartenden ordentlichen Erträgen ab.
I253: Ihre Eingaben | J253: Um dieses Instrument zu aktivieren, bearbeiten Sie die Tabellenblätter Einstellungen, Anlageziele, und Vermögen. Sofern das Anlageziel "Überschuss" lautet, wird darüber hinaus das Tabellenblatt Wirtschaftsplan benötigt.
I256: INSTRUMENT RISIKO
I259: Bedeutung | J259: Dieses Instrument zeigt an, inwieweit der zu erwartende Maximalverlust auf Jahresbasis der definierten Risikotragfähigkeit entspricht. Steht die Nadel im roten Bereich, ist das Ziel aktuell nicht erfüllt, im gelben ist es übererfüllt. Dies kann ein Nachteil sein, wenn gleichzeitig andere Anlageziele nicht erreicht werden.
I261: Funktion | J261: Das System vergleicht die die Summe der zu erwartenden Maximalverluste auf Ebene der einzelnen Vermögensgegenstände mit dem angegebenen Maximalverlust auf Gesamtvemögensebene.
I263: Ihre Eingaben | J263: Um dieses Instrument zu aktivieren, bearbeiten Sie die Tabellenblätter Anlageziele, und Vermögen.
I266: INSTRUMENT NACHHALTIGKEIT
I269: Bedeutung | J269: Dieses Instrument zeigt an, inwieweit die Nachhaltigkeitsziele in der aktuellen Vermögenszusammenseztung bereits umgesetzt sind. Unter nachhaltigen Anlagen werden hier solche verstanden, die nicht primär finanzielle Kriterien berücksichten, sondern auch ideelle, insbesondere ökologische, soziale oder solche guter Unternehmensführung.
I271: Funktion | J271: Je nach gewählter Systematik vergleicht das Cockpit den Anteil der gewählten Nachhaltigkeitsstrategien oder den PRISC-Score mit den Nachhaltigkeitscharakteristika der vorhadenen Vermögensgegenstände.
I273: Ihre Eingaben | J273: Um dieses Instrument zu aktivieren, bearbeiten Sie die Tabellenblätter "Anlageziele", "Vermögen" und "Nachhaltigkeit/PRISC".
I276: INVESTMENT CHECKEN
I279: Ihre Aufgabe | J279: Sie wollen sich in kurzer Zeit einen Überblick verschaffen, ob eine Anlagemöglichkeit für die Stiftung in Frage kommt, oder mehrere Anlagen miteinander vergleichen. Sie möchten andere Organmitglieder einbiehen und den Vorgang dokumentieren. Kein relevanter Aspekt soll dabei übersehen werden.
I281: Ihr Aufwand | J281: Der Finanzstatus stellt eine Drittleistung durch qualifizierte Beraterinnen und Berater dar. Der Aufwand auf Stiftungssseite beschränkt sich in diesem Fall darauf, die benötigten Statuten und Finandaten zu übermitteln. Die betreffenden Funktionalitäten des Stiftungscockpits stehen nur in der lizenzierten Pro-Version zur Verfügung.
I283: Ihr Nutzen | J283: Sie erhalten eine Checkliste, in der Sie alle üblicherweise relevanten Fragen systematisch beantworten können. De rInvestment-Check lässt sich direkt benutzen, ohne zuvor weitere Tabellenblätter ausfüllen zu müssen. Allerdings werden die Eingaben auch noch nicht mit der Anlagestrategie abgeblichen. Auch ein Textgenerator ist noch nicht hinterlegt.
I285: Philosophie | J285: "An der Börse sagt uns oft das Gefühl, was wir machen, und der Verstand, was wir vermeiden sollen.” [André Kostolany]

Sheet Daten_Willkommen (hidden)
A1: Daten Startseite
B3: Version: | C3: 2.33.1
B4: Stand: | C4: 2023-02-27
B5: Aktuelles Datum: | C5: =TODAY() -> 2023-02-27
B6: Lizenzschlüssel:
B8: INSTRUMENTE
B10: Anzeigesegemente
B12: =(100-B13)/2 -> 48.0 | C12: links
B13: =(Einstellungen!$G$18+Einstellungen!$G$18*$P$12)*2 -> 4.0 | C13: mitte
B14: =(100-B13)/2 -> 48.0 | C14: rechts
B15: 50.0 | C15: unten
B17: 1. Vermögen | C17: =Anlageziele!H14 -> Real
B19: Status Quo | C19: =Daten_Vermögen!C94 -> 0
B20: Ziel | C20: =Daten_Vermögenserhaltung!D83 -> 0
B21: Differenz | C21: =C19-C20 -> 0
B22: Zielerreichung | C22: =IF(C19=0,"OFF",IFERROR(C19/C20,"OFF")) -> OFF
B23: Begrenzer | C23: =IF(C22="OFF","OFF",IF(C22<0,0,IF(C22>2,2,C22))) -> OFF
B25: Tacho Vermögen
B27: Ausschlag links | C27: =IFERROR(C23/2,"OFF") -> OFF
B28: Zeiger | C28: 0.0%
B29: Ausschlag rechts | C29: =1-C27 -> 
B30: Bodensegment | C30: 50.0%
B32: 2. Erträge
B34: Status Quo | C34: =Daten_Vermögen!D94 -> 0
B35: Ziel | C35: =Daten_Vermögen!D33 -> OFF
B36: Differenz | C36: =C34-C35 -> 
B37: Zielerreichung | C37: =IF(C34=0,"OFF",IFERROR(1+C36/C35,"OFF")) -> OFF
B38: Begrenzer | C38: =IF(C37="OFF","OFF",IF(C37<0,0,IF(C37>2,2,C37))) -> OFF
B40: Tacho Ertrag
B42: Ausschlag links | C42: =IFERROR(C38/2,"OFF") -> OFF
B43: Zeiger | C43: 0.0%
B44: Ausschlag rechts | C44: =1-C42 -> 
B45: Bodensegment | C45: 50.0%
B47: 3. Risiko
B49: Status Quo | C49: =Daten_Vermögen!E94 -> 0
B50: Ziel | C50: =Daten_Vermögen!E37 -> 0
B51: Differenz | C51: =C50-C49 -> 0
B52: Zielerreichung | C52: =IF(C49=0,"OFF",IFERROR(1+C51/C50,"OFF")) -> OFF
B53: Begrenzer | C53: =IF(C52="OFF","OFF",IF(C52<0,0,IF(C52>2,2,C52))) -> OFF
B55: Tacho Risiko
B57: Ausschlag links | C57: =IFERROR(C53/2,"OFF") -> OFF
B58: Zeiger | C58: 0.0%
B59: Ausschlag rechts | C59: =1-C57 -> 
B60: Bodensegment | C60: 50.0%
B62: 4. Nachhaltigkeit | C62: =Anlageziele!O31 -> Quantitativ
B64: Status Quo | C64: =Daten_Vermögen!F95 -> 0.0%
B65: Ziel | C65: =Daten_Vermögen!F38 -> 0.0%
B66: Differenz | C66: =C64-C65 -> 0.0%
B67: Zielerreichung | C67: =IF(C64=0,"OFF",IF(C65="OFF","OFF",IFERROR(1+C66/C65,0))) -> OFF
B68: Begrenzer | C68: =IF(C67="OFF","OFF",IF(C67<0,0,IF(C67>2,2,C67))) -> OFF
B70: Tacho Nachhaltigkeit
B71: Ausschlag links | C71: =IFERROR(C68/2,"OFF") -> OFF
B72: Zeiger | C72: 0.0%
B73: Ausschlag rechts | C73: =1-C71 -> 
B74: Bodensegment | C74: 50.0%
B77: LEVEL-MANAGER
B79: 1. Zählerstände
B80: "Zähler" Einstieg | C80: 1
B81: Zähler Investment-Check | C81: 1
B82: Zähler Einstellungen | C82: =Daten_Einstellg_Ziele!C37 -> 0
B83: Zähler Anlageziele | C83: =Daten_Einstellg_Ziele!C47 -> 0
B84: Zähler Anlagerichtlinie | C84: =Daten_Anlagerichtlinie!B286 -> 0
B85: Zähler Vermögen | C85: =Daten_Vermögen!C164 -> 0
B87: 2. Schwellenwerte | C87: Zähler
B88: Einstellungen vornehmen | C88: =IFERROR(C80,0) -> 1
B89: Anlageziele definieren | C89: =IFERROR(C80*C82,0) -> 0
B90: Vermögenserhaltg. berechnen | C90: =IFERROR(C82*C83,0) -> 0
B91: Anlagerichtlinie erstellen | C91: =IFERROR(C82*C83,0) -> 0
B92: Vermögen analysieren | C92: =IFERROR(C82*C83*C84,0) -> 0
B93: Unschichtung vornehmen | C93: =IFERROR(C82*C83*C84*C85,0) -> 0
B94: Vergabe durchführen | C94: =IFERROR(C82*C83*C84*C85,0) -> 0
B95: Vermögensbericht erstellen | C95: =IFERROR(C82*C83*C84*C85,0) -> 0

Sheet Cockpit
B10: Gehe zu | E10: Zielerreichung Projektion | G10: 2024
E27: Projektion Basisszenario
E58: Analyse Status Quo Vermögenserhaltung
P64: Grundstock | Q64: Investitionsvermögen
P65: (SOLL) | Q65: (IST)
O66: Grundstock nominal | P66: =Daten_Vermögenserhaltung!D75 -> 0 | R66: EUR
O67: Inflationsausgleich | P67: =Daten_Vermögenserhaltung!D76 -> 0 | R67: EUR
O68: Gesamt | P68: =P66+P67 -> 0 | Q68: =Daten_Vermögenserhaltung!E77 -> 0 | R68: EUR
O69: Zielerreichung: | P69: 100% | Q69: =Q68/P68 -> 
E79: Allokation aktuell
O86: Allokation | P86: SOLL-Allokation | Q86: IST-Allokation
O87: =Daten_Vermögen!B7 -> Aktien | P87: =Anlagestrategie!H23 -> 0.0% | Q87: =IFERROR(Daten_Vermögen!E169,"") ->  | S87: =IF(Daten_Anlagerichtlinie!$B$285>0,IF(Q87<P87-P87*Anlagestrategie!$H$36,"Außerhalb d. Zielkorridors",IF(Cockpit!Q87>Cockpit!P87+Cockpit!P87*Anlagestrategie!$H$36,"Außerhalb d. Zielkorridors","")),"") -> 
O88: =Daten_Vermögen!B8 -> Anleihen | P88: =Anlagestrategie!H24 -> 0.0% | Q88: =IFERROR(Daten_Vermögen!E170,"") ->  | S88: =IF(Daten_Anlagerichtlinie!$B$285>0,IF(Q88<P88-P88*Anlagestrategie!$H$36,"Außerhalb d. Zielkorridors",IF(Cockpit!Q88>Cockpit!P88+Cockpit!P88*Anlagestrategie!$H$36,"Außerhalb d. Zielkorridors","")),"") -> 
O89: =Daten_Vermögen!B9 -> Alternative Inv. | P89: =Anlagestrategie!H28 -> 0.0% | Q89: =IFERROR(Daten_Vermögen!E171,"") ->  | S89: =IF(Daten_Anlagerichtlinie!$B$285>0,IF(Q89<P89-P89*Anlagestrategie!$H$36,"Außerhalb d. Zielkorridors",IF(Cockpit!Q89>Cockpit!P89+Cockpit!P89*Anlagestrategie!$H$36,"Außerhalb d. Zielkorridors","")),"") -> 
O90: =Daten_Vermögen!B10 -> Rohstoffe | P90: =Anlagestrategie!H29 -> 0.0% | Q90: =IFERROR(Daten_Vermögen!E172,"") ->  | S90: =IF(Daten_Anlagerichtlinie!$B$285>0,IF(Q90<P90-P90*Anlagestrategie!$H$36,"Außerhalb d. Zielkorridors",IF(Cockpit!Q90>Cockpit!P90+Cockpit!P90*Anlagestrategie!$H$36,"Außerhalb d. Zielkorridors","")),"") -> 
O91: =Daten_Vermögen!B11 -> Liquidität | P91: =Anlagestrategie!H30 -> 0.0% | Q91: =IFERROR(Daten_Vermögen!E173,"") ->  | S91: =IF(Daten_Anlagerichtlinie!$B$285>0,IF(Q91<P91-P91*Anlagestrategie!$H$36,"Außerhalb d. Zielkorridors",IF(Cockpit!Q91>Cockpit!P91+Cockpit!P91*Anlagestrategie!$H$36,"Außerhalb d. Zielkorridors","")),"") -> 
O92: =Daten_Vermögen!B13 -> Immobilien | P92: =Anlagestrategie!H31 -> 0.0% | Q92: =IFERROR(Daten_Vermögen!E174,"") ->  | S92: =IF(Daten_Anlagerichtlinie!$B$285>0,IF(Q92<P92-P92*Anlagestrategie!$H$36,"Außerhalb d. Zielkorridors",IF(Cockpit!Q92>Cockpit!P92+Cockpit!P92*Anlagestrategie!$H$36,"Außerhalb d. Zielkorridors","")),"") -> 
O93: =Daten_Vermögen!B14 -> Beteiligungen | P93: =Anlagestrategie!H32 -> 0.0% | Q93: =IFERROR(Daten_Vermögen!E175,"") ->  | S93: =IF(Daten_Anlagerichtlinie!$B$285>0,IF(Q93<P93-P93*Anlagestrategie!$H$36,"Außerhalb d. Zielkorridors",IF(Cockpit!Q93>Cockpit!P93+Cockpit!P93*Anlagestrategie!$H$36,"Außerhalb d. Zielkorridors","")),"") -> 
O94: =Daten_Vermögen!B15 -> Sonst. Verm. | P94: =Anlagestrategie!H33 -> 0.0% | Q94: =IFERROR(Daten_Vermögen!E176,"") ->  | S94: =IF(Daten_Anlagerichtlinie!$B$285>0,IF(Q94<P94-P94*Anlagestrategie!$H$36,"Außerhalb d. Zielkorridors",IF(Cockpit!Q94>Cockpit!P94+Cockpit!P94*Anlagestrategie!$H$36,"Außerhalb d. Zielkorridors","")),"") -> 
O95: Summe | P95: =SUM(P87:P94) -> 0.0% | Q95: =SUM(Q87:Q94) -> 0.0%
E101: Attribution
O108: Allokation | P108: Gewichtete Renditen | Q108: Attribution
O109: =Daten_Vermögen!B7 -> Aktien | P109: =Daten_Vermögen!T94 ->  | Q109: =P109/$P$117 -> 
O110: =Daten_Vermögen!B8 -> Anleihen | P110: =Daten_Vermögen!U94 ->  | Q110: =P110/$P$117 -> 
O111: =Daten_Vermögen!B9 -> Alternative Inv. | P111: =Daten_Vermögen!V94 -> 
O112: =Daten_Vermögen!B10 -> Rohstoffe | P112: =Daten_Vermögen!W94 -> 
O113: =Daten_Vermögen!B11 -> Liquidität | P113: =Daten_Vermögen!X94 -> 
O114: =Daten_Vermögen!B13 -> Immobilien | P114: =Daten_Vermögen!Y94 -> 0.0%
O115: =Daten_Vermögen!B14 -> Beteiligungen | P115: =Daten_Vermögen!Z94 -> 0.0%
O116: =Daten_Vermögen!B15 -> Sonst. Verm. | P116: =Daten_Vermögen!AA94 -> 0.0%
O117: Summe | P117: =SUM(P109:P116) ->  | Q117: =SUM(Q109:Q116) -> 
E123: Kennzahlen im Jahr | G123: =Einstellungen!G13 -> 2024
F125: Investitionsgrad | H125: ='Daten_Cockpit '!C125 ->  | K125: Zweckeffizienz Ertrag | P125: Zweckeffizienz Vermögen
F129: Verwaltungskostenquote 1 | K129: Verwaltungskostenquote 2
F133: Aufbauorganisation | K133: Ablauforganisation (Legitimität) | P133: Resilienz
E137: Ereignisradar
E160: Ende der Anzeigen

Sheet Daten_Cockpit (hidden)
A1: Daten Cockpit
B3: PROJEKTION | R3: Auswahlfeld
B5: Vermögenserhaltung | C5: =Anlageziele!H14 -> Real | G5: Tacho Vermögenserhaltung | I5: Zweiter Zeiger | R5: Jahr
C6: =Tabellen!F4 -> 2024 | D6: =Cockpit!G10 -> 2024 | G6: Ausgangswert | H6: =D10 -> OFF | I6: =D10 -> OFF | N6: Wert | O6: Ausschlag | P6: Zoomfaktor | R6: =Einstellungen!G13 -> 2024
B7: Zielwert: | C7: =Daten_Vermögenserhaltung!I70 -> 0 | D7: =SUMIF(Daten_Vermögenserhaltung!I69:M69,Cockpit!G10,Daten_Vermögenserhaltung!I70:M70) -> 0 | L7: Segmente | N7: 0% | O7: 50% | P7: 1.5 | R7: =R6+1 -> 2025
B8: Projektion Basisszenario: | C8: ='Daten Projektion'!O64 -> 0 | D8: =SUMIF(Daten_Vermögenserhaltung!I69:M69,Cockpit!G10,Daten_Vermögenserhaltung!I71:M71) -> 0 | G8: Anzeige | H8: Zeiger Projektion | I8: Zeiger Proj. | L8: Einteilung | M8: Farbe | N8: -30% | O8: 0% | R8: =R7+1 -> 2026
B9: Zielabweichung EUR | C9: =C8-C7 -> 0 | D9: =D8-D7 -> 0 | G9: Ausschlag links | H9: =H6/2 ->  | I9: =IF(I6>30%,100%,IF(I6<-30%,0%,50%+I6*$P$7)) -> 100.0% | L9: =(100-L10)/2 -> 45.0 | M9: rot | N9: 30% | O9: 100% | R9: 2027
B10: Zielabweichung % | C10: =C9/C7 ->  | D10: =IFERROR(1+D9/D7,"OFF") -> OFF | G10: Zeiger | H10: 0.0% | I10: 0.0% | L10: =(Einstellungen!$G$18+Einstellungen!$G$18*$P$7)*2 -> 10.0 | M10: grün | R10: 2028
G11: Ausschlag rechts | H11: =1-H9 ->  | I11: =1-I9 -> 0.0% | L11: =(100-L10)/2 -> 45.0 | M11: gelb
B12: Investitionsgrad | G12: Bodensegment | H12: 50.0% | I12: 50.0% | L12: 50.0 | M12: unsichtbar
C13: EUR | D13: =Cockpit!G10 -> 2024
B14: Gesamtvermögen | C14: =SUMIF('Daten Projektion'!$O$12:$S$12,Cockpit!$G$10,'Daten Projektion'!$O75:$S75) -> 0 | D14: 100.0%
B15: Liquidität | C15: =SUMIF('Daten Projektion'!$O$12:$S$12,Cockpit!$G$10,'Daten Projektion'!$O70:$S70) -> 0 | D15: =C15/C14 ->  | G15: Tacho Erträge
B16: Investitionsgrad | C16: =C14-C15 -> 0 | D16: =IFERROR(D14-D15,"OFF") -> OFF | G16: Ausgangswert | H16: =D23 -> OFF | I16: =D23/100 -> 
L17: Segmente
B18: Erträge | G18: Anzeige | H18: Zeiger Projektion | I18: Zeiger Proj. | L18: Einteilung | M18: Farbe
C19: ='Daten Projektion'!O226 -> 2024 | D19: =D6 -> 2024 | G19: Ausschlag links | H19: =H16/2 ->  | I19: =IF(I16>30%,100%,IF(I16<-30%,0%,50%+I16*$P$7)) ->  | L19: =(100-L20)/2 -> 45.0 | M19: rot
B20: Ertragsziel: | C20: ='Daten Projektion'!O227 -> 0 | D20: =SUMIF('Daten Projektion'!O226:S226,Cockpit!G10,'Daten Projektion'!O227:S227) -> 0 | G20: Zeiger | H20: 0.0% | I20: 0.0% | L20: =(Einstellungen!$G$18+Einstellungen!$G$18*$P$7)*2 -> 10.0 | M20: grün
B21: Projektion: | C21: ='Daten Projektion'!O228 -> 0 | D21: =SUMIF('Daten Projektion'!O226:S226,Cockpit!G10,'Daten Projektion'!O228:S228) -> 0 | G21: Ausschlag rechts | H21: =1-H19 ->  | I21: =1-I19 ->  | L21: =(100-L20)/2 -> 45.0 | M21: gelb
B22: Abweichung EUR: | C22: =C21-C20 -> 0 | D22: =D21-D20 -> 0 | G22: Bodensegment | H22: 50.0% | I22: 50.0% | L22: 50.0 | M22: unsichtbar
B23: Zielabweichung % | C23: =C22/C20*100 ->  | D23: =IFERROR(1+D22/D20,"OFF") -> OFF
G24: Tacho Risiko
B25: Risiko | G25: Ausgangswert | H25: =D30 -> OFF | I25: =D30 -> OFF
C26: ='Daten Projektion'!O297 -> 2024 | D26: =D6 -> 2024 | L26: Segmente
B27: Risikoziel | C27: ='Daten Projektion'!O298 -> 0 | D27: =SUMIF('Daten Projektion'!O297:S297,Cockpit!G10,'Daten Projektion'!O298:S298) -> 0 | G27: Anzeige | H27: Zeiger Projektion | I27: Grundstock | L27: Einteilung | M27: Farbe
B28: Projektion | C28: ='Daten Projektion'!O299 -> 0 | D28: =SUMIF('Daten Projektion'!O297:S297,Cockpit!G10,'Daten Projektion'!O299:S299) -> 0 | G28: Ausschlag links | H28: =H25/2 ->  | I28: =IF(I25>30%,100%,IF(I25<-30%,0%,50%+I25*$P$7)) -> 100.0% | L28: =(100-L29)/2 -> 45.0 | M28: rot
B29: Abweichung EUR | C29: =(C28-C27) -> 0 | D29: =(D28-D27) -> 0 | G29: Zeiger | H29: 0.0% | I29: 0.0% | L29: =(Einstellungen!$G$18+Einstellungen!$G$18*$P$7)*2 -> 10.0 | M29: grün
B30: Zielabweichung % | C30: =IF(C27=0,C29/1*-100,C29/C27*-100) -> 0.0 | D30: =IFERROR(1+D29/D27*-1,"OFF") -> OFF | G30: Ausschlag rechts | H30: =1-H28 ->  | I30: =1-I28 -> 0.0% | L30: =(100-L29)/2 -> 45.0 | M30: gelb
G31: Bodensegment | H31: 50.0% | I31: 50.0% | L31: 50.0 | M31: unsichtbar
B32: Nachhaltigkeit | O32: Maximalverlust Projektion Worst Case
C33: ='Daten Projektion'!O357 -> 2024 | D33: =D6 -> 2024 | G33: Tacho Nachhaltigkeit | O33: ='Daten Projektion'!O297 -> 2024 | P33: ='Daten Projektion'!P297 -> 2025
B34: Nachhaltigkeitsziel EUR | C34: =IF(Anlageziele!N42=FALSE,'Daten Projektion'!O379,'Daten Projektion'!O381) -> 0.0% | D34: =SUMIF('Daten Projektion'!$O$386:$S$386,Cockpit!$G$10,'Daten Projektion'!O387:S387) -> 0.0% | G34: Ausgangswert | H34: =D37 -> OFF | I34: =D37 -> OFF | O34: ='Daten Projektion'!O295-'Daten Projektion'!N295 -> 0 | P34: ='Daten Projektion'!P295-'Daten Projektion'!O295 -> 0
B35: Projektion EUR | C35: =IF(Anlageziele!N42=FALSE,'Daten Projektion'!O378,'Daten Projektion'!O382) ->  | D35: =SUMIF('Daten Projektion'!$O$386:$S$386,Cockpit!$G$10,'Daten Projektion'!O388:S388) ->  | L35: Segmente
B36: Abweichung EUR/% | C36: =C35-C34 ->  | D36: =D35-D34 ->  | G36: Anzeige | H36: Zeiger Projektion | I36: Zeiger Imp. | L36: Einteilung | M36: Farbe | Q36: ='Daten Projektion'!Q297 -> 2026 | R36: ='Daten Projektion'!R297 -> 2027 | S36: ='Daten Projektion'!S297 -> 2028
B37: Zielabweichung % | C37: =C36/C34 ->  | D37: =IFERROR(1+D36/D34,"OFF") -> OFF | G37: Ausschlag links | H37: =H34/2 ->  | I37: =IF(I34>30%,100%,IF(I34<-30%,0%,50%+I34*$P$7)) -> 100.0% | L37: =(100-L38)/2 -> 45.0 | M37: rot | Q37: ='Daten Projektion'!Q295-'Daten Projektion'!P295 -> 0 | R37: ='Daten Projektion'!R295-'Daten Projektion'!Q295 -> 0 | S37: ='Daten Projektion'!S295-'Daten Projektion'!R295 -> 0
G38: Zeiger | H38: 0.0% | I38: 0.0% | L38: =(Einstellungen!$G$18+Einstellungen!$G$18*$P$7)*2 -> 10.0 | M38: grün
G39: Ausschlag rechts | H39: =1-H37 ->  | I39: =1-I37 -> 0.0% | L39: =(100-L38)/2 -> 45.0 | M39: gelb
G40: Bodensegment | H40: 50.0% | I40: 50.0% | L40: 50.0 | M40: unsichtbar
B43: RADAR | G43: GRAFIK
B45: =Einstellungen!P16 -> Bitte auswählen | C45: Datum | D45: Tage | G45: Bezeichnung | H45: Gremien | I45: X-Achse
B46: =Einstellungen!P19 -> Bitte auswählen | C46: =DATE(YEAR(Einstellungen!P20)+Einstellungen!Q20,MONTH(Einstellungen!P20),DAY(Einstellungen!P20)) -> 00:00:00 | D46: =IFERROR(DATEDIF(TODAY(),C46,"d"),0) -> 0 | G46: =IF(D46<=0,"",IF(D46>90,"",B46)) ->  | H46: =IF(D46<=0,"",IF(D46>90,"",D46)) ->  | I46: =35-35/90*H46 -> 
B47: =Einstellungen!P21 -> Bitte auswählen | C47: =DATE(YEAR(Einstellungen!P22)+Einstellungen!Q22,MONTH(Einstellungen!P22),DAY(Einstellungen!P22)) -> 00:00:00 | D47: =IFERROR(DATEDIF(TODAY(),C47,"d"),0) -> 0 | I47: =35-35/90*H47 -> 
B48: =Einstellungen!P23 -> Bitte auswählen | C48: =DATE(YEAR(Einstellungen!P24)+Einstellungen!Q24,MONTH(Einstellungen!P24),DAY(Einstellungen!P24)) -> 00:00:00 | D48: 0
B49: =Einstellungen!P25 -> Bitte auswählen | C49: =DATE(YEAR(Einstellungen!P26)+Einstellungen!Q26,MONTH(Einstellungen!P26),DAY(Einstellungen!P26)) -> 00:00:00 | D49: 0
B50: =Einstellungen!P27 -> Bitte auswählen | C50: =DATE(YEAR(Einstellungen!P28)+Einstellungen!Q28,MONTH(Einstellungen!P28),DAY(Einstellungen!P28)) -> 00:00:00 | D50: =IFERROR(DATEDIF(TODAY(),C50,"d"),0) -> 0
G52: =IF(D54<=0,"",IF(D54>90,"",B70)) ->  | I52: 35.0
B54: Berichte | C54: Datum | D54: Tage | G54: Bezeichnung | H54: Berichte | I54: X-Achse
B55: Wirtschaftsplan | C55: =Einstellungen!G45 -> 00:00:00 | D55: =IFERROR(DATEDIF(TODAY(),C55,"d"),0) -> 0 | G55: =IF(D55<=0,"",IF(D55>90,"",B55)) ->  | H55: =IF(D55<=0,"",IF(D55>90,"",D55)) ->  | I55: =35-25/90*H55 -> 
B56: Finanzbericht | C56: =Einstellungen!G46 -> 00:00:00 | D56: =IFERROR(DATEDIF(TODAY(),C56,"d"),0) -> 0 | G56: =IF(D56<=0,"",IF(D56>90,"",B56)) ->  | H56: =IF(D56<=0,"",IF(D56>90,"",D56)) ->  | I56: =35-25/90*H56 -> 
B57: Vermögensverwaltung | C57: 2021-07-31 | D57: 0 | G57: =IF(D57<=0,"",IF(D57>90,"",B57)) ->  | H57: =IF(D57<=0,"",IF(D57>90,"",D57)) -> 
B58: Rechnungsabschluss | C58: =Einstellungen!G47 -> 00:00:00 | D58: 0 | G58: =IF(D58<=0,"",IF(D58>90,"",B58)) ->  | H58: =IF(D58<=0,"",IF(D58>90,"",D58)) -> 
B59: Anlagerichtlinie | C59: =Daten_Anlagerichtlinie!G8 ->  | D59: 0 | G59: =IF(D59<=0,"",IF(D59>90,"",B59)) ->  | H59: =IF(D59<=0,"",IF(D59>90,"",D59)) -> 
B61: Umschichtung
B62: Grenzverletzung | C62: 44,378
B64: Behörden | C64: Datum | D64: Tage | G64: Bezeichnung | H64: Behörden | I64: X-Achse
B65: Jahresabschluss | C65: 2021-06-30 | D65: =IFERROR(DATEDIF(TODAY(),C65,"d"),0) -> 0 | G65: =IF(D65<=0,"",IF(D65>90,"",B65)) ->  | H65: =IF(D65<=0,"",IF(D65>90,"",D65)) ->  | I65: 35
B66: Transparenzregister | C66: =DATE(YEAR(Einstellungen!P33)+1,MONTH(Einstellungen!P33),DAY(Einstellungen!P33)) -> 1900-12-31 | D66: =IFERROR(DATEDIF(TODAY(),C66,"d"),0) -> 0 | G66: =IF(D66<=0,"",IF(D66>90,"",B66)) ->  | H66: =IF(D66<=0,"",IF(D66>90,"",D66)) ->  | I66: 35
B67: LEI-Aktualisierung | C67: =DATE(YEAR(Einstellungen!P34)+1,MONTH(Einstellungen!P34),DAY(Einstellungen!P34)) -> 1900-12-31 | D67: 0 | G67: =IF(D67<=0,"",IF(D67>90,"",B67)) ->  | H67: =IF(D67<=0,"",IF(D67>90,"",D67)) ->  | I67: 35
B68: Stiftungsrechtsreform | C68: 2023-07-01 | D68: 124 | G68: =IF(D68<=0,"",IF(D68>90,"",B68)) ->  | H68: =IF(D68<=0,"",IF(D68>90,"",D68)) ->  | I68: 35
B70: Fälligkeiten | C70: Datum | D70: Tage | G70: Bezeichnung | H70: Fälligkeiten | I70: X-Achse
B71: =Vermögen!F11 -> 0 | C71: =Vermögen!AB11 -> 00:00:00 | D71: =IFERROR(DATEDIF(TODAY(),C71,"d"),0) -> 0 | G71: =IF(D71<=0,"",IF(D71>90,"",B71)) ->  | H71: =IF(D71<=0,"",IF(D71>90,"",D71)) ->  | I71: =IFERROR(35+25/90*H71,"") -> 
B72: =Vermögen!F12 -> 0 | C72: =Vermögen!AB12 -> 00:00:00 | D72: =IFERROR(DATEDIF(TODAY(),C72,"d"),0) -> 0 | I72: =IFERROR(35+25/90*H72,"") -> 
B73: =Vermögen!F13 -> 0 | C73: =Vermögen!AB13 -> 00:00:00 | D73: 0
B74: =Vermögen!F14 -> 0 | C74: =Vermögen!AB14 -> 00:00:00 | D74: 0
B75: =Vermögen!F15 -> 0 | C75: =Vermögen!AB15 -> 00:00:00 | D75: 0
B76: =Vermögen!F16 -> 0 | C76: =Vermögen!AB16 -> 00:00:00 | D76: 0
B77: =Vermögen!F17 -> 0 | C77: =Vermögen!AB17 -> 00:00:00 | D77: 0
B78: =Vermögen!F18 -> 0 | C78: =Vermögen!AB18 -> 00:00:00 | D78: 0
B79: =Vermögen!F19 -> 0 | C79: =Vermögen!AB19 -> 00:00:00 | D79: 0
B80: =Vermögen!F20 -> 0 | C80: =Vermögen!AB20 -> 00:00:00 | D80: 0
B81: =Vermögen!F21 -> 0 | C81: =Vermögen!AB21 -> 00:00:00 | D81: 0
B82: =Vermögen!F22 -> 0 | C82: =Vermögen!AB22 -> 00:00:00 | D82: 0
B83: =Vermögen!F23 -> 0 | C83: =Vermögen!AB23 -> 00:00:00 | D83: 0
B84: =Vermögen!F24 -> 0 | C84: =Vermögen!AB24 -> 00:00:00 | D84: 0
B85: =Vermögen!F25 -> 0 | C85: =Vermögen!AB25 -> 00:00:00 | D85: 0
B86: =Vermögen!F26 -> 0 | C86: =Vermögen!AB26 -> 00:00:00 | D86: 0
B87: =Vermögen!F27 -> 0 | C87: =Vermögen!AB27 -> 00:00:00 | D87: 0
B88: =Vermögen!F28 -> 0 | C88: =Vermögen!AB28 -> 00:00:00 | D88: 0
B89: =Vermögen!F29 -> 0 | C89: =Vermögen!AB29 -> 00:00:00 | D89: 0
B90: =Vermögen!F30 -> 0 | C90: =Vermögen!AB30 -> 00:00:00 | D90: 0
B91: =Vermögen!F31 -> 0 | C91: =Vermögen!AB31 -> 00:00:00 | D91: 0
B92: =Vermögen!F32 -> 0 | C92: =Vermögen!AB32 -> 00:00:00 | D92: 0
B93: =Vermögen!F33 -> 0 | C93: =Vermögen!AB33 -> 00:00:00 | D93: 0
B94: =Vermögen!F34 -> 0 | C94: =Vermögen!AB34 -> 00:00:00 | D94: 0
B95: =Vermögen!F35 -> 0 | C95: =Vermögen!AB35 -> 00:00:00 | D95: 0
B96: =Vermögen!F36 -> 0 | C96: =Vermögen!AB36 -> 00:00:00 | D96: 0
B97: =Vermögen!F37 -> 0 | C97: =Vermögen!AB37 -> 00:00:00 | D97: 0
B98: =Vermögen!F38 -> 0 | C98: =Vermögen!AB38 -> 00:00:00 | D98: 0
B99: =Vermögen!F39 -> 0 | C99: =Vermögen!AB39 -> 00:00:00 | D99: 0
B100: =Vermögen!F40 -> 0 | C100: =Vermögen!AB40 -> 00:00:00 | D100: 0
B101: =Vermögen!F41 -> 0 | C101: =Vermögen!AB41 -> 00:00:00 | D101: 0
B102: =Vermögen!F42 -> 0 | C102: =Vermögen!AB42 -> 00:00:00 | D102: 0
B103: =Vermögen!F43 -> 0 | C103: =Vermögen!AB43 -> 00:00:00 | D103: 0
B104: =Vermögen!F44 -> 0 | C104: =Vermögen!AB44 -> 00:00:00 | D104: 0
B105: =Vermögen!F45 -> 0 | C105: =Vermögen!AB45 -> 00:00:00 | D105: 0
B106: =Vermögen!F46 -> 0 | C106: =Vermögen!AB46 -> 00:00:00 | D106: 0
B107: =Vermögen!F47 -> 0 | C107: =Vermögen!AB47 -> 00:00:00 | D107: 0
B108: =Vermögen!F48 -> 0 | C108: =Vermögen!AB48 -> 00:00:00 | D108: 0
B109: =Vermögen!F49 -> 0 | C109: =Vermögen!AB49 -> 00:00:00 | D109: 0
B110: =Vermögen!F50 -> 0 | C110: =Vermögen!AB50 -> 00:00:00 | D110: 0
B111: =Vermögen!F51 -> 0 | C111: =Vermögen!AB51 -> 00:00:00 | D111: 0
B112: =Vermögen!F52 -> 0 | C112: =Vermögen!AB52 -> 00:00:00 | D112: 0
B113: =Vermögen!F53 -> 0 | C113: =Vermögen!AB53 -> 00:00:00 | D113: 0
B114: =Vermögen!F54 -> 0 | C114: =Vermögen!AB54 -> 00:00:00 | D114: 0
B115: =Vermögen!F55 -> 0 | C115: =Vermögen!AB55 -> 00:00:00 | D115: 0
B116: =Vermögen!F56 -> 0 | C116: =Vermögen!AB56 -> 00:00:00 | D116: 0
B117: =Vermögen!F57 -> 0 | C117: =Vermögen!AB57 -> 00:00:00 | D117: 0
B118: =Vermögen!F58 -> 0 | C118: =Vermögen!AB58 -> 00:00:00 | D118: 0
B119: =Vermögen!F59 -> 0 | C119: =Vermögen!AB59 -> 00:00:00 | D119: 0
B120: =Vermögen!F60 -> 0 | C120: =Vermögen!AB60 -> 00:00:00 | D120: 0
B123: KENNZAHLEN
C124: IST | D124: Rest | E124: Grenzwert
B125: Investitionsgrad | C125: ='Daten Projektion'!O78 ->  | D125: =1-C125 ->  | E125: 95.0%
B126: Zweckeffizienz Ertrag | C126: =Daten_Wirtschaftsplan!E30 ->  | D126: =1-C126 ->  | E126: 50.0%
B127: Zweckeffizienz Vermögen | C127: =Daten_Wirtschaftsplan!E31 ->  | D127: =0.05-C127 ->  | E127: 1.0%
B128: Resilienz | C128: 0.0% | D128: =1-C128 -> 100.0% | E128: 75.0%
B129: Verwaltungskostenquote 1 | C129: =Wirtschaftsplan!B23 ->  | E129: =Einstellungen!H33/100 -> 33.0%
B130: Verwaltungskostenquote 2 | C130: =Wirtschaftsplan!B26 ->  | E130: =Einstellungen!H34/100 -> 25.0%
B131: Aufbauorganisation | C131: 0.0% | D131: 100.0% | E131: 85.0%
B132: Ablauforganisation (Legitimität) | C132: 0.0% | D132: 100.0% | E132: 85.0%

Sheet Einstellungen
B11: Legende | F11: Name der Stiftung:
F12: Gründungsjahr (JJJJ) | P12: Anrede | Q12: Vorname Nachname bzw. Bezeichnung
B13: Pflichteingabe | F13: Planungsbeginn (JJJJ) | G13: =YEAR(Daten_Willkommen!$C$5)+1 -> 2024 | M13: Ersteller/in: | P13: Bitte auswählen
B14: Optionale Eingabe | F14: Zweckrichtung | G14: Bitte ausw. | M14: Verantwortliches Gremienmitglied: | P14: Bitte auswählen
B15: Systemeingabe überschreibbar | H15: EUR | M15: Berater/in | P15: Bitte auswählen
B16: Systemeingabe nicht überschreibbar | F16: Darstellung Vermögen (EUR/TEUR) | G16: EUR | H16: TEUR | M16: Geschäftsführungsorgan | P16: Bitte auswählen
B17: Weitere Infos im Hintergrund | F17: Projektion Jahre | G17: 5
F18: Zielkorridor | G18: 2 | M18: Mitglieder des Geschäftsführungsorgans
B19: Weiter zu | M19: Funktion | Vorname Nachname | P19: Bitte auswählen
M20: Eintritt | Amtszeit Jahre
M21: Funktion | Vorname Nachname | P21: Bitte auswählen
M22: Eintritt | Amtszeit Jahre
F23: Bestand Umschichtungsrücklage | G23: 0 | H23: EUR | M23: Funktion | Vorname Nachname | P23: Bitte auswählen
F24: Bestand freie Rücklage | G24: 0 | H24: EUR | M24: Eintritt | Amtszeit Jahre
F25: Bildung der freien Rücklage aus Erträgen | G25: 0.0% | H25: p.a. | M25: Funktion | Vorname Nachname | P25: Bitte auswählen
M26: Eintritt | Amtszeit Jahre
M27: Funktion | Vorname Nachname | P27: Bitte auswählen
M28: Eintritt | Amtszeit Jahre
M30: Aufsichtsorgan | P30: Keines
F31: Verwaltungskosten inflationieren? | H31: Ja | M31: Mitwirkung Aufsichtsorgan | P31: Bitte auswählen
F32: Begrenzung:
F33: Aufgriffsgrenze 1 (Stiftungsaufsicht): | H33: 33.0 | I33: % | M33: Letzter Eintrag Transparenzregister
F34: Aufgriffsgrenze 2 (Finanzamt): | H34: 25.0 | I34: % | M34: Letzte LEI-Aktualisierung
F39: Organisation | O39: 1 EUR=
F40: Mindestwert Aufbauorganisation | G40: 80.0% | M40: Dollar | O40: =Daten_Vermögen!C21 -> 1.07 | P40: USD
F41: Mindestwert Anlagerichtlinien | G41: 80.0% | M41: Schweizer Franken | O41: =Daten_Vermögen!C22 -> 0.99 | P41: CHF
F42: Mindestwert Ablauforganisation (Legitimität) | G42: 80.0% | M42: Dänische Kronen | O42: =Daten_Vermögen!C23 -> 7.45 | P42: DKK
M43: Britische Pfund | O43: =Daten_Vermögen!C24 -> 0.89 | P43: GBP
F44: Berichtswesen | M44: Japanische Yen | O44: =Daten_Vermögen!C25 -> 143.09 | P44: JPY
F45: Wirtschaftsplan vorzulegen bis | M45: Norwegische Krone | O45: =Daten_Vermögen!C26 -> 10.91 | P45: NOK
F46: Finanzbericht | M46: Schwedische Krone | O46: =Daten_Vermögen!C27 -> 11.13 | P46: SEK
F47: Rechnungsabschluss | M47: Sonstige | O47: =Daten_Vermögen!C28 -> 1.00 | P47: XYZ

Sheet Vermögen
A4: ,
J9: Mischfonds (Multi-Asset)
B10: Legende | E10: Nr. | F10: Vermögensgegenstand (Bezeichnung) | G10: Umschich-tungsverbot | H10: WKN/ISIN | I10: Anlageklasse | J10: Aktien | K10: Anleih. | L10: Alt. Inv. | M10: Rohst. | N10: Liqui. | O10: Anlageinstrument | P10: Buchführung | Q10: Stücke | R10: Kurs EUR | S10: Verkehrswert | T10: Währg. | U10: Anteil % | V10: Veränderung % p.a. | W10: Nominalwert EUR | X10: Nettoertrag p.a. % bzw. EUR/Stk. | Z10: Nettoertrag EUR p.a. | AA10: Ausschüttung Termin | AB10: Endfälligkeit tt.mm.jjjj | AC10: Maxverlust % p.a. | AD10: Nachhaltigkeit / EU-Taxonomie | AE10: Lfd. Kosten § p.a. | AF10: Liquiditäts-wirksam
B11: Pflichteingabe | E11: 1. | G11: Nein | I11: Bitte auswählen | J11: =IF($I11=Daten_Vermögen!$B$7,1,IF($I11=Daten_Vermögen!$B$12,0.01,0)) -> 0.0% | K11: =IF($I11=Daten_Vermögen!$B$8,1,IF($I11=Daten_Vermögen!$B$12,0.01,0)) -> 0.0% | L11: =IF($I11=Daten_Vermögen!$B$9,1,IF($I11=Daten_Vermögen!$B$12,0.01,0)) -> 0.0% | M11: =IF($I11=Daten_Vermögen!$B$10,1,IF($I11=Daten_Vermögen!$B$12,0.01,0)) -> 0.0% | N11: =IF($I11=Daten_Vermögen!$B$11,1,IF($I11=Daten_Vermögen!$B$12,0.01,0)) -> 0.0% | O11: Bitte auswählen | T11: EUR | U11: =IFERROR(Daten_Vermögen!C44/$S$61,"") ->  | Y11: =IF(Q11>0,"EUR/Stk.","%") -> % | Z11: =IF(Q11>0,Q11*X11,IF(W11>0,W11*X11/100,Daten_Vermögen!C44*X11/100)) -> 0 | AA11: Bitte auswählen | AF11: Ja
B12: Optionale Eingabe | E12: 2. | G12: Nein | I12: Bitte auswählen | J12: =IF($I12=Daten_Vermögen!$B$7,1,IF($I12=Daten_Vermögen!$B$12,0.01,0)) -> 0.0% | K12: =IF($I12=Daten_Vermögen!$B$8,1,IF($I12=Daten_Vermögen!$B$12,0.01,0)) -> 0.0% | L12: =IF($I12=Daten_Vermögen!$B$9,1,IF($I12=Daten_Vermögen!$B$12,0.01,0)) -> 0.0% | M12: =IF($I12=Daten_Vermögen!$B$10,1,IF($I12=Daten_Vermögen!$B$12,0.01,0)) -> 0.0% | N12: =IF($I12=Daten_Vermögen!$B$11,1,IF($I12=Daten_Vermögen!$B$12,0.01,0)) -> 0.0% | O12: Bitte auswählen | T12: EUR | U12: =IFERROR(Daten_Vermögen!C45/$S$61,"") ->  | Y12: % | Z12: =IF(Q12>0,Q12*X12,IF(W12>0,W12*X12/100,Daten_Vermögen!C45*X12/100)) -> 0 | AA12: Bitte auswählen | AF12: =IF(O12=Daten_Vermögen!$C$9,"nein","ja") -> ja
B13: Systemeingabe überschreibbar | E13: 3. | G13: Nein | I13: Bitte auswählen | J13: =IF($I13=Daten_Vermögen!$B$7,1,IF($I13=Daten_Vermögen!$B$12,0.01,0)) -> 0.0% | K13: =IF($I13=Daten_Vermögen!$B$8,1,IF($I13=Daten_Vermögen!$B$12,0.01,0)) -> 0.0% | L13: =IF($I13=Daten_Vermögen!$B$9,1,IF($I13=Daten_Vermögen!$B$12,0.01,0)) -> 0.0% | M13: =IF($I13=Daten_Vermögen!$B$10,1,IF($I13=Daten_Vermögen!$B$12,0.01,0)) -> 0.0% | N13: =IF($I13=Daten_Vermögen!$B$11,1,IF($I13=Daten_Vermögen!$B$12,0.01,0)) -> 0.0% | O13: Bitte auswählen | T13: EUR | U13: =IFERROR(Daten_Vermögen!C46/$S$61,"") ->  | Y13: % | Z13: =IF(Q13>0,Q13*X13,IF(W13>0,W13*X13/100,Daten_Vermögen!C46*X13/100)) -> 0 | AA13: Bitte auswählen | AF13: =IF(O13=Daten_Vermögen!$C$9,"nein","ja") -> ja
B14: Systemeingabe nicht überschreibbar | E14: 4. | G14: Nein | I14: Bitte auswählen | J14: =IF($I14=Daten_Vermögen!$B$7,1,IF($I14=Daten_Vermögen!$B$12,0.01,0)) -> 0.0% | K14: =IF($I14=Daten_Vermögen!$B$8,1,IF($I14=Daten_Vermögen!$B$12,0.01,0)) -> 0.0% | L14: =IF($I14=Daten_Vermögen!$B$9,1,IF($I14=Daten_Vermögen!$B$12,0.01,0)) -> 0.0% | M14: =IF($I14=Daten_Vermögen!$B$10,1,IF($I14=Daten_Vermögen!$B$12,0.01,0)) -> 0.0% | N14: =IF($I14=Daten_Vermögen!$B$11,1,IF($I14=Daten_Vermögen!$B$12,0.01,0)) -> 0.0% | O14: Bitte auswählen | T14: EUR | U14: =IFERROR(Daten_Vermögen!C47/$S$61,"") ->  | Y14: % | Z14: =IF(Q14>0,Q14*X14,IF(W14>0,W14*X14/100,Daten_Vermögen!C47*X14/100)) -> 0 | AA14: März | AF14: =IF(O14=Daten_Vermögen!$C$9,"nein","ja") -> ja
B15: Weitere Infos im Hintergrund | E15: 5. | G15: Nein | I15: Bitte auswählen | J15: =IF($I15=Daten_Vermögen!$B$7,1,IF($I15=Daten_Vermögen!$B$12,0.01,0)) -> 0.0% | K15: =IF($I15=Daten_Vermögen!$B$8,1,IF($I15=Daten_Vermögen!$B$12,0.01,0)) -> 0.0% | L15: =IF($I15=Daten_Vermögen!$B$9,1,IF($I15=Daten_Vermögen!$B$12,0.01,0)) -> 0.0% | M15: =IF($I15=Daten_Vermögen!$B$10,1,IF($I15=Daten_Vermögen!$B$12,0.01,0)) -> 0.0% | N15: =IF($I15=Daten_Vermögen!$B$11,1,IF($I15=Daten_Vermögen!$B$12,0.01,0)) -> 0.0% | O15: Bitte auswählen | T15: EUR | U15: =IFERROR(Daten_Vermögen!C48/$S$61,"") ->  | Y15: % | Z15: =IF(Q15>0,Q15*X15,IF(W15>0,W15*X15/100,Daten_Vermögen!C48*X15/100)) -> 0 | AA15: Quartalsweise | AF15: =IF(O15=Daten_Vermögen!$C$9,"nein","ja") -> ja
E16: 6. | G16: =IF(Anlageziele!$H$14="Substanz","Ja","Nein") -> Nein | I16: Bitte auswählen | J16: =IF($I16=Daten_Vermögen!$B$7,1,IF($I16=Daten_Vermögen!$B$12,0.01,0)) -> 0.0% | K16: =IF($I16=Daten_Vermögen!$B$8,1,IF($I16=Daten_Vermögen!$B$12,0.01,0)) -> 0.0% | L16: =IF($I16=Daten_Vermögen!$B$9,1,IF($I16=Daten_Vermögen!$B$12,0.01,0)) -> 0.0% | M16: =IF($I16=Daten_Vermögen!$B$10,1,IF($I16=Daten_Vermögen!$B$12,0.01,0)) -> 0.0% | N16: =IF($I16=Daten_Vermögen!$B$11,1,IF($I16=Daten_Vermögen!$B$12,0.01,0)) -> 0.0% | O16: Bitte auswählen | T16: EUR | U16: =IFERROR(Daten_Vermögen!C49/$S$61,"") ->  | Y16: % | Z16: =IF(Q16>0,Q16*X16,IF(W16>0,W16*X16/100,Daten_Vermögen!C49*X16/100)) -> 0 | AA16: November | AF16: ja
E17: 7. | G17: =IF(Anlageziele!$H$14="Substanz","Ja","Nein") -> Nein | I17: Bitte auswählen | J17: =IF($I17=Daten_Vermögen!$B$7,1,IF($I17=Daten_Vermögen!$B$12,0.01,0)) -> 0.0% | K17: =IF($I17=Daten_Vermögen!$B$8,1,IF($I17=Daten_Vermögen!$B$12,0.01,0)) -> 0.0% | L17: =IF($I17=Daten_Vermögen!$B$9,1,IF($I17=Daten_Vermögen!$B$12,0.01,0)) -> 0.0% | M17: =IF($I17=Daten_Vermögen!$B$10,1,IF($I17=Daten_Vermögen!$B$12,0.01,0)) -> 0.0% | N17: =IF($I17=Daten_Vermögen!$B$11,1,IF($I17=Daten_Vermögen!$B$12,0.01,0)) -> 0.0% | O17: Bitte auswählen | T17: EUR | U17: =IFERROR(Daten_Vermögen!C50/$S$61,"") ->  | Y17: % | Z17: =IF(Q17>0,Q17*X17,IF(W17>0,W17*X17/100,Daten_Vermögen!C50*X17/100)) -> 0 | AA17: Bitte auswählen | AF17: =IF(O17=Daten_Vermögen!$C$9,"nein","ja") -> ja
E18: 8. | G18: =IF(Anlageziele!$H$14="Substanz","Ja","Nein") -> Nein | I18: Bitte auswählen | J18: =IF($I18=Daten_Vermögen!$B$7,1,IF($I18=Daten_Vermögen!$B$12,0.01,0)) -> 0.0% | K18: =IF($I18=Daten_Vermögen!$B$8,1,IF($I18=Daten_Vermögen!$B$12,0.01,0)) -> 0.0% | L18: =IF($I18=Daten_Vermögen!$B$9,1,IF($I18=Daten_Vermögen!$B$12,0.01,0)) -> 0.0% | M18: =IF($I18=Daten_Vermögen!$B$10,1,IF($I18=Daten_Vermögen!$B$12,0.01,0)) -> 0.0% | N18: =IF($I18=Daten_Vermögen!$B$11,1,IF($I18=Daten_Vermögen!$B$12,0.01,0)) -> 0.0% | O18: Bitte auswählen | T18: EUR | U18: =IFERROR(Daten_Vermögen!C51/$S$61,"") ->  | Y18: % | Z18: =IF(Q18>0,Q18*X18,IF(W18>0,W18*X18/100,Daten_Vermögen!C51*X18/100)) -> 0 | AA18: Quartalsweise | AF18: =IF(O18=Daten_Vermögen!$C$9,"nein","ja") -> ja
E19: 9. | G19: =IF(Anlageziele!$H$14="Substanz","Ja","Nein") -> Nein | I19: Bitte auswählen | J19: =IF($I19=Daten_Vermögen!$B$7,1,IF($I19=Daten_Vermögen!$B$12,0.01,0)) -> 0.0% | K19: =IF($I19=Daten_Vermögen!$B$8,1,IF($I19=Daten_Vermögen!$B$12,0.01,0)) -> 0.0% | L19: =IF($I19=Daten_Vermögen!$B$9,1,IF($I19=Daten_Vermögen!$B$12,0.01,0)) -> 0.0% | M19: =IF($I19=Daten_Vermögen!$B$10,1,IF($I19=Daten_Vermögen!$B$12,0.01,0)) -> 0.0% | N19: =IF($I19=Daten_Vermögen!$B$11,1,IF($I19=Daten_Vermögen!$B$12,0.01,0)) -> 0.0% | O19: Bitte auswählen | T19: EUR | U19: =IFERROR(Daten_Vermögen!C52/$S$61,"") ->  | Y19: % | Z19: =IF(Q19>0,Q19*X19,IF(W19>0,W19*X19/100,Daten_Vermögen!C52*X19/100)) -> 0 | AA19: Quartalsweise | AF19: =IF(O19=Daten_Vermögen!$C$9,"nein","ja") -> ja
E20: 10. | G20: =IF(Anlageziele!$H$14="Substanz","Ja","Nein") -> Nein | I20: Bitte auswählen | J20: =IF($I20=Daten_Vermögen!$B$7,1,IF($I20=Daten_Vermögen!$B$12,0.01,0)) -> 0.0% | K20: =IF($I20=Daten_Vermögen!$B$8,1,IF($I20=Daten_Vermögen!$B$12,0.01,0)) -> 0.0% | L20: =IF($I20=Daten_Vermögen!$B$9,1,IF($I20=Daten_Vermögen!$B$12,0.01,0)) -> 0.0% | M20: =IF($I20=Daten_Vermögen!$B$10,1,IF($I20=Daten_Vermögen!$B$12,0.01,0)) -> 0.0% | N20: =IF($I20=Daten_Vermögen!$B$11,1,IF($I20=Daten_Vermögen!$B$12,0.01,0)) -> 0.0% | O20: Bitte auswählen | T20: EUR | U20: =IFERROR(Daten_Vermögen!C53/$S$61,"") ->  | Y20: % | Z20: =IF(Q20>0,Q20*X20,IF(W20>0,W20*X20/100,Daten_Vermögen!C53*X20/100)) -> 0 | AA20: Bitte auswählen | AF20: =IF(O20=Daten_Vermögen!$C$9,"nein","ja") -> ja
E21: 11. | G21: =IF(Anlageziele!$H$14="Substanz","Ja","Nein") -> Nein | I21: Bitte auswählen | J21: =IF($I21=Daten_Vermögen!$B$7,1,IF($I21=Daten_Vermögen!$B$12,0.01,0)) -> 0.0% | K21: =IF($I21=Daten_Vermögen!$B$8,1,IF($I21=Daten_Vermögen!$B$12,0.01,0)) -> 0.0% | L21: =IF($I21=Daten_Vermögen!$B$9,1,IF($I21=Daten_Vermögen!$B$12,0.01,0)) -> 0.0% | M21: =IF($I21=Daten_Vermögen!$B$10,1,IF($I21=Daten_Vermögen!$B$12,0.01,0)) -> 0.0% | N21: =IF($I21=Daten_Vermögen!$B$11,1,IF($I21=Daten_Vermögen!$B$12,0.01,0)) -> 0.0% | O21: Bitte auswählen | T21: EUR | U21: =IFERROR(Daten_Vermögen!C54/$S$61,"") ->  | Y21: % | Z21: =IF(Q21>0,Q21*X21,IF(W21>0,W21*X21/100,Daten_Vermögen!C54*X21/100)) -> 0 | AA21: Oktober | AF21: =IF(O21=Daten_Vermögen!$C$9,"nein","ja") -> ja
E22: 12. | G22: =IF(Anlageziele!$H$14="Substanz","Ja","Nein") -> Nein | I22: Bitte auswählen | J22: =IF($I22=Daten_Vermögen!$B$7,1,IF($I22=Daten_Vermögen!$B$12,0.01,0)) -> 0.0% | K22: =IF($I22=Daten_Vermögen!$B$8,1,IF($I22=Daten_Vermögen!$B$12,0.01,0)) -> 0.0% | L22: =IF($I22=Daten_Vermögen!$B$9,1,IF($I22=Daten_Vermögen!$B$12,0.01,0)) -> 0.0% | M22: =IF($I22=Daten_Vermögen!$B$10,1,IF($I22=Daten_Vermögen!$B$12,0.01,0)) -> 0.0% | N22: =IF($I22=Daten_Vermögen!$B$11,1,IF($I22=Daten_Vermögen!$B$12,0.01,0)) -> 0.0% | O22: Bitte auswählen | T22: EUR | U22: =IFERROR(Daten_Vermögen!C55/$S$61,"") ->  | Y22: % | Z22: =IF(Q22>0,Q22*X22,IF(W22>0,W22*X22/100,Daten_Vermögen!C55*X22/100)) -> 0 | AA22: August | AF22: =IF(O22=Daten_Vermögen!$C$9,"nein","ja") -> ja
E23: 13. | G23: =IF(Anlageziele!$H$14="Substanz","Ja","Nein") -> Nein | I23: Bitte auswählen | J23: =IF($I23=Daten_Vermögen!$B$7,1,IF($I23=Daten_Vermögen!$B$12,0.01,0)) -> 0.0% | K23: =IF($I23=Daten_Vermögen!$B$8,1,IF($I23=Daten_Vermögen!$B$12,0.01,0)) -> 0.0% | L23: =IF($I23=Daten_Vermögen!$B$9,1,IF($I23=Daten_Vermögen!$B$12,0.01,0)) -> 0.0% | M23: =IF($I23=Daten_Vermögen!$B$10,1,IF($I23=Daten_Vermögen!$B$12,0.01,0)) -> 0.0% | N23: =IF($I23=Daten_Vermögen!$B$11,1,IF($I23=Daten_Vermögen!$B$12,0.01,0)) -> 0.0% | O23: Bitte auswählen | T23: EUR | U23: =IFERROR(Daten_Vermögen!C56/$S$61,"") ->  | Y23: % | Z23: =IF(Q23>0,Q23*X23,IF(W23>0,W23*X23/100,Daten_Vermögen!C56*X23/100)) -> 0 | AA23: März | AF23: =IF(O23=Daten_Vermögen!$C$9,"nein","ja") -> ja
E24: 14. | G24: =IF(Anlageziele!$H$14="Substanz","Ja","Nein") -> Nein | I24: Bitte auswählen | J24: =IF($I24=Daten_Vermögen!$B$7,1,IF($I24=Daten_Vermögen!$B$12,0.01,0)) -> 0.0% | K24: =IF($I24=Daten_Vermögen!$B$8,1,IF($I24=Daten_Vermögen!$B$12,0.01,0)) -> 0.0% | L24: =IF($I24=Daten_Vermögen!$B$9,1,IF($I24=Daten_Vermögen!$B$12,0.01,0)) -> 0.0% | M24: =IF($I24=Daten_Vermögen!$B$10,1,IF($I24=Daten_Vermögen!$B$12,0.01,0)) -> 0.0% | N24: =IF($I24=Daten_Vermögen!$B$11,1,IF($I24=Daten_Vermögen!$B$12,0.01,0)) -> 0.0% | O24: Bitte auswählen | T24: EUR | U24: =IFERROR(Daten_Vermögen!C57/$S$61,"") ->  | Y24: % | Z24: =IF(Q24>0,Q24*X24,IF(W24>0,W24*X24/100,Daten_Vermögen!C57*X24/100)) -> 0 | AA24: März | AF24: =IF(O24=Daten_Vermögen!$C$9,"nein","ja") -> ja
E25: 15. | G25: =IF(Anlageziele!$H$14="Substanz","Ja","Nein") -> Nein | I25: Bitte auswählen | J25: =IF($I25=Daten_Vermögen!$B$7,1,IF($I25=Daten_Vermögen!$B$12,0.01,0)) -> 0.0% | K25: =IF($I25=Daten_Vermögen!$B$8,1,IF($I25=Daten_Vermögen!$B$12,0.01,0)) -> 0.0% | L25: =IF($I25=Daten_Vermögen!$B$9,1,IF($I25=Daten_Vermögen!$B$12,0.01,0)) -> 0.0% | M25: =IF($I25=Daten_Vermögen!$B$10,1,IF($I25=Daten_Vermögen!$B$12,0.01,0)) -> 0.0% | N25: =IF($I25=Daten_Vermögen!$B$11,1,IF($I25=Daten_Vermögen!$B$12,0.01,0)) -> 0.0% | O25: Bitte auswählen | T25: EUR | U25: =IFERROR(Daten_Vermögen!C58/$S$61,"") ->  | Y25: % | Z25: =IF(Q25>0,Q25*X25,IF(W25>0,W25*X25/100,Daten_Vermögen!C58*X25/100)) -> 0 | AA25: Bitte auswählen | AF25: =IF(O25=Daten_Vermögen!$C$9,"nein","ja") -> ja
E26: 16. | G26: =IF(Anlageziele!$H$14="Substanz","Ja","Nein") -> Nein | I26: Bitte auswählen | J26: =IF($I26=Daten_Vermögen!$B$7,1,IF($I26=Daten_Vermögen!$B$12,0.01,0)) -> 0.0% | K26: =IF($I26=Daten_Vermögen!$B$8,1,IF($I26=Daten_Vermögen!$B$12,0.01,0)) -> 0.0% | L26: =IF($I26=Daten_Vermögen!$B$9,1,IF($I26=Daten_Vermögen!$B$12,0.01,0)) -> 0.0% | M26: =IF($I26=Daten_Vermögen!$B$10,1,IF($I26=Daten_Vermögen!$B$12,0.01,0)) -> 0.0% | N26: =IF($I26=Daten_Vermögen!$B$11,1,IF($I26=Daten_Vermögen!$B$12,0.01,0)) -> 0.0% | O26: Bitte auswählen | T26: EUR | U26: =IFERROR(Daten_Vermögen!C59/$S$61,"") ->  | Y26: % | Z26: =IF(Q26>0,Q26*X26,IF(W26>0,W26*X26/100,Daten_Vermögen!C59*X26/100)) -> 0 | AA26: Bitte auswählen | AF26: =IF(O26=Daten_Vermögen!$C$9,"nein","ja") -> ja
E27: 17. | G27: =IF(Anlageziele!$H$14="Substanz","Ja","Nein") -> Nein | I27: Bitte auswählen | J27: =IF($I27=Daten_Vermögen!$B$7,1,IF($I27=Daten_Vermögen!$B$12,0.01,0)) -> 0.0% | K27: =IF($I27=Daten_Vermögen!$B$8,1,IF($I27=Daten_Vermögen!$B$12,0.01,0)) -> 0.0% | L27: =IF($I27=Daten_Vermögen!$B$9,1,IF($I27=Daten_Vermögen!$B$12,0.01,0)) -> 0.0% | M27: =IF($I27=Daten_Vermögen!$B$10,1,IF($I27=Daten_Vermögen!$B$12,0.01,0)) -> 0.0% | N27: =IF($I27=Daten_Vermögen!$B$11,1,IF($I27=Daten_Vermögen!$B$12,0.01,0)) -> 0.0% | O27: Bitte auswählen | T27: EUR | U27: =IFERROR(Daten_Vermögen!C60/$S$61,"") ->  | Y27: % | Z27: =IF(Q27>0,Q27*X27,IF(W27>0,W27*X27/100,Daten_Vermögen!C60*X27/100)) -> 0 | AA27: Oktober | AF27: =IF(O27=Daten_Vermögen!$C$9,"nein","ja") -> ja
E28: 18. | G28: =IF(Anlageziele!$H$14="Substanz","Ja","Nein") -> Nein | I28: Bitte auswählen | J28: =IF($I28=Daten_Vermögen!$B$7,1,IF($I28=Daten_Vermögen!$B$12,0.01,0)) -> 0.0% | K28: =IF($I28=Daten_Vermögen!$B$8,1,IF($I28=Daten_Vermögen!$B$12,0.01,0)) -> 0.0% | L28: =IF($I28=Daten_Vermögen!$B$9,1,IF($I28=Daten_Vermögen!$B$12,0.01,0)) -> 0.0% | M28: =IF($I28=Daten_Vermögen!$B$10,1,IF($I28=Daten_Vermögen!$B$12,0.01,0)) -> 0.0% | N28: =IF($I28=Daten_Vermögen!$B$11,1,IF($I28=Daten_Vermögen!$B$12,0.01,0)) -> 0.0% | O28: Bitte auswählen | T28: EUR | U28: =IFERROR(Daten_Vermögen!C61/$S$61,"") ->  | Y28: % | Z28: =IF(Q28>0,Q28*X28,IF(W28>0,W28*X28/100,Daten_Vermögen!C61*X28/100)) -> 0 | AA28: Bitte auswählen | AF28: =IF(O28=Daten_Vermögen!$C$9,"nein","ja") -> ja
E29: 19. | G29: =IF(Anlageziele!$H$14="Substanz","Ja","Nein") -> Nein | I29: Bitte auswählen | J29: =IF($I29=Daten_Vermögen!$B$7,1,IF($I29=Daten_Vermögen!$B$12,0.01,0)) -> 0.0% | K29: =IF($I29=Daten_Vermögen!$B$8,1,IF($I29=Daten_Vermögen!$B$12,0.01,0)) -> 0.0% | L29: =IF($I29=Daten_Vermögen!$B$9,1,IF($I29=Daten_Vermögen!$B$12,0.01,0)) -> 0.0% | M29: =IF($I29=Daten_Vermögen!$B$10,1,IF($I29=Daten_Vermögen!$B$12,0.01,0)) -> 0.0% | N29: =IF($I29=Daten_Vermögen!$B$11,1,IF($I29=Daten_Vermögen!$B$12,0.01,0)) -> 0.0% | O29: Bitte auswählen | T29: EUR | U29: =IFERROR(Daten_Vermögen!C62/$S$61,"") ->  | Y29: % | Z29: =IF(Q29>0,Q29*X29,IF(W29>0,W29*X29/100,Daten_Vermögen!C62*X29/100)) -> 0 | AA29: Februar | AF29: =IF(O29=Daten_Vermögen!$C$9,"nein","ja") -> ja
E30: 20. | G30: =IF(Anlageziele!$H$14="Substanz","Ja","Nein") -> Nein | I30: Bitte auswählen | J30: =IF($I30=Daten_Vermögen!$B$7,1,IF($I30=Daten_Vermögen!$B$12,0.01,0)) -> 0.0% | K30: =IF($I30=Daten_Vermögen!$B$8,1,IF($I30=Daten_Vermögen!$B$12,0.01,0)) -> 0.0% | L30: =IF($I30=Daten_Vermögen!$B$9,1,IF($I30=Daten_Vermögen!$B$12,0.01,0)) -> 0.0% | M30: =IF($I30=Daten_Vermögen!$B$10,1,IF($I30=Daten_Vermögen!$B$12,0.01,0)) -> 0.0% | N30: =IF($I30=Daten_Vermögen!$B$11,1,IF($I30=Daten_Vermögen!$B$12,0.01,0)) -> 0.0% | O30: Bitte auswählen | T30: EUR | U30: =IFERROR(Daten_Vermögen!C63/$S$61,"") ->  | Y30: % | Z30: =IF(Q30>0,Q30*X30,IF(W30>0,W30*X30/100,Daten_Vermögen!C63*X30/100)) -> 0 | AF30: =IF(O30=Daten_Vermögen!$C$9,"nein","ja") -> ja
B31: Weiter zu | E31: 21. | G31: =IF(Anlageziele!$H$14="Substanz","Ja","Nein") -> Nein | I31: Bitte auswählen | J31: =IF($I31=Daten_Vermögen!$B$7,1,IF($I31=Daten_Vermögen!$B$12,0.01,0)) -> 0.0% | K31: =IF($I31=Daten_Vermögen!$B$8,1,IF($I31=Daten_Vermögen!$B$12,0.01,0)) -> 0.0% | L31: =IF($I31=Daten_Vermögen!$B$9,1,IF($I31=Daten_Vermögen!$B$12,0.01,0)) -> 0.0% | M31: =IF($I31=Daten_Vermögen!$B$10,1,IF($I31=Daten_Vermögen!$B$12,0.01,0)) -> 0.0% | N31: =IF($I31=Daten_Vermögen!$B$11,1,IF($I31=Daten_Vermögen!$B$12,0.01,0)) -> 0.0% | O31: Bitte auswählen | T31: EUR | U31: =IFERROR(Daten_Vermögen!C64/$S$61,"") ->  | Y31: % | Z31: =IF(Q31>0,Q31*X31,IF(W31>0,W31*X31/100,Daten_Vermögen!C64*X31/100)) -> 0 | AF31: =IF(O31=Daten_Vermögen!$C$9,"nein","ja") -> ja
E32: 22. | G32: =IF(Anlageziele!$H$14="Substanz","Ja","Nein") -> Nein | I32: Bitte auswählen | J32: =IF($I32=Daten_Vermögen!$B$7,1,IF($I32=Daten_Vermögen!$B$12,0.01,0)) -> 0.0% | K32: =IF($I32=Daten_Vermögen!$B$8,1,IF($I32=Daten_Vermögen!$B$12,0.01,0)) -> 0.0% | L32: =IF($I32=Daten_Vermögen!$B$9,1,IF($I32=Daten_Vermögen!$B$12,0.01,0)) -> 0.0% | M32: =IF($I32=Daten_Vermögen!$B$10,1,IF($I32=Daten_Vermögen!$B$12,0.01,0)) -> 0.0% | N32: =IF($I32=Daten_Vermögen!$B$11,1,IF($I32=Daten_Vermögen!$B$12,0.01,0)) -> 0.0% | O32: Bitte auswählen | T32: EUR | U32: =IFERROR(Daten_Vermögen!C65/$S$61,"") ->  | Y32: % | Z32: =IF(Q32>0,Q32*X32,IF(W32>0,W32*X32/100,Daten_Vermögen!C65*X32/100)) -> 0 | AF32: =IF(O32=Daten_Vermögen!$C$9,"nein","ja") -> ja
E33: 23. | G33: =IF(Anlageziele!$H$14="Substanz","Ja","Nein") -> Nein | I33: Bitte auswählen | J33: =IF($I33=Daten_Vermögen!$B$7,1,IF($I33=Daten_Vermögen!$B$12,0.01,0)) -> 0.0% | K33: =IF($I33=Daten_Vermögen!$B$8,1,IF($I33=Daten_Vermögen!$B$12,0.01,0)) -> 0.0% | L33: =IF($I33=Daten_Vermögen!$B$9,1,IF($I33=Daten_Vermögen!$B$12,0.01,0)) -> 0.0% | M33: =IF($I33=Daten_Vermögen!$B$10,1,IF($I33=Daten_Vermögen!$B$12,0.01,0)) -> 0.0% | N33: =IF($I33=Daten_Vermögen!$B$11,1,IF($I33=Daten_Vermögen!$B$12,0.01,0)) -> 0.0% | O33: Bitte auswählen | T33: EUR | U33: =IFERROR(Daten_Vermögen!C66/$S$61,"") ->  | Y33: % | Z33: =IF(Q33>0,Q33*X33,IF(W33>0,W33*X33/100,Daten_Vermögen!C66*X33/100)) -> 0 | AF33: =IF(O33=Daten_Vermögen!$C$9,"nein","ja") -> ja
E34: 24. | G34: =IF(Anlageziele!$H$14="Substanz","Ja","Nein") -> Nein | I34: Bitte auswählen | J34: =IF($I34=Daten_Vermögen!$B$7,1,IF($I34=Daten_Vermögen!$B$12,0.01,0)) -> 0.0% | K34: =IF($I34=Daten_Vermögen!$B$8,1,IF($I34=Daten_Vermögen!$B$12,0.01,0)) -> 0.0% | L34: =IF($I34=Daten_Vermögen!$B$9,1,IF($I34=Daten_Vermögen!$B$12,0.01,0)) -> 0.0% | M34: =IF($I34=Daten_Vermögen!$B$10,1,IF($I34=Daten_Vermögen!$B$12,0.01,0)) -> 0.0% | N34: =IF($I34=Daten_Vermögen!$B$11,1,IF($I34=Daten_Vermögen!$B$12,0.01,0)) -> 0.0% | O34: Bitte auswählen | T34: EUR | U34: =IFERROR(Daten_Vermögen!C67/$S$61,"") ->  | Y34: % | Z34: =IF(Q34>0,Q34*X34,IF(W34>0,W34*X34/100,Daten_Vermögen!C67*X34/100)) -> 0 | AF34: =IF(O34=Daten_Vermögen!$C$9,"nein","ja") -> ja
E35: 25. | G35: =IF(Anlageziele!$H$14="Substanz","Ja","Nein") -> Nein | I35: Bitte auswählen | J35: =IF($I35=Daten_Vermögen!$B$7,1,IF($I35=Daten_Vermögen!$B$12,0.01,0)) -> 0.0% | K35: =IF($I35=Daten_Vermögen!$B$8,1,IF($I35=Daten_Vermögen!$B$12,0.01,0)) -> 0.0% | L35: =IF($I35=Daten_Vermögen!$B$9,1,IF($I35=Daten_Vermögen!$B$12,0.01,0)) -> 0.0% | M35: =IF($I35=Daten_Vermögen!$B$10,1,IF($I35=Daten_Vermögen!$B$12,0.01,0)) -> 0.0% | N35: =IF($I35=Daten_Vermögen!$B$11,1,IF($I35=Daten_Vermögen!$B$12,0.01,0)) -> 0.0% | O35: Bitte auswählen | T35: EUR | U35: =IFERROR(Daten_Vermögen!C68/$S$61,"") ->  | Y35: % | Z35: =IF(Q35>0,Q35*X35,IF(W35>0,W35*X35/100,Daten_Vermögen!C68*X35/100)) -> 0 | AF35: =IF(O35=Daten_Vermögen!$C$9,"nein","ja") -> ja
E36: 26. | G36: =IF(Anlageziele!$H$14="Substanz","Ja","Nein") -> Nein | I36: Bitte auswählen | J36: =IF($I36=Daten_Vermögen!$B$7,1,IF($I36=Daten_Vermögen!$B$12,0.01,0)) -> 0.0% | K36: =IF($I36=Daten_Vermögen!$B$8,1,IF($I36=Daten_Vermögen!$B$12,0.01,0)) -> 0.0% | L36: =IF($I36=Daten_Vermögen!$B$9,1,IF($I36=Daten_Vermögen!$B$12,0.01,0)) -> 0.0% | M36: =IF($I36=Daten_Vermögen!$B$10,1,IF($I36=Daten_Vermögen!$B$12,0.01,0)) -> 0.0% | N36: =IF($I36=Daten_Vermögen!$B$11,1,IF($I36=Daten_Vermögen!$B$12,0.01,0)) -> 0.0% | O36: Bitte auswählen | T36: EUR | U36: =IFERROR(Daten_Vermögen!C69/$S$61,"") ->  | Y36: % | Z36: =IF(Q36>0,Q36*X36,IF(W36>0,W36*X36/100,Daten_Vermögen!C69*X36/100)) -> 0 | AF36: =IF(O36=Daten_Vermögen!$C$9,"nein","ja") -> ja
E37: 27. | G37: =IF(Anlageziele!$H$14="Substanz","Ja","Nein") -> Nein | I37: Bitte auswählen | J37: =IF($I37=Daten_Vermögen!$B$7,1,IF($I37=Daten_Vermögen!$B$12,0.01,0)) -> 0.0% | K37: =IF($I37=Daten_Vermögen!$B$8,1,IF($I37=Daten_Vermögen!$B$12,0.01,0)) -> 0.0% | L37: =IF($I37=Daten_Vermögen!$B$9,1,IF($I37=Daten_Vermögen!$B$12,0.01,0)) -> 0.0% | M37: =IF($I37=Daten_Vermögen!$B$10,1,IF($I37=Daten_Vermögen!$B$12,0.01,0)) -> 0.0% | N37: =IF($I37=Daten_Vermögen!$B$11,1,IF($I37=Daten_Vermögen!$B$12,0.01,0)) -> 0.0% | O37: Bitte auswählen | T37: EUR | U37: =IFERROR(Daten_Vermögen!C70/$S$61,"") ->  | Y37: % | Z37: =IF(Q37>0,Q37*X37,IF(W37>0,W37*X37/100,Daten_Vermögen!C70*X37/100)) -> 0 | AF37: =IF(O37=Daten_Vermögen!$C$9,"nein","ja") -> ja
E38: 28. | G38: =IF(Anlageziele!$H$14="Substanz","Ja","Nein") -> Nein | I38: Bitte auswählen | J38: =IF($I38=Daten_Vermögen!$B$7,1,IF($I38=Daten_Vermögen!$B$12,0.01,0)) -> 0.0% | K38: =IF($I38=Daten_Vermögen!$B$8,1,IF($I38=Daten_Vermögen!$B$12,0.01,0)) -> 0.0% | L38: =IF($I38=Daten_Vermögen!$B$9,1,IF($I38=Daten_Vermögen!$B$12,0.01,0)) -> 0.0% | M38: =IF($I38=Daten_Vermögen!$B$10,1,IF($I38=Daten_Vermögen!$B$12,0.01,0)) -> 0.0% | N38: =IF($I38=Daten_Vermögen!$B$11,1,IF($I38=Daten_Vermögen!$B$12,0.01,0)) -> 0.0% | O38: Bitte auswählen | T38: EUR | U38: =IFERROR(Daten_Vermögen!C71/$S$61,"") ->  | Y38: % | Z38: =IF(Q38>0,Q38*X38,IF(W38>0,W38*X38/100,Daten_Vermögen!C71*X38/100)) -> 0 | AF38: =IF(O38=Daten_Vermögen!$C$9,"nein","ja") -> ja
E39: 29. | G39: =IF(Anlageziele!$H$14="Substanz","Ja","Nein") -> Nein | I39: Bitte auswählen | J39: =IF($I39=Daten_Vermögen!$B$7,1,IF($I39=Daten_Vermögen!$B$12,0.01,0)) -> 0.0% | K39: =IF($I39=Daten_Vermögen!$B$8,1,IF($I39=Daten_Vermögen!$B$12,0.01,0)) -> 0.0% | L39: =IF($I39=Daten_Vermögen!$B$9,1,IF($I39=Daten_Vermögen!$B$12,0.01,0)) -> 0.0% | M39: =IF($I39=Daten_Vermögen!$B$10,1,IF($I39=Daten_Vermögen!$B$12,0.01,0)) -> 0.0% | N39: =IF($I39=Daten_Vermögen!$B$11,1,IF($I39=Daten_Vermögen!$B$12,0.01,0)) -> 0.0% | O39: Bitte auswählen | T39: EUR | U39: =IFERROR(Daten_Vermögen!C72/$S$61,"") ->  | Y39: % | Z39: =IF(Q39>0,Q39*X39,IF(W39>0,W39*X39/100,Daten_Vermögen!C72*X39/100)) -> 0 | AF39: =IF(O39=Daten_Vermögen!$C$9,"nein","ja") -> ja
E40: 30. | G40: =IF(Anlageziele!$H$14="Substanz","Ja","Nein") -> Nein | I40: Bitte auswählen | J40: =IF($I40=Daten_Vermögen!$B$7,1,IF($I40=Daten_Vermögen!$B$12,0.01,0)) -> 0.0% | K40: =IF($I40=Daten_Vermögen!$B$8,1,IF($I40=Daten_Vermögen!$B$12,0.01,0)) -> 0.0% | L40: =IF($I40=Daten_Vermögen!$B$9,1,IF($I40=Daten_Vermögen!$B$12,0.01,0)) -> 0.0% | M40: =IF($I40=Daten_Vermögen!$B$10,1,IF($I40=Daten_Vermögen!$B$12,0.01,0)) -> 0.0% | N40: =IF($I40=Daten_Vermögen!$B$11,1,IF($I40=Daten_Vermögen!$B$12,0.01,0)) -> 0.0% | O40: Bitte auswählen | T40: EUR | U40: =IFERROR(Daten_Vermögen!C73/$S$61,"") ->  | Y40: % | Z40: =IF(Q40>0,Q40*X40,IF(W40>0,W40*X40/100,Daten_Vermögen!C73*X40/100)) -> 0 | AF40: =IF(O40=Daten_Vermögen!$C$9,"nein","ja") -> ja
E41: 31. | G41: =IF(Anlageziele!$H$14="Substanz","Ja","Nein") -> Nein | I41: Bitte auswählen | J41: =IF($I41=Daten_Vermögen!$B$7,1,IF($I41=Daten_Vermögen!$B$12,0.01,0)) -> 0.0% | K41: =IF($I41=Daten_Vermögen!$B$8,1,IF($I41=Daten_Vermögen!$B$12,0.01,0)) -> 0.0% | L41: =IF($I41=Daten_Vermögen!$B$9,1,IF($I41=Daten_Vermögen!$B$12,0.01,0)) -> 0.0% | M41: =IF($I41=Daten_Vermögen!$B$10,1,IF($I41=Daten_Vermögen!$B$12,0.01,0)) -> 0.0% | N41: =IF($I41=Daten_Vermögen!$B$11,1,IF($I41=Daten_Vermögen!$B$12,0.01,0)) -> 0.0% | O41: Bitte auswählen | T41: EUR | U41: =IFERROR(Daten_Vermögen!C74/$S$61,"") ->  | Y41: % | Z41: =IF(Q41>0,Q41*X41,IF(W41>0,W41*X41/100,Daten_Vermögen!C74*X41/100)) -> 0 | AF41: =IF(O41=Daten_Vermögen!$C$9,"nein","ja") -> ja
E42: 32. | G42: =IF(Anlageziele!$H$14="Substanz","Ja","Nein") -> Nein | I42: Bitte auswählen | J42: =IF($I42=Daten_Vermögen!$B$7,1,IF($I42=Daten_Vermögen!$B$12,0.01,0)) -> 0.0% | K42: =IF($I42=Daten_Vermögen!$B$8,1,IF($I42=Daten_Vermögen!$B$12,0.01,0)) -> 0.0% | L42: =IF($I42=Daten_Vermögen!$B$9,1,IF($I42=Daten_Vermögen!$B$12,0.01,0)) -> 0.0% | M42: =IF($I42=Daten_Vermögen!$B$10,1,IF($I42=Daten_Vermögen!$B$12,0.01,0)) -> 0.0% | N42: =IF($I42=Daten_Vermögen!$B$11,1,IF($I42=Daten_Vermögen!$B$12,0.01,0)) -> 0.0% | O42: Bitte auswählen | T42: EUR | U42: =IFERROR(Daten_Vermögen!C75/$S$61,"") ->  | Y42: % | Z42: =IF(Q42>0,Q42*X42,IF(W42>0,W42*X42/100,Daten_Vermögen!C75*X42/100)) -> 0 | AF42: =IF(O42=Daten_Vermögen!$C$9,"nein","ja") -> ja
E43: 33. | G43: =IF(Anlageziele!$H$14="Substanz","Ja","Nein") -> Nein | I43: Bitte auswählen | J43: =IF($I43=Daten_Vermögen!$B$7,1,IF($I43=Daten_Vermögen!$B$12,0.01,0)) -> 0.0% | K43: =IF($I43=Daten_Vermögen!$B$8,1,IF($I43=Daten_Vermögen!$B$12,0.01,0)) -> 0.0% | L43: =IF($I43=Daten_Vermögen!$B$9,1,IF($I43=Daten_Vermögen!$B$12,0.01,0)) -> 0.0% | M43: =IF($I43=Daten_Vermögen!$B$10,1,IF($I43=Daten_Vermögen!$B$12,0.01,0)) -> 0.0% | N43: =IF($I43=Daten_Vermögen!$B$11,1,IF($I43=Daten_Vermögen!$B$12,0.01,0)) -> 0.0% | O43: Bitte auswählen | T43: EUR | U43: =IFERROR(Daten_Vermögen!C76/$S$61,"") ->  | Y43: =IF(Q43>0,"EUR/Stk.","%") -> % | Z43: =IF(Q43>0,Q43*X43,IF(W43>0,W43*X43/100,Daten_Vermögen!C76*X43/100)) -> 0 | AF43: =IF(O43=Daten_Vermögen!$C$9,"nein","ja") -> ja
E44: 34. | G44: =IF(Anlageziele!$H$14="Substanz","Ja","Nein") -> Nein | I44: Bitte auswählen | J44: =IF($I44=Daten_Vermögen!$B$7,1,IF($I44=Daten_Vermögen!$B$12,0.01,0)) -> 0.0% | K44: =IF($I44=Daten_Vermögen!$B$8,1,IF($I44=Daten_Vermögen!$B$12,0.01,0)) -> 0.0% | L44: =IF($I44=Daten_Vermögen!$B$9,1,IF($I44=Daten_Vermögen!$B$12,0.01,0)) -> 0.0% | M44: =IF($I44=Daten_Vermögen!$B$10,1,IF($I44=Daten_Vermögen!$B$12,0.01,0)) -> 0.0% | N44: =IF($I44=Daten_Vermögen!$B$11,1,IF($I44=Daten_Vermögen!$B$12,0.01,0)) -> 0.0% | O44: Bitte auswählen | T44: EUR | U44: =IFERROR(Daten_Vermögen!C77/$S$61,"") ->  | Y44: % | Z44: =IF(Q44>0,Q44*X44,IF(W44>0,W44*X44/100,Daten_Vermögen!C77*X44/100)) -> 0 | AF44: =IF(O44=Daten_Vermögen!$C$9,"nein","ja") -> ja
E45: 35. | G45: =IF(Anlageziele!$H$14="Substanz","Ja","Nein") -> Nein | I45: Bitte auswählen | J45: =IF($I45=Daten_Vermögen!$B$7,1,IF($I45=Daten_Vermögen!$B$12,0.01,0)) -> 0.0% | K45: =IF($I45=Daten_Vermögen!$B$8,1,IF($I45=Daten_Vermögen!$B$12,0.01,0)) -> 0.0% | L45: =IF($I45=Daten_Vermögen!$B$9,1,IF($I45=Daten_Vermögen!$B$12,0.01,0)) -> 0.0% | M45: =IF($I45=Daten_Vermögen!$B$10,1,IF($I45=Daten_Vermögen!$B$12,0.01,0)) -> 0.0% | N45: =IF($I45=Daten_Vermögen!$B$11,1,IF($I45=Daten_Vermögen!$B$12,0.01,0)) -> 0.0% | O45: Bitte auswählen | T45: EUR | U45: =IFERROR(Daten_Vermögen!C78/$S$61,"") ->  | Y45: % | Z45: =IF(Q45>0,Q45*X45,IF(W45>0,W45*X45/100,Daten_Vermögen!C78*X45/100)) -> 0 | AF45: =IF(O45=Daten_Vermögen!$C$9,"nein","ja") -> ja
E46: 36. | G46: =IF(Anlageziele!$H$14="Substanz","Ja","Nein") -> Nein | I46: Bitte auswählen | J46: =IF($I46=Daten_Vermögen!$B$7,1,IF($I46=Daten_Vermögen!$B$12,0.01,0)) -> 0.0% | K46: =IF($I46=Daten_Vermögen!$B$8,1,IF($I46=Daten_Vermögen!$B$12,0.01,0)) -> 0.0% | L46: =IF($I46=Daten_Vermögen!$B$9,1,IF($I46=Daten_Vermögen!$B$12,0.01,0)) -> 0.0% | M46: =IF($I46=Daten_Vermögen!$B$10,1,IF($I46=Daten_Vermögen!$B$12,0.01,0)) -> 0.0% | N46: =IF($I46=Daten_Vermögen!$B$11,1,IF($I46=Daten_Vermögen!$B$12,0.01,0)) -> 0.0% | O46: Bitte auswählen | T46: EUR | U46: =IFERROR(Daten_Vermögen!C79/$S$61,"") ->  | Y46: % | Z46: =IF(Q46>0,Q46*X46,IF(W46>0,W46*X46/100,Daten_Vermögen!C79*X46/100)) -> 0 | AF46: =IF(O46=Daten_Vermögen!$C$9,"nein","ja") -> ja
E47: 37. | G47: =IF(Anlageziele!$H$14="Substanz","Ja","Nein") -> Nein | I47: Bitte auswählen | J47: =IF($I47=Daten_Vermögen!$B$7,1,IF($I47=Daten_Vermögen!$B$12,0.01,0)) -> 0.0% | K47: =IF($I47=Daten_Vermögen!$B$8,1,IF($I47=Daten_Vermögen!$B$12,0.01,0)) -> 0.0% | L47: =IF($I47=Daten_Vermögen!$B$9,1,IF($I47=Daten_Vermögen!$B$12,0.01,0)) -> 0.0% | M47: =IF($I47=Daten_Vermögen!$B$10,1,IF($I47=Daten_Vermögen!$B$12,0.01,0)) -> 0.0% | N47: =IF($I47=Daten_Vermögen!$B$11,1,IF($I47=Daten_Vermögen!$B$12,0.01,0)) -> 0.0% | O47: Bitte auswählen | T47: EUR | U47: =IFERROR(Daten_Vermögen!C80/$S$61,"") ->  | Y47: % | Z47: =IF(Q47>0,Q47*X47,IF(W47>0,W47*X47/100,Daten_Vermögen!C80*X47/100)) -> 0 | AF47: =IF(O47=Daten_Vermögen!$C$9,"nein","ja") -> ja
E48: 38. | G48: =IF(Anlageziele!$H$14="Substanz","Ja","Nein") -> Nein | I48: Bitte auswählen | J48: =IF($I48=Daten_Vermögen!$B$7,1,IF($I48=Daten_Vermögen!$B$12,0.01,0)) -> 0.0% | K48: =IF($I48=Daten_Vermögen!$B$8,1,IF($I48=Daten_Vermögen!$B$12,0.01,0)) -> 0.0% | L48: =IF($I48=Daten_Vermögen!$B$9,1,IF($I48=Daten_Vermögen!$B$12,0.01,0)) -> 0.0% | M48: =IF($I48=Daten_Vermögen!$B$10,1,IF($I48=Daten_Vermögen!$B$12,0.01,0)) -> 0.0% | N48: =IF($I48=Daten_Vermögen!$B$11,1,IF($I48=Daten_Vermögen!$B$12,0.01,0)) -> 0.0% | O48: Bitte auswählen | T48: EUR | U48: =IFERROR(Daten_Vermögen!C81/$S$61,"") ->  | Y48: % | Z48: =IF(Q48>0,Q48*X48,IF(W48>0,W48*X48/100,Daten_Vermögen!C81*X48/100)) -> 0 | AF48: =IF(O48=Daten_Vermögen!$C$9,"nein","ja") -> ja
E49: 39. | G49: =IF(Anlageziele!$H$14="Substanz","Ja","Nein") -> Nein | I49: Bitte auswählen | J49: =IF($I49=Daten_Vermögen!$B$7,1,IF($I49=Daten_Vermögen!$B$12,0.01,0)) -> 0.0% | K49: =IF($I49=Daten_Vermögen!$B$8,1,IF($I49=Daten_Vermögen!$B$12,0.01,0)) -> 0.0% | L49: =IF($I49=Daten_Vermögen!$B$9,1,IF($I49=Daten_Vermögen!$B$12,0.01,0)) -> 0.0% | M49: =IF($I49=Daten_Vermögen!$B$10,1,IF($I49=Daten_Vermögen!$B$12,0.01,0)) -> 0.0% | N49: =IF($I49=Daten_Vermögen!$B$11,1,IF($I49=Daten_Vermögen!$B$12,0.01,0)) -> 0.0% | O49: Bitte auswählen | T49: EUR | U49: =IFERROR(Daten_Vermögen!C82/$S$61,"") ->  | Y49: % | Z49: =IF(Q49>0,Q49*X49,IF(W49>0,W49*X49/100,Daten_Vermögen!C82*X49/100)) -> 0 | AF49: =IF(O49=Daten_Vermögen!$C$9,"nein","ja") -> ja
E50: 40. | G50: =IF(Anlageziele!$H$14="Substanz","Ja","Nein") -> Nein | I50: Bitte auswählen | J50: =IF($I50=Daten_Vermögen!$B$7,1,IF($I50=Daten_Vermögen!$B$12,0.01,0)) -> 0.0% | K50: =IF($I50=Daten_Vermögen!$B$8,1,IF($I50=Daten_Vermögen!$B$12,0.01,0)) -> 0.0% | L50: =IF($I50=Daten_Vermögen!$B$9,1,IF($I50=Daten_Vermögen!$B$12,0.01,0)) -> 0.0% | M50: =IF($I50=Daten_Vermögen!$B$10,1,IF($I50=Daten_Vermögen!$B$12,0.01,0)) -> 0.0% | N50: =IF($I50=Daten_Vermögen!$B$11,1,IF($I50=Daten_Vermögen!$B$12,0.01,0)) -> 0.0% | O50: Bitte auswählen | T50: EUR | U50: =IFERROR(Daten_Vermögen!C83/$S$61,"") ->  | Y50: % | Z50: =IF(Q50>0,Q50*X50,IF(W50>0,W50*X50/100,Daten_Vermögen!C83*X50/100)) -> 0 | AF50: =IF(O50=Daten_Vermögen!$C$9,"nein","ja") -> ja
E51: 41. | G51: =IF(Anlageziele!$H$14="Substanz","Ja","Nein") -> Nein | I51: Bitte auswählen | J51: =IF($I51=Daten_Vermögen!$B$7,1,IF($I51=Daten_Vermögen!$B$12,0.01,0)) -> 0.0% | K51: =IF($I51=Daten_Vermögen!$B$8,1,IF($I51=Daten_Vermögen!$B$12,0.01,0)) -> 0.0% | L51: =IF($I51=Daten_Vermögen!$B$9,1,IF($I51=Daten_Vermögen!$B$12,0.01,0)) -> 0.0% | M51: =IF($I51=Daten_Vermögen!$B$10,1,IF($I51=Daten_Vermögen!$B$12,0.01,0)) -> 0.0% | N51: =IF($I51=Daten_Vermögen!$B$11,1,IF($I51=Daten_Vermögen!$B$12,0.01,0)) -> 0.0% | O51: Bitte auswählen | T51: EUR | U51: =IFERROR(Daten_Vermögen!C84/$S$61,"") ->  | Y51: % | Z51: =IF(Q51>0,Q51*X51,IF(W51>0,W51*X51/100,Daten_Vermögen!C84*X51/100)) -> 0 | AF51: =IF(O51=Daten_Vermögen!$C$9,"nein","ja") -> ja
E52: 42. | G52: =IF(Anlageziele!$H$14="Substanz","Ja","Nein") -> Nein | I52: Bitte auswählen | J52: =IF($I52=Daten_Vermögen!$B$7,1,IF($I52=Daten_Vermögen!$B$12,0.01,0)) -> 0.0% | K52: =IF($I52=Daten_Vermögen!$B$8,1,IF($I52=Daten_Vermögen!$B$12,0.01,0)) -> 0.0% | L52: =IF($I52=Daten_Vermögen!$B$9,1,IF($I52=Daten_Vermögen!$B$12,0.01,0)) -> 0.0% | M52: =IF($I52=Daten_Vermögen!$B$10,1,IF($I52=Daten_Vermögen!$B$12,0.01,0)) -> 0.0% | N52: =IF($I52=Daten_Vermögen!$B$11,1,IF($I52=Daten_Vermögen!$B$12,0.01,0)) -> 0.0% | O52: Bitte auswählen | T52: EUR | U52: =IFERROR(Daten_Vermögen!C85/$S$61,"") ->  | Y52: % | Z52: =IF(Q52>0,Q52*X52,IF(W52>0,W52*X52/100,Daten_Vermögen!C85*X52/100)) -> 0 | AF52: =IF(O52=Daten_Vermögen!$C$9,"nein","ja") -> ja
E53: 43. | G53: =IF(Anlageziele!$H$14="Substanz","Ja","Nein") -> Nein | I53: Bitte auswählen | J53: =IF($I53=Daten_Vermögen!$B$7,1,IF($I53=Daten_Vermögen!$B$12,0.01,0)) -> 0.0% | K53: =IF($I53=Daten_Vermögen!$B$8,1,IF($I53=Daten_Vermögen!$B$12,0.01,0)) -> 0.0% | L53: =IF($I53=Daten_Vermögen!$B$9,1,IF($I53=Daten_Vermögen!$B$12,0.01,0)) -> 0.0% | M53: =IF($I53=Daten_Vermögen!$B$10,1,IF($I53=Daten_Vermögen!$B$12,0.01,0)) -> 0.0% | N53: =IF($I53=Daten_Vermögen!$B$11,1,IF($I53=Daten_Vermögen!$B$12,0.01,0)) -> 0.0% | O53: Bitte auswählen | T53: EUR | U53: =IFERROR(Daten_Vermögen!C86/$S$61,"") ->  | Y53: % | Z53: =IF(Q53>0,Q53*X53,IF(W53>0,W53*X53/100,Daten_Vermögen!C86*X53/100)) -> 0 | AF53: =IF(O53=Daten_Vermögen!$C$9,"nein","ja") -> ja
E54: 44. | G54: =IF(Anlageziele!$H$14="Substanz","Ja","Nein") -> Nein | I54: Bitte auswählen | J54: =IF($I54=Daten_Vermögen!$B$7,1,IF($I54=Daten_Vermögen!$B$12,0.01,0)) -> 0.0% | K54: =IF($I54=Daten_Vermögen!$B$8,1,IF($I54=Daten_Vermögen!$B$12,0.01,0)) -> 0.0% | L54: =IF($I54=Daten_Vermögen!$B$9,1,IF($I54=Daten_Vermögen!$B$12,0.01,0)) -> 0.0% | M54: =IF($I54=Daten_Vermögen!$B$10,1,IF($I54=Daten_Vermögen!$B$12,0.01,0)) -> 0.0% | N54: =IF($I54=Daten_Vermögen!$B$11,1,IF($I54=Daten_Vermögen!$B$12,0.01,0)) -> 0.0% | O54: Bitte auswählen | T54: EUR | U54: =IFERROR(Daten_Vermögen!C87/$S$61,"") ->  | Y54: % | Z54: =IF(Q54>0,Q54*X54,IF(W54>0,W54*X54/100,Daten_Vermögen!C87*X54/100)) -> 0 | AF54: =IF(O54=Daten_Vermögen!$C$9,"nein","ja") -> ja
E55: 45. | G55: =IF(Anlageziele!$H$14="Substanz","Ja","Nein") -> Nein | I55: Bitte auswählen | J55: =IF($I55=Daten_Vermögen!$B$7,1,IF($I55=Daten_Vermögen!$B$12,0.01,0)) -> 0.0% | K55: =IF($I55=Daten_Vermögen!$B$8,1,IF($I55=Daten_Vermögen!$B$12,0.01,0)) -> 0.0% | L55: =IF($I55=Daten_Vermögen!$B$9,1,IF($I55=Daten_Vermögen!$B$12,0.01,0)) -> 0.0% | M55: =IF($I55=Daten_Vermögen!$B$10,1,IF($I55=Daten_Vermögen!$B$12,0.01,0)) -> 0.0% | N55: =IF($I55=Daten_Vermögen!$B$11,1,IF($I55=Daten_Vermögen!$B$12,0.01,0)) -> 0.0% | O55: Bitte auswählen | T55: EUR | U55: =IFERROR(Daten_Vermögen!C88/$S$61,"") ->  | Y55: % | Z55: =IF(Q55>0,Q55*X55,IF(W55>0,W55*X55/100,Daten_Vermögen!C88*X55/100)) -> 0 | AF55: =IF(O55=Daten_Vermögen!$C$9,"nein","ja") -> ja
E56: 46. | G56: =IF(Anlageziele!$H$14="Substanz","Ja","Nein") -> Nein | I56: Bitte auswählen | J56: =IF($I56=Daten_Vermögen!$B$7,1,IF($I56=Daten_Vermögen!$B$12,0.01,0)) -> 0.0% | K56: =IF($I56=Daten_Vermögen!$B$8,1,IF($I56=Daten_Vermögen!$B$12,0.01,0)) -> 0.0% | L56: =IF($I56=Daten_Vermögen!$B$9,1,IF($I56=Daten_Vermögen!$B$12,0.01,0)) -> 0.0% | M56: =IF($I56=Daten_Vermögen!$B$10,1,IF($I56=Daten_Vermögen!$B$12,0.01,0)) -> 0.0% | N56: =IF($I56=Daten_Vermögen!$B$11,1,IF($I56=Daten_Vermögen!$B$12,0.01,0)) -> 0.0% | O56: Bitte auswählen | T56: EUR | U56: =IFERROR(Daten_Vermögen!C89/$S$61,"") ->  | Y56: % | Z56: =IF(Q56>0,Q56*X56,IF(W56>0,W56*X56/100,Daten_Vermögen!C89*X56/100)) -> 0 | AF56: =IF(O56=Daten_Vermögen!$C$9,"nein","ja") -> ja
E57: 47. | G57: =IF(Anlageziele!$H$14="Substanz","Ja","Nein") -> Nein | I57: Bitte auswählen | J57: =IF($I57=Daten_Vermögen!$B$7,1,IF($I57=Daten_Vermögen!$B$12,0.01,0)) -> 0.0% | K57: =IF($I57=Daten_Vermögen!$B$8,1,IF($I57=Daten_Vermögen!$B$12,0.01,0)) -> 0.0% | L57: =IF($I57=Daten_Vermögen!$B$9,1,IF($I57=Daten_Vermögen!$B$12,0.01,0)) -> 0.0% | M57: =IF($I57=Daten_Vermögen!$B$10,1,IF($I57=Daten_Vermögen!$B$12,0.01,0)) -> 0.0% | N57: =IF($I57=Daten_Vermögen!$B$11,1,IF($I57=Daten_Vermögen!$B$12,0.01,0)) -> 0.0% | O57: Bitte auswählen | T57: EUR | U57: =IFERROR(Daten_Vermögen!C90/$S$61,"") ->  | Y57: % | Z57: =IF(Q57>0,Q57*X57,IF(W57>0,W57*X57/100,Daten_Vermögen!C90*X57/100)) -> 0 | AF57: =IF(O57=Daten_Vermögen!$C$9,"nein","ja") -> ja
E58: 48. | G58: =IF(Anlageziele!$H$14="Substanz","Ja","Nein") -> Nein | I58: Bitte auswählen | J58: =IF($I58=Daten_Vermögen!$B$7,1,IF($I58=Daten_Vermögen!$B$12,0.01,0)) -> 0.0% | K58: =IF($I58=Daten_Vermögen!$B$8,1,IF($I58=Daten_Vermögen!$B$12,0.01,0)) -> 0.0% | L58: =IF($I58=Daten_Vermögen!$B$9,1,IF($I58=Daten_Vermögen!$B$12,0.01,0)) -> 0.0% | M58: =IF($I58=Daten_Vermögen!$B$10,1,IF($I58=Daten_Vermögen!$B$12,0.01,0)) -> 0.0% | N58: =IF($I58=Daten_Vermögen!$B$11,1,IF($I58=Daten_Vermögen!$B$12,0.01,0)) -> 0.0% | O58: Bitte auswählen | T58: EUR | U58: =IFERROR(Daten_Vermögen!C91/$S$61,"") ->  | Y58: % | Z58: =IF(Q58>0,Q58*X58,IF(W58>0,W58*X58/100,Daten_Vermögen!C91*X58/100)) -> 0 | AF58: =IF(O58=Daten_Vermögen!$C$9,"nein","ja") -> ja
E59: 49. | G59: =IF(Anlageziele!$H$14="Substanz","Ja","Nein") -> Nein | I59: Bitte auswählen | J59: =IF($I59=Daten_Vermögen!$B$7,1,IF($I59=Daten_Vermögen!$B$12,0.01,0)) -> 0.0% | K59: =IF($I59=Daten_Vermögen!$B$8,1,IF($I59=Daten_Vermögen!$B$12,0.01,0)) -> 0.0% | L59: =IF($I59=Daten_Vermögen!$B$9,1,IF($I59=Daten_Vermögen!$B$12,0.01,0)) -> 0.0% | M59: =IF($I59=Daten_Vermögen!$B$10,1,IF($I59=Daten_Vermögen!$B$12,0.01,0)) -> 0.0% | N59: =IF($I59=Daten_Vermögen!$B$11,1,IF($I59=Daten_Vermögen!$B$12,0.01,0)) -> 0.0% | O59: Bitte auswählen | T59: EUR | U59: =IFERROR(Daten_Vermögen!C92/$S$61,"") ->  | Y59: % | Z59: =IF(Q59>0,Q59*X59,IF(W59>0,W59*X59/100,Daten_Vermögen!C92*X59/100)) -> 0 | AF59: =IF(O59=Daten_Vermögen!$C$9,"nein","ja") -> ja
E60: 50. | G60: =IF(Anlageziele!$H$14="Substanz","Ja","Nein") -> Nein | I60: Bitte auswählen | J60: =IF($I60=Daten_Vermögen!$B$7,1,IF($I60=Daten_Vermögen!$B$12,0.01,0)) -> 0.0% | K60: =IF($I60=Daten_Vermögen!$B$8,1,IF($I60=Daten_Vermögen!$B$12,0.01,0)) -> 0.0% | L60: =IF($I60=Daten_Vermögen!$B$9,1,IF($I60=Daten_Vermögen!$B$12,0.01,0)) -> 0.0% | M60: =IF($I60=Daten_Vermögen!$B$10,1,IF($I60=Daten_Vermögen!$B$12,0.01,0)) -> 0.0% | N60: =IF($I60=Daten_Vermögen!$B$11,1,IF($I60=Daten_Vermögen!$B$12,0.01,0)) -> 0.0% | O60: Bitte auswählen | T60: EUR | U60: =IFERROR(Daten_Vermögen!C93/$S$61,"") ->  | Y60: % | Z60: =IF(Q60>0,Q60*X60,IF(W60>0,W60*X60/100,Daten_Vermögen!C93*X60/100)) -> 0 | AA60: November | AF60: =IF(O60=Daten_Vermögen!$C$9,"nein","ja") -> ja
F61: Summen | S61: =Daten_Vermögen!C94 -> 0 | T61: EUR | U61: =SUM(U11:U60) -> 0.0% | V61: =SUM(V11:V60) -> 0.0% | Z61: =SUM(Z11:Z60) -> 0 | AF61: ='Daten Projektion'!N201 -> 0
F63: Datenquellen (Bezeichnung) | H63: Vom (Datum)
E64: 1.
E65: 2.
E66: 3.
E67: 4.
E68: 5.

Sheet Anlageziele
B11: Legende
F12: Gewichtung | H12: 25.0% | M12: Gewichtung | O12: 25.0%
B13: Pflichteingabe
B14: Optionale Eingabe | F14: Vermögenserhaltungskonzept: | H14: Real | M14: Ausschüttungspolitik | O14: Bitte auswählen | T14: Real | U14: 1 | W14: 1
B15: Systemeingabe überschreibbar | T15: Nominal | W15: 1
B16: Systemeingabe nicht überschreibbar | F16: Bei realer Vermögenserhaltung: | M16: Bei Überschuss: Verwaltungskostenfaktor | O16: 0.0
B17: Weitere Infos im Hintergrund | F17: Maßstab für die Geldentwerung: | H17: Verbraucherpreise (VPI) | M17: Bei Zielausschüttung: Betrag | P17: EUR
F18: Inflationsrate | M18: Bei Zielquote: Prozentsatz bezg. auf Investitionsverm.
F20: Bei Verbrauchsstiftung:
F21: Verbrauchskonzept | H21: Kapitaleinsatz p.a. | T21: Substanz | W21: 1
F22: =IF(H21="Kapitaleinsatz p.a.","Kapitaleinsatz p.a.","Bestandsdauer ab Gründung") -> Kapitaleinsatz p.a. | I22: =IF(H21="Kapitaleinsatz p.a.","EUR","Jahre") -> EUR | T22: Verbrauch
B23: Die Summe der Gewichtungen muss
B24: 100% ergeben. Aktuell: | T24: Verbraucherpreise (VPI) | U24: 1
B25: =H12+O12+O27+H27 -> 100%
F27: Gewichtung | H27: 25.0% | M27: Gewichtung | O27: 25.0%
M29: Nachhaltigkeitsquote insgesamt | N29: 0.0%
T30: TRUE
M31: Einzelstrategien/Systematik | O31: Quantitativ | T31: TRUE
F32: Maximalverlust Investmentvermögen: | H32: 0.0% | M32: Ausschlusskategorien | O32: 0.0% | T32: TRUE
F33: (Risikotragfähigkeit) | G33: entspricht | H33: =IF(Vermögen!S61<>0,Vermögen!S61*Anlageziele!H32,"") ->  | I33: EUR | M33: Impact/SDG-Ziele | O33: 0.0%
F34: Erholungsphase: | I34: Jahr/e | M34: ESG-Messmethode (einzeln/aggregiert) | O34: 0.0%
M35: Best of Universe/Best in Class | O35: 0.0%
B36: Weiter zu | M36: ESG Top% | O36: 0.0%
M37: ESG Frequenz | O37: 0.0%
M38: Stimmrechtsausübung | O38: 0.0%
M39: Engagement | O39: 0.0%
B40: Externe Links | M40: Summe | O40: =SUM(O32:O39) -> 0.0%
M42: Zielwert DVFA PRISC-Score | O42: 0.0%

Sheet Daten_Einstellg_Ziele (hidden)
A1: Datenblatt Stammdaten/Anlageziele
B3: STAMMDATEN
B5: EUR_TEUR | C5: Anrede | D5: Geschäftsführungsorgan | E5: Aufsichtsorgan | F5: Mitwirkung Aufsicht | G5: Gremienfunktion | H5: Revisionsturnus | I5: Zweck | J5: Adjustierungsfaktor | K5: Marktparadigmen
B6: EUR | C6: Bitte auswählen | D6: Bitte auswählen | E6: Keines | F6: Bitte auswählen | G6: Bitte auswählen | H6: Bitte ausw. | I6: Bitte ausw. | J6: Bitte ausw. | K6: Bitte ausw.
B7: TEUR | C7: Herr | D7: Vorstand | E7: Stiftungsrat | F7: Einverständnis (vorher) | G7: Vorsitzende/r | H7: quartalsweise | I7: Soziales | J7: 100% | K7: Inflation
C8: Frau | D8: Geschäftsführung | E8: Aufsichtsrat | F8: Genehmigung (nachher) | G8: Finanzen | H8: halbjährlich | I8: Wissenschaft/Forschung | J8: 114% | K8: Deflation/Depression
D9: Generalsekretär/in | E9: Kuratorium | F9: Information | G9: Protokoll/Schriftf. | H9: jährlich | I9: Bildung/Erziehung | J9: 133% | K9: Goldilock
D10: Kuratorium | E10: Beirat | F10: Anordnung | G10: Mitglied | H10: Sonstiges | I10: Kunst/Kultur | J10: 160% | K10: Sonstige
D11: Stiftungsrat | E11: Anlageausschuss | I11: Umwelt | J11: 200%
D12: Beirat | E12: Sonstiges: | I12: Andere | J12: 267%
D13: Sonstiges: | J13: 400%
J14: 800%
B15: ANLAGEZIELE
B17: Vermögenserhaltungskonzept | C17: Verbrauchskonzept | D17: Ausgaben_Stiftungszweck | E17: Ja_Nein | F17: Zielausschüttung | G17: Projektionszeitraum | H17: Systematig Nachhaltigkeit
B18: Bitte auswählen | C18: Kapitaleinsatz p.a. | D18: Bitte auswählen | E18: Bitte ausw. | F18: Bitte ausw. | G18: Bitte ausw. | H18: Bitte auswählen
B19: Real | C19: Stiftung auf Zeit | D19: Überschuss | E19: Ja | F19: quotenmäßig | G19: =Einstellungen!G13 -> 2024 | H19: Quantitativ
B20: Nominal | D20: Zielbetrag | E20: Nein | F20: summenmäßig | G20: =G19+1 -> 2025 | H20: PRISC
B21: Substanz | D21: Zielquote | G21: =G20+1 -> 2026
B22: Verbrauch | G22: =G21+1 -> 2027
G23: =G22+1 -> 2028
B24: Maß_Geldentwertung | C24: Bezugsvermögen
B25: Verbraucherpreise (VPI) | C25: Bitte ausw.
B26: Sonstiges | C26: Gesamtvermögen
C27: Wertpapiervermögen
B30: ZÄHLER
B32: 1. Einstellungen
B34: Gründungsjahr | C34: =IF(Einstellungen!G12=0,0,1) -> 0
B35: Planungsbeginn | C35: =IF(Einstellungen!G13=0,0,1) -> 1
B36: Summe | C36: =SUM(C34:C35) -> 1
B37: Freischaltung | C37: =IF(C36=2,1,0) -> 0
B39: 2. Anlageziele
B41: Vermögenserhaltung | C41: =IF(Anlageziele!H14="Bitte auswählen",0,1) -> 1
B42: Erträge | C42: =IF(Anlageziele!O14="Bitte auswählen",0,1) -> 0
B43: Ausschüttungspolitik | C43: =IF(Anlageziele!O14="Bitte auswählen",0,1) -> 0
B44: Maximalverlust | C44: =IF(Anlageziele!H32=0%,0,1) -> 0
B45: Nachhaltigkeit | C45: =IF(Anlageziele!O31="Bitte auswählen",0,1) -> 1
B46: Summe | C46: =SUM(C41:C45) -> 2
B47: Freischaltung | C47: =IF(C46=5,1,0) -> 0

Sheet Daten_Vermögen (hidden)
A1: Datenblatt Investitionsvermögen
B3: AUSWAHLFELDER
H4: ESG /
B5: Anlageklassen | C5: Anlageinstrument | D5: Währung | E5: Ja/Nein | F5: Buchhaltung | G5: Monate | H5: Taxonomie
B6: Bitte auswählen | C6: Bitte auswählen | D6: EUR | E6: Ja | F6: Bitte auswählen | G6: Bitte auswählen | H6: Keine
B7: Aktien | C7: Direktanlage | D7: USD | E7: Nein | F7: Immaterieller Vermögensggstd. | G7: Monatlich | H7: Art. 6
B8: Anleihen | C8: VV-Mandat | D8: CHF | F8: Grundstück/Gebäude | G8: Quartalsweise | H8: Art. 8
B9: Alternative Inv. | C9: Fonds | D9: DKK | F9: Geschäftsausstattung | G9: Januar | H9: Art. 9
B10: Rohstoffe | D10: GBP | F10: andere Sachanlagen | G10: Februar | H10: ESG-Siegel
B11: Liquidität | D11: JPY | F11: Beteiligg. an Unternehmen | G11: März | H11: Sonstige
B12: Mischfonds (MA) | D12: NOK | F12: Aktien | G12: April
B13: Immobilien | D13: SEK | F13: Fondsanteile | G13: Mai
B14: Beteiligungen | D14: Sonstige | F14: festverzinsliche Wertpapiere | G14: Juni
B15: Sonst. Verm. | F15: sonstige Wertpapiere | G15: Juli
B16: Verbindlichkeiten | F16: sonstige Ausleihungen | G16: August
F17: Vorräte | G17: September
F18: Forderungen u. sonstige Vermggstd. | G18: Oktober
B19: Währungsumrechnung | F19: Wertpapiere, soweit n. Anlageverm. | G19: November
B20: EUR | C20: 1.00 | F20: Bankguthaben | G20: Dezember
B21: USD | C21: 1.07 | F21: Kassenbestand
B22: CHF | C22: 0.99
B23: DKK | C23: 7.45
B24: GBP | C24: 0.89
B25: JPY | C25: 143.09
B26: NOK | C26: 10.91
B27: SEK | C27: 11.13
B28: Sonstige | C28: 1.00
B30: Anlageziele für Startseite | C30: =Anlageziele!$H$14 -> Real | D30: =Anlageziele!$O$14 -> Bitte auswählen | F30: =Anlageziele!$O$31 -> Quantitativ
B32: Vermögen | C32: =Daten_Vermögenserhaltung!$D$83 -> 0
B33: Ertrag | D33: =IF(Anlageziele!$O$14="Überschuss",D34,IF(Anlageziele!$O$14="Zielbetrag",D35,IF(Anlageziele!$O$14="Zielquote",D36,"OFF"))) -> OFF
B34: Überschuss | D34: =IF(Wirtschaftsplan!G54*Anlageziele!O16<Daten_Vermögen!D94,Daten_Vermögen!D94,Wirtschaftsplan!G54*Anlageziele!O16) -> 0
B35: Zielbetrag | D35: =[1]Anlageziele!$N$17 -> 400,000
B36: Zielquote | D36: =C94*Anlageziele!$O$18 -> 0
B37: Risiko | E37: =C94*Anlageziele!H32 -> 0
B38: Nachhaltigkeit | F38: =Anlageziele!N29 -> 0.0%
B39: Quantitativ | F39: =Anlageziele!N29 -> 0.0%
B40: PRISC | F40: =Anlageziele!O42 -> 0.0% | S40: Gewichtete Gesamtrendite für Szenario "Linear"
B42: ZIelerreichung aktuell für Startseite | G42: Rendite Verm. | I42: Ausschüttungs-
C43: Wert | D43: Ertrag | E43: Risiko | F43: Nachhaltigkeit | H43: Multi-Asset | I43: rendite | L43: Aktien | M43: Anleihen | N43: Alternative Inv. | O43: Rohstoffe | P43: Liquidität | Q43: Summe | S43: Gesamtrendite | T43: =B7 -> Aktien | U43: =B8 -> Anleihen | V43: =B9 -> Alternative Inv. | W43: =B10 -> Rohstoffe | X43: =B11 -> Liquidität | Y43: =B13 -> Immobilien | Z43: =B14 -> Beteiligungen | AA43: =B15 -> Sonst. Verm. | AB43: Summe
A44: =Vermögen!E11 -> 1. | B44: =Vermögen!F11 -> 0 | C44: =IF(Vermögen!S11>0,Vermögen!S11/SUMIF(Daten_Vermögen!$B$20:$B$28,Vermögen!T11,Daten_Vermögen!$C$20:$C$28),Vermögen!S11/1) -> 0 | D44: =IF(Vermögen!Q11>0,Vermögen!Q11*Vermögen!X11,IF(Vermögen!W11=0,Vermögen!S11*Vermögen!X11/100,Vermögen!W11*Vermögen!X11/100)) -> 0 | E44: =Vermögen!S11*Vermögen!AC11 -> 0 | F44: =IF(Vermögen!AD11="Keine",0,IF(Vermögen!AD11="Art. 6",0,1)) -> 1 | G44: =Vermögen!V11 -> 0.0% | H44: =IF(Vermögen!I11=Daten_Vermögen!$B$12,1,0) -> 0 | I44: =IFERROR(D44/C44,0) -> 0.00% | L44: =C44*Vermögen!J11 -> 0 | M44: =C44*Vermögen!K11 -> 0 | N44: =C44*Vermögen!L11 -> 0 | O44: =C44*Vermögen!M11 -> 0 | P44: =C44*Vermögen!N11 -> 0 | Q44: =SUM(L44:P44) -> 0 | S44: =G44+I44 -> 0.0% | T44: =$S44*Vermögen!J11*Vermögen!$U11 ->  | U44: =$S44*Vermögen!K11*Vermögen!U11 ->  | V44: =$S44*Vermögen!L11*Vermögen!U11 ->  | W44: =$S44*Vermögen!M11*Vermögen!U11 ->  | X44: =$S44*Vermögen!N11*Vermögen!U11 ->  | Y44: =$S44*IF(Vermögen!$I11=Daten_Vermögen!Y$43,Vermögen!$U11,0) -> 0.0% | Z44: =$S44*IF(Vermögen!$I11=Daten_Vermögen!Z$43,Vermögen!$U11,0) -> 0.0% | AA44: =$S44*IF(Vermögen!I11=Daten_Vermögen!$AA$43,Vermögen!U11,0) -> 0.0% | AB44: =SUM(T44:AA44) -> 
A45: =Vermögen!E12 -> 2. | B45: =Vermögen!F12 -> 0 | C45: =IF(Vermögen!S12>0,Vermögen!S12/SUMIF(Daten_Vermögen!$B$20:$B$28,Vermögen!T12,Daten_Vermögen!$C$20:$C$28),Vermögen!S12/1) -> 0 | D45: =IF(Vermögen!Q12>0,Vermögen!Q12*Vermögen!X12,IF(Vermögen!W12=0,Vermögen!S12*Vermögen!X12/100,Vermögen!W12*Vermögen!X12/100)) -> 0 | E45: =Vermögen!S12*Vermögen!AC12 -> 0 | F45: =IF(Vermögen!AD12="Keine",0,IF(Vermögen!AD12="Art. 6",0,1)) -> 1 | G45: =Vermögen!V12 -> 0.0% | H45: =IF(Vermögen!I12=Daten_Vermögen!$B$12,1,0) -> 0 | I45: =IFERROR(D45/C45,0) -> 0.00% | L45: =C45*Vermögen!J12 -> 0 | M45: =C45*Vermögen!K12 -> 0 | N45: =C45*Vermögen!L12 -> 0 | O45: =C45*Vermögen!M12 -> 0 | P45: =C45*Vermögen!N12 -> 0 | Q45: 0 | S45: =G45+I45 -> 0.0% | T45: =$S45*Vermögen!J12*Vermögen!$U12 ->  | U45: =$S45*Vermögen!K12*Vermögen!U12 ->  | V45: =$S45*Vermögen!L12*Vermögen!U12 ->  | W45: =$S45*Vermögen!M12*Vermögen!U12 ->  | X45: =$S45*Vermögen!N12*Vermögen!U12 ->  | Y45: =$S45*IF(Vermögen!I12=Daten_Vermögen!$Y$43,Vermögen!U12,0) -> 0.0% | Z45: =$S45*IF(Vermögen!I12=Daten_Vermögen!$Z$43,Vermögen!U12,0) -> 0.0% | AA45: =$S45*IF(Vermögen!I12=Daten_Vermögen!$AA$43,Vermögen!U12,0) -> 0.0% | AB45: =SUM(T45:AA45) -> 
A46: =Vermögen!E13 -> 3. | B46: =Vermögen!F13 -> 0 | C46: =IF(Vermögen!S13>0,Vermögen!S13/SUMIF(Daten_Vermögen!$B$20:$B$28,Vermögen!T13,Daten_Vermögen!$C$20:$C$28),Vermögen!S13/1) -> 0 | D46: =IF(Vermögen!Q13>0,Vermögen!Q13*Vermögen!X13,IF(Vermögen!W13=0,Vermögen!S13*Vermögen!X13/100,Vermögen!W13*Vermögen!X13/100)) -> 0 | E46: =Vermögen!S13*Vermögen!AC13 -> 0 | F46: =IF(Vermögen!AD13="Keine",0,IF(Vermögen!AD13="Art. 6",0,1)) -> 1 | G46: =Vermögen!V13 -> 0.0% | H46: =IF(Vermögen!I13=Daten_Vermögen!$B$12,1,0) -> 0 | I46: 0.00% | L46: =C46*Vermögen!J13 -> 0 | M46: =C46*Vermögen!K13 -> 0 | N46: =C46*Vermögen!L13 -> 0 | O46: =C46*Vermögen!M13 -> 0 | P46: =C46*Vermögen!N13 -> 0 | Q46: 0 | S46: 0.0% | T46: =$S46*Vermögen!J13*Vermögen!$U13 ->  | U46: =$S46*Vermögen!K13*Vermögen!U13 ->  | V46: =$S46*Vermögen!L13*Vermögen!U13 ->  | W46: =$S46*Vermögen!M13*Vermögen!U13 ->  | X46: =$S46*Vermögen!N13*Vermögen!U13 ->  | Y46: =$S46*IF(Vermögen!I13=Daten_Vermögen!$Y$43,Vermögen!U13,0) -> 0.0% | Z46: =$S46*IF(Vermögen!I13=Daten_Vermögen!$Z$43,Vermögen!U13,0) -> 0.0% | AA46: =$S46*IF(Vermögen!I13=Daten_Vermögen!$AA$43,Vermögen!U13,0) -> 0.0%
A47: =Vermögen!E14 -> 4. | B47: =Vermögen!F14 -> 0 | C47: =IF(Vermögen!S14>0,Vermögen!S14/SUMIF(Daten_Vermögen!$B$20:$B$28,Vermögen!T14,Daten_Vermögen!$C$20:$C$28),Vermögen!S14/1) -> 0 | D47: =IF(Vermögen!Q14>0,Vermögen!Q14*Vermögen!X14,IF(Vermögen!W14=0,Vermögen!S14*Vermögen!X14/100,Vermögen!W14*Vermögen!X14/100)) -> 0 | E47: =Vermögen!S14*Vermögen!AC14 -> 0 | F47: =IF(Vermögen!AD14="Keine",0,IF(Vermögen!AD14="Art. 6",0,1)) -> 1 | G47: =Vermögen!V14 -> 0.0% | H47: =IF(Vermögen!I14=Daten_Vermögen!$B$12,1,0) -> 0 | I47: 0.00% | L47: =C47*Vermögen!J14 -> 0 | M47: =C47*Vermögen!K14 -> 0 | N47: =C47*Vermögen!L14 -> 0 | O47: =C47*Vermögen!M14 -> 0 | P47: =C47*Vermögen!N14 -> 0 | Q47: 0 | S47: 0.0% | T47: =$S47*Vermögen!J14*Vermögen!$U14 ->  | U47: =$S47*Vermögen!K14*Vermögen!U14 ->  | V47: =$S47*Vermögen!L14*Vermögen!U14 ->  | W47: =$S47*Vermögen!M14*Vermögen!U14 ->  | X47: =$S47*Vermögen!N14*Vermögen!U14 ->  | Y47: =$S47*IF(Vermögen!I14=Daten_Vermögen!$Y$43,Vermögen!U14,0) -> 0.0% | Z47: =$S47*IF(Vermögen!I14=Daten_Vermögen!$Z$43,Vermögen!U14,0) -> 0.0% | AA47: =$S47*IF(Vermögen!I14=Daten_Vermögen!$AA$43,Vermögen!U14,0) -> 0.0%
A48: =Vermögen!E15 -> 5. | B48: =Vermögen!F15 -> 0 | C48: =IF(Vermögen!S15>0,Vermögen!S15/SUMIF(Daten_Vermögen!$B$20:$B$28,Vermögen!T15,Daten_Vermögen!$C$20:$C$28),Vermögen!S15/1) -> 0 | D48: =IF(Vermögen!Q15>0,Vermögen!Q15*Vermögen!X15,IF(Vermögen!W15=0,Vermögen!S15*Vermögen!X15/100,Vermögen!W15*Vermögen!X15/100)) -> 0 | E48: =Vermögen!S15*Vermögen!AC15 -> 0 | F48: =IF(Vermögen!AD15="Keine",0,IF(Vermögen!AD15="Art. 6",0,1)) -> 1 | G48: =Vermögen!V15 -> 0.0% | H48: =IF(Vermögen!I15=Daten_Vermögen!$B$12,1,0) -> 0 | I48: 0.00% | L48: =C48*Vermögen!J15 -> 0 | M48: =C48*Vermögen!K15 -> 0 | N48: =C48*Vermögen!L15 -> 0 | O48: =C48*Vermögen!M15 -> 0 | P48: =C48*Vermögen!N15 -> 0 | Q48: 0 | S48: 0.0% | T48: =$S48*Vermögen!J15*Vermögen!$U15 ->  | U48: =$S48*Vermögen!K15*Vermögen!U15 ->  | V48: =$S48*Vermögen!L15*Vermögen!U15 ->  | W48: =$S48*Vermögen!M15*Vermögen!U15 ->  | X48: =$S48*Vermögen!N15*Vermögen!U15 ->  | Y48: =$S48*IF(Vermögen!I15=Daten_Vermögen!$Y$43,Vermögen!U15,0) -> 0.0% | Z48: =$S48*IF(Vermögen!I15=Daten_Vermögen!$Z$43,Vermögen!U15,0) -> 0.0% | AA48: =$S48*IF(Vermögen!I15=Daten_Vermögen!$AA$43,Vermögen!U15,0) -> 0.0%
A49: =Vermögen!E16 -> 6. | B49: =Vermögen!F16 -> 0 | C49: =IF(Vermögen!S16>0,Vermögen!S16/SUMIF(Daten_Vermögen!$B$20:$B$28,Vermögen!T16,Daten_Vermögen!$C$20:$C$28),Vermögen!S16/1) -> 0 | D49: =IF(Vermögen!Q16>0,Vermögen!Q16*Vermögen!X16,IF(Vermögen!W16=0,Vermögen!S16*Vermögen!X16/100,Vermögen!W16*Vermögen!X16/100)) -> 0 | E49: =Vermögen!S16*Vermögen!AC16 -> 0 | F49: =IF(Vermögen!AD16="Keine",0,IF(Vermögen!AD16="Art. 6",0,1)) -> 1 | G49: =Vermögen!V16 -> 0.0% | H49: =IF(Vermögen!I16=Daten_Vermögen!$B$12,1,0) -> 0 | I49: 0.00% | L49: =C49*Vermögen!J16 -> 0 | M49: =C49*Vermögen!K16 -> 0 | N49: =C49*Vermögen!L16 -> 0 | O49: =C49*Vermögen!M16 -> 0 | P49: =C49*Vermögen!N16 -> 0 | Q49: 0 | S49: 0.0% | T49: =$S49*Vermögen!J16*Vermögen!$U16 ->  | U49: =$S49*Vermögen!K16*Vermögen!U16 ->  | V49: =$S49*Vermögen!L16*Vermögen!U16 ->  | W49: =$S49*Vermögen!M16*Vermögen!U16 ->  | X49: =$S49*Vermögen!N16*Vermögen!U16 ->  | Y49: =$S49*IF(Vermögen!I16=Daten_Vermögen!$Y$43,Vermögen!U16,0) -> 0.0% | Z49: =$S49*IF(Vermögen!I16=Daten_Vermögen!$Z$43,Vermögen!U16,0) -> 0.0% | AA49: =$S49*IF(Vermögen!I16=Daten_Vermögen!$AA$43,Vermögen!U16,0) -> 0.0%
A50: =Vermögen!E17 -> 7. | B50: =Vermögen!F17 -> 0 | C50: =IF(Vermögen!S17>0,Vermögen!S17/SUMIF(Daten_Vermögen!$B$20:$B$28,Vermögen!T17,Daten_Vermögen!$C$20:$C$28),Vermögen!S17/1) -> 0 | D50: =IF(Vermögen!Q17>0,Vermögen!Q17*Vermögen!X17,IF(Vermögen!W17=0,Vermögen!S17*Vermögen!X17/100,Vermögen!W17*Vermögen!X17/100)) -> 0 | E50: =Vermögen!S17*Vermögen!AC17 -> 0 | F50: =IF(Vermögen!AD17="Keine",0,IF(Vermögen!AD17="Art. 6",0,1)) -> 1 | G50: =Vermögen!V17 -> 0.0% | H50: =IF(Vermögen!I17=Daten_Vermögen!$B$12,1,0) -> 0 | I50: 0.00% | L50: =C50*Vermögen!J17 -> 0 | M50: =C50*Vermögen!K17 -> 0 | N50: =C50*Vermögen!L17 -> 0 | O50: =C50*Vermögen!M17 -> 0 | P50: =C50*Vermögen!N17 -> 0 | Q50: 0 | S50: 0.0% | T50: =$S50*Vermögen!J17*Vermögen!$U17 ->  | U50: =$S50*Vermögen!K17*Vermögen!U17 ->  | V50: =$S50*Vermögen!L17*Vermögen!U17 ->  | W50: =$S50*Vermögen!M17*Vermögen!U17 ->  | X50: =$S50*Vermögen!N17*Vermögen!U17 ->  | Y50: =$S50*IF(Vermögen!I17=Daten_Vermögen!$Y$43,Vermögen!U17,0) -> 0.0% | Z50: =$S50*IF(Vermögen!I17=Daten_Vermögen!$Z$43,Vermögen!U17,0) -> 0.0% | AA50: =$S50*IF(Vermögen!I17=Daten_Vermögen!$AA$43,Vermögen!U17,0) -> 0.0%
A51: =Vermögen!E18 -> 8. | B51: =Vermögen!F18 -> 0 | C51: =IF(Vermögen!S18>0,Vermögen!S18/SUMIF(Daten_Vermögen!$B$20:$B$28,Vermögen!T18,Daten_Vermögen!$C$20:$C$28),Vermögen!S18/1) -> 0 | D51: =IF(Vermögen!Q18>0,Vermögen!Q18*Vermögen!X18,IF(Vermögen!W18=0,Vermögen!S18*Vermögen!X18/100,Vermögen!W18*Vermögen!X18/100)) -> 0 | E51: =Vermögen!S18*Vermögen!AC18 -> 0 | F51: =IF(Vermögen!AD18="Keine",0,IF(Vermögen!AD18="Art. 6",0,1)) -> 1 | G51: =Vermögen!V18 -> 0.0% | H51: =IF(Vermögen!I18=Daten_Vermögen!$B$12,1,0) -> 0 | I51: 0.00% | L51: =C51*Vermögen!J18 -> 0 | M51: =C51*Vermögen!K18 -> 0 | N51: =C51*Vermögen!L18 -> 0 | O51: =C51*Vermögen!M18 -> 0 | P51: =C51*Vermögen!N18 -> 0 | Q51: 0 | S51: 0.0% | T51: =$S51*Vermögen!J18*Vermögen!$U18 ->  | U51: =$S51*Vermögen!K18*Vermögen!U18 ->  | V51: =$S51*Vermögen!L18*Vermögen!U18 ->  | W51: =$S51*Vermögen!M18*Vermögen!U18 ->  | X51: =$S51*Vermögen!N18*Vermögen!U18 ->  | Y51: =$S51*IF(Vermögen!I18=Daten_Vermögen!$Y$43,Vermögen!U18,0) -> 0.0% | Z51: =$S51*IF(Vermögen!I18=Daten_Vermögen!$Z$43,Vermögen!U18,0) -> 0.0% | AA51: =$S51*IF(Vermögen!I18=Daten_Vermögen!$AA$43,Vermögen!U18,0) -> 0.0%
A52: =Vermögen!E19 -> 9. | B52: =Vermögen!F19 -> 0 | C52: =IF(Vermögen!S19>0,Vermögen!S19/SUMIF(Daten_Vermögen!$B$20:$B$28,Vermögen!T19,Daten_Vermögen!$C$20:$C$28),Vermögen!S19/1) -> 0 | D52: =IF(Vermögen!Q19>0,Vermögen!Q19*Vermögen!X19,IF(Vermögen!W19=0,Vermögen!S19*Vermögen!X19/100,Vermögen!W19*Vermögen!X19/100)) -> 0 | E52: =Vermögen!S19*Vermögen!AC19 -> 0 | F52: =IF(Vermögen!AD19="Keine",0,IF(Vermögen!AD19="Art. 6",0,1)) -> 1 | G52: =Vermögen!V19 -> 0.0% | H52: =IF(Vermögen!I19=Daten_Vermögen!$B$12,1,0) -> 0 | I52: 0.00% | L52: =C52*Vermögen!J19 -> 0 | M52: =C52*Vermögen!K19 -> 0 | N52: =C52*Vermögen!L19 -> 0 | O52: =C52*Vermögen!M19 -> 0 | P52: =C52*Vermögen!N19 -> 0 | Q52: 0 | S52: 0.0% | T52: =$S52*Vermögen!J19*Vermögen!$U19 ->  | U52: =$S52*Vermögen!K19*Vermögen!U19 ->  | V52: =$S52*Vermögen!L19*Vermögen!U19 ->  | W52: =$S52*Vermögen!M19*Vermögen!U19 ->  | X52: =$S52*Vermögen!N19*Vermögen!U19 ->  | Y52: =$S52*IF(Vermögen!I19=Daten_Vermögen!$Y$43,Vermögen!U19,0) -> 0.0% | Z52: =$S52*IF(Vermögen!I19=Daten_Vermögen!$Z$43,Vermögen!U19,0) -> 0.0% | AA52: =$S52*IF(Vermögen!I19=Daten_Vermögen!$AA$43,Vermögen!U19,0) -> 0.0%
A53: =Vermögen!E20 -> 10. | B53: =Vermögen!F20 -> 0 | C53: =IF(Vermögen!S20>0,Vermögen!S20/SUMIF(Daten_Vermögen!$B$20:$B$28,Vermögen!T20,Daten_Vermögen!$C$20:$C$28),Vermögen!S20/1) -> 0 | D53: =IF(Vermögen!Q20>0,Vermögen!Q20*Vermögen!X20,IF(Vermögen!W20=0,Vermögen!S20*Vermögen!X20/100,Vermögen!W20*Vermögen!X20/100)) -> 0 | E53: =Vermögen!S20*Vermögen!AC20 -> 0 | F53: =IF(Vermögen!AD20="Keine",0,IF(Vermögen!AD20="Art. 6",0,1)) -> 1 | G53: =Vermögen!V20 -> 0.0% | H53: =IF(Vermögen!I20=Daten_Vermögen!$B$12,1,0) -> 0 | I53: 0.00% | L53: =C53*Vermögen!J20 -> 0 | M53: =C53*Vermögen!K20 -> 0 | N53: =C53*Vermögen!L20 -> 0 | O53: =C53*Vermögen!M20 -> 0 | P53: =C53*Vermögen!N20 -> 0 | Q53: 0 | S53: 0.0% | T53: =$S53*Vermögen!J20*Vermögen!$U20 ->  | U53: =$S53*Vermögen!K20*Vermögen!U20 ->  | V53: =$S53*Vermögen!L20*Vermögen!U20 ->  | W53: =$S53*Vermögen!M20*Vermögen!U20 ->  | X53: =$S53*Vermögen!N20*Vermögen!U20 ->  | Y53: =$S53*IF(Vermögen!I20=Daten_Vermögen!$Y$43,Vermögen!U20,0) -> 0.0% | Z53: =$S53*IF(Vermögen!I20=Daten_Vermögen!$Z$43,Vermögen!U20,0) -> 0.0% | AA53: =$S53*IF(Vermögen!I20=Daten_Vermögen!$AA$43,Vermögen!U20,0) -> 0.0%
A54: =Vermögen!E21 -> 11. | B54: =Vermögen!F21 -> 0 | C54: =IF(Vermögen!S21>0,Vermögen!S21/SUMIF(Daten_Vermögen!$B$20:$B$28,Vermögen!T21,Daten_Vermögen!$C$20:$C$28),Vermögen!S21/1) -> 0 | D54: =IF(Vermögen!Q21>0,Vermögen!Q21*Vermögen!X21,IF(Vermögen!W21=0,Vermögen!S21*Vermögen!X21/100,Vermögen!W21*Vermögen!X21/100)) -> 0 | E54: =Vermögen!S21*Vermögen!AC21 -> 0 | F54: =IF(Vermögen!AD21="Keine",0,IF(Vermögen!AD21="Art. 6",0,1)) -> 1 | G54: =Vermögen!V21 -> 0.0% | H54: =IF(Vermögen!I21=Daten_Vermögen!$B$12,1,0) -> 0 | I54: 0.00% | L54: =C54*Vermögen!J21 -> 0 | M54: =C54*Vermögen!K21 -> 0 | N54: =C54*Vermögen!L21 -> 0 | O54: =C54*Vermögen!M21 -> 0 | P54: =C54*Vermögen!N21 -> 0 | Q54: 0 | S54: 0.0% | T54: =$S54*Vermögen!J21*Vermögen!$U21 ->  | U54: =$S54*Vermögen!K21*Vermögen!U21 ->  | V54: =$S54*Vermögen!L21*Vermögen!U21 ->  | W54: =$S54*Vermögen!M21*Vermögen!U21 ->  | X54: =$S54*Vermögen!N21*Vermögen!U21 ->  | Y54: =$S54*IF(Vermögen!I21=Daten_Vermögen!$Y$43,Vermögen!U21,0) -> 0.0% | Z54: =$S54*IF(Vermögen!I21=Daten_Vermögen!$Z$43,Vermögen!U21,0) -> 0.0% | AA54: =$S54*IF(Vermögen!I21=Daten_Vermögen!$AA$43,Vermögen!U21,0) -> 0.0%
A55: =Vermögen!E22 -> 12. | B55: =Vermögen!F22 -> 0 | C55: =IF(Vermögen!S22>0,Vermögen!S22/SUMIF(Daten_Vermögen!$B$20:$B$28,Vermögen!T22,Daten_Vermögen!$C$20:$C$28),Vermögen!S22/1) -> 0 | D55: =IF(Vermögen!Q22>0,Vermögen!Q22*Vermögen!X22,IF(Vermögen!W22=0,Vermögen!S22*Vermögen!X22/100,Vermögen!W22*Vermögen!X22/100)) -> 0 | E55: =Vermögen!S22*Vermögen!AC22 -> 0 | F55: =IF(Vermögen!AD22="Keine",0,IF(Vermögen!AD22="Art. 6",0,1)) -> 1 | G55: =Vermögen!V22 -> 0.0% | H55: =IF(Vermögen!I22=Daten_Vermögen!$B$12,1,0) -> 0 | I55: 0.00% | L55: =C55*Vermögen!J22 -> 0 | M55: =C55*Vermögen!K22 -> 0 | N55: =C55*Vermögen!L22 -> 0 | O55: =C55*Vermögen!M22 -> 0 | P55: =C55*Vermögen!N22 -> 0 | Q55: 0 | S55: 0.0% | T55: =$S55*Vermögen!J22*Vermögen!$U22 ->  | U55: =$S55*Vermögen!K22*Vermögen!U22 ->  | V55: =$S55*Vermögen!L22*Vermögen!U22 ->  | W55: =$S55*Vermögen!M22*Vermögen!U22 ->  | X55: =$S55*Vermögen!N22*Vermögen!U22 ->  | Y55: =$S55*IF(Vermögen!I22=Daten_Vermögen!$Y$43,Vermögen!U22,0) -> 0.0% | Z55: =$S55*IF(Vermögen!I22=Daten_Vermögen!$Z$43,Vermögen!U22,0) -> 0.0% | AA55: =$S55*IF(Vermögen!I22=Daten_Vermögen!$AA$43,Vermögen!U22,0) -> 0.0%
A56: =Vermögen!E23 -> 13. | B56: =Vermögen!F23 -> 0 | C56: =IF(Vermögen!S23>0,Vermögen!S23/SUMIF(Daten_Vermögen!$B$20:$B$28,Vermögen!T23,Daten_Vermögen!$C$20:$C$28),Vermögen!S23/1) -> 0 | D56: =IF(Vermögen!Q23>0,Vermögen!Q23*Vermögen!X23,IF(Vermögen!W23=0,Vermögen!S23*Vermögen!X23/100,Vermögen!W23*Vermögen!X23/100)) -> 0 | E56: =Vermögen!S23*Vermögen!AC23 -> 0 | F56: =IF(Vermögen!AD23="Keine",0,IF(Vermögen!AD23="Art. 6",0,1)) -> 1 | G56: =Vermögen!V23 -> 0.0% | H56: =IF(Vermögen!I23=Daten_Vermögen!$B$12,1,0) -> 0 | I56: 0.00% | L56: =C56*Vermögen!J23 -> 0 | M56: =C56*Vermögen!K23 -> 0 | N56: =C56*Vermögen!L23 -> 0 | O56: =C56*Vermögen!M23 -> 0 | P56: =C56*Vermögen!N23 -> 0 | Q56: 0 | S56: 0.0% | T56: =$S56*Vermögen!J23*Vermögen!$U23 ->  | U56: =$S56*Vermögen!K23*Vermögen!U23 ->  | V56: =$S56*Vermögen!L23*Vermögen!U23 ->  | W56: =$S56*Vermögen!M23*Vermögen!U23 ->  | X56: =$S56*Vermögen!N23*Vermögen!U23 ->  | Y56: =$S56*IF(Vermögen!I23=Daten_Vermögen!$Y$43,Vermögen!U23,0) -> 0.0% | Z56: =$S56*IF(Vermögen!I23=Daten_Vermögen!$Z$43,Vermögen!U23,0) -> 0.0% | AA56: =$S56*IF(Vermögen!I23=Daten_Vermögen!$AA$43,Vermögen!U23,0) -> 0.0%
A57: =Vermögen!E24 -> 14. | B57: =Vermögen!F24 -> 0 | C57: =IF(Vermögen!S24>0,Vermögen!S24/SUMIF(Daten_Vermögen!$B$20:$B$28,Vermögen!T24,Daten_Vermögen!$C$20:$C$28),Vermögen!S24/1) -> 0 | D57: =IF(Vermögen!Q24>0,Vermögen!Q24*Vermögen!X24,IF(Vermögen!W24=0,Vermögen!S24*Vermögen!X24/100,Vermögen!W24*Vermögen!X24/100)) -> 0 | E57: =Vermögen!S24*Vermögen!AC24 -> 0 | F57: =IF(Vermögen!AD24="Keine",0,IF(Vermögen!AD24="Art. 6",0,1)) -> 1 | G57: =Vermögen!V24 -> 0.0% | H57: =IF(Vermögen!I24=Daten_Vermögen!$B$12,1,0) -> 0 | I57: 0.00% | L57: =C57*Vermögen!J24 -> 0 | M57: =C57*Vermögen!K24 -> 0 | N57: =C57*Vermögen!L24 -> 0 | O57: =C57*Vermögen!M24 -> 0 | P57: =C57*Vermögen!N24 -> 0 | Q57: 0 | S57: 0.0% | T57: =$S57*Vermögen!J24*Vermögen!$U24 ->  | U57: =$S57*Vermögen!K24*Vermögen!U24 ->  | V57: =$S57*Vermögen!L24*Vermögen!U24 ->  | W57: =$S57*Vermögen!M24*Vermögen!U24 ->  | X57: =$S57*Vermögen!N24*Vermögen!U24 ->  | Y57: =$S57*IF(Vermögen!I24=Daten_Vermögen!$Y$43,Vermögen!U24,0) -> 0.0% | Z57: =$S57*IF(Vermögen!I24=Daten_Vermögen!$Z$43,Vermögen!U24,0) -> 0.0% | AA57: =$S57*IF(Vermögen!I24=Daten_Vermögen!$AA$43,Vermögen!U24,0) -> 0.0%
A58: =Vermögen!E25 -> 15. | B58: =Vermögen!F25 -> 0 | C58: =IF(Vermögen!S25>0,Vermögen!S25/SUMIF(Daten_Vermögen!$B$20:$B$28,Vermögen!T25,Daten_Vermögen!$C$20:$C$28),Vermögen!S25/1) -> 0 | D58: =IF(Vermögen!Q25>0,Vermögen!Q25*Vermögen!X25,IF(Vermögen!W25=0,Vermögen!S25*Vermögen!X25/100,Vermögen!W25*Vermögen!X25/100)) -> 0 | E58: =Vermögen!S25*Vermögen!AC25 -> 0 | F58: =IF(Vermögen!AD25="Keine",0,IF(Vermögen!AD25="Art. 6",0,1)) -> 1 | G58: =Vermögen!V25 -> 0.0% | H58: =IF(Vermögen!I25=Daten_Vermögen!$B$12,1,0) -> 0 | I58: 0.00% | L58: =C58*Vermögen!J25 -> 0 | M58: =C58*Vermögen!K25 -> 0 | N58: =C58*Vermögen!L25 -> 0 | O58: =C58*Vermögen!M25 -> 0 | P58: =C58*Vermögen!N25 -> 0 | Q58: 0 | S58: 0.0% | T58: =$S58*Vermögen!J25*Vermögen!$U25 ->  | U58: =$S58*Vermögen!K25*Vermögen!U25 ->  | V58: =$S58*Vermögen!L25*Vermögen!U25 ->  | W58: =$S58*Vermögen!M25*Vermögen!U25 ->  | X58: =$S58*Vermögen!N25*Vermögen!U25 ->  | Y58: =$S58*IF(Vermögen!I25=Daten_Vermögen!$Y$43,Vermögen!U25,0) -> 0.0% | Z58: =$S58*IF(Vermögen!I25=Daten_Vermögen!$Z$43,Vermögen!U25,0) -> 0.0% | AA58: =$S58*IF(Vermögen!I25=Daten_Vermögen!$AA$43,Vermögen!U25,0) -> 0.0%
A59: =Vermögen!E26 -> 16. | B59: =Vermögen!F26 -> 0 | C59: =IF(Vermögen!S26>0,Vermögen!S26/SUMIF(Daten_Vermögen!$B$20:$B$28,Vermögen!T26,Daten_Vermögen!$C$20:$C$28),Vermögen!S26/1) -> 0 | D59: =IF(Vermögen!Q26>0,Vermögen!Q26*Vermögen!X26,IF(Vermögen!W26=0,Vermögen!S26*Vermögen!X26/100,Vermögen!W26*Vermögen!X26/100)) -> 0 | E59: =Vermögen!S26*Vermögen!AC26 -> 0 | F59: =IF(Vermögen!AD26="Keine",0,IF(Vermögen!AD26="Art. 6",0,1)) -> 1 | G59: =Vermögen!V26 -> 0.0% | H59: =IF(Vermögen!I26=Daten_Vermögen!$B$12,1,0) -> 0 | I59: 0.00% | L59: =C59*Vermögen!J26 -> 0 | M59: =C59*Vermögen!K26 -> 0 | N59: =C59*Vermögen!L26 -> 0 | O59: =C59*Vermögen!M26 -> 0 | P59: =C59*Vermögen!N26 -> 0 | Q59: 0 | S59: 0.0% | T59: =$S59*Vermögen!J26*Vermögen!$U26 ->  | U59: =$S59*Vermögen!K26*Vermögen!U26 ->  | V59: =$S59*Vermögen!L26*Vermögen!U26 ->  | W59: =$S59*Vermögen!M26*Vermögen!U26 ->  | X59: =$S59*Vermögen!N26*Vermögen!U26 ->  | Y59: =$S59*IF(Vermögen!I26=Daten_Vermögen!$Y$43,Vermögen!U26,0) -> 0.0% | Z59: =$S59*IF(Vermögen!I26=Daten_Vermögen!$Z$43,Vermögen!U26,0) -> 0.0% | AA59: =$S59*IF(Vermögen!I26=Daten_Vermögen!$AA$43,Vermögen!U26,0) -> 0.0%
A60: =Vermögen!E27 -> 17. | B60: =Vermögen!F27 -> 0 | C60: =IF(Vermögen!S27>0,Vermögen!S27/SUMIF(Daten_Vermögen!$B$20:$B$28,Vermögen!T27,Daten_Vermögen!$C$20:$C$28),Vermögen!S27/1) -> 0 | D60: =IF(Vermögen!Q27>0,Vermögen!Q27*Vermögen!X27,IF(Vermögen!W27=0,Vermögen!S27*Vermögen!X27/100,Vermögen!W27*Vermögen!X27/100)) -> 0 | E60: =Vermögen!S27*Vermögen!AC27 -> 0 | F60: =IF(Vermögen!AD27="Keine",0,IF(Vermögen!AD27="Art. 6",0,1)) -> 1 | G60: =Vermögen!V27 -> 0.0% | H60: =IF(Vermögen!I27=Daten_Vermögen!$B$12,1,0) -> 0 | I60: 0.00% | L60: =C60*Vermögen!J27 -> 0 | M60: =C60*Vermögen!K27 -> 0 | N60: =C60*Vermögen!L27 -> 0 | O60: =C60*Vermögen!M27 -> 0 | P60: =C60*Vermögen!N27 -> 0 | Q60: 0 | S60: 0.0% | T60: =$S60*Vermögen!J27*Vermögen!$U27 ->  | U60: =$S60*Vermögen!K27*Vermögen!U27 ->  | V60: =$S60*Vermögen!L27*Vermögen!U27 ->  | W60: =$S60*Vermögen!M27*Vermögen!U27 ->  | X60: =$S60*Vermögen!N27*Vermögen!U27 ->  | Y60: =$S60*IF(Vermögen!I27=Daten_Vermögen!$Y$43,Vermögen!U27,0) -> 0.0% | Z60: =$S60*IF(Vermögen!I27=Daten_Vermögen!$Z$43,Vermögen!U27,0) -> 0.0% | AA60: =$S60*IF(Vermögen!I27=Daten_Vermögen!$AA$43,Vermögen!U27,0) -> 0.0%
A61: =Vermögen!E28 -> 18. | B61: =Vermögen!F28 -> 0 | C61: =IF(Vermögen!S28>0,Vermögen!S28/SUMIF(Daten_Vermögen!$B$20:$B$28,Vermögen!T28,Daten_Vermögen!$C$20:$C$28),Vermögen!S28/1) -> 0 | D61: =IF(Vermögen!Q28>0,Vermögen!Q28*Vermögen!X28,IF(Vermögen!W28=0,Vermögen!S28*Vermögen!X28/100,Vermögen!W28*Vermögen!X28/100)) -> 0 | E61: =Vermögen!S28*Vermögen!AC28 -> 0 | F61: =IF(Vermögen!AD28="Keine",0,IF(Vermögen!AD28="Art. 6",0,1)) -> 1 | G61: =Vermögen!V28 -> 0.0% | H61: =IF(Vermögen!I28=Daten_Vermögen!$B$12,1,0) -> 0 | I61: 0.00% | L61: =C61*Vermögen!J28 -> 0 | M61: =C61*Vermögen!K28 -> 0 | N61: =C61*Vermögen!L28 -> 0 | O61: =C61*Vermögen!M28 -> 0 | P61: =C61*Vermögen!N28 -> 0 | Q61: 0 | S61: 0.0% | T61: =$S61*Vermögen!J28*Vermögen!$U28 ->  | U61: =$S61*Vermögen!K28*Vermögen!U28 ->  | V61: =$S61*Vermögen!L28*Vermögen!U28 ->  | W61: =$S61*Vermögen!M28*Vermögen!U28 ->  | X61: =$S61*Vermögen!N28*Vermögen!U28 ->  | Y61: =$S61*IF(Vermögen!I28=Daten_Vermögen!$Y$43,Vermögen!U28,0) -> 0.0% | Z61: =$S61*IF(Vermögen!I28=Daten_Vermögen!$Z$43,Vermögen!U28,0) -> 0.0% | AA61: =$S61*IF(Vermögen!I28=Daten_Vermögen!$AA$43,Vermögen!U28,0) -> 0.0%
A62: =Vermögen!E29 -> 19. | B62: =Vermögen!F29 -> 0 | C62: =IF(Vermögen!S29>0,Vermögen!S29/SUMIF(Daten_Vermögen!$B$20:$B$28,Vermögen!T29,Daten_Vermögen!$C$20:$C$28),Vermögen!S29/1) -> 0 | D62: =IF(Vermögen!Q29>0,Vermögen!Q29*Vermögen!X29,IF(Vermögen!W29=0,Vermögen!S29*Vermögen!X29/100,Vermögen!W29*Vermögen!X29/100)) -> 0 | E62: =Vermögen!S29*Vermögen!AC29 -> 0 | F62: =IF(Vermögen!AD29="Keine",0,IF(Vermögen!AD29="Art. 6",0,1)) -> 1 | G62: =Vermögen!V29 -> 0.0% | H62: =IF(Vermögen!I29=Daten_Vermögen!$B$12,1,0) -> 0 | I62: 0.00% | L62: =C62*Vermögen!J29 -> 0 | M62: =C62*Vermögen!K29 -> 0 | N62: =C62*Vermögen!L29 -> 0 | O62: =C62*Vermögen!M29 -> 0 | P62: =C62*Vermögen!N29 -> 0 | Q62: 0 | S62: 0.0% | T62: =$S62*Vermögen!J29*Vermögen!$U29 ->  | U62: =$S62*Vermögen!K29*Vermögen!U29 ->  | V62: =$S62*Vermögen!L29*Vermögen!U29 ->  | W62: =$S62*Vermögen!M29*Vermögen!U29 ->  | X62: =$S62*Vermögen!N29*Vermögen!U29 ->  | Y62: =$S62*IF(Vermögen!I29=Daten_Vermögen!$Y$43,Vermögen!U29,0) -> 0.0% | Z62: =$S62*IF(Vermögen!I29=Daten_Vermögen!$Z$43,Vermögen!U29,0) -> 0.0% | AA62: =$S62*IF(Vermögen!I29=Daten_Vermögen!$AA$43,Vermögen!U29,0) -> 0.0%
A63: =Vermögen!E30 -> 20. | B63: =Vermögen!F30 -> 0 | C63: =IF(Vermögen!S30>0,Vermögen!S30/SUMIF(Daten_Vermögen!$B$20:$B$28,Vermögen!T30,Daten_Vermögen!$C$20:$C$28),Vermögen!S30/1) -> 0 | D63: =IF(Vermögen!Q30>0,Vermögen!Q30*Vermögen!X30,IF(Vermögen!W30=0,Vermögen!S30*Vermögen!X30/100,Vermögen!W30*Vermögen!X30/100)) -> 0 | E63: =Vermögen!S30*Vermögen!AC30 -> 0 | F63: =IF(Vermögen!AD30="Keine",0,IF(Vermögen!AD30="Art. 6",0,1)) -> 1 | G63: =Vermögen!V30 -> 0.0% | H63: =IF(Vermögen!I30=Daten_Vermögen!$B$12,1,0) -> 0 | I63: 0.00% | L63: =C63*Vermögen!J30 -> 0 | M63: =C63*Vermögen!K30 -> 0 | N63: =C63*Vermögen!L30 -> 0 | O63: =C63*Vermögen!M30 -> 0 | P63: =C63*Vermögen!N30 -> 0 | Q63: 0 | S63: 0.0% | T63: =$S63*Vermögen!J30*Vermögen!$U30 ->  | U63: =$S63*Vermögen!K30*Vermögen!U30 ->  | V63: =$S63*Vermögen!L30*Vermögen!U30 ->  | W63: =$S63*Vermögen!M30*Vermögen!U30 ->  | X63: =$S63*Vermögen!N30*Vermögen!U30 ->  | Y63: =$S63*IF(Vermögen!I30=Daten_Vermögen!$Y$43,Vermögen!U30,0) -> 0.0% | Z63: =$S63*IF(Vermögen!I30=Daten_Vermögen!$Z$43,Vermögen!U30,0) -> 0.0% | AA63: =$S63*IF(Vermögen!I30=Daten_Vermögen!$AA$43,Vermögen!U30,0) -> 0.0%
A64: =Vermögen!E31 -> 21. | B64: =Vermögen!F31 -> 0 | C64: =IF(Vermögen!S31>0,Vermögen!S31/SUMIF(Daten_Vermögen!$B$20:$B$28,Vermögen!T31,Daten_Vermögen!$C$20:$C$28),Vermögen!S31/1) -> 0 | D64: =IF(Vermögen!Q31>0,Vermögen!Q31*Vermögen!X31,IF(Vermögen!W31=0,Vermögen!S31*Vermögen!X31/100,Vermögen!W31*Vermögen!X31/100)) -> 0 | E64: =Vermögen!S31*Vermögen!AC31 -> 0 | F64: =IF(Vermögen!AD31="Keine",0,IF(Vermögen!AD31="Art. 6",0,1)) -> 1 | G64: =Vermögen!V31 -> 0.0% | H64: =IF(Vermögen!I31=Daten_Vermögen!$B$12,1,0) -> 0 | I64: 0.00% | L64: =C64*Vermögen!J31 -> 0 | M64: =C64*Vermögen!K31 -> 0 | N64: =C64*Vermögen!L31 -> 0 | O64: =C64*Vermögen!M31 -> 0 | P64: =C64*Vermögen!N31 -> 0 | Q64: 0 | S64: 0.0% | T64: =$S64*Vermögen!J31*Vermögen!$U31 ->  | U64: =$S64*Vermögen!K31*Vermögen!U31 ->  | V64: =$S64*Vermögen!L31*Vermögen!U31 ->  | W64: =$S64*Vermögen!M31*Vermögen!U31 ->  | X64: =$S64*Vermögen!N31*Vermögen!U31 ->  | Y64: =$S64*IF(Vermögen!I31=Daten_Vermögen!$Y$43,Vermögen!U31,0) -> 0.0% | Z64: =$S64*IF(Vermögen!I31=Daten_Vermögen!$Z$43,Vermögen!U31,0) -> 0.0% | AA64: =$S64*IF(Vermögen!I31=Daten_Vermögen!$AA$43,Vermögen!U31,0) -> 0.0%
A65: =Vermögen!E32 -> 22. | B65: =Vermögen!F32 -> 0 | C65: =IF(Vermögen!S32>0,Vermögen!S32/SUMIF(Daten_Vermögen!$B$20:$B$28,Vermögen!T32,Daten_Vermögen!$C$20:$C$28),Vermögen!S32/1) -> 0 | D65: =IF(Vermögen!Q32>0,Vermögen!Q32*Vermögen!X32,IF(Vermögen!W32=0,Vermögen!S32*Vermögen!X32/100,Vermögen!W32*Vermögen!X32/100)) -> 0 | E65: =Vermögen!S32*Vermögen!AC32 -> 0 | F65: =IF(Vermögen!AD32="Keine",0,IF(Vermögen!AD32="Art. 6",0,1)) -> 1 | G65: =Vermögen!V32 -> 0.0% | H65: =IF(Vermögen!I32=Daten_Vermögen!$B$12,1,0) -> 0 | I65: 0.00% | L65: =C65*Vermögen!J32 -> 0 | M65: =C65*Vermögen!K32 -> 0 | N65: =C65*Vermögen!L32 -> 0 | O65: =C65*Vermögen!M32 -> 0 | P65: =C65*Vermögen!N32 -> 0 | Q65: 0 | S65: 0.0% | T65: =$S65*Vermögen!J32*Vermögen!$U32 ->  | U65: =$S65*Vermögen!K32*Vermögen!U32 ->  | V65: =$S65*Vermögen!L32*Vermögen!U32 ->  | W65: =$S65*Vermögen!M32*Vermögen!U32 ->  | X65: =$S65*Vermögen!N32*Vermögen!U32 ->  | Y65: =$S65*IF(Vermögen!I32=Daten_Vermögen!$Y$43,Vermögen!U32,0) -> 0.0% | Z65: =$S65*IF(Vermögen!I32=Daten_Vermögen!$Z$43,Vermögen!U32,0) -> 0.0% | AA65: =$S65*IF(Vermögen!I32=Daten_Vermögen!$AA$43,Vermögen!U32,0) -> 0.0%
A66: =Vermögen!E33 -> 23. | B66: =Vermögen!F33 -> 0 | C66: =IF(Vermögen!S33>0,Vermögen!S33/SUMIF(Daten_Vermögen!$B$20:$B$28,Vermögen!T33,Daten_Vermögen!$C$20:$C$28),Vermögen!S33/1) -> 0 | D66: =IF(Vermögen!Q33>0,Vermögen!Q33*Vermögen!X33,IF(Vermögen!W33=0,Vermögen!S33*Vermögen!X33/100,Vermögen!W33*Vermögen!X33/100)) -> 0 | E66: =Vermögen!S33*Vermögen!AC33 -> 0 | F66: =IF(Vermögen!AD33="Keine",0,IF(Vermögen!AD33="Art. 6",0,1)) -> 1 | G66: =Vermögen!V33 -> 0.0% | H66: =IF(Vermögen!I33=Daten_Vermögen!$B$12,1,0) -> 0 | I66: 0.00% | L66: =C66*Vermögen!J33 -> 0 | M66: =C66*Vermögen!K33 -> 0 | N66: =C66*Vermögen!L33 -> 0 | O66: =C66*Vermögen!M33 -> 0 | P66: =C66*Vermögen!N33 -> 0 | Q66: 0 | S66: 0.0% | T66: =$S66*Vermögen!J33*Vermögen!$U33 ->  | U66: =$S66*Vermögen!K33*Vermögen!U33 ->  | V66: =$S66*Vermögen!L33*Vermögen!U33 ->  | W66: =$S66*Vermögen!M33*Vermögen!U33 ->  | X66: =$S66*Vermögen!N33*Vermögen!U33 ->  | Y66: =$S66*IF(Vermögen!I33=Daten_Vermögen!$Y$43,Vermögen!U33,0) -> 0.0% | Z66: =$S66*IF(Vermögen!I33=Daten_Vermögen!$Z$43,Vermögen!U33,0) -> 0.0% | AA66: =$S66*IF(Vermögen!I33=Daten_Vermögen!$AA$43,Vermögen!U33,0) -> 0.0%
A67: =Vermögen!E34 -> 24. | B67: =Vermögen!F34 -> 0 | C67: =IF(Vermögen!S34>0,Vermögen!S34/SUMIF(Daten_Vermögen!$B$20:$B$28,Vermögen!T34,Daten_Vermögen!$C$20:$C$28),Vermögen!S34/1) -> 0 | D67: =IF(Vermögen!Q34>0,Vermögen!Q34*Vermögen!X34,IF(Vermögen!W34=0,Vermögen!S34*Vermögen!X34/100,Vermögen!W34*Vermögen!X34/100)) -> 0 | E67: =Vermögen!S34*Vermögen!AC34 -> 0 | F67: =IF(Vermögen!AD34="Keine",0,IF(Vermögen!AD34="Art. 6",0,1)) -> 1 | G67: =Vermögen!V34 -> 0.0% | H67: =IF(Vermögen!I34=Daten_Vermögen!$B$12,1,0) -> 0 | I67: 0.00% | L67: =C67*Vermögen!J34 -> 0 | M67: =C67*Vermögen!K34 -> 0 | N67: =C67*Vermögen!L34 -> 0 | O67: =C67*Vermögen!M34 -> 0 | P67: =C67*Vermögen!N34 -> 0 | Q67: 0 | S67: 0.0% | T67: =$S67*Vermögen!J34*Vermögen!$U34 ->  | U67: =$S67*Vermögen!K34*Vermögen!U34 ->  | V67: =$S67*Vermögen!L34*Vermögen!U34 ->  | W67: =$S67*Vermögen!M34*Vermögen!U34 ->  | X67: =$S67*Vermögen!N34*Vermögen!U34 ->  | Y67: =$S67*IF(Vermögen!I34=Daten_Vermögen!$Y$43,Vermögen!U34,0) -> 0.0% | Z67: =$S67*IF(Vermögen!I34=Daten_Vermögen!$Z$43,Vermögen!U34,0) -> 0.0% | AA67: =$S67*IF(Vermögen!I34=Daten_Vermögen!$AA$43,Vermögen!U34,0) -> 0.0%
A68: =Vermögen!E35 -> 25. | B68: =Vermögen!F35 -> 0 | C68: =IF(Vermögen!S35>0,Vermögen!S35/SUMIF(Daten_Vermögen!$B$20:$B$28,Vermögen!T35,Daten_Vermögen!$C$20:$C$28),Vermögen!S35/1) -> 0 | D68: =IF(Vermögen!Q35>0,Vermögen!Q35*Vermögen!X35,IF(Vermögen!W35=0,Vermögen!S35*Vermögen!X35/100,Vermögen!W35*Vermögen!X35/100)) -> 0 | E68: =Vermögen!S35*Vermögen!AC35 -> 0 | F68: =IF(Vermögen!AD35="Keine",0,IF(Vermögen!AD35="Art. 6",0,1)) -> 1 | G68: =Vermögen!V35 -> 0.0% | H68: =IF(Vermögen!I35=Daten_Vermögen!$B$12,1,0) -> 0 | I68: 0.00% | L68: =C68*Vermögen!J35 -> 0 | M68: =C68*Vermögen!K35 -> 0 | N68: =C68*Vermögen!L35 -> 0 | O68: =C68*Vermögen!M35 -> 0 | P68: =C68*Vermögen!N35 -> 0 | Q68: 0 | S68: 0.0% | T68: =$S68*Vermögen!J35*Vermögen!$U35 ->  | U68: =$S68*Vermögen!K35*Vermögen!U35 ->  | V68: =$S68*Vermögen!L35*Vermögen!U35 ->  | W68: =$S68*Vermögen!M35*Vermögen!U35 ->  | X68: =$S68*Vermögen!N35*Vermögen!U35 ->  | Y68: =$S68*IF(Vermögen!I35=Daten_Vermögen!$Y$43,Vermögen!U35,0) -> 0.0% | Z68: =$S68*IF(Vermögen!I35=Daten_Vermögen!$Z$43,Vermögen!U35,0) -> 0.0% | AA68: =$S68*IF(Vermögen!I35=Daten_Vermögen!$AA$43,Vermögen!U35,0) -> 0.0%
A69: =Vermögen!E36 -> 26. | B69: =Vermögen!F36 -> 0 | C69: =IF(Vermögen!S36>0,Vermögen!S36/SUMIF(Daten_Vermögen!$B$20:$B$28,Vermögen!T36,Daten_Vermögen!$C$20:$C$28),Vermögen!S36/1) -> 0 | D69: =IF(Vermögen!Q36>0,Vermögen!Q36*Vermögen!X36,IF(Vermögen!W36=0,Vermögen!S36*Vermögen!X36/100,Vermögen!W36*Vermögen!X36/100)) -> 0 | E69: =Vermögen!S36*Vermögen!AC36 -> 0 | F69: =IF(Vermögen!AD36="Keine",0,IF(Vermögen!AD36="Art. 6",0,1)) -> 1 | G69: =Vermögen!V36 -> 0.0% | H69: =IF(Vermögen!I36=Daten_Vermögen!$B$12,1,0) -> 0 | I69: 0.00% | L69: =C69*Vermögen!J36 -> 0 | M69: =C69*Vermögen!K36 -> 0 | N69: =C69*Vermögen!L36 -> 0 | O69: =C69*Vermögen!M36 -> 0 | P69: =C69*Vermögen!N36 -> 0 | Q69: 0 | S69: 0.0% | T69: =$S69*Vermögen!J36*Vermögen!$U36 ->  | U69: =$S69*Vermögen!K36*Vermögen!U36 ->  | V69: =$S69*Vermögen!L36*Vermögen!U36 ->  | W69: =$S69*Vermögen!M36*Vermögen!U36 ->  | X69: =$S69*Vermögen!N36*Vermögen!U36 ->  | Y69: =$S69*IF(Vermögen!I36=Daten_Vermögen!$Y$43,Vermögen!U36,0) -> 0.0% | Z69: =$S69*IF(Vermögen!I36=Daten_Vermögen!$Z$43,Vermögen!U36,0) -> 0.0% | AA69: =$S69*IF(Vermögen!I36=Daten_Vermögen!$AA$43,Vermögen!U36,0) -> 0.0%
A70: =Vermögen!E37 -> 27. | B70: =Vermögen!F37 -> 0 | C70: =IF(Vermögen!S37>0,Vermögen!S37/SUMIF(Daten_Vermögen!$B$20:$B$28,Vermögen!T37,Daten_Vermögen!$C$20:$C$28),Vermögen!S37/1) -> 0 | D70: =IF(Vermögen!Q37>0,Vermögen!Q37*Vermögen!X37,IF(Vermögen!W37=0,Vermögen!S37*Vermögen!X37/100,Vermögen!W37*Vermögen!X37/100)) -> 0 | E70: =Vermögen!S37*Vermögen!AC37 -> 0 | F70: =IF(Vermögen!AD37="Keine",0,IF(Vermögen!AD37="Art. 6",0,1)) -> 1 | G70: =Vermögen!V37 -> 0.0% | H70: =IF(Vermögen!I37=Daten_Vermögen!$B$12,1,0) -> 0 | I70: 0.00% | L70: =C70*Vermögen!J37 -> 0 | M70: =C70*Vermögen!K37 -> 0 | N70: =C70*Vermögen!L37 -> 0 | O70: =C70*Vermögen!M37 -> 0 | P70: =C70*Vermögen!N37 -> 0 | Q70: 0 | S70: 0.0% | T70: =$S70*Vermögen!J37*Vermögen!$U37 ->  | U70: =$S70*Vermögen!K37*Vermögen!U37 ->  | V70: =$S70*Vermögen!L37*Vermögen!U37 ->  | W70: =$S70*Vermögen!M37*Vermögen!U37 ->  | X70: =$S70*Vermögen!N37*Vermögen!U37 ->  | Y70: =$S70*IF(Vermögen!I37=Daten_Vermögen!$Y$43,Vermögen!U37,0) -> 0.0% | Z70: =$S70*IF(Vermögen!I37=Daten_Vermögen!$Z$43,Vermögen!U37,0) -> 0.0% | AA70: =$S70*IF(Vermögen!I37=Daten_Vermögen!$AA$43,Vermögen!U37,0) -> 0.0%
A71: =Vermögen!E38 -> 28. | B71: =Vermögen!F38 -> 0 | C71: =IF(Vermögen!S38>0,Vermögen!S38/SUMIF(Daten_Vermögen!$B$20:$B$28,Vermögen!T38,Daten_Vermögen!$C$20:$C$28),Vermögen!S38/1) -> 0 | D71: =IF(Vermögen!Q38>0,Vermögen!Q38*Vermögen!X38,IF(Vermögen!W38=0,Vermögen!S38*Vermögen!X38/100,Vermögen!W38*Vermögen!X38/100)) -> 0 | E71: =Vermögen!S38*Vermögen!AC38 -> 0 | F71: =IF(Vermögen!AD38="Keine",0,IF(Vermögen!AD38="Art. 6",0,1)) -> 1 | G71: =Vermögen!V38 -> 0.0% | H71: =IF(Vermögen!I38=Daten_Vermögen!$B$12,1,0) -> 0 | I71: 0.00% | L71: =C71*Vermögen!J38 -> 0 | M71: =C71*Vermögen!K38 -> 0 | N71: =C71*Vermögen!L38 -> 0 | O71: =C71*Vermögen!M38 -> 0 | P71: =C71*Vermögen!N38 -> 0 | Q71: 0 | S71: 0.0% | T71: =$S71*Vermögen!J38*Vermögen!$U38 ->  | U71: =$S71*Vermögen!K38*Vermögen!U38 ->  | V71: =$S71*Vermögen!L38*Vermögen!U38 ->  | W71: =$S71*Vermögen!M38*Vermögen!U38 ->  | X71: =$S71*Vermögen!N38*Vermögen!U38 ->  | Y71: =$S71*IF(Vermögen!I38=Daten_Vermögen!$Y$43,Vermögen!U38,0) -> 0.0% | Z71: =$S71*IF(Vermögen!I38=Daten_Vermögen!$Z$43,Vermögen!U38,0) -> 0.0% | AA71: =$S71*IF(Vermögen!I38=Daten_Vermögen!$AA$43,Vermögen!U38,0) -> 0.0%
A72: =Vermögen!E39 -> 29. | B72: =Vermögen!F39 -> 0 | C72: =IF(Vermögen!S39>0,Vermögen!S39/SUMIF(Daten_Vermögen!$B$20:$B$28,Vermögen!T39,Daten_Vermögen!$C$20:$C$28),Vermögen!S39/1) -> 0 | D72: =IF(Vermögen!Q39>0,Vermögen!Q39*Vermögen!X39,IF(Vermögen!W39=0,Vermögen!S39*Vermögen!X39/100,Vermögen!W39*Vermögen!X39/100)) -> 0 | E72: =Vermögen!S39*Vermögen!AC39 -> 0 | F72: =IF(Vermögen!AD39="Keine",0,IF(Vermögen!AD39="Art. 6",0,1)) -> 1 | G72: =Vermögen!V39 -> 0.0% | H72: =IF(Vermögen!I39=Daten_Vermögen!$B$12,1,0) -> 0 | I72: 0.00% | L72: =C72*Vermögen!J39 -> 0 | M72: =C72*Vermögen!K39 -> 0 | N72: =C72*Vermögen!L39 -> 0 | O72: =C72*Vermögen!M39 -> 0 | P72: =C72*Vermögen!N39 -> 0 | Q72: 0 | S72: 0.0% | T72: =$S72*Vermögen!J39*Vermögen!$U39 ->  | U72: =$S72*Vermögen!K39*Vermögen!U39 ->  | V72: =$S72*Vermögen!L39*Vermögen!U39 ->  | W72: =$S72*Vermögen!M39*Vermögen!U39 ->  | X72: =$S72*Vermögen!N39*Vermögen!U39 ->  | Y72: =$S72*IF(Vermögen!I39=Daten_Vermögen!$Y$43,Vermögen!U39,0) -> 0.0% | Z72: =$S72*IF(Vermögen!I39=Daten_Vermögen!$Z$43,Vermögen!U39,0) -> 0.0% | AA72: =$S72*IF(Vermögen!I39=Daten_Vermögen!$AA$43,Vermögen!U39,0) -> 0.0%
A73: =Vermögen!E40 -> 30. | B73: =Vermögen!F40 -> 0 | C73: =IF(Vermögen!S40>0,Vermögen!S40/SUMIF(Daten_Vermögen!$B$20:$B$28,Vermögen!T40,Daten_Vermögen!$C$20:$C$28),Vermögen!S40/1) -> 0 | D73: =IF(Vermögen!Q40>0,Vermögen!Q40*Vermögen!X40,IF(Vermögen!W40=0,Vermögen!S40*Vermögen!X40/100,Vermögen!W40*Vermögen!X40/100)) -> 0 | E73: =Vermögen!S40*Vermögen!AC40 -> 0 | F73: =IF(Vermögen!AD40="Keine",0,IF(Vermögen!AD40="Art. 6",0,1)) -> 1 | G73: =Vermögen!V40 -> 0.0% | H73: =IF(Vermögen!I40=Daten_Vermögen!$B$12,1,0) -> 0 | I73: 0.00% | L73: =C73*Vermögen!J40 -> 0 | M73: =C73*Vermögen!K40 -> 0 | N73: =C73*Vermögen!L40 -> 0 | O73: =C73*Vermögen!M40 -> 0 | P73: =C73*Vermögen!N40 -> 0 | Q73: 0 | S73: 0.0% | T73: =$S73*Vermögen!J40*Vermögen!$U40 ->  | U73: =$S73*Vermögen!K40*Vermögen!U40 ->  | V73: =$S73*Vermögen!L40*Vermögen!U40 ->  | W73: =$S73*Vermögen!M40*Vermögen!U40 ->  | X73: =$S73*Vermögen!N40*Vermögen!U40 ->  | Y73: =$S73*IF(Vermögen!I40=Daten_Vermögen!$Y$43,Vermögen!U40,0) -> 0.0% | Z73: =$S73*IF(Vermögen!I40=Daten_Vermögen!$Z$43,Vermögen!U40,0) -> 0.0% | AA73: =$S73*IF(Vermögen!I40=Daten_Vermögen!$AA$43,Vermögen!U40,0) -> 0.0%
A74: =Vermögen!E41 -> 31. | B74: =Vermögen!F41 -> 0 | C74: =IF(Vermögen!S41>0,Vermögen!S41/SUMIF(Daten_Vermögen!$B$20:$B$28,Vermögen!T41,Daten_Vermögen!$C$20:$C$28),Vermögen!S41/1) -> 0 | D74: =IF(Vermögen!Q41>0,Vermögen!Q41*Vermögen!X41,IF(Vermögen!W41=0,Vermögen!S41*Vermögen!X41/100,Vermögen!W41*Vermögen!X41/100)) -> 0 | E74: =Vermögen!S41*Vermögen!AC41 -> 0 | F74: =IF(Vermögen!AD41="Keine",0,IF(Vermögen!AD41="Art. 6",0,1)) -> 1 | G74: =Vermögen!V41 -> 0.0% | H74: =IF(Vermögen!I41=Daten_Vermögen!$B$12,1,0) -> 0 | I74: 0.00% | L74: =C74*Vermögen!J41 -> 0 | M74: =C74*Vermögen!K41 -> 0 | N74: =C74*Vermögen!L41 -> 0 | O74: =C74*Vermögen!M41 -> 0 | P74: =C74*Vermögen!N41 -> 0 | Q74: 0 | S74: 0.0% | T74: =$S74*Vermögen!J41*Vermögen!$U41 ->  | U74: =$S74*Vermögen!K41*Vermögen!U41 ->  | V74: =$S74*Vermögen!L41*Vermögen!U41 ->  | W74: =$S74*Vermögen!M41*Vermögen!U41 ->  | X74: =$S74*Vermögen!N41*Vermögen!U41 ->  | Y74: =$S74*IF(Vermögen!I41=Daten_Vermögen!$Y$43,Vermögen!U41,0) -> 0.0% | Z74: =$S74*IF(Vermögen!I41=Daten_Vermögen!$Z$43,Vermögen!U41,0) -> 0.0% | AA74: =$S74*IF(Vermögen!I41=Daten_Vermögen!$AA$43,Vermögen!U41,0) -> 0.0%
A75: =Vermögen!E42 -> 32. | B75: =Vermögen!F42 -> 0 | C75: =IF(Vermögen!S42>0,Vermögen!S42/SUMIF(Daten_Vermögen!$B$20:$B$28,Vermögen!T42,Daten_Vermögen!$C$20:$C$28),Vermögen!S42/1) -> 0 | D75: =IF(Vermögen!Q42>0,Vermögen!Q42*Vermögen!X42,IF(Vermögen!W42=0,Vermögen!S42*Vermögen!X42/100,Vermögen!W42*Vermögen!X42/100)) -> 0 | E75: =Vermögen!S42*Vermögen!AC42 -> 0 | F75: =IF(Vermögen!AD42="Keine",0,IF(Vermögen!AD42="Art. 6",0,1)) -> 1 | G75: =Vermögen!V42 -> 0.0% | H75: =IF(Vermögen!I42=Daten_Vermögen!$B$12,1,0) -> 0 | I75: 0.00% | L75: =C75*Vermögen!J42 -> 0 | M75: =C75*Vermögen!K42 -> 0 | N75: =C75*Vermögen!L42 -> 0 | O75: =C75*Vermögen!M42 -> 0 | P75: =C75*Vermögen!N42 -> 0 | Q75: 0 | S75: 0.0% | T75: =$S75*Vermögen!J42*Vermögen!$U42 ->  | U75: =$S75*Vermögen!K42*Vermögen!U42 ->  | V75: =$S75*Vermögen!L42*Vermögen!U42 ->  | W75: =$S75*Vermögen!M42*Vermögen!U42 ->  | X75: =$S75*Vermögen!N42*Vermögen!U42 ->  | Y75: =$S75*IF(Vermögen!I42=Daten_Vermögen!$Y$43,Vermögen!U42,0) -> 0.0% | Z75: =$S75*IF(Vermögen!I42=Daten_Vermögen!$Z$43,Vermögen!U42,0) -> 0.0% | AA75: =$S75*IF(Vermögen!I42=Daten_Vermögen!$AA$43,Vermögen!U42,0) -> 0.0%
A76: =Vermögen!E43 -> 33. | B76: =Vermögen!F43 -> 0 | C76: =IF(Vermögen!S43>0,Vermögen!S43/SUMIF(Daten_Vermögen!$B$20:$B$28,Vermögen!T43,Daten_Vermögen!$C$20:$C$28),Vermögen!S43/1) -> 0 | D76: =IF(Vermögen!Q43>0,Vermögen!Q43*Vermögen!X43,IF(Vermögen!W43=0,Vermögen!S43*Vermögen!X43/100,Vermögen!W43*Vermögen!X43/100)) -> 0 | E76: =Vermögen!S43*Vermögen!AC43 -> 0 | F76: =IF(Vermögen!AD43="Keine",0,IF(Vermögen!AD43="Art. 6",0,1)) -> 1 | G76: =Vermögen!V43 -> 0.0% | H76: =IF(Vermögen!I43=Daten_Vermögen!$B$12,1,0) -> 0 | I76: 0.00% | L76: =C76*Vermögen!J43 -> 0 | M76: =C76*Vermögen!K43 -> 0 | N76: =C76*Vermögen!L43 -> 0 | O76: =C76*Vermögen!M43 -> 0 | P76: =C76*Vermögen!N43 -> 0 | Q76: =SUM(L76:P76) -> 0 | S76: 0.0% | T76: =$S76*Vermögen!J43*Vermögen!$U43 ->  | U76: =$S76*Vermögen!K43*Vermögen!U43 ->  | V76: =$S76*Vermögen!L43*Vermögen!U43 ->  | W76: =$S76*Vermögen!M43*Vermögen!U43 ->  | X76: =$S76*Vermögen!N43*Vermögen!U43 ->  | Y76: =$S76*IF(Vermögen!I43=Daten_Vermögen!$Y$43,Vermögen!U43,0) -> 0.0% | Z76: =$S76*IF(Vermögen!I43=Daten_Vermögen!$Z$43,Vermögen!U43,0) -> 0.0% | AA76: =$S76*IF(Vermögen!I43=Daten_Vermögen!$AA$43,Vermögen!U43,0) -> 0.0%
A77: =Vermögen!E44 -> 34. | B77: =Vermögen!F44 -> 0 | C77: =IF(Vermögen!S44>0,Vermögen!S44/SUMIF(Daten_Vermögen!$B$20:$B$28,Vermögen!T44,Daten_Vermögen!$C$20:$C$28),Vermögen!S44/1) -> 0 | D77: =IF(Vermögen!Q44>0,Vermögen!Q44*Vermögen!X44,IF(Vermögen!W44=0,Vermögen!S44*Vermögen!X44/100,Vermögen!W44*Vermögen!X44/100)) -> 0 | E77: =Vermögen!S44*Vermögen!AC44 -> 0 | F77: =IF(Vermögen!AD44="Keine",0,IF(Vermögen!AD44="Art. 6",0,1)) -> 1 | G77: =Vermögen!V44 -> 0.0% | H77: =IF(Vermögen!I44=Daten_Vermögen!$B$12,1,0) -> 0 | I77: 0.00% | L77: =C77*Vermögen!J44 -> 0 | M77: =C77*Vermögen!K44 -> 0 | N77: =C77*Vermögen!L44 -> 0 | O77: =C77*Vermögen!M44 -> 0 | P77: =C77*Vermögen!N44 -> 0 | Q77: 0 | S77: 0.0% | T77: =$S77*Vermögen!J44*Vermögen!$U44 ->  | U77: =$S77*Vermögen!K44*Vermögen!U44 ->  | V77: =$S77*Vermögen!L44*Vermögen!U44 ->  | W77: =$S77*Vermögen!M44*Vermögen!U44 ->  | X77: =$S77*Vermögen!N44*Vermögen!U44 ->  | Y77: =$S77*IF(Vermögen!I44=Daten_Vermögen!$Y$43,Vermögen!U44,0) -> 0.0% | Z77: =$S77*IF(Vermögen!I44=Daten_Vermögen!$Z$43,Vermögen!U44,0) -> 0.0% | AA77: =$S77*IF(Vermögen!I44=Daten_Vermögen!$AA$43,Vermögen!U44,0) -> 0.0%
A78: =Vermögen!E45 -> 35. | B78: =Vermögen!F45 -> 0 | C78: =IF(Vermögen!S45>0,Vermögen!S45/SUMIF(Daten_Vermögen!$B$20:$B$28,Vermögen!T45,Daten_Vermögen!$C$20:$C$28),Vermögen!S45/1) -> 0 | D78: =IF(Vermögen!Q45>0,Vermögen!Q45*Vermögen!X45,IF(Vermögen!W45=0,Vermögen!S45*Vermögen!X45/100,Vermögen!W45*Vermögen!X45/100)) -> 0 | E78: =Vermögen!S45*Vermögen!AC45 -> 0 | F78: =IF(Vermögen!AD45="Keine",0,IF(Vermögen!AD45="Art. 6",0,1)) -> 1 | G78: =Vermögen!V45 -> 0.0% | H78: =IF(Vermögen!I45=Daten_Vermögen!$B$12,1,0) -> 0 | I78: 0.00% | L78: =C78*Vermögen!J45 -> 0 | M78: =C78*Vermögen!K45 -> 0 | N78: =C78*Vermögen!L45 -> 0 | O78: =C78*Vermögen!M45 -> 0 | P78: =C78*Vermögen!N45 -> 0 | Q78: 0 | S78: 0.0% | T78: =$S78*Vermögen!J45*Vermögen!$U45 ->  | U78: =$S78*Vermögen!K45*Vermögen!U45 ->  | V78: =$S78*Vermögen!L45*Vermögen!U45 ->  | W78: =$S78*Vermögen!M45*Vermögen!U45 ->  | X78: =$S78*Vermögen!N45*Vermögen!U45 ->  | Y78: =$S78*IF(Vermögen!I45=Daten_Vermögen!$Y$43,Vermögen!U45,0) -> 0.0% | Z78: =$S78*IF(Vermögen!I45=Daten_Vermögen!$Z$43,Vermögen!U45,0) -> 0.0% | AA78: =$S78*IF(Vermögen!I45=Daten_Vermögen!$AA$43,Vermögen!U45,0) -> 0.0%
A79: =Vermögen!E46 -> 36. | B79: =Vermögen!F46 -> 0 | C79: =IF(Vermögen!S46>0,Vermögen!S46/SUMIF(Daten_Vermögen!$B$20:$B$28,Vermögen!T46,Daten_Vermögen!$C$20:$C$28),Vermögen!S46/1) -> 0 | D79: =IF(Vermögen!Q46>0,Vermögen!Q46*Vermögen!X46,IF(Vermögen!W46=0,Vermögen!S46*Vermögen!X46/100,Vermögen!W46*Vermögen!X46/100)) -> 0 | E79: =Vermögen!S46*Vermögen!AC46 -> 0 | F79: =IF(Vermögen!AD46="Keine",0,IF(Vermögen!AD46="Art. 6",0,1)) -> 1 | G79: =Vermögen!V46 -> 0.0% | H79: =IF(Vermögen!I46=Daten_Vermögen!$B$12,1,0) -> 0 | I79: 0.00% | L79: =C79*Vermögen!J46 -> 0 | M79: =C79*Vermögen!K46 -> 0 | N79: =C79*Vermögen!L46 -> 0 | O79: =C79*Vermögen!M46 -> 0 | P79: =C79*Vermögen!N46 -> 0 | Q79: 0 | S79: 0.0% | T79: =$S79*Vermögen!J46*Vermögen!$U46 ->  | U79: =$S79*Vermögen!K46*Vermögen!U46 ->  | V79: =$S79*Vermögen!L46*Vermögen!U46 ->  | W79: =$S79*Vermögen!M46*Vermögen!U46 ->  | X79: =$S79*Vermögen!N46*Vermögen!U46 ->  | Y79: =$S79*IF(Vermögen!I46=Daten_Vermögen!$Y$43,Vermögen!U46,0) -> 0.0% | Z79: =$S79*IF(Vermögen!I46=Daten_Vermögen!$Z$43,Vermögen!U46,0) -> 0.0% | AA79: =$S79*IF(Vermögen!I46=Daten_Vermögen!$AA$43,Vermögen!U46,0) -> 0.0%
A80: =Vermögen!E47 -> 37. | B80: =Vermögen!F47 -> 0 | C80: =IF(Vermögen!S47>0,Vermögen!S47/SUMIF(Daten_Vermögen!$B$20:$B$28,Vermögen!T47,Daten_Vermögen!$C$20:$C$28),Vermögen!S47/1) -> 0 | D80: =IF(Vermögen!Q47>0,Vermögen!Q47*Vermögen!X47,IF(Vermögen!W47=0,Vermögen!S47*Vermögen!X47/100,Vermögen!W47*Vermögen!X47/100)) -> 0 | E80: =Vermögen!S47*Vermögen!AC47 -> 0 | F80: =IF(Vermögen!AD47="Keine",0,IF(Vermögen!AD47="Art. 6",0,1)) -> 1 | G80: =Vermögen!V47 -> 0.0% | H80: =IF(Vermögen!I47=Daten_Vermögen!$B$12,1,0) -> 0 | I80: 0.00% | L80: =C80*Vermögen!J47 -> 0 | M80: =C80*Vermögen!K47 -> 0 | N80: =C80*Vermögen!L47 -> 0 | O80: =C80*Vermögen!M47 -> 0 | P80: =C80*Vermögen!N47 -> 0 | Q80: 0 | S80: 0.0% | T80: =$S80*Vermögen!J47*Vermögen!$U47 ->  | U80: =$S80*Vermögen!K47*Vermögen!U47 ->  | V80: =$S80*Vermögen!L47*Vermögen!U47 ->  | W80: =$S80*Vermögen!M47*Vermögen!U47 ->  | X80: =$S80*Vermögen!N47*Vermögen!U47 ->  | Y80: =$S80*IF(Vermögen!I47=Daten_Vermögen!$Y$43,Vermögen!U47,0) -> 0.0% | Z80: =$S80*IF(Vermögen!I47=Daten_Vermögen!$Z$43,Vermögen!U47,0) -> 0.0% | AA80: =$S80*IF(Vermögen!I47=Daten_Vermögen!$AA$43,Vermögen!U47,0) -> 0.0%
A81: =Vermögen!E48 -> 38. | B81: =Vermögen!F48 -> 0 | C81: =IF(Vermögen!S48>0,Vermögen!S48/SUMIF(Daten_Vermögen!$B$20:$B$28,Vermögen!T48,Daten_Vermögen!$C$20:$C$28),Vermögen!S48/1) -> 0 | D81: =IF(Vermögen!Q48>0,Vermögen!Q48*Vermögen!X48,IF(Vermögen!W48=0,Vermögen!S48*Vermögen!X48/100,Vermögen!W48*Vermögen!X48/100)) -> 0 | E81: =Vermögen!S48*Vermögen!AC48 -> 0 | F81: =IF(Vermögen!AD48="Keine",0,IF(Vermögen!AD48="Art. 6",0,1)) -> 1 | G81: =Vermögen!V48 -> 0.0% | H81: =IF(Vermögen!I48=Daten_Vermögen!$B$12,1,0) -> 0 | I81: 0.00% | L81: =C81*Vermögen!J48 -> 0 | M81: =C81*Vermögen!K48 -> 0 | N81: =C81*Vermögen!L48 -> 0 | O81: =C81*Vermögen!M48 -> 0 | P81: =C81*Vermögen!N48 -> 0 | Q81: 0 | S81: 0.0% | T81: =$S81*Vermögen!J48*Vermögen!$U48 ->  | U81: =$S81*Vermögen!K48*Vermögen!U48 ->  | V81: =$S81*Vermögen!L48*Vermögen!U48 ->  | W81: =$S81*Vermögen!M48*Vermögen!U48 ->  | X81: =$S81*Vermögen!N48*Vermögen!U48 ->  | Y81: =$S81*IF(Vermögen!I48=Daten_Vermögen!$Y$43,Vermögen!U48,0) -> 0.0% | Z81: =$S81*IF(Vermögen!I48=Daten_Vermögen!$Z$43,Vermögen!U48,0) -> 0.0% | AA81: =$S81*IF(Vermögen!I48=Daten_Vermögen!$AA$43,Vermögen!U48,0) -> 0.0%
A82: =Vermögen!E49 -> 39. | B82: =Vermögen!F49 -> 0 | C82: =IF(Vermögen!S49>0,Vermögen!S49/SUMIF(Daten_Vermögen!$B$20:$B$28,Vermögen!T49,Daten_Vermögen!$C$20:$C$28),Vermögen!S49/1) -> 0 | D82: =IF(Vermögen!Q49>0,Vermögen!Q49*Vermögen!X49,IF(Vermögen!W49=0,Vermögen!S49*Vermögen!X49/100,Vermögen!W49*Vermögen!X49/100)) -> 0 | E82: =Vermögen!S49*Vermögen!AC49 -> 0 | F82: =IF(Vermögen!AD49="Keine",0,IF(Vermögen!AD49="Art. 6",0,1)) -> 1 | G82: =Vermögen!V49 -> 0.0% | H82: =IF(Vermögen!I49=Daten_Vermögen!$B$12,1,0) -> 0 | I82: 0.00% | L82: =C82*Vermögen!J49 -> 0 | M82: =C82*Vermögen!K49 -> 0 | N82: =C82*Vermögen!L49 -> 0 | O82: =C82*Vermögen!M49 -> 0 | P82: =C82*Vermögen!N49 -> 0 | Q82: 0 | S82: 0.0% | T82: =$S82*Vermögen!J49*Vermögen!$U49 ->  | U82: =$S82*Vermögen!K49*Vermögen!U49 ->  | V82: =$S82*Vermögen!L49*Vermögen!U49 ->  | W82: =$S82*Vermögen!M49*Vermögen!U49 ->  | X82: =$S82*Vermögen!N49*Vermögen!U49 ->  | Y82: =$S82*IF(Vermögen!I49=Daten_Vermögen!$Y$43,Vermögen!U49,0) -> 0.0% | Z82: =$S82*IF(Vermögen!I49=Daten_Vermögen!$Z$43,Vermögen!U49,0) -> 0.0% | AA82: =$S82*IF(Vermögen!I49=Daten_Vermögen!$AA$43,Vermögen!U49,0) -> 0.0%
A83: =Vermögen!E50 -> 40. | B83: =Vermögen!F50 -> 0 | C83: =IF(Vermögen!S50>0,Vermögen!S50/SUMIF(Daten_Vermögen!$B$20:$B$28,Vermögen!T50,Daten_Vermögen!$C$20:$C$28),Vermögen!S50/1) -> 0 | D83: =IF(Vermögen!Q50>0,Vermögen!Q50*Vermögen!X50,IF(Vermögen!W50=0,Vermögen!S50*Vermögen!X50/100,Vermögen!W50*Vermögen!X50/100)) -> 0 | E83: =Vermögen!S50*Vermögen!AC50 -> 0 | F83: =IF(Vermögen!AD50="Keine",0,IF(Vermögen!AD50="Art. 6",0,1)) -> 1 | G83: =Vermögen!V50 -> 0.0% | H83: =IF(Vermögen!I50=Daten_Vermögen!$B$12,1,0) -> 0 | I83: 0.00% | L83: =C83*Vermögen!J50 -> 0 | M83: =C83*Vermögen!K50 -> 0 | N83: =C83*Vermögen!L50 -> 0 | O83: =C83*Vermögen!M50 -> 0 | P83: =C83*Vermögen!N50 -> 0 | Q83: 0 | S83: 0.0% | T83: =$S83*Vermögen!J50*Vermögen!$U50 ->  | U83: =$S83*Vermögen!K50*Vermögen!U50 ->  | V83: =$S83*Vermögen!L50*Vermögen!U50 ->  | W83: =$S83*Vermögen!M50*Vermögen!U50 ->  | X83: =$S83*Vermögen!N50*Vermögen!U50 ->  | Y83: =$S83*IF(Vermögen!I50=Daten_Vermögen!$Y$43,Vermögen!U50,0) -> 0.0% | Z83: =$S83*IF(Vermögen!I50=Daten_Vermögen!$Z$43,Vermögen!U50,0) -> 0.0% | AA83: =$S83*IF(Vermögen!I50=Daten_Vermögen!$AA$43,Vermögen!U50,0) -> 0.0%
A84: =Vermögen!E51 -> 41. | B84: =Vermögen!F51 -> 0 | C84: =IF(Vermögen!S51>0,Vermögen!S51/SUMIF(Daten_Vermögen!$B$20:$B$28,Vermögen!T51,Daten_Vermögen!$C$20:$C$28),Vermögen!S51/1) -> 0 | D84: =IF(Vermögen!Q51>0,Vermögen!Q51*Vermögen!X51,IF(Vermögen!W51=0,Vermögen!S51*Vermögen!X51/100,Vermögen!W51*Vermögen!X51/100)) -> 0 | E84: =Vermögen!S51*Vermögen!AC51 -> 0 | F84: =IF(Vermögen!AD51="Keine",0,IF(Vermögen!AD51="Art. 6",0,1)) -> 1 | G84: =Vermögen!V51 -> 0.0% | H84: =IF(Vermögen!I51=Daten_Vermögen!$B$12,1,0) -> 0 | I84: 0.00% | L84: =C84*Vermögen!J51 -> 0 | M84: =C84*Vermögen!K51 -> 0 | N84: =C84*Vermögen!L51 -> 0 | O84: =C84*Vermögen!M51 -> 0 | P84: =C84*Vermögen!N51 -> 0 | Q84: 0 | S84: 0.0% | T84: =$S84*Vermögen!J51*Vermögen!$U51 ->  | U84: =$S84*Vermögen!K51*Vermögen!U51 ->  | V84: =$S84*Vermögen!L51*Vermögen!U51 ->  | W84: =$S84*Vermögen!M51*Vermögen!U51 ->  | X84: =$S84*Vermögen!N51*Vermögen!U51 ->  | Y84: =$S84*IF(Vermögen!I51=Daten_Vermögen!$Y$43,Vermögen!U51,0) -> 0.0% | Z84: =$S84*IF(Vermögen!I51=Daten_Vermögen!$Z$43,Vermögen!U51,0) -> 0.0% | AA84: =$S84*IF(Vermögen!I51=Daten_Vermögen!$AA$43,Vermögen!U51,0) -> 0.0%
A85: =Vermögen!E52 -> 42. | B85: =Vermögen!F52 -> 0 | C85: =IF(Vermögen!S52>0,Vermögen!S52/SUMIF(Daten_Vermögen!$B$20:$B$28,Vermögen!T52,Daten_Vermögen!$C$20:$C$28),Vermögen!S52/1) -> 0 | D85: =IF(Vermögen!Q52>0,Vermögen!Q52*Vermögen!X52,IF(Vermögen!W52=0,Vermögen!S52*Vermögen!X52/100,Vermögen!W52*Vermögen!X52/100)) -> 0 | E85: =Vermögen!S52*Vermögen!AC52 -> 0 | F85: =IF(Vermögen!AD52="Keine",0,IF(Vermögen!AD52="Art. 6",0,1)) -> 1 | G85: =Vermögen!V52 -> 0.0% | H85: =IF(Vermögen!I52=Daten_Vermögen!$B$12,1,0) -> 0 | I85: 0.00% | L85: =C85*Vermögen!J52 -> 0 | M85: =C85*Vermögen!K52 -> 0 | N85: =C85*Vermögen!L52 -> 0 | O85: =C85*Vermögen!M52 -> 0 | P85: =C85*Vermögen!N52 -> 0 | Q85: 0 | S85: 0.0% | T85: =$S85*Vermögen!J52*Vermögen!$U52 ->  | U85: =$S85*Vermögen!K52*Vermögen!U52 ->  | V85: =$S85*Vermögen!L52*Vermögen!U52 ->  | W85: =$S85*Vermögen!M52*Vermögen!U52 ->  | X85: =$S85*Vermögen!N52*Vermögen!U52 ->  | Y85: =$S85*IF(Vermögen!I52=Daten_Vermögen!$Y$43,Vermögen!U52,0) -> 0.0% | Z85: =$S85*IF(Vermögen!I52=Daten_Vermögen!$Z$43,Vermögen!U52,0) -> 0.0% | AA85: =$S85*IF(Vermögen!I52=Daten_Vermögen!$AA$43,Vermögen!U52,0) -> 0.0%
A86: =Vermögen!E53 -> 43. | B86: =Vermögen!F53 -> 0 | C86: =IF(Vermögen!S53>0,Vermögen!S53/SUMIF(Daten_Vermögen!$B$20:$B$28,Vermögen!T53,Daten_Vermögen!$C$20:$C$28),Vermögen!S53/1) -> 0 | D86: =IF(Vermögen!Q53>0,Vermögen!Q53*Vermögen!X53,IF(Vermögen!W53=0,Vermögen!S53*Vermögen!X53/100,Vermögen!W53*Vermögen!X53/100)) -> 0 | E86: =Vermögen!S53*Vermögen!AC53 -> 0 | F86: =IF(Vermögen!AD53="Keine",0,IF(Vermögen!AD53="Art. 6",0,1)) -> 1 | G86: =Vermögen!V53 -> 0.0% | H86: =IF(Vermögen!I53=Daten_Vermögen!$B$12,1,0) -> 0 | I86: 0.00% | L86: =C86*Vermögen!J53 -> 0 | M86: =C86*Vermögen!K53 -> 0 | N86: =C86*Vermögen!L53 -> 0 | O86: =C86*Vermögen!M53 -> 0 | P86: =C86*Vermögen!N53 -> 0 | Q86: 0 | S86: 0.0% | T86: =$S86*Vermögen!J53*Vermögen!$U53 ->  | U86: =$S86*Vermögen!K53*Vermögen!U53 ->  | V86: =$S86*Vermögen!L53*Vermögen!U53 ->  | W86: =$S86*Vermögen!M53*Vermögen!U53 ->  | X86: =$S86*Vermögen!N53*Vermögen!U53 ->  | Y86: =$S86*IF(Vermögen!I53=Daten_Vermögen!$Y$43,Vermögen!U53,0) -> 0.0% | Z86: =$S86*IF(Vermögen!I53=Daten_Vermögen!$Z$43,Vermögen!U53,0) -> 0.0% | AA86: =$S86*IF(Vermögen!I53=Daten_Vermögen!$AA$43,Vermögen!U53,0) -> 0.0%
A87: =Vermögen!E54 -> 44. | B87: =Vermögen!F54 -> 0 | C87: =IF(Vermögen!S54>0,Vermögen!S54/SUMIF(Daten_Vermögen!$B$20:$B$28,Vermögen!T54,Daten_Vermögen!$C$20:$C$28),Vermögen!S54/1) -> 0 | D87: =IF(Vermögen!Q54>0,Vermögen!Q54*Vermögen!X54,IF(Vermögen!W54=0,Vermögen!S54*Vermögen!X54/100,Vermögen!W54*Vermögen!X54/100)) -> 0 | E87: =Vermögen!S54*Vermögen!AC54 -> 0 | F87: =IF(Vermögen!AD54="Keine",0,IF(Vermögen!AD54="Art. 6",0,1)) -> 1 | G87: =Vermögen!V54 -> 0.0% | H87: =IF(Vermögen!I54=Daten_Vermögen!$B$12,1,0) -> 0 | I87: 0.00% | L87: =C87*Vermögen!J54 -> 0 | M87: =C87*Vermögen!K54 -> 0 | N87: =C87*Vermögen!L54 -> 0 | O87: =C87*Vermögen!M54 -> 0 | P87: =C87*Vermögen!N54 -> 0 | Q87: 0 | S87: 0.0% | T87: =$S87*Vermögen!J54*Vermögen!$U54 ->  | U87: =$S87*Vermögen!K54*Vermögen!U54 ->  | V87: =$S87*Vermögen!L54*Vermögen!U54 ->  | W87: =$S87*Vermögen!M54*Vermögen!U54 ->  | X87: =$S87*Vermögen!N54*Vermögen!U54 ->  | Y87: =$S87*IF(Vermögen!I54=Daten_Vermögen!$Y$43,Vermögen!U54,0) -> 0.0% | Z87: =$S87*IF(Vermögen!I54=Daten_Vermögen!$Z$43,Vermögen!U54,0) -> 0.0% | AA87: =$S87*IF(Vermögen!I54=Daten_Vermögen!$AA$43,Vermögen!U54,0) -> 0.0%
A88: =Vermögen!E55 -> 45. | B88: =Vermögen!F55 -> 0 | C88: =IF(Vermögen!S55>0,Vermögen!S55/SUMIF(Daten_Vermögen!$B$20:$B$28,Vermögen!T55,Daten_Vermögen!$C$20:$C$28),Vermögen!S55/1) -> 0 | D88: =IF(Vermögen!Q55>0,Vermögen!Q55*Vermögen!X55,IF(Vermögen!W55=0,Vermögen!S55*Vermögen!X55/100,Vermögen!W55*Vermögen!X55/100)) -> 0 | E88: =Vermögen!S55*Vermögen!AC55 -> 0 | F88: =IF(Vermögen!AD55="Keine",0,IF(Vermögen!AD55="Art. 6",0,1)) -> 1 | G88: =Vermögen!V55 -> 0.0% | H88: =IF(Vermögen!I55=Daten_Vermögen!$B$12,1,0) -> 0 | I88: 0.00% | L88: =C88*Vermögen!J55 -> 0 | M88: =C88*Vermögen!K55 -> 0 | N88: =C88*Vermögen!L55 -> 0 | O88: =C88*Vermögen!M55 -> 0 | P88: =C88*Vermögen!N55 -> 0 | Q88: 0 | S88: 0.0% | T88: =$S88*Vermögen!J55*Vermögen!$U55 ->  | U88: =$S88*Vermögen!K55*Vermögen!U55 ->  | V88: =$S88*Vermögen!L55*Vermögen!U55 ->  | W88: =$S88*Vermögen!M55*Vermögen!U55 ->  | X88: =$S88*Vermögen!N55*Vermögen!U55 ->  | Y88: =$S88*IF(Vermögen!I55=Daten_Vermögen!$Y$43,Vermögen!U55,0) -> 0.0% | Z88: =$S88*IF(Vermögen!I55=Daten_Vermögen!$Z$43,Vermögen!U55,0) -> 0.0% | AA88: =$S88*IF(Vermögen!I55=Daten_Vermögen!$AA$43,Vermögen!U55,0) -> 0.0%
A89: =Vermögen!E56 -> 46. | B89: =Vermögen!F56 -> 0 | C89: =IF(Vermögen!S56>0,Vermögen!S56/SUMIF(Daten_Vermögen!$B$20:$B$28,Vermögen!T56,Daten_Vermögen!$C$20:$C$28),Vermögen!S56/1) -> 0 | D89: =IF(Vermögen!Q56>0,Vermögen!Q56*Vermögen!X56,IF(Vermögen!W56=0,Vermögen!S56*Vermögen!X56/100,Vermögen!W56*Vermögen!X56/100)) -> 0 | E89: =Vermögen!S56*Vermögen!AC56 -> 0 | F89: =IF(Vermögen!AD56="Keine",0,IF(Vermögen!AD56="Art. 6",0,1)) -> 1 | G89: =Vermögen!V56 -> 0.0% | H89: =IF(Vermögen!I56=Daten_Vermögen!$B$12,1,0) -> 0 | I89: 0.00% | L89: =C89*Vermögen!J56 -> 0 | M89: =C89*Vermögen!K56 -> 0 | N89: =C89*Vermögen!L56 -> 0 | O89: =C89*Vermögen!M56 -> 0 | P89: =C89*Vermögen!N56 -> 0 | Q89: 0 | S89: 0.0% | T89: =$S89*Vermögen!J56*Vermögen!$U56 ->  | U89: =$S89*Vermögen!K56*Vermögen!U56 ->  | V89: =$S89*Vermögen!L56*Vermögen!U56 ->  | W89: =$S89*Vermögen!M56*Vermögen!U56 ->  | X89: =$S89*Vermögen!N56*Vermögen!U56 ->  | Y89: =$S89*IF(Vermögen!I56=Daten_Vermögen!$Y$43,Vermögen!U56,0) -> 0.0% | Z89: =$S89*IF(Vermögen!I56=Daten_Vermögen!$Z$43,Vermögen!U56,0) -> 0.0% | AA89: =$S89*IF(Vermögen!I56=Daten_Vermögen!$AA$43,Vermögen!U56,0) -> 0.0%
A90: =Vermögen!E57 -> 47. | B90: =Vermögen!F57 -> 0 | C90: =IF(Vermögen!S57>0,Vermögen!S57/SUMIF(Daten_Vermögen!$B$20:$B$28,Vermögen!T57,Daten_Vermögen!$C$20:$C$28),Vermögen!S57/1) -> 0 | D90: =IF(Vermögen!Q57>0,Vermögen!Q57*Vermögen!X57,IF(Vermögen!W57=0,Vermögen!S57*Vermögen!X57/100,Vermögen!W57*Vermögen!X57/100)) -> 0 | E90: =Vermögen!S57*Vermögen!AC57 -> 0 | F90: =IF(Vermögen!AD57="Keine",0,IF(Vermögen!AD57="Art. 6",0,1)) -> 1 | G90: =Vermögen!V57 -> 0.0% | H90: =IF(Vermögen!I57=Daten_Vermögen!$B$12,1,0) -> 0 | I90: 0.00% | L90: =C90*Vermögen!J57 -> 0 | M90: =C90*Vermögen!K57 -> 0 | N90: =C90*Vermögen!L57 -> 0 | O90: =C90*Vermögen!M57 -> 0 | P90: =C90*Vermögen!N57 -> 0 | Q90: 0 | S90: 0.0% | T90: =$S90*Vermögen!J57*Vermögen!$U57 ->  | U90: =$S90*Vermögen!K57*Vermögen!U57 ->  | V90: =$S90*Vermögen!L57*Vermögen!U57 ->  | W90: =$S90*Vermögen!M57*Vermögen!U57 ->  | X90: =$S90*Vermögen!N57*Vermögen!U57 ->  | Y90: =$S90*IF(Vermögen!I57=Daten_Vermögen!$Y$43,Vermögen!U57,0) -> 0.0% | Z90: =$S90*IF(Vermögen!I57=Daten_Vermögen!$Z$43,Vermögen!U57,0) -> 0.0% | AA90: =$S90*IF(Vermögen!I57=Daten_Vermögen!$AA$43,Vermögen!U57,0) -> 0.0%
A91: =Vermögen!E58 -> 48. | B91: =Vermögen!F58 -> 0 | C91: =IF(Vermögen!S58>0,Vermögen!S58/SUMIF(Daten_Vermögen!$B$20:$B$28,Vermögen!T58,Daten_Vermögen!$C$20:$C$28),Vermögen!S58/1) -> 0 | D91: =IF(Vermögen!Q58>0,Vermögen!Q58*Vermögen!X58,IF(Vermögen!W58=0,Vermögen!S58*Vermögen!X58/100,Vermögen!W58*Vermögen!X58/100)) -> 0 | E91: =Vermögen!S58*Vermögen!AC58 -> 0 | F91: =IF(Vermögen!AD58="Keine",0,IF(Vermögen!AD58="Art. 6",0,1)) -> 1 | G91: =Vermögen!V58 -> 0.0% | H91: =IF(Vermögen!I58=Daten_Vermögen!$B$12,1,0) -> 0 | I91: 0.00% | L91: =C91*Vermögen!J58 -> 0 | M91: =C91*Vermögen!K58 -> 0 | N91: =C91*Vermögen!L58 -> 0 | O91: =C91*Vermögen!M58 -> 0 | P91: =C91*Vermögen!N58 -> 0 | Q91: 0 | S91: 0.0% | T91: =$S91*Vermögen!J58*Vermögen!$U58 ->  | U91: =$S91*Vermögen!K58*Vermögen!U58 ->  | V91: =$S91*Vermögen!L58*Vermögen!U58 ->  | W91: =$S91*Vermögen!M58*Vermögen!U58 ->  | X91: =$S91*Vermögen!N58*Vermögen!U58 ->  | Y91: =$S91*IF(Vermögen!I58=Daten_Vermögen!$Y$43,Vermögen!U58,0) -> 0.0% | Z91: =$S91*IF(Vermögen!I58=Daten_Vermögen!$Z$43,Vermögen!U58,0) -> 0.0% | AA91: =$S91*IF(Vermögen!I58=Daten_Vermögen!$AA$43,Vermögen!U58,0) -> 0.0%
A92: =Vermögen!E59 -> 49. | B92: =Vermögen!F59 -> 0 | C92: =IF(Vermögen!S59>0,Vermögen!S59/SUMIF(Daten_Vermögen!$B$20:$B$28,Vermögen!T59,Daten_Vermögen!$C$20:$C$28),Vermögen!S59/1) -> 0 | D92: =IF(Vermögen!Q59>0,Vermögen!Q59*Vermögen!X59,IF(Vermögen!W59=0,Vermögen!S59*Vermögen!X59/100,Vermögen!W59*Vermögen!X59/100)) -> 0 | E92: =Vermögen!S59*Vermögen!AC59 -> 0 | F92: =IF(Vermögen!AD59="Keine",0,IF(Vermögen!AD59="Art. 6",0,1)) -> 1 | G92: =Vermögen!V59 -> 0.0% | H92: =IF(Vermögen!I59=Daten_Vermögen!$B$12,1,0) -> 0 | I92: 0.00% | L92: =C92*Vermögen!J59 -> 0 | M92: =C92*Vermögen!K59 -> 0 | N92: =C92*Vermögen!L59 -> 0 | O92: =C92*Vermögen!M59 -> 0 | P92: =C92*Vermögen!N59 -> 0 | Q92: 0 | S92: 0.0% | T92: =$S92*Vermögen!J59*Vermögen!$U59 ->  | U92: =$S92*Vermögen!K59*Vermögen!U59 ->  | V92: =$S92*Vermögen!L59*Vermögen!U59 ->  | W92: =$S92*Vermögen!M59*Vermögen!U59 ->  | X92: =$S92*Vermögen!N59*Vermögen!U59 ->  | Y92: =$S92*IF(Vermögen!I59=Daten_Vermögen!$Y$43,Vermögen!U59,0) -> 0.0% | Z92: =$S92*IF(Vermögen!I59=Daten_Vermögen!$Z$43,Vermögen!U59,0) -> 0.0% | AA92: =$S92*IF(Vermögen!I59=Daten_Vermögen!$AA$43,Vermögen!U59,0) -> 0.0%
A93: =Vermögen!E60 -> 50. | B93: =Vermögen!F60 -> 0 | C93: =IF(Vermögen!S60>0,Vermögen!S60/SUMIF(Daten_Vermögen!$B$20:$B$28,Vermögen!T60,Daten_Vermögen!$C$20:$C$28),Vermögen!S60/1) -> 0 | D93: =IF(Vermögen!Q60>0,Vermögen!Q60*Vermögen!X60,IF(Vermögen!W60=0,Vermögen!S60*Vermögen!X60/100,Vermögen!W60*Vermögen!X60/100)) -> 0 | E93: =Vermögen!S60*Vermögen!AC60 -> 0 | F93: =IF(Vermögen!AD60="Keine",0,IF(Vermögen!AD60="Art. 6",0,1)) -> 1 | G93: =Vermögen!V60 -> 0.0% | H93: =IF(Vermögen!I60=Daten_Vermögen!$B$12,1,0) -> 0 | I93: 0.00% | L93: =C93*Vermögen!J60 -> 0 | M93: =C93*Vermögen!K60 -> 0 | N93: =C93*Vermögen!L60 -> 0 | O93: =C93*Vermögen!M60 -> 0 | P93: =C93*Vermögen!N60 -> 0 | Q93: 0 | S93: 0.0% | T93: =$S93*Vermögen!J60*Vermögen!$U60 ->  | U93: =$S93*Vermögen!K60*Vermögen!U60 ->  | V93: =$S93*Vermögen!L60*Vermögen!U60 ->  | W93: =$S93*Vermögen!M60*Vermögen!U60 ->  | X93: =$S93*Vermögen!N60*Vermögen!U60 ->  | Y93: =$S93*IF(Vermögen!I60=Daten_Vermögen!$Y$43,Vermögen!U60,0) -> 0.0% | Z93: =$S93*IF(Vermögen!I60=Daten_Vermögen!$Z$43,Vermögen!U60,0) -> 0.0% | AA93: =$S93*IF(Vermögen!I60=Daten_Vermögen!$AA$43,Vermögen!U60,0) -> 0.0%
B94: Summe | C94: =SUM(C44:C93) -> 0 | D94: =SUM(D44:D93) -> 0 | E94: =SUM(E44:E55) -> 0 | F94: =SUMIF(F44:F93,1,C44:C93) -> 0 | G94: =SUM(G44:G92) -> 0.0% | L94: =SUM(L44:L93) -> 0 | M94: =SUM(M44:M93) -> 0 | N94: 0 | O94: 0 | P94: 0 | Q94: 0 | S94: =SUM(S44:S93) -> 0.0% | T94: =SUM(T44:T93) ->  | Y94: 0.0% | Z94: =SUM(Z44:Z93) -> 0.0% | AA94: 0.0% | AB94: =SUM(T94:AA94) -> 
F95: =IFERROR(F94/C94,0) -> 0.0% | T95: =T43 -> Aktien | U95: =U43 -> Anleihen | V95: Alternative Inv. | W95: Rohstoffe | X95: Liquidität | Y95: Immobilien | Z95: Beteiligungen | AA95: Sonst. Verm. | AB95: Summe
B97: NEBENRECHNUNG für Szenario "Linear" | C97: Ohne Funktion
B99: Projektion Wertentwicklung | D99: =Einstellungen!G13 -> 2024 | E99: =D99+1 -> 2025 | F99: =E99+1 -> 2026 | H99: =F99+1 -> 2027 | I99: 2028
B100: =Vermögen!I11 -> Bitte auswählen | C100: =Vermögen!V11 -> 0.0% | D100: =Vermögen!S11+Vermögen!S11*Vermögen!V11 -> 0 | E100: =D100+D100*Vermögen!$V11 -> 0 | F100: =E100+E100*Vermögen!$V11 -> 0 | H100: =F100+F100*Vermögen!$V11 -> 0 | I100: =H100+H100*Vermögen!$V11 -> 0
B101: =Vermögen!I12 -> Bitte auswählen | C101: =Vermögen!V12 -> 0.0% | D101: =Vermögen!S12+Vermögen!S12*Vermögen!V12 -> 0 | E101: =D101+D101*Vermögen!$V12 -> 0 | F101: =E101+E101*Vermögen!$V12 -> 0 | H101: =F101+F101*Vermögen!$V12 -> 0 | I101: =H101+H101*Vermögen!$V12 -> 0
B102: =Vermögen!I13 -> Bitte auswählen | C102: =Vermögen!V13 -> 0.0% | D102: =Vermögen!S13+Vermögen!S13*Vermögen!V13 -> 0 | E102: =D102+D102*Vermögen!$V13 -> 0 | F102: =E102+E102*Vermögen!$V13 -> 0 | H102: =F102+F102*Vermögen!$V13 -> 0 | I102: =H102+H102*Vermögen!$V13 -> 0
B103: =Vermögen!I14 -> Bitte auswählen | C103: =Vermögen!V14 -> 0.0% | D103: =Vermögen!S14+Vermögen!S14*Vermögen!V14 -> 0 | E103: =D103+D103*Vermögen!$V14 -> 0 | F103: =E103+E103*Vermögen!$V14 -> 0 | H103: =F103+F103*Vermögen!$V14 -> 0 | I103: =H103+H103*Vermögen!$V14 -> 0
B104: =Vermögen!I15 -> Bitte auswählen | C104: =Vermögen!V15 -> 0.0% | D104: =Vermögen!S15+Vermögen!S15*Vermögen!V15 -> 0 | E104: =D104+D104*Vermögen!$V15 -> 0 | F104: =E104+E104*Vermögen!$V15 -> 0 | H104: =F104+F104*Vermögen!$V15 -> 0 | I104: =H104+H104*Vermögen!$V15 -> 0
B105: =Vermögen!I16 -> Bitte auswählen | C105: =Vermögen!V16 -> 0.0% | D105: =Vermögen!S16+Vermögen!S16*Vermögen!V16 -> 0 | E105: =D105+D105*Vermögen!$V16 -> 0 | F105: =E105+E105*Vermögen!$V16 -> 0 | H105: =F105+F105*Vermögen!$V16 -> 0 | I105: =H105+H105*Vermögen!$V16 -> 0
B106: =Vermögen!I17 -> Bitte auswählen | C106: =Vermögen!V17 -> 0.0% | D106: =Vermögen!S17+Vermögen!S17*Vermögen!V17 -> 0 | E106: =D106+D106*Vermögen!$V17 -> 0 | F106: =E106+E106*Vermögen!$V17 -> 0 | H106: =F106+F106*Vermögen!$V17 -> 0 | I106: =H106+H106*Vermögen!$V17 -> 0
B107: =Vermögen!I18 -> Bitte auswählen | C107: =Vermögen!V18 -> 0.0% | D107: =Vermögen!S18+Vermögen!S18*Vermögen!V18 -> 0 | E107: =D107+D107*Vermögen!$V18 -> 0 | F107: =E107+E107*Vermögen!$V18 -> 0 | H107: =F107+F107*Vermögen!$V18 -> 0 | I107: =H107+H107*Vermögen!$V18 -> 0
B108: =Vermögen!I19 -> Bitte auswählen | C108: =Vermögen!V19 -> 0.0% | D108: =Vermögen!S19+Vermögen!S19*Vermögen!V19 -> 0 | E108: =D108+D108*Vermögen!$V19 -> 0 | F108: =E108+E108*Vermögen!$V19 -> 0 | H108: =F108+F108*Vermögen!$V19 -> 0 | I108: =H108+H108*Vermögen!$V19 -> 0
B109: =Vermögen!I20 -> Bitte auswählen | C109: =Vermögen!V20 -> 0.0% | D109: =Vermögen!S20+Vermögen!S20*Vermögen!V20 -> 0 | E109: =D109+D109*Vermögen!$V20 -> 0 | F109: =E109+E109*Vermögen!$V20 -> 0 | H109: =F109+F109*Vermögen!$V20 -> 0 | I109: =H109+H109*Vermögen!$V20 -> 0
B110: =Vermögen!I21 -> Bitte auswählen | C110: =Vermögen!V21 -> 0.0% | D110: =Vermögen!S21+Vermögen!S21*Vermögen!V21 -> 0 | E110: =D110+D110*Vermögen!$V21 -> 0 | F110: =E110+E110*Vermögen!$V21 -> 0 | H110: =F110+F110*Vermögen!$V21 -> 0 | I110: =H110+H110*Vermögen!$V21 -> 0
B111: =Vermögen!I22 -> Bitte auswählen | C111: =Vermögen!V22 -> 0.0% | D111: =Vermögen!S22+Vermögen!S22*Vermögen!V22 -> 0 | E111: =D111+D111*Vermögen!$V22 -> 0 | F111: =E111+E111*Vermögen!$V22 -> 0 | H111: =F111+F111*Vermögen!$V22 -> 0 | I111: =H111+H111*Vermögen!$V22 -> 0
B112: =Vermögen!I23 -> Bitte auswählen | C112: =Vermögen!V23 -> 0.0% | D112: =Vermögen!S23+Vermögen!S23*Vermögen!V23 -> 0 | E112: =D112+D112*Vermögen!$V23 -> 0 | F112: =E112+E112*Vermögen!$V23 -> 0 | H112: =F112+F112*Vermögen!$V23 -> 0 | I112: =H112+H112*Vermögen!$V23 -> 0
B113: =Vermögen!I24 -> Bitte auswählen | C113: =Vermögen!V24 -> 0.0% | D113: =Vermögen!S24+Vermögen!S24*Vermögen!V24 -> 0 | E113: =D113+D113*Vermögen!$V24 -> 0 | F113: =E113+E113*Vermögen!$V24 -> 0 | H113: =F113+F113*Vermögen!$V24 -> 0 | I113: =H113+H113*Vermögen!$V24 -> 0
B114: =Vermögen!I25 -> Bitte auswählen | C114: =Vermögen!V25 -> 0.0% | D114: =Vermögen!S25+Vermögen!S25*Vermögen!V25 -> 0 | E114: =D114+D114*Vermögen!$V25 -> 0 | F114: =E114+E114*Vermögen!$V25 -> 0 | H114: =F114+F114*Vermögen!$V25 -> 0 | I114: =H114+H114*Vermögen!$V25 -> 0
B115: =Vermögen!I26 -> Bitte auswählen | C115: =Vermögen!V26 -> 0.0% | D115: =Vermögen!S26+Vermögen!S26*Vermögen!V26 -> 0 | E115: =D115+D115*Vermögen!$V26 -> 0 | F115: =E115+E115*Vermögen!$V26 -> 0 | H115: =F115+F115*Vermögen!$V26 -> 0 | I115: =H115+H115*Vermögen!$V26 -> 0
B116: =Vermögen!I27 -> Bitte auswählen | C116: =Vermögen!V27 -> 0.0% | D116: =Vermögen!S27+Vermögen!S27*Vermögen!V27 -> 0 | E116: =D116+D116*Vermögen!$V27 -> 0 | F116: =E116+E116*Vermögen!$V27 -> 0 | H116: =F116+F116*Vermögen!$V27 -> 0 | I116: =H116+H116*Vermögen!$V27 -> 0
B117: =Vermögen!I28 -> Bitte auswählen | C117: =Vermögen!V28 -> 0.0% | D117: =Vermögen!S28+Vermögen!S28*Vermögen!V28 -> 0 | E117: =D117+D117*Vermögen!$V28 -> 0 | F117: =E117+E117*Vermögen!$V28 -> 0 | H117: =F117+F117*Vermögen!$V28 -> 0 | I117: =H117+H117*Vermögen!$V28 -> 0
B118: =Vermögen!I29 -> Bitte auswählen | C118: =Vermögen!V29 -> 0.0% | D118: =Vermögen!S29+Vermögen!S29*Vermögen!V29 -> 0 | E118: =D118+D118*Vermögen!$V29 -> 0 | F118: =E118+E118*Vermögen!$V29 -> 0 | H118: =F118+F118*Vermögen!$V29 -> 0 | I118: =H118+H118*Vermögen!$V29 -> 0
B119: =Vermögen!I60 -> Bitte auswählen | C119: =Vermögen!V60 -> 0.0% | D119: =Vermögen!S60+Vermögen!S60*Vermögen!V60 -> 0 | E119: =D119+D119*Vermögen!$V60 -> 0 | F119: =E119+E119*Vermögen!$V60 -> 0 | H119: =F119+F119*Vermögen!$V60 -> 0 | I119: =H119+H119*Vermögen!$V60 -> 0
B121: Projektion Gewichtung nach Vermögensgegenstand | D121: =D99 -> 2024 | E121: =E99 -> 2025 | F121: 2026 | H121: 2027 | I121: 2028
B122: =Vermögen!I11 -> Bitte auswählen | C122: =Vermögen!V11 -> 0.0% | D122: =D100/SUMIF($B$100:$B$111,$B100,D$100:D$111) ->  | E122: =E100/SUMIF($B$100:$B$111,$B100,E$100:E$111) -> 
B123: =Vermögen!I12 -> Bitte auswählen | C123: =Vermögen!V12 -> 0.0% | D123: =D101/SUMIF($B$100:$B$111,$B101,D$100:D$111) -> 
B124: =Vermögen!I13 -> Bitte auswählen | C124: =Vermögen!V13 -> 0.0% | D124: =D102/SUMIF($B$100:$B$111,$B102,D$100:D$111) -> 
B125: =Vermögen!I14 -> Bitte auswählen | C125: =Vermögen!V14 -> 0.0% | D125: =D103/SUMIF($B$100:$B$111,$B103,D$100:D$111) -> 
B126: =Vermögen!I15 -> Bitte auswählen | C126: =Vermögen!V15 -> 0.0% | D126: =D104/SUMIF($B$100:$B$111,$B104,D$100:D$111) -> 
B127: =Vermögen!I16 -> Bitte auswählen | C127: =Vermögen!V16 -> 0.0% | D127: =D105/SUMIF($B$100:$B$111,$B105,D$100:D$111) -> 
B128: =Vermögen!I17 -> Bitte auswählen | C128: =Vermögen!V17 -> 0.0% | D128: =D106/SUMIF($B$100:$B$111,$B106,D$100:D$111) -> 
B129: =Vermögen!I18 -> Bitte auswählen | C129: =Vermögen!V18 -> 0.0% | D129: =D107/SUMIF($B$100:$B$111,$B107,D$100:D$111) -> 
B130: =Vermögen!I19 -> Bitte auswählen | C130: =Vermögen!V19 -> 0.0% | D130: =D108/SUMIF($B$100:$B$111,$B108,D$100:D$111) -> 
B131: =Vermögen!I20 -> Bitte auswählen | C131: =Vermögen!V20 -> 0.0% | D131: =D109/SUMIF($B$100:$B$111,$B109,D$100:D$111) -> 
B132: =Vermögen!I21 -> Bitte auswählen | C132: =Vermögen!V21 -> 0.0% | D132: =D110/SUMIF($B$100:$B$111,$B110,D$100:D$111) -> 
B133: =Vermögen!I22 -> Bitte auswählen | C133: =Vermögen!V22 -> 0.0% | D133: =D111/SUMIF($B$100:$B$111,$B111,D$100:D$111) -> 
B135: Projektion gewichtete Rendite nach Vermögensgegenstand | D135: =D121 -> 2024 | E135: =E121 -> 2025 | F135: 2026 | H135: 2027 | I135: 2028
B136: =Vermögen!I11 -> Bitte auswählen | D136: =D122*$C122 ->  | E136: =E122*$C122 -> 
B137: =Vermögen!I12 -> Bitte auswählen | D137: =D123*$C123 -> 
B138: =Vermögen!I13 -> Bitte auswählen | D138: =D124*$C124 -> 
B139: =Vermögen!I14 -> Bitte auswählen | D139: =D125*$C125 -> 
B140: =Vermögen!I15 -> Bitte auswählen | D140: =D126*$C126 -> 
B141: =Vermögen!#REF! ->  | D141: =D127*$C127 -> 
B142: =Vermögen!I17 -> Bitte auswählen | D142: =D128*$C128 -> 
B143: =Vermögen!I18 -> Bitte auswählen | D143: =D129*$C129 -> 
B144: =Vermögen!I19 -> Bitte auswählen | D144: =D130*$C130 -> 
B145: =Vermögen!I20 -> Bitte auswählen | D145: =D131*$C131 -> 
B146: =Vermögen!I21 -> Bitte auswählen | D146: =D132*$C132 -> 
B147: =Vermögen!#REF! ->  | D147: =D133*$C133 -> 
B149: Projektion gewichtete Rendite nach Anlageklassen | D149: =D135 -> 2024 | E149: =E135 -> 2025 | F149: 2026 | H149: 2027 | I149: 2028
B150: =Daten_Vermögen!B7 -> Aktien | D150: =SUMIF($B$136:$B$147,$B150,D$136:D$147) -> 0.00% | E150: =SUMIF($B$136:$B$147,$B150,E$136:E$147) -> 0.00% | F150: 0.00% | H150: 0.00% | I150: 0.00%
B151: =Daten_Vermögen!B8 -> Anleihen | D151: =SUMIF($B$136:$B$147,$B151,D$136:D$147) -> 0.00% | E151: 0.00% | F151: 0.00% | H151: 0.00% | I151: 0.00%
B152: =Daten_Vermögen!B9 -> Alternative Inv. | D152: 0.00% | E152: 0.00% | F152: 0.00% | H152: 0.00% | I152: 0.00%
B153: =Daten_Vermögen!B10 -> Rohstoffe | D153: 0.00% | E153: 0.00% | F153: 0.00% | H153: 0.00% | I153: 0.00%
B154: =Daten_Vermögen!B11 -> Liquidität | D154: 0.00% | E154: 0.00% | F154: 0.00% | H154: 0.00% | I154: 0.00%
B155: =Daten_Vermögen!#REF! -> 
B156: =Daten_Vermögen!B14 -> Beteiligungen | D156: 0.00% | E156: 0.00% | F156: 0.00% | H156: 0.00% | I156: 0.00%
B157: =Daten_Vermögen!B15 -> Sonst. Verm. | D157: 0.00% | E157: 0.00% | F157: 0.00% | H157: 0.00% | I157: 0.00%
B158: =Daten_Vermögen!B16 -> Verbindlichkeiten | D158: 0.00% | E158: 0.00% | F158: 0.00% | H158: 0.00% | I158: 0.00%
B159: =Daten_Vermögen!#REF! -> 
B162: ZÄHLER
B164: Gesamtsumme Vermögen | C164: =IF(Vermögen!S61>0,1,0) -> 0
B166: INFOGRAFIK
B167: Spalte1 | C167: Spalte2 | D167: Spalte3 | E167: Spalte4 | F167: Spalte5 | G167: Spalte52
C168: EUR | D168: Anteil | E168: Anteil o. Verbindlichkt. | F168: SOLL-Allokation | G168: Attribution Verm.
B169: =B7 -> Aktien | C169: =L94 -> 0 | D169: =C169/$C$178 ->  | E169: =Tabelle4[[#This Row],[Spalte2]]/SUM($C$169:$C$176) ->  | F169: =Anlagestrategie!H23 -> 0.0% | G169: =SUMIF(Vermögen!$I$11:$I$60,B169,Vermögen!$V$11:$V$60)*SUMIF(Vermögen!$I$11:$I$60,B169,Vermögen!$U$11:$U$60) -> 0.0%
B170: =B8 -> Anleihen | C170: =M94 -> 0 | E170: =Tabelle4[[#This Row],[Spalte2]]/SUM($C$169:$C$176) ->  | F170: =Anlagestrategie!H24 -> 0.0% | G170: =SUMIF(Vermögen!$I$11:$I$60,B170,Vermögen!$V$11:$V$60)*SUMIF(Vermögen!$I$11:$I$60,B170,Vermögen!$U$11:$U$60) -> 0.0%
B171: =B9 -> Alternative Inv. | C171: =N94 -> 0 | E171: =Tabelle4[[#This Row],[Spalte2]]/SUM($C$169:$C$176) ->  | F171: =Anlagestrategie!H28 -> 0.0% | G171: =SUMIF(Vermögen!$I$11:$I$60,B171,Vermögen!$V$11:$V$60)*SUMIF(Vermögen!$I$11:$I$60,B171,Vermögen!$U$11:$U$60) -> 0.0%
B172: =B10 -> Rohstoffe | C172: =O94 -> 0 | E172: =Tabelle4[[#This Row],[Spalte2]]/SUM($C$169:$C$176) ->  | F172: =Anlagestrategie!H29 -> 0.0% | G172: =SUMIF(Vermögen!$I$11:$I$60,B172,Vermögen!$V$11:$V$60)*SUMIF(Vermögen!$I$11:$I$60,B172,Vermögen!$U$11:$U$60) -> 0.0%
B173: =B11 -> Liquidität | C173: =P94 -> 0 | E173: =Tabelle4[[#This Row],[Spalte2]]/SUM($C$169:$C$176) ->  | F173: =Anlagestrategie!H30 -> 0.0% | G173: =SUMIF(Vermögen!$I$11:$I$60,B173,Vermögen!$V$11:$V$60)*SUMIF(Vermögen!$I$11:$I$60,B173,Vermögen!$U$11:$U$60) -> 0.0%
B174: =B13 -> Immobilien | C174: =SUMIF(Vermögen!$I$11:$I$60,Tabelle4[[#This Row],[Spalte1]],Daten_Vermögen!$C$44:$C$93) -> 0 | E174: =Tabelle4[[#This Row],[Spalte2]]/SUM($C$169:$C$176) ->  | F174: =Anlagestrategie!H31 -> 0.0% | G174: =SUMIF(Vermögen!$I$11:$I$60,B174,Vermögen!$V$11:$V$60)*SUMIF(Vermögen!$I$11:$I$60,B174,Vermögen!$U$11:$U$60) -> 0.0%
B175: =B14 -> Beteiligungen | C175: =SUMIF(Vermögen!$I$11:$I$60,Tabelle4[[#This Row],[Spalte1]],Daten_Vermögen!$C$44:$C$93) -> 0 | E175: =Tabelle4[[#This Row],[Spalte2]]/SUM($C$169:$C$176) ->  | F175: =Anlagestrategie!H32 -> 0.0% | G175: =SUMIF(Vermögen!$I$11:$I$60,B175,Vermögen!$V$11:$V$60)*SUMIF(Vermögen!$I$11:$I$60,B175,Vermögen!$U$11:$U$60) -> 0.0%
B176: =B15 -> Sonst. Verm. | C176: =SUMIF(Vermögen!$I$11:$I$60,Tabelle4[[#This Row],[Spalte1]],Daten_Vermögen!$C$44:$C$93) -> 0 | E176: =Tabelle4[[#This Row],[Spalte2]]/SUM($C$169:$C$176) ->  | F176: =Anlagestrategie!H33 -> 0.0% | G176: =SUMIF(Vermögen!$I$11:$I$60,B176,Vermögen!$V$11:$V$60)*SUMIF(Vermögen!$I$11:$I$60,B176,Vermögen!$U$11:$U$60) -> 0.0%
B177: =B16 -> Verbindlichkeiten | C177: =SUMIF(Vermögen!$I$11:$I$60,Tabelle4[[#This Row],[Spalte1]],Daten_Vermögen!$C$44:$C$93) -> 0 | G177: =SUMIF(Vermögen!$I$11:$I$60,B177,Vermögen!$V$11:$V$60)*SUMIF(Vermögen!$I$11:$I$60,B177,Vermögen!$U$11:$U$60) -> 0.0%
B178: Summe | C178: =SUM(C169:C177) -> 0 | E178: =SUM(E169:E176) ->  | F178: =SUM(F169:F176) -> 0.0% | G178: =SUM(G169:G177) -> 0.0%
B180: Cashquote | C180: =C173/C178 -> 
B181: Investititonsgrad | C181: =100%-C180 -> 
B201: Nachhaltigkeit
B203: Nachhaltig | C203: =SUMIF(Vermögen!#REF!,"ESG",Vermögen!U11:U21) -> 
B204: Nicht nachhaltig | C204: =100%-C203 -> 
B207: Anbieter-Bias - Derzeit nicht genutzt
B208: Gesamtvermögen
B209: Hauptanbieter | C209: =SUMIF(Vermögen!#REF!,"DWS",Vermögen!U11:U21) -> 
B210: Nicht Hauptanbieter | C210: =100%-C209 -> 
B211: Summe Fonds | C211: =SUMIF(Vermögen!O11:O21,"Fonds",Vermögen!U11:U21) -> 0.0%
B212: Hauptanbieter (Fonds) | C212: =C209/C211 -> 
B213: Nicht Hauptanbieter | C213: =100%-C212 -> 
B216: Resilienz
B218: Einzelwerte
B219: Anzahl | C219: =COUNTIF(Vermögen!O11:O21,"Direktanlage") -> 0
B220: Direktinv. Aktien | C220: =SUMIFS(Vermögen!U11:U21,Vermögen!O11:O21,"Direktanlage",Vermögen!I11:I21,"Aktien") -> 0.0%
B221: Direktinv. Renten | C221: =SUMIF(Vermögen!O11:O21,"Direktanlage",Vermögen!U11:U21)-C220 -> 0.0%
B222: Fonds etc. | C222: =100%-(C220+C221) -> 100.0%
B224: Fremdwährungen
B226: USD | C226: =SUMIF(Vermögen!#REF!,"USD",Vermögen!$U$11:$U$21) -> 
B227: CHF | C227: =SUMIF(Vermögen!#REF!,"CHF",Vermögen!$U$11:$U$21) -> 
B228: GBP | C228: =SUMIF(Vermögen!#REF!,"GBP",Vermögen!$U$11:$U$21) -> 
B229: EUR | C229: =SUMIF(Vermögen!#REF!,"EUR",Vermögen!$U$11:$U$21) -> 
B230: Summe | C230: =SUM(C226:C229) -> 
B249: Renditeverteilung
B251: Spalte1 | C251: 2016 | D251: 2017 | E251: 2018 | F251: 2019
B252: Vermögen | C252: 19,693,154 € | D252: 19,862,564 € | E252: 18,567,370 € | F252: 20,908,273 €
B253: Gesamtperformance | C253: 4.4% | D253: 2.0% | E253: -3.6% | F253: =F255+F256 -> 14.3%
B254: Erträge | C254: 348,557 € | D254: 420,790 € | E254: =311084+566 -> 311,650 € | F254: 352,857 €
B255: Ausschüttungsrendite | C255: =C254/C252 -> 1.8% | D255: =D254/D252 -> 2.1% | E255: =E254/E252 -> 1.7% | F255: =F254/F252 -> 1.7%
B256: Wertveränderung | C256: =C253-C255 -> 2.7% | D256: =D253-D255 -> -0.1% | E256: =E253-E255 -> -5.3% | F256: =(F252-E252)/E252 -> 12.6%
B258: Zweckeffizienz
C260: 2016 | D260: 2017 | E260: 2018 | F260: 2019
B261: Vermögen | C261: =C252 -> 19,693,154 € | D261: =D252 -> 19,862,564 € | E261: 18,567,370 € | F261: =F252 -> 20,908,273 €
B262: Eträge | C262: =C254 -> 348,557 € | D262: =D254 -> 420,790 € | E262: 311,650 € | F262: =F254 -> 352,857 €
... 3 more rows

Sheet Daten_Nachhaltigkt. PRISC (hidden)
A1: Daten Nachhaltigkeit/PRISC
C4: Adjustierungsfaktor
C5: Bitte ausw.
C6: 100%
C7: 114%
C8: 133%
C9: 160%
C10: 200%
C11: 267%
C12: 400%
C13: 800%
C16: Nachhaltigkeit/PRISC
E17: Faktor | G17: Gewichtung | I17: Adjustierungsfaktor | J17: PRISC-Score
C18: Ausschlusskategorien | D18: Keine | E18: 0.000 | G18: =Anlageziele!$O$32 -> 0.000 | I18: =Nachhaltigkeit_PRISC!$H$77 -> 2.000 | J18: =E18*G18*I18 -> 0.0%
D19: 1-3 Ausschlusskriterien | E19: 0.333 | G19: =Anlageziele!$O$32 -> 0.000 | I19: =Nachhaltigkeit_PRISC!$H$77 -> 2.000 | J19: 0.0%
D20: 4-6 Ausschlusskriterien | E20: 0.666 | G20: =Anlageziele!$O$32 -> 0.000 | I20: =Nachhaltigkeit_PRISC!$H$77 -> 2.000 | J20: 0.0%
D21: >6 Ausschlusskriterien | E21: 1.000 | G21: =Anlageziele!$O$32 -> 0.000 | I21: =Nachhaltigkeit_PRISC!$H$77 -> 2.000 | J21: 0.0%
C22: Impact_SDG | D22: Keine | E22: 0.000 | G22: =Anlageziele!$O$33 -> 0.000 | I22: =Nachhaltigkeit_PRISC!$H$77 -> 2.000 | J22: 0.0%
D23: 50-70% vom Umsatz | E23: 0.333 | G23: =Anlageziele!$O$33 -> 0.000 | I23: =Nachhaltigkeit_PRISC!$H$77 -> 2.000 | J23: 0.0%
D24: 70-90% vom Umsatz | E24: 0.666 | G24: =Anlageziele!$O$33 -> 0.000 | I24: =Nachhaltigkeit_PRISC!$H$77 -> 2.000 | J24: 0.0%
D25: >90% vom Umsatz | E25: 1.000 | G25: =Anlageziele!$O$33 -> 0.000 | I25: =Nachhaltigkeit_PRISC!$H$77 -> 2.000 | J25: 0.0%
C26: ESG_Messmethode | D26: Keine | E26: 0.000 | G26: =Anlageziele!$O$34 -> 0.000 | I26: =Nachhaltigkeit_PRISC!$H$77 -> 2.000 | J26: 0.0%
D27: aggreg. o. Mindestscoring | E27: 0.333 | G27: =Anlageziele!$O$34 -> 0.000 | I27: =Nachhaltigkeit_PRISC!$H$77 -> 2.000 | J27: 0.0%
D28: aggreg. m. Mindestscoring | E28: 0.666 | G28: =Anlageziele!$O$34 -> 0.000 | I28: =Nachhaltigkeit_PRISC!$H$77 -> 2.000 | J28: 0.0%
D29: E, S, G separat m. Mindestscoring | E29: 1.000 | G29: =Anlageziele!$O$34 -> 0.000 | I29: =Nachhaltigkeit_PRISC!$H$77 -> 2.000 | J29: 0.0%
C30: Best_of_Univese_Best_in_Class | D30: Keine | E30: 0.000 | G30: =Anlageziele!$O$35 -> 0.000 | I30: =Nachhaltigkeit_PRISC!$H$77 -> 2.000 | J30: 0.0%
D31: Nur Best-in-Class | E31: 0.333 | G31: =Anlageziele!$O$35 -> 0.000 | I31: =Nachhaltigkeit_PRISC!$H$77 -> 2.000 | J31: 0.0%
D32: Mischung aus BiC/BoU | E32: 0.666 | G32: =Anlageziele!$O$35 -> 0.000 | I32: =Nachhaltigkeit_PRISC!$H$77 -> 2.000 | J32: 0.0%
D33: Best-of-Universe | E33: 1.000 | G33: =Anlageziele!$O$35 -> 0.000 | I33: =Nachhaltigkeit_PRISC!$H$77 -> 2.000 | J33: 0.0%
C34: ESG_Top | D34: Keine | E34: 0.000 | G34: =Anlageziele!$O$36 -> 0.000 | I34: =Nachhaltigkeit_PRISC!$H$77 -> 2.000 | J34: 0.0%
D35: <20% 'Schlechteste' ausgeschl. | E35: 0.333 | G35: =Anlageziele!$O$36 -> 0.000 | I35: =Nachhaltigkeit_PRISC!$H$77 -> 2.000 | J35: 0.0%
D36: 20-50% 'Schlechteste' ausgeschl. | E36: 0.666 | G36: =Anlageziele!$O$36 -> 0.000 | I36: =Nachhaltigkeit_PRISC!$H$77 -> 2.000 | J36: 0.0%
D37: >50% 'Schlechteste' ausgeschl. | E37: 1.000 | G37: =Anlageziele!$O$36 -> 0.000 | I37: =Nachhaltigkeit_PRISC!$H$77 -> 2.000 | J37: 0.0%
C38: ESG_Frequenz | D38: Keine | E38: 0.000 | G38: =Anlageziele!$O$37 -> 0.000 | I38: =Nachhaltigkeit_PRISC!$H$77 -> 2.000 | J38: 0.0%
D39: Seltener als monatl. | E39: 0.333 | G39: =Anlageziele!$O$37 -> 0.000 | I39: =Nachhaltigkeit_PRISC!$H$77 -> 2.000 | J39: 0.0%
D40: Monatlich | E40: 0.666 | G40: =Anlageziele!$O$37 -> 0.000 | I40: =Nachhaltigkeit_PRISC!$H$77 -> 2.000 | J40: 0.0%
D41: Häufiger als monatl. | E41: 1.000 | G41: =Anlageziele!$O$37 -> 0.000 | I41: =Nachhaltigkeit_PRISC!$H$77 -> 2.000 | J41: 0.0%
C42: Stimmrechtsausübung | D42: Keine | E42: 0.000 | G42: =Anlageziele!$O$38 -> 0.000 | I42: =Nachhaltigkeit_PRISC!$H$77 -> 2.000 | J42: 0.0%
D43: <25% d. ESG-Voting fokussiert | E43: 0.333 | G43: =Anlageziele!$O$38 -> 0.000 | I43: =Nachhaltigkeit_PRISC!$H$77 -> 2.000 | J43: 0.0%
D44: 25-50% d. ESG-Voting fokussiert | E44: 0.666 | G44: =Anlageziele!$O$38 -> 0.000 | I44: =Nachhaltigkeit_PRISC!$H$77 -> 2.000 | J44: 0.0%
D45: >50% d. ESG-Voting fokussiert | E45: 1.000 | G45: =Anlageziele!$O$38 -> 0.000 | I45: =Nachhaltigkeit_PRISC!$H$77 -> 2.000 | J45: 0.0%
C46: Engagement | D46: Keine | E46: 0.000 | G46: =Anlageziele!$O$39 -> 0.000 | I46: =Nachhaltigkeit_PRISC!$H$77 -> 2.000 | J46: 0.0%
D47: Mgt. oder AR oder HV | E47: 0.333 | G47: =Anlageziele!$O$39 -> 0.000 | I47: =Nachhaltigkeit_PRISC!$H$77 -> 2.000 | J47: 0.0%
D48: 2 von Mgt./AR/HV | E48: 0.666 | F48: =Anlageziele!$O$39 -> 0.000 | G48: =Nachhaltigkeit_PRISC!$H$77 -> 2.000 | I48: =E48*F48*G48 -> 0.0%
D49: Mgt. und AR und HV | E49: 1.000 | F49: =Anlageziele!$O$39 -> 0.000 | G49: =Nachhaltigkeit_PRISC!$H$77 -> 2.000 | I49: 0.0%
B52: PRISC-Scoring
M53: PRISC-Score | N53: PRISC-Score
B54: =Vermögen!E10 -> Nr. | C54: =Vermögen!F10 -> Vermögensgegenstand (Bezeichnung) | D54: =Vermögen!S10 -> Verkehrswert | E54: Ausschlusskategorien | F54: Impact/SDG-Ziele | G54: ESG-Messmethode | H54: Best of Univ./in Class | I54: ESG Top % | J54: ESG Messfrequenz | K54: Stimmrechtsausübg. | L54: Engagement | M54: absolut | N54: gewichtet
B55: =Vermögen!E11 -> 1. | C55: =Vermögen!F11 -> 0 | D55: =#REF! ->  | E55: =INDEX($D$18:$E$21,MATCH(Nachhaltigkeit_PRISC!H15,Ausschlusskategorien,0),2)*Nachhaltigkeit_PRISC!$H$13 -> 0.0% | F55: =INDEX($D$22:$E$25,MATCH(Nachhaltigkeit_PRISC!I15,Impact_SDG,0),2)*Nachhaltigkeit_PRISC!$I$13 -> 0.0% | G55: =INDEX($D$26:$E$29,MATCH(Nachhaltigkeit_PRISC!J15,ESG_Messmethode,0),2)*Nachhaltigkeit_PRISC!$J$13 -> 0.0% | H55: =INDEX($D$30:$E$33,MATCH(Nachhaltigkeit_PRISC!K15,Best_of_Universe_Best_in_Class,0),2)*Nachhaltigkeit_PRISC!$K$13 -> 0.0% | I55: =INDEX($D$34:$E$37,MATCH(Nachhaltigkeit_PRISC!L15,ESG_Top,0),2)*Nachhaltigkeit_PRISC!$L$13 -> 0.0% | J55: =INDEX($D$38:$E$41,MATCH(Nachhaltigkeit_PRISC!M15,ESG_Frequenz,0),2)*Nachhaltigkeit_PRISC!$M$13 -> 0.0% | K55: =INDEX($D$42:$E$45,MATCH(Nachhaltigkeit_PRISC!N15,Stimmrechtsausübung,0),2)*Nachhaltigkeit_PRISC!$N$13 -> 0.0% | L55: =INDEX($D$46:$E$49,MATCH(Nachhaltigkeit_PRISC!O15,Engagement,0),2)*Nachhaltigkeit_PRISC!$O$13 -> 0.0% | M55: =SUM(E55:L55) -> 0.0% | N55: =M55*D55/$D$92 -> 
B56: =Vermögen!E12 -> 2. | C56: =Vermögen!F12 -> 0 | D56: =Vermögen!S12 -> 0 | E56: =INDEX($D$18:$E$21,MATCH(Nachhaltigkeit_PRISC!H16,Ausschlusskategorien,0),2)*Nachhaltigkeit_PRISC!$H$13 -> 0.0% | F56: =INDEX($D$22:$E$25,MATCH(Nachhaltigkeit_PRISC!I16,Impact_SDG,0),2)*Nachhaltigkeit_PRISC!$I$13 -> 0.0% | G56: =INDEX($D$26:$E$29,MATCH(Nachhaltigkeit_PRISC!J16,ESG_Messmethode,0),2)*Nachhaltigkeit_PRISC!$J$13 -> 0.0% | H56: =INDEX($D$30:$E$33,MATCH(Nachhaltigkeit_PRISC!K16,Best_of_Universe_Best_in_Class,0),2)*Nachhaltigkeit_PRISC!$K$13 -> 0.0% | I56: =INDEX($D$34:$E$37,MATCH(Nachhaltigkeit_PRISC!L16,ESG_Top,0),2)*Nachhaltigkeit_PRISC!$L$13 -> 0.0% | J56: =INDEX($D$38:$E$41,MATCH(Nachhaltigkeit_PRISC!M16,ESG_Frequenz,0),2)*Nachhaltigkeit_PRISC!$M$13 -> 0.0% | K56: =INDEX($D$42:$E$45,MATCH(Nachhaltigkeit_PRISC!N16,Stimmrechtsausübung,0),2)*Nachhaltigkeit_PRISC!$N$13 -> 0.0% | L56: =INDEX($D$46:$E$49,MATCH(Nachhaltigkeit_PRISC!O16,Engagement,0),2)*Nachhaltigkeit_PRISC!$O$13 -> 0.0% | M56: =SUM(E56:L56) -> 0.0%
B57: =Vermögen!E13 -> 3. | C57: =Vermögen!F13 -> 0 | D57: =Vermögen!S13 -> 0 | E57: =INDEX($D$18:$E$21,MATCH(Nachhaltigkeit_PRISC!H17,Ausschlusskategorien,0),2)*Nachhaltigkeit_PRISC!$H$13 -> 0.0% | F57: =INDEX($D$22:$E$25,MATCH(Nachhaltigkeit_PRISC!I17,Impact_SDG,0),2)*Nachhaltigkeit_PRISC!$I$13 -> 0.0% | G57: =INDEX($D$26:$E$29,MATCH(Nachhaltigkeit_PRISC!J17,ESG_Messmethode,0),2)*Nachhaltigkeit_PRISC!$J$13 -> 0.0% | H57: =INDEX($D$30:$E$33,MATCH(Nachhaltigkeit_PRISC!K17,Best_of_Universe_Best_in_Class,0),2)*Nachhaltigkeit_PRISC!$K$13 -> 0.0% | I57: =INDEX($D$34:$E$37,MATCH(Nachhaltigkeit_PRISC!L17,ESG_Top,0),2)*Nachhaltigkeit_PRISC!$L$13 -> 0.0% | J57: =INDEX($D$38:$E$41,MATCH(Nachhaltigkeit_PRISC!M17,ESG_Frequenz,0),2)*Nachhaltigkeit_PRISC!$M$13 -> 0.0% | K57: =INDEX($D$42:$E$45,MATCH(Nachhaltigkeit_PRISC!N17,Stimmrechtsausübung,0),2)*Nachhaltigkeit_PRISC!$N$13 -> 0.0% | L57: =INDEX($D$46:$E$49,MATCH(Nachhaltigkeit_PRISC!O17,Engagement,0),2)*Nachhaltigkeit_PRISC!$O$13 -> 0.0% | M57: 0.0%
B58: =Vermögen!E14 -> 4. | C58: =Vermögen!F14 -> 0 | D58: =Vermögen!S14 -> 0 | E58: =INDEX($D$18:$E$21,MATCH(Nachhaltigkeit_PRISC!H18,Ausschlusskategorien,0),2)*Nachhaltigkeit_PRISC!$H$13 -> 0.0% | F58: =INDEX($D$22:$E$25,MATCH(Nachhaltigkeit_PRISC!I18,Impact_SDG,0),2)*Nachhaltigkeit_PRISC!$I$13 -> 0.0% | G58: =INDEX($D$26:$E$29,MATCH(Nachhaltigkeit_PRISC!J18,ESG_Messmethode,0),2)*Nachhaltigkeit_PRISC!$J$13 -> 0.0% | H58: =INDEX($D$30:$E$33,MATCH(Nachhaltigkeit_PRISC!K18,Best_of_Universe_Best_in_Class,0),2)*Nachhaltigkeit_PRISC!$K$13 -> 0.0% | I58: =INDEX($D$34:$E$37,MATCH(Nachhaltigkeit_PRISC!L18,ESG_Top,0),2)*Nachhaltigkeit_PRISC!$L$13 -> 0.0% | J58: =INDEX($D$38:$E$41,MATCH(Nachhaltigkeit_PRISC!M18,ESG_Frequenz,0),2)*Nachhaltigkeit_PRISC!$M$13 -> 0.0% | K58: =INDEX($D$42:$E$45,MATCH(Nachhaltigkeit_PRISC!N18,Stimmrechtsausübung,0),2)*Nachhaltigkeit_PRISC!$N$13 -> 0.0% | L58: =INDEX($D$46:$E$49,MATCH(Nachhaltigkeit_PRISC!O18,Engagement,0),2)*Nachhaltigkeit_PRISC!$O$13 -> 0.0% | M58: 0.0%
B59: =Vermögen!E15 -> 5. | C59: =Vermögen!F15 -> 0 | D59: =Vermögen!S15 -> 0 | E59: =INDEX($D$18:$E$21,MATCH(Nachhaltigkeit_PRISC!H19,Ausschlusskategorien,0),2)*Nachhaltigkeit_PRISC!$H$13 -> 0.0% | F59: =INDEX($D$22:$E$25,MATCH(Nachhaltigkeit_PRISC!I19,Impact_SDG,0),2)*Nachhaltigkeit_PRISC!$I$13 -> 0.0% | G59: =INDEX($D$26:$E$29,MATCH(Nachhaltigkeit_PRISC!J19,ESG_Messmethode,0),2)*Nachhaltigkeit_PRISC!$J$13 -> 0.0% | H59: =INDEX($D$30:$E$33,MATCH(Nachhaltigkeit_PRISC!K19,Best_of_Universe_Best_in_Class,0),2)*Nachhaltigkeit_PRISC!$K$13 -> 0.0% | I59: =INDEX($D$34:$E$37,MATCH(Nachhaltigkeit_PRISC!L19,ESG_Top,0),2)*Nachhaltigkeit_PRISC!$L$13 -> 0.0% | J59: =INDEX($D$38:$E$41,MATCH(Nachhaltigkeit_PRISC!M19,ESG_Frequenz,0),2)*Nachhaltigkeit_PRISC!$M$13 -> 0.0% | K59: =INDEX($D$42:$E$45,MATCH(Nachhaltigkeit_PRISC!N19,Stimmrechtsausübung,0),2)*Nachhaltigkeit_PRISC!$N$13 -> 0.0% | L59: =INDEX($D$46:$E$49,MATCH(Nachhaltigkeit_PRISC!O19,Engagement,0),2)*Nachhaltigkeit_PRISC!$O$13 -> 0.0% | M59: 0.0%
B60: =Vermögen!E16 -> 6. | C60: =Vermögen!#REF! ->  | D60: =Vermögen!S16 -> 0 | E60: =INDEX($D$18:$E$21,MATCH(Nachhaltigkeit_PRISC!H20,Ausschlusskategorien,0),2)*Nachhaltigkeit_PRISC!$H$13 -> 0.0% | F60: =INDEX($D$22:$E$25,MATCH(Nachhaltigkeit_PRISC!I20,Impact_SDG,0),2)*Nachhaltigkeit_PRISC!$I$13 -> 0.0% | G60: =INDEX($D$26:$E$29,MATCH(Nachhaltigkeit_PRISC!J20,ESG_Messmethode,0),2)*Nachhaltigkeit_PRISC!$J$13 -> 0.0% | H60: =INDEX($D$30:$E$33,MATCH(Nachhaltigkeit_PRISC!K20,Best_of_Universe_Best_in_Class,0),2)*Nachhaltigkeit_PRISC!$K$13 -> 0.0% | I60: =INDEX($D$34:$E$37,MATCH(Nachhaltigkeit_PRISC!L20,ESG_Top,0),2)*Nachhaltigkeit_PRISC!$L$13 -> 0.0% | J60: =INDEX($D$38:$E$41,MATCH(Nachhaltigkeit_PRISC!M20,ESG_Frequenz,0),2)*Nachhaltigkeit_PRISC!$M$13 -> 0.0% | K60: =INDEX($D$42:$E$45,MATCH(Nachhaltigkeit_PRISC!N20,Stimmrechtsausübung,0),2)*Nachhaltigkeit_PRISC!$N$13 -> 0.0% | L60: =INDEX($D$46:$E$49,MATCH(Nachhaltigkeit_PRISC!O20,Engagement,0),2)*Nachhaltigkeit_PRISC!$O$13 -> 0.0% | M60: 0.0%
B61: =Vermögen!E17 -> 7. | C61: =Vermögen!F17 -> 0 | D61: =Vermögen!S17 -> 0 | E61: =INDEX($D$18:$E$21,MATCH(Nachhaltigkeit_PRISC!H21,Ausschlusskategorien,0),2)*Nachhaltigkeit_PRISC!$H$13 -> 0.0% | F61: =INDEX($D$22:$E$25,MATCH(Nachhaltigkeit_PRISC!I21,Impact_SDG,0),2)*Nachhaltigkeit_PRISC!$I$13 -> 0.0% | G61: =INDEX($D$26:$E$29,MATCH(Nachhaltigkeit_PRISC!J21,ESG_Messmethode,0),2)*Nachhaltigkeit_PRISC!$J$13 -> 0.0% | H61: =INDEX($D$30:$E$33,MATCH(Nachhaltigkeit_PRISC!K21,Best_of_Universe_Best_in_Class,0),2)*Nachhaltigkeit_PRISC!$K$13 -> 0.0% | I61: =INDEX($D$34:$E$37,MATCH(Nachhaltigkeit_PRISC!L21,ESG_Top,0),2)*Nachhaltigkeit_PRISC!$L$13 -> 0.0% | J61: =INDEX($D$38:$E$41,MATCH(Nachhaltigkeit_PRISC!M21,ESG_Frequenz,0),2)*Nachhaltigkeit_PRISC!$M$13 -> 0.0% | K61: =INDEX($D$42:$E$45,MATCH(Nachhaltigkeit_PRISC!N21,Stimmrechtsausübung,0),2)*Nachhaltigkeit_PRISC!$N$13 -> 0.0% | L61: =INDEX($D$46:$E$49,MATCH(Nachhaltigkeit_PRISC!O21,Engagement,0),2)*Nachhaltigkeit_PRISC!$O$13 -> 0.0% | M61: 0.0%
B62: =Vermögen!E18 -> 8. | C62: =Vermögen!F18 -> 0 | D62: =Vermögen!S18 -> 0 | E62: =INDEX($D$18:$E$21,MATCH(Nachhaltigkeit_PRISC!H22,Ausschlusskategorien,0),2)*Nachhaltigkeit_PRISC!$H$13 -> 0.0% | F62: =INDEX($D$22:$E$25,MATCH(Nachhaltigkeit_PRISC!I22,Impact_SDG,0),2)*Nachhaltigkeit_PRISC!$I$13 -> 0.0% | G62: =INDEX($D$26:$E$29,MATCH(Nachhaltigkeit_PRISC!J22,ESG_Messmethode,0),2)*Nachhaltigkeit_PRISC!$J$13 -> 0.0% | H62: =INDEX($D$30:$E$33,MATCH(Nachhaltigkeit_PRISC!K22,Best_of_Universe_Best_in_Class,0),2)*Nachhaltigkeit_PRISC!$K$13 -> 0.0% | I62: =INDEX($D$34:$E$37,MATCH(Nachhaltigkeit_PRISC!L22,ESG_Top,0),2)*Nachhaltigkeit_PRISC!$L$13 -> 0.0% | J62: =INDEX($D$38:$E$41,MATCH(Nachhaltigkeit_PRISC!M22,ESG_Frequenz,0),2)*Nachhaltigkeit_PRISC!$M$13 -> 0.0% | K62: =INDEX($D$42:$E$45,MATCH(Nachhaltigkeit_PRISC!N22,Stimmrechtsausübung,0),2)*Nachhaltigkeit_PRISC!$N$13 -> 0.0% | L62: =INDEX($D$46:$E$49,MATCH(Nachhaltigkeit_PRISC!O22,Engagement,0),2)*Nachhaltigkeit_PRISC!$O$13 -> 0.0% | M62: 0.0%
B63: =Vermögen!E19 -> 9. | C63: =Vermögen!F19 -> 0 | D63: =Vermögen!S19 -> 0 | E63: =INDEX($D$18:$E$21,MATCH(Nachhaltigkeit_PRISC!H23,Ausschlusskategorien,0),2)*Nachhaltigkeit_PRISC!$H$13 -> 0.0% | F63: =INDEX($D$22:$E$25,MATCH(Nachhaltigkeit_PRISC!I23,Impact_SDG,0),2)*Nachhaltigkeit_PRISC!$I$13 -> 0.0% | G63: =INDEX($D$26:$E$29,MATCH(Nachhaltigkeit_PRISC!J23,ESG_Messmethode,0),2)*Nachhaltigkeit_PRISC!$J$13 -> 0.0% | H63: =INDEX($D$30:$E$33,MATCH(Nachhaltigkeit_PRISC!K23,Best_of_Universe_Best_in_Class,0),2)*Nachhaltigkeit_PRISC!$K$13 -> 0.0% | I63: =INDEX($D$34:$E$37,MATCH(Nachhaltigkeit_PRISC!L23,ESG_Top,0),2)*Nachhaltigkeit_PRISC!$L$13 -> 0.0% | J63: =INDEX($D$38:$E$41,MATCH(Nachhaltigkeit_PRISC!M23,ESG_Frequenz,0),2)*Nachhaltigkeit_PRISC!$M$13 -> 0.0% | K63: =INDEX($D$42:$E$45,MATCH(Nachhaltigkeit_PRISC!N23,Stimmrechtsausübung,0),2)*Nachhaltigkeit_PRISC!$N$13 -> 0.0% | L63: =INDEX($D$46:$E$49,MATCH(Nachhaltigkeit_PRISC!O23,Engagement,0),2)*Nachhaltigkeit_PRISC!$O$13 -> 0.0% | M63: 0.0%
B64: =Vermögen!E20 -> 10. | C64: =Vermögen!F20 -> 0 | D64: =Vermögen!S20 -> 0 | E64: =INDEX($D$18:$E$21,MATCH(Nachhaltigkeit_PRISC!H24,Ausschlusskategorien,0),2)*Nachhaltigkeit_PRISC!$H$13 -> 0.0% | F64: =INDEX($D$22:$E$25,MATCH(Nachhaltigkeit_PRISC!I24,Impact_SDG,0),2)*Nachhaltigkeit_PRISC!$I$13 -> 0.0% | G64: =INDEX($D$26:$E$29,MATCH(Nachhaltigkeit_PRISC!J24,ESG_Messmethode,0),2)*Nachhaltigkeit_PRISC!$J$13 -> 0.0% | H64: =INDEX($D$30:$E$33,MATCH(Nachhaltigkeit_PRISC!K24,Best_of_Universe_Best_in_Class,0),2)*Nachhaltigkeit_PRISC!$K$13 -> 0.0% | I64: =INDEX($D$34:$E$37,MATCH(Nachhaltigkeit_PRISC!L24,ESG_Top,0),2)*Nachhaltigkeit_PRISC!$L$13 -> 0.0% | J64: =INDEX($D$38:$E$41,MATCH(Nachhaltigkeit_PRISC!M24,ESG_Frequenz,0),2)*Nachhaltigkeit_PRISC!$M$13 -> 0.0% | K64: =INDEX($D$42:$E$45,MATCH(Nachhaltigkeit_PRISC!N24,Stimmrechtsausübung,0),2)*Nachhaltigkeit_PRISC!$N$13 -> 0.0% | L64: =INDEX($D$46:$E$49,MATCH(Nachhaltigkeit_PRISC!O24,Engagement,0),2)*Nachhaltigkeit_PRISC!$O$13 -> 0.0% | M64: 0.0%
B65: =Vermögen!E21 -> 11. | C65: =Vermögen!F21 -> 0 | D65: =Vermögen!S21 -> 0 | E65: =INDEX($D$18:$E$21,MATCH(Nachhaltigkeit_PRISC!H25,Ausschlusskategorien,0),2)*Nachhaltigkeit_PRISC!$H$13 -> 0.0% | F65: =INDEX($D$22:$E$25,MATCH(Nachhaltigkeit_PRISC!I25,Impact_SDG,0),2)*Nachhaltigkeit_PRISC!$I$13 -> 0.0% | G65: =INDEX($D$26:$E$29,MATCH(Nachhaltigkeit_PRISC!J25,ESG_Messmethode,0),2)*Nachhaltigkeit_PRISC!$J$13 -> 0.0% | H65: =INDEX($D$30:$E$33,MATCH(Nachhaltigkeit_PRISC!K25,Best_of_Universe_Best_in_Class,0),2)*Nachhaltigkeit_PRISC!$K$13 -> 0.0% | I65: =INDEX($D$34:$E$37,MATCH(Nachhaltigkeit_PRISC!L25,ESG_Top,0),2)*Nachhaltigkeit_PRISC!$L$13 -> 0.0% | J65: =INDEX($D$38:$E$41,MATCH(Nachhaltigkeit_PRISC!M25,ESG_Frequenz,0),2)*Nachhaltigkeit_PRISC!$M$13 -> 0.0% | K65: =INDEX($D$42:$E$45,MATCH(Nachhaltigkeit_PRISC!N25,Stimmrechtsausübung,0),2)*Nachhaltigkeit_PRISC!$N$13 -> 0.0% | L65: =INDEX($D$46:$E$49,MATCH(Nachhaltigkeit_PRISC!O25,Engagement,0),2)*Nachhaltigkeit_PRISC!$O$13 -> 0.0% | M65: 0.0%
B66: =Vermögen!E22 -> 12. | C66: =Vermögen!F22 -> 0 | D66: =Vermögen!S22 -> 0 | E66: =INDEX($D$18:$E$21,MATCH(Nachhaltigkeit_PRISC!H26,Ausschlusskategorien,0),2)*Nachhaltigkeit_PRISC!$H$13 -> 0.0% | F66: =INDEX($D$22:$E$25,MATCH(Nachhaltigkeit_PRISC!I26,Impact_SDG,0),2)*Nachhaltigkeit_PRISC!$I$13 -> 0.0% | G66: =INDEX($D$26:$E$29,MATCH(Nachhaltigkeit_PRISC!J26,ESG_Messmethode,0),2)*Nachhaltigkeit_PRISC!$J$13 -> 0.0% | H66: =INDEX($D$30:$E$33,MATCH(Nachhaltigkeit_PRISC!K26,Best_of_Universe_Best_in_Class,0),2)*Nachhaltigkeit_PRISC!$K$13 -> 0.0% | I66: =INDEX($D$34:$E$37,MATCH(Nachhaltigkeit_PRISC!L26,ESG_Top,0),2)*Nachhaltigkeit_PRISC!$L$13 -> 0.0% | J66: =INDEX($D$38:$E$41,MATCH(Nachhaltigkeit_PRISC!M26,ESG_Frequenz,0),2)*Nachhaltigkeit_PRISC!$M$13 -> 0.0% | K66: =INDEX($D$42:$E$45,MATCH(Nachhaltigkeit_PRISC!N26,Stimmrechtsausübung,0),2)*Nachhaltigkeit_PRISC!$N$13 -> 0.0% | L66: =INDEX($D$46:$E$49,MATCH(Nachhaltigkeit_PRISC!O26,Engagement,0),2)*Nachhaltigkeit_PRISC!$O$13 -> 0.0% | M66: 0.0%
B67: =Vermögen!E23 -> 13. | C67: =Vermögen!F23 -> 0 | D67: =Vermögen!S23 -> 0 | E67: =INDEX($D$18:$E$21,MATCH(Nachhaltigkeit_PRISC!H27,Ausschlusskategorien,0),2)*Nachhaltigkeit_PRISC!$H$13 -> 0.0% | F67: =INDEX($D$22:$E$25,MATCH(Nachhaltigkeit_PRISC!I27,Impact_SDG,0),2)*Nachhaltigkeit_PRISC!$I$13 -> 0.0% | G67: =INDEX($D$26:$E$29,MATCH(Nachhaltigkeit_PRISC!J27,ESG_Messmethode,0),2)*Nachhaltigkeit_PRISC!$J$13 -> 0.0% | H67: =INDEX($D$30:$E$33,MATCH(Nachhaltigkeit_PRISC!K27,Best_of_Universe_Best_in_Class,0),2)*Nachhaltigkeit_PRISC!$K$13 -> 0.0% | I67: =INDEX($D$34:$E$37,MATCH(Nachhaltigkeit_PRISC!L27,ESG_Top,0),2)*Nachhaltigkeit_PRISC!$L$13 -> 0.0% | J67: =INDEX($D$38:$E$41,MATCH(Nachhaltigkeit_PRISC!M27,ESG_Frequenz,0),2)*Nachhaltigkeit_PRISC!$M$13 -> 0.0% | K67: =INDEX($D$42:$E$45,MATCH(Nachhaltigkeit_PRISC!N27,Stimmrechtsausübung,0),2)*Nachhaltigkeit_PRISC!$N$13 -> 0.0% | L67: =INDEX($D$46:$E$49,MATCH(Nachhaltigkeit_PRISC!O27,Engagement,0),2)*Nachhaltigkeit_PRISC!$O$13 -> 0.0% | M67: 0.0%
B68: =Vermögen!E24 -> 14. | C68: =Vermögen!F24 -> 0 | D68: =Vermögen!S24 -> 0 | E68: =INDEX($D$18:$E$21,MATCH(Nachhaltigkeit_PRISC!H28,Ausschlusskategorien,0),2)*Nachhaltigkeit_PRISC!$H$13 -> 0.0% | F68: =INDEX($D$22:$E$25,MATCH(Nachhaltigkeit_PRISC!I28,Impact_SDG,0),2)*Nachhaltigkeit_PRISC!$I$13 -> 0.0% | G68: =INDEX($D$26:$E$29,MATCH(Nachhaltigkeit_PRISC!J28,ESG_Messmethode,0),2)*Nachhaltigkeit_PRISC!$J$13 -> 0.0% | H68: =INDEX($D$30:$E$33,MATCH(Nachhaltigkeit_PRISC!K28,Best_of_Universe_Best_in_Class,0),2)*Nachhaltigkeit_PRISC!$K$13 -> 0.0% | I68: =INDEX($D$34:$E$37,MATCH(Nachhaltigkeit_PRISC!L28,ESG_Top,0),2)*Nachhaltigkeit_PRISC!$L$13 -> 0.0% | J68: =INDEX($D$38:$E$41,MATCH(Nachhaltigkeit_PRISC!M28,ESG_Frequenz,0),2)*Nachhaltigkeit_PRISC!$M$13 -> 0.0% | K68: =INDEX($D$42:$E$45,MATCH(Nachhaltigkeit_PRISC!N28,Stimmrechtsausübung,0),2)*Nachhaltigkeit_PRISC!$N$13 -> 0.0% | L68: =INDEX($D$46:$E$49,MATCH(Nachhaltigkeit_PRISC!O28,Engagement,0),2)*Nachhaltigkeit_PRISC!$O$13 -> 0.0% | M68: 0.0%
B69: =Vermögen!E25 -> 15. | C69: =Vermögen!F25 -> 0 | D69: =Vermögen!S25 -> 0 | E69: =INDEX($D$18:$E$21,MATCH(Nachhaltigkeit_PRISC!H29,Ausschlusskategorien,0),2)*Nachhaltigkeit_PRISC!$H$13 -> 0.0% | F69: =INDEX($D$22:$E$25,MATCH(Nachhaltigkeit_PRISC!I29,Impact_SDG,0),2)*Nachhaltigkeit_PRISC!$I$13 -> 0.0% | G69: =INDEX($D$26:$E$29,MATCH(Nachhaltigkeit_PRISC!J29,ESG_Messmethode,0),2)*Nachhaltigkeit_PRISC!$J$13 -> 0.0% | H69: =INDEX($D$30:$E$33,MATCH(Nachhaltigkeit_PRISC!K29,Best_of_Universe_Best_in_Class,0),2)*Nachhaltigkeit_PRISC!$K$13 -> 0.0% | I69: =INDEX($D$34:$E$37,MATCH(Nachhaltigkeit_PRISC!L29,ESG_Top,0),2)*Nachhaltigkeit_PRISC!$L$13 -> 0.0% | J69: =INDEX($D$38:$E$41,MATCH(Nachhaltigkeit_PRISC!M29,ESG_Frequenz,0),2)*Nachhaltigkeit_PRISC!$M$13 -> 0.0% | K69: =INDEX($D$42:$E$45,MATCH(Nachhaltigkeit_PRISC!N29,Stimmrechtsausübung,0),2)*Nachhaltigkeit_PRISC!$N$13 -> 0.0% | L69: =INDEX($D$46:$E$49,MATCH(Nachhaltigkeit_PRISC!O29,Engagement,0),2)*Nachhaltigkeit_PRISC!$O$13 -> 0.0% | M69: 0.0%
B70: =Vermögen!E26 -> 16. | C70: =Vermögen!F26 -> 0 | D70: =Vermögen!S26 -> 0 | E70: =INDEX($D$18:$E$21,MATCH(Nachhaltigkeit_PRISC!H30,Ausschlusskategorien,0),2)*Nachhaltigkeit_PRISC!$H$13 -> 0.0% | F70: =INDEX($D$22:$E$25,MATCH(Nachhaltigkeit_PRISC!I30,Impact_SDG,0),2)*Nachhaltigkeit_PRISC!$I$13 -> 0.0% | G70: =INDEX($D$26:$E$29,MATCH(Nachhaltigkeit_PRISC!J30,ESG_Messmethode,0),2)*Nachhaltigkeit_PRISC!$J$13 -> 0.0% | H70: =INDEX($D$30:$E$33,MATCH(Nachhaltigkeit_PRISC!K30,Best_of_Universe_Best_in_Class,0),2)*Nachhaltigkeit_PRISC!$K$13 -> 0.0% | I70: =INDEX($D$34:$E$37,MATCH(Nachhaltigkeit_PRISC!L30,ESG_Top,0),2)*Nachhaltigkeit_PRISC!$L$13 -> 0.0% | J70: =INDEX($D$38:$E$41,MATCH(Nachhaltigkeit_PRISC!M30,ESG_Frequenz,0),2)*Nachhaltigkeit_PRISC!$M$13 -> 0.0% | K70: =INDEX($D$42:$E$45,MATCH(Nachhaltigkeit_PRISC!N30,Stimmrechtsausübung,0),2)*Nachhaltigkeit_PRISC!$N$13 -> 0.0% | L70: =INDEX($D$46:$E$49,MATCH(Nachhaltigkeit_PRISC!O30,Engagement,0),2)*Nachhaltigkeit_PRISC!$O$13 -> 0.0% | M70: 0.0%
B71: =Vermögen!E27 -> 17. | C71: =Vermögen!F27 -> 0 | D71: =Vermögen!S27 -> 0 | E71: =INDEX($D$18:$E$21,MATCH(Nachhaltigkeit_PRISC!H31,Ausschlusskategorien,0),2)*Nachhaltigkeit_PRISC!$H$13 -> 0.0% | F71: =INDEX($D$22:$E$25,MATCH(Nachhaltigkeit_PRISC!I31,Impact_SDG,0),2)*Nachhaltigkeit_PRISC!$I$13 -> 0.0% | G71: =INDEX($D$26:$E$29,MATCH(Nachhaltigkeit_PRISC!J31,ESG_Messmethode,0),2)*Nachhaltigkeit_PRISC!$J$13 -> 0.0% | H71: =INDEX($D$30:$E$33,MATCH(Nachhaltigkeit_PRISC!K31,Best_of_Universe_Best_in_Class,0),2)*Nachhaltigkeit_PRISC!$K$13 -> 0.0% | I71: =INDEX($D$34:$E$37,MATCH(Nachhaltigkeit_PRISC!L31,ESG_Top,0),2)*Nachhaltigkeit_PRISC!$L$13 -> 0.0% | J71: =INDEX($D$38:$E$41,MATCH(Nachhaltigkeit_PRISC!M31,ESG_Frequenz,0),2)*Nachhaltigkeit_PRISC!$M$13 -> 0.0% | K71: =INDEX($D$42:$E$45,MATCH(Nachhaltigkeit_PRISC!N31,Stimmrechtsausübung,0),2)*Nachhaltigkeit_PRISC!$N$13 -> 0.0% | L71: =INDEX($D$46:$E$49,MATCH(Nachhaltigkeit_PRISC!O31,Engagement,0),2)*Nachhaltigkeit_PRISC!$O$13 -> 0.0% | M71: 0.0%
B72: =Vermögen!E28 -> 18. | C72: =Vermögen!F28 -> 0 | D72: =Vermögen!S28 -> 0 | E72: =INDEX($D$18:$E$21,MATCH(Nachhaltigkeit_PRISC!H32,Ausschlusskategorien,0),2)*Nachhaltigkeit_PRISC!$H$13 -> 0.0% | F72: =INDEX($D$22:$E$25,MATCH(Nachhaltigkeit_PRISC!I32,Impact_SDG,0),2)*Nachhaltigkeit_PRISC!$I$13 -> 0.0% | G72: =INDEX($D$26:$E$29,MATCH(Nachhaltigkeit_PRISC!J32,ESG_Messmethode,0),2)*Nachhaltigkeit_PRISC!$J$13 -> 0.0% | H72: =INDEX($D$30:$E$33,MATCH(Nachhaltigkeit_PRISC!K32,Best_of_Universe_Best_in_Class,0),2)*Nachhaltigkeit_PRISC!$K$13 -> 0.0% | I72: =INDEX($D$34:$E$37,MATCH(Nachhaltigkeit_PRISC!L32,ESG_Top,0),2)*Nachhaltigkeit_PRISC!$L$13 -> 0.0% | J72: =INDEX($D$38:$E$41,MATCH(Nachhaltigkeit_PRISC!M32,ESG_Frequenz,0),2)*Nachhaltigkeit_PRISC!$M$13 -> 0.0% | K72: =INDEX($D$42:$E$45,MATCH(Nachhaltigkeit_PRISC!N32,Stimmrechtsausübung,0),2)*Nachhaltigkeit_PRISC!$N$13 -> 0.0% | L72: =INDEX($D$46:$E$49,MATCH(Nachhaltigkeit_PRISC!O32,Engagement,0),2)*Nachhaltigkeit_PRISC!$O$13 -> 0.0% | M72: 0.0%
B73: =Vermögen!E29 -> 19. | C73: =Vermögen!F29 -> 0 | D73: =Vermögen!S29 -> 0 | E73: =INDEX($D$18:$E$21,MATCH(Nachhaltigkeit_PRISC!H33,Ausschlusskategorien,0),2)*Nachhaltigkeit_PRISC!$H$13 -> 0.0% | F73: =INDEX($D$22:$E$25,MATCH(Nachhaltigkeit_PRISC!I33,Impact_SDG,0),2)*Nachhaltigkeit_PRISC!$I$13 -> 0.0% | G73: =INDEX($D$26:$E$29,MATCH(Nachhaltigkeit_PRISC!J33,ESG_Messmethode,0),2)*Nachhaltigkeit_PRISC!$J$13 -> 0.0% | H73: =INDEX($D$30:$E$33,MATCH(Nachhaltigkeit_PRISC!K33,Best_of_Universe_Best_in_Class,0),2)*Nachhaltigkeit_PRISC!$K$13 -> 0.0% | I73: =INDEX($D$34:$E$37,MATCH(Nachhaltigkeit_PRISC!L33,ESG_Top,0),2)*Nachhaltigkeit_PRISC!$L$13 -> 0.0% | J73: =INDEX($D$38:$E$41,MATCH(Nachhaltigkeit_PRISC!M33,ESG_Frequenz,0),2)*Nachhaltigkeit_PRISC!$M$13 -> 0.0% | K73: =INDEX($D$42:$E$45,MATCH(Nachhaltigkeit_PRISC!N33,Stimmrechtsausübung,0),2)*Nachhaltigkeit_PRISC!$N$13 -> 0.0% | L73: =INDEX($D$46:$E$49,MATCH(Nachhaltigkeit_PRISC!O33,Engagement,0),2)*Nachhaltigkeit_PRISC!$O$13 -> 0.0% | M73: 0.0%
B74: =Vermögen!E30 -> 20. | C74: =Vermögen!F30 -> 0 | D74: =Vermögen!S30 -> 0 | E74: =INDEX($D$18:$E$21,MATCH(Nachhaltigkeit_PRISC!H34,Ausschlusskategorien,0),2)*Nachhaltigkeit_PRISC!$H$13 -> 0.0% | F74: =INDEX($D$22:$E$25,MATCH(Nachhaltigkeit_PRISC!I34,Impact_SDG,0),2)*Nachhaltigkeit_PRISC!$I$13 -> 0.0% | G74: =INDEX($D$26:$E$29,MATCH(Nachhaltigkeit_PRISC!J34,ESG_Messmethode,0),2)*Nachhaltigkeit_PRISC!$J$13 -> 0.0% | H74: =INDEX($D$30:$E$33,MATCH(Nachhaltigkeit_PRISC!K34,Best_of_Universe_Best_in_Class,0),2)*Nachhaltigkeit_PRISC!$K$13 -> 0.0% | I74: =INDEX($D$34:$E$37,MATCH(Nachhaltigkeit_PRISC!L34,ESG_Top,0),2)*Nachhaltigkeit_PRISC!$L$13 -> 0.0% | J74: =INDEX($D$38:$E$41,MATCH(Nachhaltigkeit_PRISC!M34,ESG_Frequenz,0),2)*Nachhaltigkeit_PRISC!$M$13 -> 0.0% | K74: =INDEX($D$42:$E$45,MATCH(Nachhaltigkeit_PRISC!N34,Stimmrechtsausübung,0),2)*Nachhaltigkeit_PRISC!$N$13 -> 0.0% | L74: =INDEX($D$46:$E$49,MATCH(Nachhaltigkeit_PRISC!O34,Engagement,0),2)*Nachhaltigkeit_PRISC!$O$13 -> 0.0% | M74: 0.0%
B75: =Vermögen!E31 -> 21. | C75: =Vermögen!F31 -> 0 | D75: =Vermögen!S31 -> 0 | E75: =INDEX($D$18:$E$21,MATCH(Nachhaltigkeit_PRISC!H35,Ausschlusskategorien,0),2)*Nachhaltigkeit_PRISC!$H$13 -> 0.0% | F75: =INDEX($D$22:$E$25,MATCH(Nachhaltigkeit_PRISC!I35,Impact_SDG,0),2)*Nachhaltigkeit_PRISC!$I$13 -> 0.0% | G75: =INDEX($D$26:$E$29,MATCH(Nachhaltigkeit_PRISC!J35,ESG_Messmethode,0),2)*Nachhaltigkeit_PRISC!$J$13 -> 0.0% | H75: =INDEX($D$30:$E$33,MATCH(Nachhaltigkeit_PRISC!K35,Best_of_Universe_Best_in_Class,0),2)*Nachhaltigkeit_PRISC!$K$13 -> 0.0% | I75: =INDEX($D$34:$E$37,MATCH(Nachhaltigkeit_PRISC!L35,ESG_Top,0),2)*Nachhaltigkeit_PRISC!$L$13 -> 0.0% | J75: =INDEX($D$38:$E$41,MATCH(Nachhaltigkeit_PRISC!M35,ESG_Frequenz,0),2)*Nachhaltigkeit_PRISC!$M$13 -> 0.0% | K75: =INDEX($D$42:$E$45,MATCH(Nachhaltigkeit_PRISC!N35,Stimmrechtsausübung,0),2)*Nachhaltigkeit_PRISC!$N$13 -> 0.0% | L75: =INDEX($D$46:$E$49,MATCH(Nachhaltigkeit_PRISC!O35,Engagement,0),2)*Nachhaltigkeit_PRISC!$O$13 -> 0.0% | M75: 0.0%
B76: =Vermögen!E32 -> 22. | C76: =Vermögen!F32 -> 0 | D76: =Vermögen!S32 -> 0 | E76: =INDEX($D$18:$E$21,MATCH(Nachhaltigkeit_PRISC!H36,Ausschlusskategorien,0),2)*Nachhaltigkeit_PRISC!$H$13 -> 0.0% | F76: =INDEX($D$22:$E$25,MATCH(Nachhaltigkeit_PRISC!I36,Impact_SDG,0),2)*Nachhaltigkeit_PRISC!$I$13 -> 0.0% | G76: =INDEX($D$26:$E$29,MATCH(Nachhaltigkeit_PRISC!J36,ESG_Messmethode,0),2)*Nachhaltigkeit_PRISC!$J$13 -> 0.0% | H76: =INDEX($D$30:$E$33,MATCH(Nachhaltigkeit_PRISC!K36,Best_of_Universe_Best_in_Class,0),2)*Nachhaltigkeit_PRISC!$K$13 -> 0.0% | I76: =INDEX($D$34:$E$37,MATCH(Nachhaltigkeit_PRISC!L36,ESG_Top,0),2)*Nachhaltigkeit_PRISC!$L$13 -> 0.0% | J76: =INDEX($D$38:$E$41,MATCH(Nachhaltigkeit_PRISC!M36,ESG_Frequenz,0),2)*Nachhaltigkeit_PRISC!$M$13 -> 0.0% | K76: =INDEX($D$42:$E$45,MATCH(Nachhaltigkeit_PRISC!N36,Stimmrechtsausübung,0),2)*Nachhaltigkeit_PRISC!$N$13 -> 0.0% | L76: =INDEX($D$46:$E$49,MATCH(Nachhaltigkeit_PRISC!O36,Engagement,0),2)*Nachhaltigkeit_PRISC!$O$13 -> 0.0% | M76: 0.0%
B77: =Vermögen!E33 -> 23. | C77: =Vermögen!F33 -> 0 | D77: =Vermögen!S33 -> 0 | E77: =INDEX($D$18:$E$21,MATCH(Nachhaltigkeit_PRISC!H37,Ausschlusskategorien,0),2)*Nachhaltigkeit_PRISC!$H$13 -> 0.0% | F77: =INDEX($D$22:$E$25,MATCH(Nachhaltigkeit_PRISC!I37,Impact_SDG,0),2)*Nachhaltigkeit_PRISC!$I$13 -> 0.0% | G77: =INDEX($D$26:$E$29,MATCH(Nachhaltigkeit_PRISC!J37,ESG_Messmethode,0),2)*Nachhaltigkeit_PRISC!$J$13 -> 0.0% | H77: =INDEX($D$30:$E$33,MATCH(Nachhaltigkeit_PRISC!K37,Best_of_Universe_Best_in_Class,0),2)*Nachhaltigkeit_PRISC!$K$13 -> 0.0% | I77: =INDEX($D$34:$E$37,MATCH(Nachhaltigkeit_PRISC!L37,ESG_Top,0),2)*Nachhaltigkeit_PRISC!$L$13 -> 0.0% | J77: =INDEX($D$38:$E$41,MATCH(Nachhaltigkeit_PRISC!M37,ESG_Frequenz,0),2)*Nachhaltigkeit_PRISC!$M$13 -> 0.0% | K77: =INDEX($D$42:$E$45,MATCH(Nachhaltigkeit_PRISC!N37,Stimmrechtsausübung,0),2)*Nachhaltigkeit_PRISC!$N$13 -> 0.0% | L77: =INDEX($D$46:$E$49,MATCH(Nachhaltigkeit_PRISC!O37,Engagement,0),2)*Nachhaltigkeit_PRISC!$O$13 -> 0.0% | M77: 0.0%
B78: =Vermögen!E34 -> 24. | C78: =Vermögen!F34 -> 0 | D78: =Vermögen!S34 -> 0 | E78: =INDEX($D$18:$E$21,MATCH(Nachhaltigkeit_PRISC!H38,Ausschlusskategorien,0),2)*Nachhaltigkeit_PRISC!$H$13 -> 0.0% | F78: =INDEX($D$22:$E$25,MATCH(Nachhaltigkeit_PRISC!I38,Impact_SDG,0),2)*Nachhaltigkeit_PRISC!$I$13 -> 0.0% | G78: =INDEX($D$26:$E$29,MATCH(Nachhaltigkeit_PRISC!J38,ESG_Messmethode,0),2)*Nachhaltigkeit_PRISC!$J$13 -> 0.0% | H78: =INDEX($D$30:$E$33,MATCH(Nachhaltigkeit_PRISC!K38,Best_of_Universe_Best_in_Class,0),2)*Nachhaltigkeit_PRISC!$K$13 -> 0.0% | I78: =INDEX($D$34:$E$37,MATCH(Nachhaltigkeit_PRISC!L38,ESG_Top,0),2)*Nachhaltigkeit_PRISC!$L$13 -> 0.0% | J78: =INDEX($D$38:$E$41,MATCH(Nachhaltigkeit_PRISC!M38,ESG_Frequenz,0),2)*Nachhaltigkeit_PRISC!$M$13 -> 0.0% | K78: =INDEX($D$42:$E$45,MATCH(Nachhaltigkeit_PRISC!N38,Stimmrechtsausübung,0),2)*Nachhaltigkeit_PRISC!$N$13 -> 0.0% | L78: =INDEX($D$46:$E$49,MATCH(Nachhaltigkeit_PRISC!O38,Engagement,0),2)*Nachhaltigkeit_PRISC!$O$13 -> 0.0% | M78: 0.0%
B79: =Vermögen!E35 -> 25. | C79: =Vermögen!F35 -> 0 | D79: =Vermögen!S35 -> 0 | E79: =INDEX($D$18:$E$21,MATCH(Nachhaltigkeit_PRISC!H39,Ausschlusskategorien,0),2)*Nachhaltigkeit_PRISC!$H$13 -> 0.0% | F79: =INDEX($D$22:$E$25,MATCH(Nachhaltigkeit_PRISC!I39,Impact_SDG,0),2)*Nachhaltigkeit_PRISC!$I$13 -> 0.0% | G79: =INDEX($D$26:$E$29,MATCH(Nachhaltigkeit_PRISC!J39,ESG_Messmethode,0),2)*Nachhaltigkeit_PRISC!$J$13 -> 0.0% | H79: =INDEX($D$30:$E$33,MATCH(Nachhaltigkeit_PRISC!K39,Best_of_Universe_Best_in_Class,0),2)*Nachhaltigkeit_PRISC!$K$13 -> 0.0% | I79: =INDEX($D$34:$E$37,MATCH(Nachhaltigkeit_PRISC!L39,ESG_Top,0),2)*Nachhaltigkeit_PRISC!$L$13 -> 0.0% | J79: =INDEX($D$38:$E$41,MATCH(Nachhaltigkeit_PRISC!M39,ESG_Frequenz,0),2)*Nachhaltigkeit_PRISC!$M$13 -> 0.0% | K79: =INDEX($D$42:$E$45,MATCH(Nachhaltigkeit_PRISC!N39,Stimmrechtsausübung,0),2)*Nachhaltigkeit_PRISC!$N$13 -> 0.0% | L79: =INDEX($D$46:$E$49,MATCH(Nachhaltigkeit_PRISC!O39,Engagement,0),2)*Nachhaltigkeit_PRISC!$O$13 -> 0.0% | M79: 0.0%
B80: =Vermögen!E36 -> 26. | C80: =Vermögen!F36 -> 0 | D80: =Vermögen!S36 -> 0 | E80: =INDEX($D$18:$E$21,MATCH(Nachhaltigkeit_PRISC!H40,Ausschlusskategorien,0),2)*Nachhaltigkeit_PRISC!$H$13 -> 0.0% | F80: =INDEX($D$22:$E$25,MATCH(Nachhaltigkeit_PRISC!I40,Impact_SDG,0),2)*Nachhaltigkeit_PRISC!$I$13 -> 0.0% | G80: =INDEX($D$26:$E$29,MATCH(Nachhaltigkeit_PRISC!J40,ESG_Messmethode,0),2)*Nachhaltigkeit_PRISC!$J$13 -> 0.0% | H80: =INDEX($D$30:$E$33,MATCH(Nachhaltigkeit_PRISC!K40,Best_of_Universe_Best_in_Class,0),2)*Nachhaltigkeit_PRISC!$K$13 -> 0.0% | I80: =INDEX($D$34:$E$37,MATCH(Nachhaltigkeit_PRISC!L40,ESG_Top,0),2)*Nachhaltigkeit_PRISC!$L$13 -> 0.0% | J80: =INDEX($D$38:$E$41,MATCH(Nachhaltigkeit_PRISC!M40,ESG_Frequenz,0),2)*Nachhaltigkeit_PRISC!$M$13 -> 0.0% | K80: =INDEX($D$42:$E$45,MATCH(Nachhaltigkeit_PRISC!N40,Stimmrechtsausübung,0),2)*Nachhaltigkeit_PRISC!$N$13 -> 0.0% | L80: =INDEX($D$46:$E$49,MATCH(Nachhaltigkeit_PRISC!O40,Engagement,0),2)*Nachhaltigkeit_PRISC!$O$13 -> 0.0% | M80: 0.0%
B81: =Vermögen!E37 -> 27. | C81: =Vermögen!F37 -> 0 | D81: =Vermögen!S37 -> 0 | E81: =INDEX($D$18:$E$21,MATCH(Nachhaltigkeit_PRISC!H41,Ausschlusskategorien,0),2)*Nachhaltigkeit_PRISC!$H$13 -> 0.0% | F81: =INDEX($D$22:$E$25,MATCH(Nachhaltigkeit_PRISC!I41,Impact_SDG,0),2)*Nachhaltigkeit_PRISC!$I$13 -> 0.0% | G81: =INDEX($D$26:$E$29,MATCH(Nachhaltigkeit_PRISC!J41,ESG_Messmethode,0),2)*Nachhaltigkeit_PRISC!$J$13 -> 0.0% | H81: =INDEX($D$30:$E$33,MATCH(Nachhaltigkeit_PRISC!K41,Best_of_Universe_Best_in_Class,0),2)*Nachhaltigkeit_PRISC!$K$13 -> 0.0% | I81: =INDEX($D$34:$E$37,MATCH(Nachhaltigkeit_PRISC!L41,ESG_Top,0),2)*Nachhaltigkeit_PRISC!$L$13 -> 0.0% | J81: =INDEX($D$38:$E$41,MATCH(Nachhaltigkeit_PRISC!M41,ESG_Frequenz,0),2)*Nachhaltigkeit_PRISC!$M$13 -> 0.0% | K81: =INDEX($D$42:$E$45,MATCH(Nachhaltigkeit_PRISC!N41,Stimmrechtsausübung,0),2)*Nachhaltigkeit_PRISC!$N$13 -> 0.0% | L81: =INDEX($D$46:$E$49,MATCH(Nachhaltigkeit_PRISC!O41,Engagement,0),2)*Nachhaltigkeit_PRISC!$O$13 -> 0.0% | M81: 0.0%
B82: =Vermögen!E38 -> 28. | C82: =Vermögen!F38 -> 0 | D82: =Vermögen!S38 -> 0 | E82: =INDEX($D$18:$E$21,MATCH(Nachhaltigkeit_PRISC!H42,Ausschlusskategorien,0),2)*Nachhaltigkeit_PRISC!$H$13 -> 0.0% | F82: =INDEX($D$22:$E$25,MATCH(Nachhaltigkeit_PRISC!I42,Impact_SDG,0),2)*Nachhaltigkeit_PRISC!$I$13 -> 0.0% | G82: =INDEX($D$26:$E$29,MATCH(Nachhaltigkeit_PRISC!J42,ESG_Messmethode,0),2)*Nachhaltigkeit_PRISC!$J$13 -> 0.0% | H82: =INDEX($D$30:$E$33,MATCH(Nachhaltigkeit_PRISC!K42,Best_of_Universe_Best_in_Class,0),2)*Nachhaltigkeit_PRISC!$K$13 -> 0.0% | I82: =INDEX($D$34:$E$37,MATCH(Nachhaltigkeit_PRISC!L42,ESG_Top,0),2)*Nachhaltigkeit_PRISC!$L$13 -> 0.0% | J82: =INDEX($D$38:$E$41,MATCH(Nachhaltigkeit_PRISC!M42,ESG_Frequenz,0),2)*Nachhaltigkeit_PRISC!$M$13 -> 0.0% | K82: =INDEX($D$42:$E$45,MATCH(Nachhaltigkeit_PRISC!N42,Stimmrechtsausübung,0),2)*Nachhaltigkeit_PRISC!$N$13 -> 0.0% | L82: =INDEX($D$46:$E$49,MATCH(Nachhaltigkeit_PRISC!O42,Engagement,0),2)*Nachhaltigkeit_PRISC!$O$13 -> 0.0% | M82: 0.0%
B83: =Vermögen!E39 -> 29. | C83: =Vermögen!F39 -> 0 | D83: =Vermögen!S39 -> 0 | E83: =INDEX($D$18:$E$21,MATCH(Nachhaltigkeit_PRISC!H43,Ausschlusskategorien,0),2)*Nachhaltigkeit_PRISC!$H$13 -> 0.0% | F83: =INDEX($D$22:$E$25,MATCH(Nachhaltigkeit_PRISC!I43,Impact_SDG,0),2)*Nachhaltigkeit_PRISC!$I$13 -> 0.0% | G83: =INDEX($D$26:$E$29,MATCH(Nachhaltigkeit_PRISC!J43,ESG_Messmethode,0),2)*Nachhaltigkeit_PRISC!$J$13 -> 0.0% | H83: =INDEX($D$30:$E$33,MATCH(Nachhaltigkeit_PRISC!K43,Best_of_Universe_Best_in_Class,0),2)*Nachhaltigkeit_PRISC!$K$13 -> 0.0% | I83: =INDEX($D$34:$E$37,MATCH(Nachhaltigkeit_PRISC!L43,ESG_Top,0),2)*Nachhaltigkeit_PRISC!$L$13 -> 0.0% | J83: =INDEX($D$38:$E$41,MATCH(Nachhaltigkeit_PRISC!M43,ESG_Frequenz,0),2)*Nachhaltigkeit_PRISC!$M$13 -> 0.0% | K83: =INDEX($D$42:$E$45,MATCH(Nachhaltigkeit_PRISC!N43,Stimmrechtsausübung,0),2)*Nachhaltigkeit_PRISC!$N$13 -> 0.0% | L83: =INDEX($D$46:$E$49,MATCH(Nachhaltigkeit_PRISC!O43,Engagement,0),2)*Nachhaltigkeit_PRISC!$O$13 -> 0.0% | M83: 0.0%
B84: =Vermögen!E40 -> 30. | C84: =Vermögen!F40 -> 0 | D84: =Vermögen!S40 -> 0 | E84: =INDEX($D$18:$E$21,MATCH(Nachhaltigkeit_PRISC!H44,Ausschlusskategorien,0),2)*Nachhaltigkeit_PRISC!$H$13 -> 0.0% | F84: =INDEX($D$22:$E$25,MATCH(Nachhaltigkeit_PRISC!I44,Impact_SDG,0),2)*Nachhaltigkeit_PRISC!$I$13 -> 0.0% | G84: =INDEX($D$26:$E$29,MATCH(Nachhaltigkeit_PRISC!J44,ESG_Messmethode,0),2)*Nachhaltigkeit_PRISC!$J$13 -> 0.0% | H84: =INDEX($D$30:$E$33,MATCH(Nachhaltigkeit_PRISC!K44,Best_of_Universe_Best_in_Class,0),2)*Nachhaltigkeit_PRISC!$K$13 -> 0.0% | I84: =INDEX($D$34:$E$37,MATCH(Nachhaltigkeit_PRISC!L44,ESG_Top,0),2)*Nachhaltigkeit_PRISC!$L$13 -> 0.0% | J84: =INDEX($D$38:$E$41,MATCH(Nachhaltigkeit_PRISC!M44,ESG_Frequenz,0),2)*Nachhaltigkeit_PRISC!$M$13 -> 0.0% | K84: =INDEX($D$42:$E$45,MATCH(Nachhaltigkeit_PRISC!N44,Stimmrechtsausübung,0),2)*Nachhaltigkeit_PRISC!$N$13 -> 0.0% | L84: =INDEX($D$46:$E$49,MATCH(Nachhaltigkeit_PRISC!O44,Engagement,0),2)*Nachhaltigkeit_PRISC!$O$13 -> 0.0% | M84: 0.0%
B85: =Vermögen!E41 -> 31. | C85: =Vermögen!F41 -> 0 | D85: =Vermögen!S41 -> 0 | E85: =INDEX($D$18:$E$21,MATCH(Nachhaltigkeit_PRISC!H45,Ausschlusskategorien,0),2)*Nachhaltigkeit_PRISC!$H$13 -> 0.0% | F85: =INDEX($D$22:$E$25,MATCH(Nachhaltigkeit_PRISC!I45,Impact_SDG,0),2)*Nachhaltigkeit_PRISC!$I$13 -> 0.0% | G85: =INDEX($D$26:$E$29,MATCH(Nachhaltigkeit_PRISC!J45,ESG_Messmethode,0),2)*Nachhaltigkeit_PRISC!$J$13 -> 0.0% | H85: =INDEX($D$30:$E$33,MATCH(Nachhaltigkeit_PRISC!K45,Best_of_Universe_Best_in_Class,0),2)*Nachhaltigkeit_PRISC!$K$13 -> 0.0% | I85: =INDEX($D$34:$E$37,MATCH(Nachhaltigkeit_PRISC!L45,ESG_Top,0),2)*Nachhaltigkeit_PRISC!$L$13 -> 0.0% | J85: =INDEX($D$38:$E$41,MATCH(Nachhaltigkeit_PRISC!M45,ESG_Frequenz,0),2)*Nachhaltigkeit_PRISC!$M$13 -> 0.0% | K85: =INDEX($D$42:$E$45,MATCH(Nachhaltigkeit_PRISC!N45,Stimmrechtsausübung,0),2)*Nachhaltigkeit_PRISC!$N$13 -> 0.0% | L85: =INDEX($D$46:$E$49,MATCH(Nachhaltigkeit_PRISC!O45,Engagement,0),2)*Nachhaltigkeit_PRISC!$O$13 -> 0.0% | M85: 0.0%
B86: =Vermögen!E42 -> 32. | C86: =Vermögen!F42 -> 0 | D86: =Vermögen!S42 -> 0 | E86: =INDEX($D$18:$E$21,MATCH(Nachhaltigkeit_PRISC!H46,Ausschlusskategorien,0),2)*Nachhaltigkeit_PRISC!$H$13 -> 0.0% | F86: =INDEX($D$22:$E$25,MATCH(Nachhaltigkeit_PRISC!I46,Impact_SDG,0),2)*Nachhaltigkeit_PRISC!$I$13 -> 0.0% | G86: =INDEX($D$26:$E$29,MATCH(Nachhaltigkeit_PRISC!J46,ESG_Messmethode,0),2)*Nachhaltigkeit_PRISC!$J$13 -> 0.0% | H86: =INDEX($D$30:$E$33,MATCH(Nachhaltigkeit_PRISC!K46,Best_of_Universe_Best_in_Class,0),2)*Nachhaltigkeit_PRISC!$K$13 -> 0.0% | I86: =INDEX($D$34:$E$37,MATCH(Nachhaltigkeit_PRISC!L46,ESG_Top,0),2)*Nachhaltigkeit_PRISC!$L$13 -> 0.0% | J86: =INDEX($D$38:$E$41,MATCH(Nachhaltigkeit_PRISC!M46,ESG_Frequenz,0),2)*Nachhaltigkeit_PRISC!$M$13 -> 0.0% | K86: =INDEX($D$42:$E$45,MATCH(Nachhaltigkeit_PRISC!N46,Stimmrechtsausübung,0),2)*Nachhaltigkeit_PRISC!$N$13 -> 0.0% | L86: =INDEX($D$46:$E$49,MATCH(Nachhaltigkeit_PRISC!O46,Engagement,0),2)*Nachhaltigkeit_PRISC!$O$13 -> 0.0% | M86: 0.0%
B87: =Vermögen!E43 -> 33. | C87: =Vermögen!F43 -> 0 | D87: =Vermögen!S43 -> 0 | E87: =INDEX($D$18:$E$21,MATCH(Nachhaltigkeit_PRISC!H47,Ausschlusskategorien,0),2)*Nachhaltigkeit_PRISC!$H$13 -> 0.0% | F87: =INDEX($D$22:$E$25,MATCH(Nachhaltigkeit_PRISC!I47,Impact_SDG,0),2)*Nachhaltigkeit_PRISC!$I$13 -> 0.0% | G87: =INDEX($D$26:$E$29,MATCH(Nachhaltigkeit_PRISC!J47,ESG_Messmethode,0),2)*Nachhaltigkeit_PRISC!$J$13 -> 0.0% | H87: =INDEX($D$30:$E$33,MATCH(Nachhaltigkeit_PRISC!K47,Best_of_Universe_Best_in_Class,0),2)*Nachhaltigkeit_PRISC!$K$13 -> 0.0% | I87: =INDEX($D$34:$E$37,MATCH(Nachhaltigkeit_PRISC!L47,ESG_Top,0),2)*Nachhaltigkeit_PRISC!$L$13 -> 0.0% | J87: =INDEX($D$38:$E$41,MATCH(Nachhaltigkeit_PRISC!M47,ESG_Frequenz,0),2)*Nachhaltigkeit_PRISC!$M$13 -> 0.0% | K87: =INDEX($D$42:$E$45,MATCH(Nachhaltigkeit_PRISC!N47,Stimmrechtsausübung,0),2)*Nachhaltigkeit_PRISC!$N$13 -> 0.0% | L87: =INDEX($D$46:$E$49,MATCH(Nachhaltigkeit_PRISC!O47,Engagement,0),2)*Nachhaltigkeit_PRISC!$O$13 -> 0.0% | M87: 0.0%
B88: =Vermögen!E44 -> 34. | C88: =Vermögen!F44 -> 0 | D88: =Vermögen!S44 -> 0 | E88: =INDEX($D$18:$E$21,MATCH(Nachhaltigkeit_PRISC!H48,Ausschlusskategorien,0),2)*Nachhaltigkeit_PRISC!$H$13 -> 0.0% | F88: =INDEX($D$22:$E$25,MATCH(Nachhaltigkeit_PRISC!I48,Impact_SDG,0),2)*Nachhaltigkeit_PRISC!$I$13 -> 0.0% | G88: =INDEX($D$26:$E$29,MATCH(Nachhaltigkeit_PRISC!J48,ESG_Messmethode,0),2)*Nachhaltigkeit_PRISC!$J$13 -> 0.0% | H88: =INDEX($D$30:$E$33,MATCH(Nachhaltigkeit_PRISC!K48,Best_of_Universe_Best_in_Class,0),2)*Nachhaltigkeit_PRISC!$K$13 -> 0.0% | I88: =INDEX($D$34:$E$37,MATCH(Nachhaltigkeit_PRISC!L48,ESG_Top,0),2)*Nachhaltigkeit_PRISC!$L$13 -> 0.0% | J88: =INDEX($D$38:$E$41,MATCH(Nachhaltigkeit_PRISC!M48,ESG_Frequenz,0),2)*Nachhaltigkeit_PRISC!$M$13 -> 0.0% | K88: =INDEX($D$42:$E$45,MATCH(Nachhaltigkeit_PRISC!N48,Stimmrechtsausübung,0),2)*Nachhaltigkeit_PRISC!$N$13 -> 0.0% | L88: =INDEX($D$46:$E$49,MATCH(Nachhaltigkeit_PRISC!O48,Engagement,0),2)*Nachhaltigkeit_PRISC!$O$13 -> 0.0% | M88: 0.0%
B89: =Vermögen!E45 -> 35. | C89: =Vermögen!F45 -> 0 | D89: =Vermögen!S45 -> 0 | E89: =INDEX($D$18:$E$21,MATCH(Nachhaltigkeit_PRISC!H49,Ausschlusskategorien,0),2)*Nachhaltigkeit_PRISC!$H$13 -> 0.0% | F89: =INDEX($D$22:$E$25,MATCH(Nachhaltigkeit_PRISC!I49,Impact_SDG,0),2)*Nachhaltigkeit_PRISC!$I$13 -> 0.0% | G89: =INDEX($D$26:$E$29,MATCH(Nachhaltigkeit_PRISC!J49,ESG_Messmethode,0),2)*Nachhaltigkeit_PRISC!$J$13 -> 0.0% | H89: =INDEX($D$30:$E$33,MATCH(Nachhaltigkeit_PRISC!K49,Best_of_Universe_Best_in_Class,0),2)*Nachhaltigkeit_PRISC!$K$13 -> 0.0% | I89: =INDEX($D$34:$E$37,MATCH(Nachhaltigkeit_PRISC!L49,ESG_Top,0),2)*Nachhaltigkeit_PRISC!$L$13 -> 0.0% | J89: =INDEX($D$38:$E$41,MATCH(Nachhaltigkeit_PRISC!M49,ESG_Frequenz,0),2)*Nachhaltigkeit_PRISC!$M$13 -> 0.0% | K89: =INDEX($D$42:$E$45,MATCH(Nachhaltigkeit_PRISC!N49,Stimmrechtsausübung,0),2)*Nachhaltigkeit_PRISC!$N$13 -> 0.0% | L89: =INDEX($D$46:$E$49,MATCH(Nachhaltigkeit_PRISC!O49,Engagement,0),2)*Nachhaltigkeit_PRISC!$O$13 -> 0.0% | M89: 0.0%
B90: =Vermögen!E46 -> 36. | C90: =Vermögen!F46 -> 0 | D90: =Vermögen!S46 -> 0 | E90: =INDEX($D$18:$E$21,MATCH(Nachhaltigkeit_PRISC!H50,Ausschlusskategorien,0),2)*Nachhaltigkeit_PRISC!$H$13 -> 0.0% | F90: =INDEX($D$22:$E$25,MATCH(Nachhaltigkeit_PRISC!I50,Impact_SDG,0),2)*Nachhaltigkeit_PRISC!$I$13 -> 0.0% | G90: =INDEX($D$26:$E$29,MATCH(Nachhaltigkeit_PRISC!J50,ESG_Messmethode,0),2)*Nachhaltigkeit_PRISC!$J$13 -> 0.0% | H90: =INDEX($D$30:$E$33,MATCH(Nachhaltigkeit_PRISC!K50,Best_of_Universe_Best_in_Class,0),2)*Nachhaltigkeit_PRISC!$K$13 -> 0.0% | I90: =INDEX($D$34:$E$37,MATCH(Nachhaltigkeit_PRISC!L50,ESG_Top,0),2)*Nachhaltigkeit_PRISC!$L$13 -> 0.0% | J90: =INDEX($D$38:$E$41,MATCH(Nachhaltigkeit_PRISC!M50,ESG_Frequenz,0),2)*Nachhaltigkeit_PRISC!$M$13 -> 0.0% | K90: =INDEX($D$42:$E$45,MATCH(Nachhaltigkeit_PRISC!N50,Stimmrechtsausübung,0),2)*Nachhaltigkeit_PRISC!$N$13 -> 0.0% | L90: =INDEX($D$46:$E$49,MATCH(Nachhaltigkeit_PRISC!O50,Engagement,0),2)*Nachhaltigkeit_PRISC!$O$13 -> 0.0% | M90: 0.0%
B91: =Vermögen!E47 -> 37. | C91: =Vermögen!F60 -> 0 | D91: =Vermögen!S47 -> 0 | E91: =INDEX($D$18:$E$21,MATCH(Nachhaltigkeit_PRISC!H64,Ausschlusskategorien,0),2)*Nachhaltigkeit_PRISC!$H$13 -> 0.0% | F91: =INDEX($D$22:$E$25,MATCH(Nachhaltigkeit_PRISC!I64,Impact_SDG,0),2)*Nachhaltigkeit_PRISC!$I$13 -> 0.0% | G91: =INDEX($D$26:$E$29,MATCH(Nachhaltigkeit_PRISC!J64,ESG_Messmethode,0),2)*Nachhaltigkeit_PRISC!$J$13 -> 0.0% | H91: =INDEX($D$30:$E$33,MATCH(Nachhaltigkeit_PRISC!K64,Best_of_Universe_Best_in_Class,0),2)*Nachhaltigkeit_PRISC!$K$13 -> 0.0% | I91: =INDEX($D$34:$E$37,MATCH(Nachhaltigkeit_PRISC!L64,ESG_Top,0),2)*Nachhaltigkeit_PRISC!$L$13 -> 0.0% | J91: =INDEX($D$38:$E$41,MATCH(Nachhaltigkeit_PRISC!M64,ESG_Frequenz,0),2)*Nachhaltigkeit_PRISC!$M$13 -> 0.0% | K91: =INDEX($D$42:$E$45,MATCH(Nachhaltigkeit_PRISC!N64,Stimmrechtsausübung,0),2)*Nachhaltigkeit_PRISC!$N$13 -> 0.0% | L91: =INDEX($D$46:$E$49,MATCH(Nachhaltigkeit_PRISC!O64,Engagement,0),2)*Nachhaltigkeit_PRISC!$O$13 -> 0.0% | M91: =SUM(E91:L91) -> 0.0%
C92: Summe | D92: =SUM(D55:D91) ->  | E92: 0.0% | F92: 0.0% | G92: 0.0% | H92: 0.0% | I92: 0.0% | J92: 0.0% | K92: 0.0% | L92: 0.0% | M92: 0.0%
B94: Nachhaltigkeitsstrategien quantitativ im Bestandsvermögen
E95: =E54 -> Ausschlusskategorien | F95: Impact/SDG-Ziele | G95: ESG-Messmethode | H95: Best of Univ./in Class | I95: ESG Top % | J95: ESG Messfrequenz | K95: Stimmrechtsausübg. | L95: Engagement | M95: VG vorh.
B96: =B55 -> 1. | C96: 0 | E96: =IF(E55>0,1,0) -> 0 | F96: 0 | G96: 0 | H96: 0 | I96: 0 | J96: 0 | K96: 0 | L96: 0 | M96: =IF(C96>0,1,0) -> 0
B97: 2. | C97: 0 | D97: 0 | E97: 0 | F97: 0 | G97: 0 | H97: 0 | I97: 0 | J97: 0 | K97: 0 | L97: 0 | M97: =IF(C97>0,1,0) -> 0
B98: 3. | C98: 0 | D98: 0 | E98: 0 | F98: 0 | G98: 0 | H98: 0 | I98: 0 | J98: 0 | K98: 0 | L98: 0 | M98: 0
B99: 4. | C99: 0 | D99: 0 | E99: 0 | F99: 0 | G99: 0 | H99: 0 | I99: 0 | J99: 0 | K99: 0 | L99: 0 | M99: 0
B100: 5. | C100: 0 | D100: 0 | E100: 0 | F100: 0 | G100: 0 | H100: 0 | I100: 0 | J100: 0 | K100: 0 | L100: 0 | M100: 0
B101: 6. | D101: 0 | E101: 0 | F101: 0 | G101: 0 | H101: 0 | I101: 0 | J101: 0 | K101: 0 | L101: 0
B102: 7. | C102: 0 | D102: 0 | E102: 0 | F102: 0 | G102: 0 | H102: 0 | I102: 0 | J102: 0 | K102: 0 | L102: 0 | M102: 0
B103: 8. | C103: 0 | D103: 0 | E103: 0 | F103: 0 | G103: 0 | H103: 0 | I103: 0 | J103: 0 | K103: 0 | L103: 0 | M103: 0
B104: 9. | C104: 0 | D104: 0 | E104: 0 | F104: 0 | G104: 0 | H104: 0 | I104: 0 | J104: 0 | K104: 0 | L104: 0 | M104: 0
B105: 10. | C105: 0 | D105: 0 | E105: 0 | F105: 0 | G105: 0 | H105: 0 | I105: 0 | J105: 0 | K105: 0 | L105: 0 | M105: 0
B106: 11. | C106: 0 | D106: 0 | E106: 0 | F106: 0 | G106: 0 | H106: 0 | I106: 0 | J106: 0 | K106: 0 | L106: 0 | M106: 0
B107: =#REF! ->  | C107: =#REF! ->  | D107: =#REF! ->  | E107: =IF(#REF!>0,1,0) ->  | F107: =IF(#REF!>0,1,0) ->  | G107: =IF(#REF!>0,1,0) ->  | H107: =IF(#REF!>0,1,0) ->  | I107: =IF(#REF!>0,1,0) ->  | J107: =IF(#REF!>0,1,0) ->  | K107: =IF(#REF!>0,1,0) ->  | L107: =IF(#REF!>0,1,0) -> 
C108: Summe | D108: =SUM(D96:D107) ->  | E108: =SUMIF(E96:E107,1,$D$96:$D$107) -> 0 | F108: 0 | G108: 0 | H108: 0 | I108: 0 | J108: 0 | K108: 0 | L108: 0 | M108: =SUM(E108:L108) -> 0
C109: Quote | D109: 100% | E109: =E108/$D$108 ->  | M109: =SUM(E109:L109) -> 
C110: Zielerreichung | E110: =IF(E109>Anlageziele!$O$32,Anlageziele!$O$32,'Daten_Nachhaltigkt. PRISC'!E109) ->  | F110: =IF(F109>Anlageziele!$O$33,Anlageziele!$O$33,'Daten_Nachhaltigkt. PRISC'!F109) ->  | G110: =IF(G109>Anlageziele!$O$34,Anlageziele!$O$34,'Daten_Nachhaltigkt. PRISC'!G109) ->  | H110: =IF(H109>Anlageziele!$O$35,Anlageziele!$O$35,'Daten_Nachhaltigkt. PRISC'!H109) ->  | I110: =IF(I109>Anlageziele!$O$36,Anlageziele!$O$36,'Daten_Nachhaltigkt. PRISC'!I109) ->  | J110: =IF(J109>Anlageziele!$O$37,Anlageziele!$O$37,'Daten_Nachhaltigkt. PRISC'!J109) ->  | K110: =IF(K109>Anlageziele!$O$38,Anlageziele!$O$38,'Daten_Nachhaltigkt. PRISC'!K109) ->  | L110: =IF(L109>Anlageziele!$O$39,Anlageziele!$O$39,'Daten_Nachhaltigkt. PRISC'!L109) ->  | M110: =SUM(E110:L110) -> 
M112: PRISC-Sore | N112: PRISC-Sore
B113: Nr. | C113: Umschichtung | D113: Wert EUR | E113: =E54 -> Ausschlusskategorien | F113: Impact/SDG-Ziele | G113: ESG-Messmethode | H113: Best of Univ./in Class | I113: ESG Top % | J113: ESG Messfrequenz | K113: Stimmrechtsausübg. | L113: Engagement | M113: absolut | N113: gewichtet
B114: =Umschichtung!F13 -> U1 | C114: =Umschichtung!G13 -> 0 | D114: =Umschichtung!K13 -> 0 | E114: =INDEX($D$18:$E$49,MATCH(Nachhaltigkeit_PRISC!H67,'Daten_Nachhaltigkt. PRISC'!$D$18:$D$49,0),2)*Nachhaltigkeit_PRISC!H$13 -> 0.0% | F114: =INDEX($D$18:$E$49,MATCH(Nachhaltigkeit_PRISC!I67,'Daten_Nachhaltigkt. PRISC'!$D$18:$D$49,0),2)*Nachhaltigkeit_PRISC!I$13 -> 0.0% | G114: =INDEX($D$18:$E$49,MATCH(Nachhaltigkeit_PRISC!J67,'Daten_Nachhaltigkt. PRISC'!$D$18:$D$49,0),2)*Nachhaltigkeit_PRISC!J$13 -> 0.0% | H114: =INDEX($D$18:$E$49,MATCH(Nachhaltigkeit_PRISC!K67,'Daten_Nachhaltigkt. PRISC'!$D$18:$D$49,0),2)*Nachhaltigkeit_PRISC!K$13 -> 0.0% | I114: =INDEX($D$18:$E$49,MATCH(Nachhaltigkeit_PRISC!L67,'Daten_Nachhaltigkt. PRISC'!$D$18:$D$49,0),2)*Nachhaltigkeit_PRISC!L$13 -> 0.0% | J114: =INDEX($D$18:$E$49,MATCH(Nachhaltigkeit_PRISC!M67,'Daten_Nachhaltigkt. PRISC'!$D$18:$D$49,0),2)*Nachhaltigkeit_PRISC!M$13 -> 0.0% | K114: =INDEX($D$18:$E$49,MATCH(Nachhaltigkeit_PRISC!N67,'Daten_Nachhaltigkt. PRISC'!$D$18:$D$49,0),2)*Nachhaltigkeit_PRISC!N$13 -> 0.0% | L114: =INDEX($D$18:$E$49,MATCH(Nachhaltigkeit_PRISC!O67,'Daten_Nachhaltigkt. PRISC'!$D$18:$D$49,0),2)*Nachhaltigkeit_PRISC!O$13 -> 0.0% | M114: =SUM(E114:L114) -> 0.0% | N114: =M114*$D114/$D$120 -> 
B115: =Umschichtung!F14 -> U2 | C115: =Umschichtung!G14 -> 0 | D115: =Umschichtung!K14 -> 0 | E115: =INDEX($D$18:$E$49,MATCH(Nachhaltigkeit_PRISC!H68,'Daten_Nachhaltigkt. PRISC'!$D$18:$D$49,0),2)*Nachhaltigkeit_PRISC!H$13 -> 0.0% | F115: =INDEX($D$18:$E$49,MATCH(Nachhaltigkeit_PRISC!I68,'Daten_Nachhaltigkt. PRISC'!$D$18:$D$49,0),2)*Nachhaltigkeit_PRISC!I$13 -> 0.0% | G115: =INDEX($D$18:$E$49,MATCH(Nachhaltigkeit_PRISC!J68,'Daten_Nachhaltigkt. PRISC'!$D$18:$D$49,0),2)*Nachhaltigkeit_PRISC!J$13 -> 0.0% | H115: =INDEX($D$18:$E$49,MATCH(Nachhaltigkeit_PRISC!K68,'Daten_Nachhaltigkt. PRISC'!$D$18:$D$49,0),2)*Nachhaltigkeit_PRISC!K$13 -> 0.0% | I115: =INDEX($D$18:$E$49,MATCH(Nachhaltigkeit_PRISC!L68,'Daten_Nachhaltigkt. PRISC'!$D$18:$D$49,0),2)*Nachhaltigkeit_PRISC!L$13 -> 0.0% | J115: =INDEX($D$18:$E$49,MATCH(Nachhaltigkeit_PRISC!M68,'Daten_Nachhaltigkt. PRISC'!$D$18:$D$49,0),2)*Nachhaltigkeit_PRISC!M$13 -> 0.0% | K115: =INDEX($D$18:$E$49,MATCH(Nachhaltigkeit_PRISC!N68,'Daten_Nachhaltigkt. PRISC'!$D$18:$D$49,0),2)*Nachhaltigkeit_PRISC!N$13 -> 0.0% | L115: =INDEX($D$18:$E$49,MATCH(Nachhaltigkeit_PRISC!O68,'Daten_Nachhaltigkt. PRISC'!$D$18:$D$49,0),2)*Nachhaltigkeit_PRISC!O$13 -> 0.0% | M115: 0.0%
B116: =Umschichtung!F15 -> U3 | C116: =Umschichtung!G15 -> 0 | D116: =Umschichtung!K15 -> 0 | E116: =INDEX($D$18:$E$49,MATCH(Nachhaltigkeit_PRISC!H69,'Daten_Nachhaltigkt. PRISC'!$D$18:$D$49,0),2)*Nachhaltigkeit_PRISC!H$13 -> 0.0% | F116: =INDEX($D$18:$E$49,MATCH(Nachhaltigkeit_PRISC!I69,'Daten_Nachhaltigkt. PRISC'!$D$18:$D$49,0),2)*Nachhaltigkeit_PRISC!I$13 -> 0.0% | G116: =INDEX($D$18:$E$49,MATCH(Nachhaltigkeit_PRISC!J69,'Daten_Nachhaltigkt. PRISC'!$D$18:$D$49,0),2)*Nachhaltigkeit_PRISC!J$13 -> 0.0% | H116: =INDEX($D$18:$E$49,MATCH(Nachhaltigkeit_PRISC!K69,'Daten_Nachhaltigkt. PRISC'!$D$18:$D$49,0),2)*Nachhaltigkeit_PRISC!K$13 -> 0.0% | I116: =INDEX($D$18:$E$49,MATCH(Nachhaltigkeit_PRISC!L69,'Daten_Nachhaltigkt. PRISC'!$D$18:$D$49,0),2)*Nachhaltigkeit_PRISC!L$13 -> 0.0% | J116: =INDEX($D$18:$E$49,MATCH(Nachhaltigkeit_PRISC!M69,'Daten_Nachhaltigkt. PRISC'!$D$18:$D$49,0),2)*Nachhaltigkeit_PRISC!M$13 -> 0.0% | K116: =INDEX($D$18:$E$49,MATCH(Nachhaltigkeit_PRISC!N69,'Daten_Nachhaltigkt. PRISC'!$D$18:$D$49,0),2)*Nachhaltigkeit_PRISC!N$13 -> 0.0% | L116: =INDEX($D$18:$E$49,MATCH(Nachhaltigkeit_PRISC!O69,'Daten_Nachhaltigkt. PRISC'!$D$18:$D$49,0),2)*Nachhaltigkeit_PRISC!O$13 -> 0.0% | M116: 0.0%
B117: =Umschichtung!F16 -> U4 | C117: =Umschichtung!G16 -> 0 | D117: =Umschichtung!K16 -> 0 | E117: =INDEX($D$18:$E$49,MATCH(Nachhaltigkeit_PRISC!H70,'Daten_Nachhaltigkt. PRISC'!$D$18:$D$49,0),2)*Nachhaltigkeit_PRISC!H$13 -> 0.0% | F117: =INDEX($D$18:$E$49,MATCH(Nachhaltigkeit_PRISC!I70,'Daten_Nachhaltigkt. PRISC'!$D$18:$D$49,0),2)*Nachhaltigkeit_PRISC!I$13 -> 0.0% | G117: =INDEX($D$18:$E$49,MATCH(Nachhaltigkeit_PRISC!J70,'Daten_Nachhaltigkt. PRISC'!$D$18:$D$49,0),2)*Nachhaltigkeit_PRISC!J$13 -> 0.0% | H117: =INDEX($D$18:$E$49,MATCH(Nachhaltigkeit_PRISC!K70,'Daten_Nachhaltigkt. PRISC'!$D$18:$D$49,0),2)*Nachhaltigkeit_PRISC!K$13 -> 0.0% | I117: =INDEX($D$18:$E$49,MATCH(Nachhaltigkeit_PRISC!L70,'Daten_Nachhaltigkt. PRISC'!$D$18:$D$49,0),2)*Nachhaltigkeit_PRISC!L$13 -> 0.0% | J117: =INDEX($D$18:$E$49,MATCH(Nachhaltigkeit_PRISC!M70,'Daten_Nachhaltigkt. PRISC'!$D$18:$D$49,0),2)*Nachhaltigkeit_PRISC!M$13 -> 0.0% | K117: =INDEX($D$18:$E$49,MATCH(Nachhaltigkeit_PRISC!N70,'Daten_Nachhaltigkt. PRISC'!$D$18:$D$49,0),2)*Nachhaltigkeit_PRISC!N$13 -> 0.0% | L117: =INDEX($D$18:$E$49,MATCH(Nachhaltigkeit_PRISC!O70,'Daten_Nachhaltigkt. PRISC'!$D$18:$D$49,0),2)*Nachhaltigkeit_PRISC!O$13 -> 0.0% | M117: 0.0%
B118: =Umschichtung!F17 -> U5 | C118: =Umschichtung!G17 -> 0 | D118: =Umschichtung!K17 -> 0 | E118: =INDEX($D$18:$E$49,MATCH(Nachhaltigkeit_PRISC!H71,'Daten_Nachhaltigkt. PRISC'!$D$18:$D$49,0),2)*Nachhaltigkeit_PRISC!H$13 -> 0.0% | F118: =INDEX($D$18:$E$49,MATCH(Nachhaltigkeit_PRISC!I71,'Daten_Nachhaltigkt. PRISC'!$D$18:$D$49,0),2)*Nachhaltigkeit_PRISC!I$13 -> 0.0% | G118: =INDEX($D$18:$E$49,MATCH(Nachhaltigkeit_PRISC!J71,'Daten_Nachhaltigkt. PRISC'!$D$18:$D$49,0),2)*Nachhaltigkeit_PRISC!J$13 -> 0.0% | H118: =INDEX($D$18:$E$49,MATCH(Nachhaltigkeit_PRISC!K71,'Daten_Nachhaltigkt. PRISC'!$D$18:$D$49,0),2)*Nachhaltigkeit_PRISC!K$13 -> 0.0% | I118: =INDEX($D$18:$E$49,MATCH(Nachhaltigkeit_PRISC!L71,'Daten_Nachhaltigkt. PRISC'!$D$18:$D$49,0),2)*Nachhaltigkeit_PRISC!L$13 -> 0.0% | J118: =INDEX($D$18:$E$49,MATCH(Nachhaltigkeit_PRISC!M71,'Daten_Nachhaltigkt. PRISC'!$D$18:$D$49,0),2)*Nachhaltigkeit_PRISC!M$13 -> 0.0% | K118: =INDEX($D$18:$E$49,MATCH(Nachhaltigkeit_PRISC!N71,'Daten_Nachhaltigkt. PRISC'!$D$18:$D$49,0),2)*Nachhaltigkeit_PRISC!N$13 -> 0.0% | L118: =INDEX($D$18:$E$49,MATCH(Nachhaltigkeit_PRISC!O71,'Daten_Nachhaltigkt. PRISC'!$D$18:$D$49,0),2)*Nachhaltigkeit_PRISC!O$13 -> 0.0% | M118: 0.0%
B119: =Umschichtung!F18 -> U6 | C119: =Umschichtung!G18 -> 0 | D119: =Umschichtung!K18 -> 0 | E119: =INDEX($D$18:$E$49,MATCH(Nachhaltigkeit_PRISC!H72,'Daten_Nachhaltigkt. PRISC'!$D$18:$D$49,0),2)*Nachhaltigkeit_PRISC!H$13 -> 0.0% | F119: =INDEX($D$18:$E$49,MATCH(Nachhaltigkeit_PRISC!I72,'Daten_Nachhaltigkt. PRISC'!$D$18:$D$49,0),2)*Nachhaltigkeit_PRISC!I$13 -> 0.0% | G119: =INDEX($D$18:$E$49,MATCH(Nachhaltigkeit_PRISC!J72,'Daten_Nachhaltigkt. PRISC'!$D$18:$D$49,0),2)*Nachhaltigkeit_PRISC!J$13 -> 0.0% | H119: =INDEX($D$18:$E$49,MATCH(Nachhaltigkeit_PRISC!K72,'Daten_Nachhaltigkt. PRISC'!$D$18:$D$49,0),2)*Nachhaltigkeit_PRISC!K$13 -> 0.0% | I119: =INDEX($D$18:$E$49,MATCH(Nachhaltigkeit_PRISC!L72,'Daten_Nachhaltigkt. PRISC'!$D$18:$D$49,0),2)*Nachhaltigkeit_PRISC!L$13 -> 0.0% | J119: =INDEX($D$18:$E$49,MATCH(Nachhaltigkeit_PRISC!M72,'Daten_Nachhaltigkt. PRISC'!$D$18:$D$49,0),2)*Nachhaltigkeit_PRISC!M$13 -> 0.0% | K119: =INDEX($D$18:$E$49,MATCH(Nachhaltigkeit_PRISC!N72,'Daten_Nachhaltigkt. PRISC'!$D$18:$D$49,0),2)*Nachhaltigkeit_PRISC!N$13 -> 0.0% | L119: =INDEX($D$18:$E$49,MATCH(Nachhaltigkeit_PRISC!O72,'Daten_Nachhaltigkt. PRISC'!$D$18:$D$49,0),2)*Nachhaltigkeit_PRISC!O$13 -> 0.0% | M119: 0.0%
C120: Summe | D120: =SUM(D114:D119) -> 0 | E120: =SUM(E114:E119) -> 0.0% | F120: 0.0% | G120: 0.0% | H120: 0.0% | I120: 0.0% | J120: 0.0% | K120: 0.0% | L120: 0.0% | M120: =SUM(M114:M119) -> 0.0% | N120: =SUM(N114:N119) -> 
B122: Nachhaltigkeitsstrategien quantitativ bei Umschichtungen
M123: VG vorh.
B124: =B114 -> U1 | C124: =C114 -> 0 | E124: =IF(E114>0,1,0) -> 0 | F124: =IF(F114>0,1,0) -> 0 | G124: 0 | H124: 0 | I124: 0 | J124: 0 | K124: 0 | L124: 0 | M124: =IF(C124>0,1,0) -> 0
B125: =B115 -> U2 | C125: 0 | E125: =IF(E115>0,1,0) -> 0 | F125: 0 | G125: 0 | H125: 0 | I125: 0 | J125: 0 | K125: 0 | L125: 0 | M125: 0
B126: U3 | C126: 0 | E126: 0 | F126: 0 | G126: 0 | H126: 0 | I126: 0 | J126: 0 | K126: 0 | L126: 0 | M126: 0
B127: U4 | C127: 0 | E127: 0 | F127: 0 | G127: 0 | H127: 0 | I127: 0 | J127: 0 | K127: 0 | L127: 0 | M127: 0
B128: U5 | C128: 0 | E128: 0 | F128: 0 | G128: 0 | H128: 0 | I128: 0 | J128: 0 | K128: 0 | L128: 0 | M128: 0
B129: U6 | C129: 0 | E129: 0 | F129: 0 | G129: 0 | H129: 0 | I129: 0 | J129: 0 | K129: 0 | L129: 0 | M129: 0
B131: Multi-Asset | I131: Attribution
I135: Vermögen
B136: Aktien | C136: Anleihen | D136: Alternative Inv. | E136: Rohstoffe | F136: Liquidität | G136: Summe | I136: Gew. Rendite | J136: Aktien | K136: Anleihen | L136: Alternative Inv. | M136: Rohstoffe | N136: Liquidität | O136: Summe
B137: =#REF!*Vermögen!J11 ->  | C137: =#REF!*Vermögen!K11 ->  | D137: =#REF!*Vermögen!L11 ->  | E137: =#REF!*Vermögen!M11 ->  | F137: =#REF!*Vermögen!N11 ->  | G137: =SUM(B137:F137) ->  | I137: =Vermögen!U11*Vermögen!V11 ->  | J137: =$I137*Vermögen!J11 ->  | K137: =$I137*Vermögen!K11 ->  | L137: =$I137*Vermögen!L11 ->  | M137: =$I137*Vermögen!M11 ->  | N137: =$I137*Vermögen!N11 ->  | O137: =SUM(J137:N137) -> 
B138: =#REF!*Vermögen!J12 ->  | C138: =#REF!*Vermögen!K12 ->  | D138: =#REF!*Vermögen!L12 ->  | E138: =#REF!*Vermögen!M12 ->  | F138: =#REF!*Vermögen!N12 ->  | G138: =SUM(B138:F138) ->  | I138: =Vermögen!U12*Vermögen!V12 ->  | J138: =$I138*Vermögen!J12 ->  | K138: =$I138*Vermögen!K12 ->  | L138: =$I138*Vermögen!L12 ->  | M138: =$I138*Vermögen!M12 ->  | N138: =$I138*Vermögen!N12 ->  | O138: =SUM(J138:N138) -> 
B139: =#REF!*Vermögen!J13 ->  | C139: =#REF!*Vermögen!K13 ->  | D139: =#REF!*Vermögen!L13 ->  | E139: =#REF!*Vermögen!M13 ->  | F139: =#REF!*Vermögen!N13 ->  | I139: =Vermögen!U13*Vermögen!V13 ->  | J139: =$I139*Vermögen!J13 ->  | K139: =$I139*Vermögen!K13 ->  | L139: =$I139*Vermögen!L13 ->  | M139: =$I139*Vermögen!M13 ->  | N139: =$I139*Vermögen!N13 -> 
B140: =#REF!*Vermögen!J14 ->  | C140: =#REF!*Vermögen!K14 ->  | D140: =#REF!*Vermögen!L14 ->  | E140: =#REF!*Vermögen!M14 ->  | F140: =#REF!*Vermögen!N14 ->  | I140: =Vermögen!U14*Vermögen!V14 ->  | J140: =$I140*Vermögen!J14 ->  | K140: =$I140*Vermögen!K14 ->  | L140: =$I140*Vermögen!L14 ->  | M140: =$I140*Vermögen!M14 ->  | N140: =$I140*Vermögen!N14 -> 
B141: =#REF!*Vermögen!J15 ->  | C141: =#REF!*Vermögen!K15 ->  | D141: =#REF!*Vermögen!L15 ->  | E141: =#REF!*Vermögen!M15 ->  | F141: =#REF!*Vermögen!N15 ->  | I141: =Vermögen!U15*Vermögen!V15 ->  | J141: =$I141*Vermögen!J15 ->  | K141: =$I141*Vermögen!K15 ->  | L141: =$I141*Vermögen!L15 ->  | M141: =$I141*Vermögen!M15 ->  | N141: =$I141*Vermögen!N15 -> 
B142: =#REF!*Vermögen!J16 ->  | C142: =#REF!*Vermögen!K16 ->  | D142: =#REF!*Vermögen!L16 ->  | E142: =#REF!*Vermögen!M16 ->  | F142: =#REF!*Vermögen!N16 ->  | I142: =Vermögen!U16*Vermögen!V16 ->  | J142: =$I142*Vermögen!J16 ->  | K142: =$I142*Vermögen!K16 ->  | L142: =$I142*Vermögen!L16 ->  | M142: =$I142*Vermögen!M16 ->  | N142: =$I142*Vermögen!N16 -> 
B143: =#REF!*Vermögen!J17 ->  | C143: =#REF!*Vermögen!K17 ->  | D143: =#REF!*Vermögen!L17 ->  | E143: =#REF!*Vermögen!M17 ->  | F143: =#REF!*Vermögen!N17 ->  | I143: =Vermögen!U17*Vermögen!V17 ->  | J143: =$I143*Vermögen!J17 ->  | K143: =$I143*Vermögen!K17 ->  | L143: =$I143*Vermögen!L17 ->  | M143: =$I143*Vermögen!M17 ->  | N143: =$I143*Vermögen!N17 -> 
B144: =#REF!*Vermögen!J18 ->  | C144: =#REF!*Vermögen!K18 ->  | D144: =#REF!*Vermögen!L18 ->  | E144: =#REF!*Vermögen!M18 ->  | F144: =#REF!*Vermögen!N18 ->  | I144: =Vermögen!U18*Vermögen!V18 ->  | J144: =$I144*Vermögen!J18 ->  | K144: =$I144*Vermögen!K18 ->  | L144: =$I144*Vermögen!L18 ->  | M144: =$I144*Vermögen!M18 ->  | N144: =$I144*Vermögen!N18 -> 
B145: =#REF!*Vermögen!J19 ->  | C145: =#REF!*Vermögen!K19 ->  | D145: =#REF!*Vermögen!L19 ->  | E145: =#REF!*Vermögen!M19 ->  | F145: =#REF!*Vermögen!N19 ->  | I145: =Vermögen!U19*Vermögen!V19 ->  | J145: =$I145*Vermögen!J19 ->  | K145: =$I145*Vermögen!K19 ->  | L145: =$I145*Vermögen!L19 ->  | M145: =$I145*Vermögen!M19 ->  | N145: =$I145*Vermögen!N19 -> 
B146: =#REF!*Vermögen!J20 ->  | C146: =#REF!*Vermögen!K20 ->  | D146: =#REF!*Vermögen!L20 ->  | E146: =#REF!*Vermögen!M20 ->  | F146: =#REF!*Vermögen!N20 ->  | I146: =Vermögen!U20*Vermögen!V20 ->  | J146: =$I146*Vermögen!J20 ->  | K146: =$I146*Vermögen!K20 ->  | L146: =$I146*Vermögen!L20 ->  | M146: =$I146*Vermögen!M20 ->  | N146: =$I146*Vermögen!N20 -> 
B147: =#REF!*Vermögen!J21 ->  | C147: =#REF!*Vermögen!K21 ->  | D147: =#REF!*Vermögen!L21 ->  | E147: =#REF!*Vermögen!M21 ->  | F147: =#REF!*Vermögen!N21 ->  | I147: =Vermögen!U21*Vermögen!V21 ->  | J147: =$I147*Vermögen!J21 ->  | K147: =$I147*Vermögen!K21 ->  | L147: =$I147*Vermögen!L21 ->  | M147: =$I147*Vermögen!M21 ->  | N147: =$I147*Vermögen!N21 -> 
B148: =#REF!*Vermögen!J22 ->  | C148: =#REF!*Vermögen!K22 ->  | D148: =#REF!*Vermögen!L22 ->  | E148: =#REF!*Vermögen!M22 ->  | F148: =#REF!*Vermögen!N22 ->  | I148: =Vermögen!U22*Vermögen!V22 ->  | J148: =$I148*Vermögen!J22 ->  | K148: =$I148*Vermögen!K22 ->  | L148: =$I148*Vermögen!L22 ->  | M148: =$I148*Vermögen!M22 ->  | N148: =$I148*Vermögen!N22 -> 
B149: =#REF!*Vermögen!J23 ->  | C149: =#REF!*Vermögen!K23 ->  | D149: =#REF!*Vermögen!L23 ->  | E149: =#REF!*Vermögen!M23 ->  | F149: =#REF!*Vermögen!N23 ->  | I149: =Vermögen!U23*Vermögen!V23 ->  | J149: =$I149*Vermögen!J23 ->  | K149: =$I149*Vermögen!K23 ->  | L149: =$I149*Vermögen!L23 ->  | M149: =$I149*Vermögen!M23 ->  | N149: =$I149*Vermögen!N23 -> 
B150: =#REF!*Vermögen!J24 ->  | C150: =#REF!*Vermögen!K24 ->  | D150: =#REF!*Vermögen!L24 ->  | E150: =#REF!*Vermögen!M24 ->  | F150: =#REF!*Vermögen!N24 ->  | I150: =Vermögen!U24*Vermögen!V24 ->  | J150: =$I150*Vermögen!J24 ->  | K150: =$I150*Vermögen!K24 ->  | L150: =$I150*Vermögen!L24 ->  | M150: =$I150*Vermögen!M24 ->  | N150: =$I150*Vermögen!N24 -> 
B151: =#REF!*Vermögen!J25 ->  | C151: =#REF!*Vermögen!K25 ->  | D151: =#REF!*Vermögen!L25 ->  | E151: =#REF!*Vermögen!M25 ->  | F151: =#REF!*Vermögen!N25 ->  | I151: =Vermögen!U25*Vermögen!V25 ->  | J151: =$I151*Vermögen!J25 ->  | K151: =$I151*Vermögen!K25 ->  | L151: =$I151*Vermögen!L25 ->  | M151: =$I151*Vermögen!M25 ->  | N151: =$I151*Vermögen!N25 -> 
B152: =#REF!*Vermögen!J26 ->  | C152: =#REF!*Vermögen!K26 ->  | D152: =#REF!*Vermögen!L26 ->  | E152: =#REF!*Vermögen!M26 ->  | F152: =#REF!*Vermögen!N26 ->  | I152: =Vermögen!U26*Vermögen!V26 ->  | J152: =$I152*Vermögen!J26 ->  | K152: =$I152*Vermögen!K26 ->  | L152: =$I152*Vermögen!L26 ->  | M152: =$I152*Vermögen!M26 ->  | N152: =$I152*Vermögen!N26 -> 
B153: =#REF!*Vermögen!J27 ->  | C153: =#REF!*Vermögen!K27 ->  | D153: =#REF!*Vermögen!L27 ->  | E153: =#REF!*Vermögen!M27 ->  | F153: =#REF!*Vermögen!N27 ->  | I153: =Vermögen!U27*Vermögen!V27 ->  | J153: =$I153*Vermögen!J27 ->  | K153: =$I153*Vermögen!K27 ->  | L153: =$I153*Vermögen!L27 ->  | M153: =$I153*Vermögen!M27 ->  | N153: =$I153*Vermögen!N27 -> 
B154: =#REF!*Vermögen!J28 ->  | C154: =#REF!*Vermögen!K28 ->  | D154: =#REF!*Vermögen!L28 ->  | E154: =#REF!*Vermögen!M28 ->  | F154: =#REF!*Vermögen!N28 ->  | I154: =Vermögen!U28*Vermögen!V28 ->  | J154: =$I154*Vermögen!J28 ->  | K154: =$I154*Vermögen!K28 ->  | L154: =$I154*Vermögen!L28 ->  | M154: =$I154*Vermögen!M28 ->  | N154: =$I154*Vermögen!N28 -> 
B155: =#REF!*Vermögen!J29 ->  | C155: =#REF!*Vermögen!K29 ->  | D155: =#REF!*Vermögen!L29 ->  | E155: =#REF!*Vermögen!M29 ->  | F155: =#REF!*Vermögen!N29 ->  | I155: =Vermögen!U29*Vermögen!V29 ->  | J155: =$I155*Vermögen!J29 ->  | K155: =$I155*Vermögen!K29 ->  | L155: =$I155*Vermögen!L29 ->  | M155: =$I155*Vermögen!M29 ->  | N155: =$I155*Vermögen!N29 -> 
B156: =#REF!*Vermögen!J30 ->  | C156: =#REF!*Vermögen!K30 ->  | D156: =#REF!*Vermögen!L30 ->  | E156: =#REF!*Vermögen!M30 ->  | F156: =#REF!*Vermögen!N30 ->  | I156: =Vermögen!U30*Vermögen!V30 ->  | J156: =$I156*Vermögen!J30 ->  | K156: =$I156*Vermögen!K30 ->  | L156: =$I156*Vermögen!L30 ->  | M156: =$I156*Vermögen!M30 ->  | N156: =$I156*Vermögen!N30 -> 
B157: =#REF!*Vermögen!J31 ->  | C157: =#REF!*Vermögen!K31 ->  | D157: =#REF!*Vermögen!L31 ->  | E157: =#REF!*Vermögen!M31 ->  | F157: =#REF!*Vermögen!N31 ->  | I157: =Vermögen!U31*Vermögen!V31 ->  | J157: =$I157*Vermögen!J31 ->  | K157: =$I157*Vermögen!K31 ->  | L157: =$I157*Vermögen!L31 ->  | M157: =$I157*Vermögen!M31 ->  | N157: =$I157*Vermögen!N31 -> 
B158: =#REF!*Vermögen!J32 ->  | C158: =#REF!*Vermögen!K32 ->  | D158: =#REF!*Vermögen!L32 ->  | E158: =#REF!*Vermögen!M32 ->  | F158: =#REF!*Vermögen!N32 ->  | I158: =Vermögen!U32*Vermögen!V32 ->  | J158: =$I158*Vermögen!J32 ->  | K158: =$I158*Vermögen!K32 ->  | L158: =$I158*Vermögen!L32 ->  | M158: =$I158*Vermögen!M32 ->  | N158: =$I158*Vermögen!N32 -> 
B159: =#REF!*Vermögen!J33 ->  | C159: =#REF!*Vermögen!K33 ->  | D159: =#REF!*Vermögen!L33 ->  | E159: =#REF!*Vermögen!M33 ->  | F159: =#REF!*Vermögen!N33 ->  | I159: =Vermögen!U33*Vermögen!V33 ->  | J159: =$I159*Vermögen!J33 ->  | K159: =$I159*Vermögen!K33 ->  | L159: =$I159*Vermögen!L33 ->  | M159: =$I159*Vermögen!M33 ->  | N159: =$I159*Vermögen!N33 -> 
B160: =#REF!*Vermögen!J34 ->  | C160: =#REF!*Vermögen!K34 ->  | D160: =#REF!*Vermögen!L34 ->  | E160: =#REF!*Vermögen!M34 ->  | F160: =#REF!*Vermögen!N34 ->  | I160: =Vermögen!U34*Vermögen!V34 ->  | J160: =$I160*Vermögen!J34 ->  | K160: =$I160*Vermögen!K34 ->  | L160: =$I160*Vermögen!L34 ->  | M160: =$I160*Vermögen!M34 ->  | N160: =$I160*Vermögen!N34 -> 
B161: =#REF!*Vermögen!J35 ->  | C161: =#REF!*Vermögen!K35 ->  | D161: =#REF!*Vermögen!L35 ->  | E161: =#REF!*Vermögen!M35 ->  | F161: =#REF!*Vermögen!N35 ->  | I161: =Vermögen!U35*Vermögen!V35 ->  | J161: =$I161*Vermögen!J35 ->  | K161: =$I161*Vermögen!K35 ->  | L161: =$I161*Vermögen!L35 ->  | M161: =$I161*Vermögen!M35 ->  | N161: =$I161*Vermögen!N35 -> 
B162: =#REF!*Vermögen!J36 ->  | C162: =#REF!*Vermögen!K36 ->  | D162: =#REF!*Vermögen!L36 ->  | E162: =#REF!*Vermögen!M36 ->  | F162: =#REF!*Vermögen!N36 ->  | I162: =Vermögen!U36*Vermögen!V36 ->  | J162: =$I162*Vermögen!J36 ->  | K162: =$I162*Vermögen!K36 ->  | L162: =$I162*Vermögen!L36 ->  | M162: =$I162*Vermögen!M36 ->  | N162: =$I162*Vermögen!N36 -> 
B163: =#REF!*Vermögen!J37 ->  | C163: =#REF!*Vermögen!K37 ->  | D163: =#REF!*Vermögen!L37 ->  | E163: =#REF!*Vermögen!M37 ->  | F163: =#REF!*Vermögen!N37 ->  | I163: =Vermögen!U37*Vermögen!V37 ->  | J163: =$I163*Vermögen!J37 ->  | K163: =$I163*Vermögen!K37 ->  | L163: =$I163*Vermögen!L37 ->  | M163: =$I163*Vermögen!M37 ->  | N163: =$I163*Vermögen!N37 -> 
B164: =#REF!*Vermögen!J38 ->  | C164: =#REF!*Vermögen!K38 ->  | D164: =#REF!*Vermögen!L38 ->  | E164: =#REF!*Vermögen!M38 ->  | F164: =#REF!*Vermögen!N38 ->  | I164: =Vermögen!U38*Vermögen!V38 ->  | J164: =$I164*Vermögen!J38 ->  | K164: =$I164*Vermögen!K38 ->  | L164: =$I164*Vermögen!L38 ->  | M164: =$I164*Vermögen!M38 ->  | N164: =$I164*Vermögen!N38 -> 
B165: =#REF!*Vermögen!J39 ->  | C165: =#REF!*Vermögen!K39 ->  | D165: =#REF!*Vermögen!L39 ->  | E165: =#REF!*Vermögen!M39 ->  | F165: =#REF!*Vermögen!N39 ->  | I165: =Vermögen!U39*Vermögen!V39 ->  | J165: =$I165*Vermögen!J39 ->  | K165: =$I165*Vermögen!K39 ->  | L165: =$I165*Vermögen!L39 ->  | M165: =$I165*Vermögen!M39 ->  | N165: =$I165*Vermögen!N39 -> 
B166: =#REF!*Vermögen!J40 ->  | C166: =#REF!*Vermögen!K40 ->  | D166: =#REF!*Vermögen!L40 ->  | E166: =#REF!*Vermögen!M40 ->  | F166: =#REF!*Vermögen!N40 ->  | I166: =Vermögen!U40*Vermögen!V40 ->  | J166: =$I166*Vermögen!J40 ->  | K166: =$I166*Vermögen!K40 ->  | L166: =$I166*Vermögen!L40 ->  | M166: =$I166*Vermögen!M40 ->  | N166: =$I166*Vermögen!N40 -> 
B167: =#REF!*Vermögen!J41 ->  | C167: =#REF!*Vermögen!K41 ->  | D167: =#REF!*Vermögen!L41 ->  | E167: =#REF!*Vermögen!M41 ->  | F167: =#REF!*Vermögen!N41 ->  | I167: =Vermögen!U41*Vermögen!V41 ->  | J167: =$I167*Vermögen!J41 ->  | K167: =$I167*Vermögen!K41 ->  | L167: =$I167*Vermögen!L41 ->  | M167: =$I167*Vermögen!M41 ->  | N167: =$I167*Vermögen!N41 -> 
B168: =#REF!*Vermögen!J42 ->  | C168: =#REF!*Vermögen!K42 ->  | D168: =#REF!*Vermögen!L42 ->  | E168: =#REF!*Vermögen!M42 ->  | F168: =#REF!*Vermögen!N42 ->  | I168: =Vermögen!U42*Vermögen!V42 ->  | J168: =$I168*Vermögen!J42 ->  | K168: =$I168*Vermögen!K42 ->  | L168: =$I168*Vermögen!L42 ->  | M168: =$I168*Vermögen!M42 ->  | N168: =$I168*Vermögen!N42 -> 
B169: =#REF!*Vermögen!J43 ->  | C169: =#REF!*Vermögen!K43 ->  | D169: =#REF!*Vermögen!L43 ->  | E169: =#REF!*Vermögen!M43 ->  | F169: =#REF!*Vermögen!N43 ->  | I169: =Vermögen!U43*Vermögen!V43 ->  | J169: =$I169*Vermögen!J43 ->  | K169: =$I169*Vermögen!K43 ->  | L169: =$I169*Vermögen!L43 ->  | M169: =$I169*Vermögen!M43 ->  | N169: =$I169*Vermögen!N43 -> 
B170: =#REF!*Vermögen!J44 ->  | C170: =#REF!*Vermögen!K44 ->  | D170: =#REF!*Vermögen!L44 ->  | E170: =#REF!*Vermögen!M44 ->  | F170: =#REF!*Vermögen!N44 ->  | I170: =Vermögen!U44*Vermögen!V44 ->  | J170: =$I170*Vermögen!J44 ->  | K170: =$I170*Vermögen!K44 ->  | L170: =$I170*Vermögen!L44 ->  | M170: =$I170*Vermögen!M44 ->  | N170: =$I170*Vermögen!N44 -> 
B171: =#REF!*Vermögen!J45 ->  | C171: =#REF!*Vermögen!K45 ->  | D171: =#REF!*Vermögen!L45 ->  | E171: =#REF!*Vermögen!M45 ->  | F171: =#REF!*Vermögen!N45 ->  | I171: =Vermögen!U45*Vermögen!V45 ->  | J171: =$I171*Vermögen!J45 ->  | K171: =$I171*Vermögen!K45 ->  | L171: =$I171*Vermögen!L45 ->  | M171: =$I171*Vermögen!M45 ->  | N171: =$I171*Vermögen!N45 -> 
B172: =#REF!*Vermögen!J46 ->  | C172: =#REF!*Vermögen!K46 ->  | D172: =#REF!*Vermögen!L46 ->  | E172: =#REF!*Vermögen!M46 ->  | F172: =#REF!*Vermögen!N46 ->  | I172: =Vermögen!U46*Vermögen!V46 ->  | J172: =$I172*Vermögen!J46 ->  | K172: =$I172*Vermögen!K46 ->  | L172: =$I172*Vermögen!L46 ->  | M172: =$I172*Vermögen!M46 ->  | N172: =$I172*Vermögen!N46 -> 
B173: =#REF!*Vermögen!J47 ->  | C173: =#REF!*Vermögen!K47 ->  | D173: =#REF!*Vermögen!L47 ->  | E173: =#REF!*Vermögen!M47 ->  | F173: =#REF!*Vermögen!N47 ->  | I173: =Vermögen!U47*Vermögen!V47 ->  | J173: =$I173*Vermögen!J47 ->  | K173: =$I173*Vermögen!K47 ->  | L173: =$I173*Vermögen!L47 ->  | M173: =$I173*Vermögen!M47 ->  | N173: =$I173*Vermögen!N47 -> 
B174: =#REF!*Vermögen!J48 ->  | C174: =#REF!*Vermögen!K48 ->  | D174: =#REF!*Vermögen!L48 ->  | E174: =#REF!*Vermögen!M48 ->  | F174: =#REF!*Vermögen!N48 ->  | I174: =Vermögen!U48*Vermögen!V48 ->  | J174: =$I174*Vermögen!J48 ->  | K174: =$I174*Vermögen!K48 ->  | L174: =$I174*Vermögen!L48 ->  | M174: =$I174*Vermögen!M48 ->  | N174: =$I174*Vermögen!N48 -> 
B175: =#REF!*Vermögen!J49 ->  | C175: =#REF!*Vermögen!K49 ->  | D175: =#REF!*Vermögen!L49 ->  | E175: =#REF!*Vermögen!M49 ->  | F175: =#REF!*Vermögen!N49 ->  | I175: =Vermögen!U49*Vermögen!V49 ->  | J175: =$I175*Vermögen!J49 ->  | K175: =$I175*Vermögen!K49 ->  | L175: =$I175*Vermögen!L49 ->  | M175: =$I175*Vermögen!M49 ->  | N175: =$I175*Vermögen!N49 -> 
B176: =#REF!*Vermögen!J50 ->  | C176: =#REF!*Vermögen!K50 ->  | D176: =#REF!*Vermögen!L50 ->  | E176: =#REF!*Vermögen!M50 ->  | F176: =#REF!*Vermögen!N50 ->  | I176: =Vermögen!U50*Vermögen!V50 ->  | J176: =$I176*Vermögen!J50 ->  | K176: =$I176*Vermögen!K50 ->  | L176: =$I176*Vermögen!L50 ->  | M176: =$I176*Vermögen!M50 ->  | N176: =$I176*Vermögen!N50 -> 
B177: =#REF!*Vermögen!J51 ->  | C177: =#REF!*Vermögen!K51 ->  | D177: =#REF!*Vermögen!L51 ->  | E177: =#REF!*Vermögen!M51 ->  | F177: =#REF!*Vermögen!N51 ->  | I177: =Vermögen!U51*Vermögen!V51 ->  | J177: =$I177*Vermögen!J51 ->  | K177: =$I177*Vermögen!K51 ->  | L177: =$I177*Vermögen!L51 ->  | M177: =$I177*Vermögen!M51 ->  | N177: =$I177*Vermögen!N51 -> 
B178: =#REF!*Vermögen!J52 ->  | C178: =#REF!*Vermögen!K52 ->  | D178: =#REF!*Vermögen!L52 ->  | E178: =#REF!*Vermögen!M52 ->  | F178: =#REF!*Vermögen!N52 ->  | I178: =Vermögen!U52*Vermögen!V52 ->  | J178: =$I178*Vermögen!J52 ->  | K178: =$I178*Vermögen!K52 ->  | L178: =$I178*Vermögen!L52 ->  | M178: =$I178*Vermögen!M52 ->  | N178: =$I178*Vermögen!N52 -> 
B179: =#REF!*Vermögen!J53 ->  | C179: =#REF!*Vermögen!K53 ->  | D179: =#REF!*Vermögen!L53 ->  | E179: =#REF!*Vermögen!M53 ->  | F179: =#REF!*Vermögen!N53 ->  | I179: =Vermögen!U53*Vermögen!V53 ->  | J179: =$I179*Vermögen!J53 ->  | K179: =$I179*Vermögen!K53 ->  | L179: =$I179*Vermögen!L53 ->  | M179: =$I179*Vermögen!M53 ->  | N179: =$I179*Vermögen!N53 -> 
B180: =#REF!*Vermögen!J54 ->  | C180: =#REF!*Vermögen!K54 ->  | D180: =#REF!*Vermögen!L54 ->  | E180: =#REF!*Vermögen!M54 ->  | F180: =#REF!*Vermögen!N54 ->  | I180: =Vermögen!U54*Vermögen!V54 ->  | J180: =$I180*Vermögen!J54 ->  | K180: =$I180*Vermögen!K54 ->  | L180: =$I180*Vermögen!L54 ->  | M180: =$I180*Vermögen!M54 ->  | N180: =$I180*Vermögen!N54 -> 
B181: =#REF!*Vermögen!J55 ->  | C181: =#REF!*Vermögen!K55 ->  | D181: =#REF!*Vermögen!L55 ->  | E181: =#REF!*Vermögen!M55 ->  | F181: =#REF!*Vermögen!N55 ->  | I181: =Vermögen!U55*Vermögen!V55 ->  | J181: =$I181*Vermögen!J55 ->  | K181: =$I181*Vermögen!K55 ->  | L181: =$I181*Vermögen!L55 ->  | M181: =$I181*Vermögen!M55 ->  | N181: =$I181*Vermögen!N55 -> 
B182: =#REF!*Vermögen!J56 ->  | C182: =#REF!*Vermögen!K56 ->  | D182: =#REF!*Vermögen!L56 ->  | E182: =#REF!*Vermögen!M56 ->  | F182: =#REF!*Vermögen!N56 ->  | I182: =Vermögen!U56*Vermögen!V56 ->  | J182: =$I182*Vermögen!J56 ->  | K182: =$I182*Vermögen!K56 ->  | L182: =$I182*Vermögen!L56 ->  | M182: =$I182*Vermögen!M56 ->  | N182: =$I182*Vermögen!N56 -> 
B183: =#REF!*Vermögen!J57 ->  | C183: =#REF!*Vermögen!K57 ->  | D183: =#REF!*Vermögen!L57 ->  | E183: =#REF!*Vermögen!M57 ->  | F183: =#REF!*Vermögen!N57 ->  | I183: =Vermögen!U57*Vermögen!V57 ->  | J183: =$I183*Vermögen!J57 ->  | K183: =$I183*Vermögen!K57 ->  | L183: =$I183*Vermögen!L57 ->  | M183: =$I183*Vermögen!M57 ->  | N183: =$I183*Vermögen!N57 -> 
B184: =#REF!*Vermögen!J58 ->  | C184: =#REF!*Vermögen!K58 ->  | D184: =#REF!*Vermögen!L58 ->  | E184: =#REF!*Vermögen!M58 ->  | F184: =#REF!*Vermögen!N58 ->  | I184: =Vermögen!U58*Vermögen!V58 ->  | J184: =$I184*Vermögen!J58 ->  | K184: =$I184*Vermögen!K58 ->  | L184: =$I184*Vermögen!L58 ->  | M184: =$I184*Vermögen!M58 ->  | N184: =$I184*Vermögen!N58 -> 
B185: =#REF!*Vermögen!J59 ->  | C185: =#REF!*Vermögen!K59 ->  | D185: =#REF!*Vermögen!L59 ->  | E185: =#REF!*Vermögen!M59 ->  | F185: =#REF!*Vermögen!N59 ->  | I185: =Vermögen!U59*Vermögen!V59 ->  | J185: =$I185*Vermögen!J59 ->  | K185: =$I185*Vermögen!K59 ->  | L185: =$I185*Vermögen!L59 ->  | M185: =$I185*Vermögen!M59 ->  | N185: =$I185*Vermögen!N59 -> 
B186: =#REF!*Vermögen!J60 ->  | C186: =#REF!*Vermögen!K60 ->  | D186: =#REF!*Vermögen!L60 ->  | E186: =#REF!*Vermögen!M60 ->  | F186: =#REF!*Vermögen!N60 ->  | I186: =Vermögen!U60*Vermögen!V60 ->  | J186: =$I186*Vermögen!J60 ->  | K186: =$I186*Vermögen!K60 ->  | L186: =$I186*Vermögen!L60 ->  | M186: =$I186*Vermögen!M60 ->  | N186: =$I186*Vermögen!N60 -> 
B187: =SUM(B137:B186) ->  | C187: =SUM(C137:C186) ->  | G187: =SUM(B187:F187) ->  | I187: =SUM(I137:I186) ->  | J187: =SUM(J137:J186) ->  | O187: =SUM(J187:N187) -> 

Sheet Daten Projektion (hidden)
A1: Daten Projektion
F2: Szenariojahr | G2: Ausfalljahr
C3: Import | D3: Export | F3: Bitte ausw. | G3: Kein Ausfall
C4: Vermögen! | D4: Cockpit! | F4: =Einstellungen!G13 -> 2024 | G4: =Einstellungen!G13 -> 2024
F5: =F4+1 -> 2025 | G5: =G4+1 -> 2025
F6: =F5+1 -> 2026 | G6: 2026
F7: 2027 | G7: 2027
F8: 2028 | G8: 2028
C10: Vermögen | O10: Basisszen.: | P10: =Szenarien!F12 -> Linear | U10: Worst Case: | V10: =Szenarien!O12 -> Worst Case | AA10: Szenario 3: | AB10: =Szenarien!W12 -> Mischszenario
O11: 2 | P11: 3 | Q11: 4 | R11: 5 | S11: 6 | U11: 2 | V11: 3 | W11: 4 | X11: 5 | Y11: 6 | AA11: 2 | AB11: 3 | AC11: 4 | AD11: 5 | AE11: 6
B12: Nr. | C12: Vermögensgegenstand | D12: Anlageklasse | E12: =Daten_Vermögen!B7 -> Aktien | F12: =Daten_Vermögen!B8 -> Anleihen | G12: =Daten_Vermögen!B9 -> Alternative Inv. | H12: =Daten_Vermögen!B10 -> Rohstoffe | I12: =Daten_Vermögen!B11 -> Liquidität | J12: =Daten_Vermögen!B13 -> Immobilien | K12: =Daten_Vermögen!B14 -> Beteiligungen | L12: =Daten_Vermögen!B15 -> Sonst. Verm. | M12: =Daten_Vermögen!B16 -> Verbindlichkeiten | N12: =O12-1 -> 2023 | O12: =Einstellungen!G13 -> 2024 | P12: =O12+1 -> 2025 | Q12: =P12+1 -> 2026 | R12: =Q12+1 -> 2027 | S12: =R12+1 -> 2028 | U12: =O12 -> 2024 | V12: =P12 -> 2025 | W12: =Q12 -> 2026 | X12: =R12 -> 2027 | Y12: =S12 -> 2028 | AA12: =U12 -> 2024 | AB12: =V12 -> 2025 | AC12: =W12 -> 2026 | AD12: =X12 -> 2027 | AE12: =Y12 -> 2028
B13: =Vermögen!E11 -> 1. | C13: =IF(Vermögen!F11=0,"",Vermögen!F11) ->  | D13: =Vermögen!I11 -> Bitte auswählen | E13: =Vermögen!J11 -> 0.0% | F13: =Vermögen!K11 -> 0.0% | G13: =Vermögen!L11 -> 0.0% | H13: =Vermögen!M11 -> 0.0% | I13: =Vermögen!N11 -> 0.0% | J13: =IF(D13=$J$12,1,0) -> 0.0% | K13: =IF(D13=$K$12,1,0) -> 0.0% | L13: =IF(D13=$L$12,1,0) -> 0.0% | M13: =IF(D13=$M$12,1,0) -> 0.0% | N13: =Daten_Vermögen!C44 -> 0 | O13: =N13+N13*Vermögen!$V11 -> 0 | P13: =O13+O13*Vermögen!$V11 -> 0 | Q13: =P13+P13*Vermögen!$V11 -> 0 | R13: =Q13+Q13*Vermögen!$V11 -> 0 | S13: =R13+R13*Vermögen!$V11 -> 0 | U13: =N13+N13*$E13*Szenarien!P$31+N13*$F13*Szenarien!P$32+N13*'Daten Projektion'!$G13*Szenarien!P$33+N13*'Daten Projektion'!$H13*Szenarien!P$34+N13*'Daten Projektion'!$I13*Szenarien!P$35+N13*'Daten Projektion'!$J13*Szenarien!P$36+N13*'Daten Projektion'!$K13*Szenarien!P$37+N13*'Daten Projektion'!$L13*Szenarien!P$38+N13*'Daten Projektion'!$M13*Szenarien!P$39 -> 0 | V13: =U13+U13*$E13*Szenarien!Q$31+U13*$F13*Szenarien!Q$32+U13*'Daten Projektion'!$G13*Szenarien!Q$33+U13*'Daten Projektion'!$H13*Szenarien!Q$34+U13*'Daten Projektion'!$I13*Szenarien!Q$35+U13*'Daten Projektion'!$J13*Szenarien!Q$36+U13*'Daten Projektion'!$K13*Szenarien!Q$37+U13*'Daten Projektion'!$L13*Szenarien!Q$38+U13*'Daten Projektion'!$M13*Szenarien!Q$39 -> 0 | W13: =V13+V13*$E13*Szenarien!R$31+V13*$F13*Szenarien!R$32+V13*'Daten Projektion'!$G13*Szenarien!R$33+V13*'Daten Projektion'!$H13*Szenarien!R$34+V13*'Daten Projektion'!$I13*Szenarien!R$35+V13*'Daten Projektion'!$J13*Szenarien!R$36+V13*'Daten Projektion'!$K13*Szenarien!R$37+V13*'Daten Projektion'!$L13*Szenarien!R$38+V13*'Daten Projektion'!$M13*Szenarien!R$39 -> 0 | X13: =W13+W13*$E13*Szenarien!S$31+W13*$F13*Szenarien!S$32+W13*'Daten Projektion'!$G13*Szenarien!S$33+W13*'Daten Projektion'!$H13*Szenarien!S$34+W13*'Daten Projektion'!$I13*Szenarien!S$35+W13*'Daten Projektion'!$J13*Szenarien!S$36+W13*'Daten Projektion'!$K13*Szenarien!S$37+W13*'Daten Projektion'!$L13*Szenarien!S$38+W13*'Daten Projektion'!$M13*Szenarien!S$39 -> 0 | Y13: =X13+X13*$E13*Szenarien!T$31+X13*$F13*Szenarien!T$32+X13*'Daten Projektion'!$G13*Szenarien!T$33+X13*'Daten Projektion'!$H13*Szenarien!T$34+X13*'Daten Projektion'!$I13*Szenarien!T$35+X13*'Daten Projektion'!$J13*Szenarien!T$36+X13*'Daten Projektion'!$K13*Szenarien!T$37+X13*'Daten Projektion'!$L13*Szenarien!T$38+X13*'Daten Projektion'!$M13*Szenarien!T$39 -> 0 | AA13: =N13+N13*$E13*Szenarien!X$31+N13*$F13*Szenarien!X$32+N13*'Daten Projektion'!$G13*Szenarien!X$33+N13*'Daten Projektion'!$H13*Szenarien!X$34+N13*'Daten Projektion'!$I13*Szenarien!X$35+N13*'Daten Projektion'!$J13*Szenarien!X$36+N13*'Daten Projektion'!$K13*Szenarien!X$37+N13*'Daten Projektion'!$L13*Szenarien!X$38+N13*'Daten Projektion'!$M13*Szenarien!X$39 -> 0 | AB13: =AA13+AA13*$E13*Szenarien!Y$31+AA13*$F13*Szenarien!Y$32+AA13*'Daten Projektion'!$G13*Szenarien!Y$33+AA13*'Daten Projektion'!$H13*Szenarien!Y$34+AA13*'Daten Projektion'!$I13*Szenarien!Y$35+AA13*'Daten Projektion'!$J13*Szenarien!Y$36+AA13*'Daten Projektion'!$K13*Szenarien!Y$37+AA13*'Daten Projektion'!$L13*Szenarien!Y$38+AA13*'Daten Projektion'!$M13*Szenarien!Y$39 -> 0 | AC13: =AB13+AB13*$E13*Szenarien!Z$31+AB13*$F13*Szenarien!Z$32+AB13*'Daten Projektion'!$G13*Szenarien!Z$33+AB13*'Daten Projektion'!$H13*Szenarien!Z$34+AB13*'Daten Projektion'!$I13*Szenarien!Z$35+AB13*'Daten Projektion'!$J13*Szenarien!Z$36+AB13*'Daten Projektion'!$K13*Szenarien!Z$37+AB13*'Daten Projektion'!$L13*Szenarien!Z$38+AB13*'Daten Projektion'!$M13*Szenarien!Z$39 -> 0 | AD13: =AC13+AC13*$E13*Szenarien!AA$31+AC13*$F13*Szenarien!AA$32+AC13*'Daten Projektion'!$G13*Szenarien!AA$33+AC13*'Daten Projektion'!$H13*Szenarien!AA$34+AC13*'Daten Projektion'!$I13*Szenarien!AA$35+AC13*'Daten Projektion'!$J13*Szenarien!AA$36+AC13*'Daten Projektion'!$K13*Szenarien!AA$37+AC13*'Daten Projektion'!$L13*Szenarien!AA$38+AC13*'Daten Projektion'!$M13*Szenarien!AA$39 -> 0 | AE13: =AD13+AD13*$E13*Szenarien!AB$31+AD13*$F13*Szenarien!AB$32+AD13*'Daten Projektion'!$G13*Szenarien!AB$33+AD13*'Daten Projektion'!$H13*Szenarien!AB$34+AD13*'Daten Projektion'!$I13*Szenarien!AB$35+AD13*'Daten Projektion'!$J13*Szenarien!AB$36+AD13*'Daten Projektion'!$K13*Szenarien!AB$37+AD13*'Daten Projektion'!$L13*Szenarien!AB$38+AD13*'Daten Projektion'!$M13*Szenarien!AB$39 -> 0
B14: =Vermögen!E12 -> 2. | C14: =IF(Vermögen!F12=0,"",Vermögen!F12) ->  | D14: =Vermögen!I12 -> Bitte auswählen | E14: =Vermögen!J12 -> 0.0% | F14: =Vermögen!K12 -> 0.0% | G14: =Vermögen!L12 -> 0.0% | H14: =Vermögen!M12 -> 0.0% | I14: =Vermögen!N12 -> 0.0% | J14: =IF(D14=$J$12,1,0) -> 0.0% | K14: =IF(D14=$K$12,1,0) -> 0.0% | L14: =IF(D14=$L$12,1,0) -> 0.0% | M14: =IF(D14=$M$12,1,0) -> 0.0% | N14: =Daten_Vermögen!C45 -> 0 | O14: =N14+N14*Vermögen!V12 -> 0 | P14: =O14+O14*Vermögen!$V12 -> 0 | Q14: =P14+P14*Vermögen!$V12 -> 0 | R14: =Q14+Q14*Vermögen!$V12 -> 0 | S14: =R14+R14*Vermögen!$V12 -> 0 | U14: =N14+N14*$E14*Szenarien!P$31+N14*$F14*Szenarien!P$32+N14*'Daten Projektion'!$G14*Szenarien!P$33+N14*'Daten Projektion'!$H14*Szenarien!P$34+N14*'Daten Projektion'!$I14*Szenarien!P$35+N14*'Daten Projektion'!$J14*Szenarien!P$36+N14*'Daten Projektion'!$K14*Szenarien!P$37+N14*'Daten Projektion'!$L14*Szenarien!P$38+N14*'Daten Projektion'!$M14*Szenarien!P$39 -> 0 | V14: =U14+U14*$E14*Szenarien!Q$31+U14*$F14*Szenarien!Q$32+U14*'Daten Projektion'!$G14*Szenarien!Q$33+U14*'Daten Projektion'!$H14*Szenarien!Q$34+U14*'Daten Projektion'!$I14*Szenarien!Q$35+U14*'Daten Projektion'!$J14*Szenarien!Q$36+U14*'Daten Projektion'!$K14*Szenarien!Q$37+U14*'Daten Projektion'!$L14*Szenarien!Q$38+U14*'Daten Projektion'!$M14*Szenarien!Q$39 -> 0 | W14: =V14+V14*$E14*Szenarien!R$31+V14*$F14*Szenarien!R$32+V14*'Daten Projektion'!$G14*Szenarien!R$33+V14*'Daten Projektion'!$H14*Szenarien!R$34+V14*'Daten Projektion'!$I14*Szenarien!R$35+V14*'Daten Projektion'!$J14*Szenarien!R$36+V14*'Daten Projektion'!$K14*Szenarien!R$37+V14*'Daten Projektion'!$L14*Szenarien!R$38+V14*'Daten Projektion'!$M14*Szenarien!R$39 -> 0 | X14: =W14+W14*$E14*Szenarien!S$31+W14*$F14*Szenarien!S$32+W14*'Daten Projektion'!$G14*Szenarien!S$33+W14*'Daten Projektion'!$H14*Szenarien!S$34+W14*'Daten Projektion'!$I14*Szenarien!S$35+W14*'Daten Projektion'!$J14*Szenarien!S$36+W14*'Daten Projektion'!$K14*Szenarien!S$37+W14*'Daten Projektion'!$L14*Szenarien!S$38+W14*'Daten Projektion'!$M14*Szenarien!S$39 -> 0 | Y14: =X14+X14*$E14*Szenarien!T$31+X14*$F14*Szenarien!T$32+X14*'Daten Projektion'!$G14*Szenarien!T$33+X14*'Daten Projektion'!$H14*Szenarien!T$34+X14*'Daten Projektion'!$I14*Szenarien!T$35+X14*'Daten Projektion'!$J14*Szenarien!T$36+X14*'Daten Projektion'!$K14*Szenarien!T$37+X14*'Daten Projektion'!$L14*Szenarien!T$38+X14*'Daten Projektion'!$M14*Szenarien!T$39 -> 0 | AA14: =N14+N14*$E14*Szenarien!X$31+N14*$F14*Szenarien!X$32+N14*'Daten Projektion'!$G14*Szenarien!X$33+N14*'Daten Projektion'!$H14*Szenarien!X$34+N14*'Daten Projektion'!$I14*Szenarien!X$35+N14*'Daten Projektion'!$J14*Szenarien!X$36+N14*'Daten Projektion'!$K14*Szenarien!X$37+N14*'Daten Projektion'!$L14*Szenarien!X$38+N14*'Daten Projektion'!$M14*Szenarien!X$39 -> 0 | AB14: =AA14+AA14*$E14*Szenarien!Y$31+AA14*$F14*Szenarien!Y$32+AA14*'Daten Projektion'!$G14*Szenarien!Y$33+AA14*'Daten Projektion'!$H14*Szenarien!Y$34+AA14*'Daten Projektion'!$I14*Szenarien!Y$35+AA14*'Daten Projektion'!$J14*Szenarien!Y$36+AA14*'Daten Projektion'!$K14*Szenarien!Y$37+AA14*'Daten Projektion'!$L14*Szenarien!Y$38+AA14*'Daten Projektion'!$M14*Szenarien!Y$39 -> 0 | AC14: =AB14+AB14*$E14*Szenarien!Z$31+AB14*$F14*Szenarien!Z$32+AB14*'Daten Projektion'!$G14*Szenarien!Z$33+AB14*'Daten Projektion'!$H14*Szenarien!Z$34+AB14*'Daten Projektion'!$I14*Szenarien!Z$35+AB14*'Daten Projektion'!$J14*Szenarien!Z$36+AB14*'Daten Projektion'!$K14*Szenarien!Z$37+AB14*'Daten Projektion'!$L14*Szenarien!Z$38+AB14*'Daten Projektion'!$M14*Szenarien!Z$39 -> 0 | AD14: =AC14+AC14*$E14*Szenarien!AA$31+AC14*$F14*Szenarien!AA$32+AC14*'Daten Projektion'!$G14*Szenarien!AA$33+AC14*'Daten Projektion'!$H14*Szenarien!AA$34+AC14*'Daten Projektion'!$I14*Szenarien!AA$35+AC14*'Daten Projektion'!$J14*Szenarien!AA$36+AC14*'Daten Projektion'!$K14*Szenarien!AA$37+AC14*'Daten Projektion'!$L14*Szenarien!AA$38+AC14*'Daten Projektion'!$M14*Szenarien!AA$39 -> 0 | AE14: =AD14+AD14*$E14*Szenarien!AB$31+AD14*$F14*Szenarien!AB$32+AD14*'Daten Projektion'!$G14*Szenarien!AB$33+AD14*'Daten Projektion'!$H14*Szenarien!AB$34+AD14*'Daten Projektion'!$I14*Szenarien!AB$35+AD14*'Daten Projektion'!$J14*Szenarien!AB$36+AD14*'Daten Projektion'!$K14*Szenarien!AB$37+AD14*'Daten Projektion'!$L14*Szenarien!AB$38+AD14*'Daten Projektion'!$M14*Szenarien!AB$39 -> 0
B15: =Vermögen!E13 -> 3. | C15: =IF(Vermögen!F13=0,"",Vermögen!F13) ->  | D15: =Vermögen!I13 -> Bitte auswählen | E15: =Vermögen!J13 -> 0.0% | F15: =Vermögen!K13 -> 0.0% | G15: =Vermögen!L13 -> 0.0% | H15: =Vermögen!M13 -> 0.0% | I15: =Vermögen!N13 -> 0.0% | J15: 0.0% | K15: 0.0% | L15: 0.0% | M15: 0.0% | N15: =Daten_Vermögen!C46 -> 0 | O15: =N15+N15*Vermögen!V13 -> 0 | P15: =O15+O15*Vermögen!$V13 -> 0 | Q15: =P15+P15*Vermögen!$V13 -> 0 | R15: =Q15+Q15*Vermögen!$V13 -> 0 | S15: =R15+R15*Vermögen!$V13 -> 0 | U15: =N15+N15*$E15*Szenarien!P$31+N15*$F15*Szenarien!P$32+N15*'Daten Projektion'!$G15*Szenarien!P$33+N15*'Daten Projektion'!$H15*Szenarien!P$34+N15*'Daten Projektion'!$I15*Szenarien!P$35+N15*'Daten Projektion'!$J15*Szenarien!P$36+N15*'Daten Projektion'!$K15*Szenarien!P$37+N15*'Daten Projektion'!$L15*Szenarien!P$38+N15*'Daten Projektion'!$M15*Szenarien!P$39 -> 0 | V15: =U15+U15*$E15*Szenarien!Q$31+U15*$F15*Szenarien!Q$32+U15*'Daten Projektion'!$G15*Szenarien!Q$33+U15*'Daten Projektion'!$H15*Szenarien!Q$34+U15*'Daten Projektion'!$I15*Szenarien!Q$35+U15*'Daten Projektion'!$J15*Szenarien!Q$36+U15*'Daten Projektion'!$K15*Szenarien!Q$37+U15*'Daten Projektion'!$L15*Szenarien!Q$38+U15*'Daten Projektion'!$M15*Szenarien!Q$39 -> 0 | W15: =V15+V15*$E15*Szenarien!R$31+V15*$F15*Szenarien!R$32+V15*'Daten Projektion'!$G15*Szenarien!R$33+V15*'Daten Projektion'!$H15*Szenarien!R$34+V15*'Daten Projektion'!$I15*Szenarien!R$35+V15*'Daten Projektion'!$J15*Szenarien!R$36+V15*'Daten Projektion'!$K15*Szenarien!R$37+V15*'Daten Projektion'!$L15*Szenarien!R$38+V15*'Daten Projektion'!$M15*Szenarien!R$39 -> 0 | X15: =W15+W15*$E15*Szenarien!S$31+W15*$F15*Szenarien!S$32+W15*'Daten Projektion'!$G15*Szenarien!S$33+W15*'Daten Projektion'!$H15*Szenarien!S$34+W15*'Daten Projektion'!$I15*Szenarien!S$35+W15*'Daten Projektion'!$J15*Szenarien!S$36+W15*'Daten Projektion'!$K15*Szenarien!S$37+W15*'Daten Projektion'!$L15*Szenarien!S$38+W15*'Daten Projektion'!$M15*Szenarien!S$39 -> 0 | Y15: =X15+X15*$E15*Szenarien!T$31+X15*$F15*Szenarien!T$32+X15*'Daten Projektion'!$G15*Szenarien!T$33+X15*'Daten Projektion'!$H15*Szenarien!T$34+X15*'Daten Projektion'!$I15*Szenarien!T$35+X15*'Daten Projektion'!$J15*Szenarien!T$36+X15*'Daten Projektion'!$K15*Szenarien!T$37+X15*'Daten Projektion'!$L15*Szenarien!T$38+X15*'Daten Projektion'!$M15*Szenarien!T$39 -> 0 | AA15: =N15+N15*$E15*Szenarien!X$31+N15*$F15*Szenarien!X$32+N15*'Daten Projektion'!$G15*Szenarien!X$33+N15*'Daten Projektion'!$H15*Szenarien!X$34+N15*'Daten Projektion'!$I15*Szenarien!X$35+N15*'Daten Projektion'!$J15*Szenarien!X$36+N15*'Daten Projektion'!$K15*Szenarien!X$37+N15*'Daten Projektion'!$L15*Szenarien!X$38+N15*'Daten Projektion'!$M15*Szenarien!X$39 -> 0 | AB15: =AA15+AA15*$E15*Szenarien!Y$31+AA15*$F15*Szenarien!Y$32+AA15*'Daten Projektion'!$G15*Szenarien!Y$33+AA15*'Daten Projektion'!$H15*Szenarien!Y$34+AA15*'Daten Projektion'!$I15*Szenarien!Y$35+AA15*'Daten Projektion'!$J15*Szenarien!Y$36+AA15*'Daten Projektion'!$K15*Szenarien!Y$37+AA15*'Daten Projektion'!$L15*Szenarien!Y$38+AA15*'Daten Projektion'!$M15*Szenarien!Y$39 -> 0 | AC15: =AB15+AB15*$E15*Szenarien!Z$31+AB15*$F15*Szenarien!Z$32+AB15*'Daten Projektion'!$G15*Szenarien!Z$33+AB15*'Daten Projektion'!$H15*Szenarien!Z$34+AB15*'Daten Projektion'!$I15*Szenarien!Z$35+AB15*'Daten Projektion'!$J15*Szenarien!Z$36+AB15*'Daten Projektion'!$K15*Szenarien!Z$37+AB15*'Daten Projektion'!$L15*Szenarien!Z$38+AB15*'Daten Projektion'!$M15*Szenarien!Z$39 -> 0 | AD15: =AC15+AC15*$E15*Szenarien!AA$31+AC15*$F15*Szenarien!AA$32+AC15*'Daten Projektion'!$G15*Szenarien!AA$33+AC15*'Daten Projektion'!$H15*Szenarien!AA$34+AC15*'Daten Projektion'!$I15*Szenarien!AA$35+AC15*'Daten Projektion'!$J15*Szenarien!AA$36+AC15*'Daten Projektion'!$K15*Szenarien!AA$37+AC15*'Daten Projektion'!$L15*Szenarien!AA$38+AC15*'Daten Projektion'!$M15*Szenarien!AA$39 -> 0 | AE15: =AD15+AD15*$E15*Szenarien!AB$31+AD15*$F15*Szenarien!AB$32+AD15*'Daten Projektion'!$G15*Szenarien!AB$33+AD15*'Daten Projektion'!$H15*Szenarien!AB$34+AD15*'Daten Projektion'!$I15*Szenarien!AB$35+AD15*'Daten Projektion'!$J15*Szenarien!AB$36+AD15*'Daten Projektion'!$K15*Szenarien!AB$37+AD15*'Daten Projektion'!$L15*Szenarien!AB$38+AD15*'Daten Projektion'!$M15*Szenarien!AB$39 -> 0
B16: =Vermögen!E14 -> 4. | C16: =IF(Vermögen!F14=0,"",Vermögen!F14) ->  | D16: =Vermögen!I14 -> Bitte auswählen | E16: =Vermögen!J14 -> 0.0% | F16: =Vermögen!K14 -> 0.0% | G16: =Vermögen!L14 -> 0.0% | H16: =Vermögen!M14 -> 0.0% | I16: =Vermögen!N14 -> 0.0% | J16: 0.0% | K16: 0.0% | L16: 0.0% | M16: 0.0% | N16: =Daten_Vermögen!C47 -> 0 | O16: =N16+N16*Vermögen!V14 -> 0 | P16: =O16+O16*Vermögen!$V14 -> 0 | Q16: =P16+P16*Vermögen!$V14 -> 0 | R16: =Q16+Q16*Vermögen!$V14 -> 0 | S16: =R16+R16*Vermögen!$V14 -> 0 | U16: =N16+N16*$E16*Szenarien!P$31+N16*$F16*Szenarien!P$32+N16*'Daten Projektion'!$G16*Szenarien!P$33+N16*'Daten Projektion'!$H16*Szenarien!P$34+N16*'Daten Projektion'!$I16*Szenarien!P$35+N16*'Daten Projektion'!$J16*Szenarien!P$36+N16*'Daten Projektion'!$K16*Szenarien!P$37+N16*'Daten Projektion'!$L16*Szenarien!P$38+N16*'Daten Projektion'!$M16*Szenarien!P$39 -> 0 | V16: =U16+U16*$E16*Szenarien!Q$31+U16*$F16*Szenarien!Q$32+U16*'Daten Projektion'!$G16*Szenarien!Q$33+U16*'Daten Projektion'!$H16*Szenarien!Q$34+U16*'Daten Projektion'!$I16*Szenarien!Q$35+U16*'Daten Projektion'!$J16*Szenarien!Q$36+U16*'Daten Projektion'!$K16*Szenarien!Q$37+U16*'Daten Projektion'!$L16*Szenarien!Q$38+U16*'Daten Projektion'!$M16*Szenarien!Q$39 -> 0 | W16: =V16+V16*$E16*Szenarien!R$31+V16*$F16*Szenarien!R$32+V16*'Daten Projektion'!$G16*Szenarien!R$33+V16*'Daten Projektion'!$H16*Szenarien!R$34+V16*'Daten Projektion'!$I16*Szenarien!R$35+V16*'Daten Projektion'!$J16*Szenarien!R$36+V16*'Daten Projektion'!$K16*Szenarien!R$37+V16*'Daten Projektion'!$L16*Szenarien!R$38+V16*'Daten Projektion'!$M16*Szenarien!R$39 -> 0 | X16: =W16+W16*$E16*Szenarien!S$31+W16*$F16*Szenarien!S$32+W16*'Daten Projektion'!$G16*Szenarien!S$33+W16*'Daten Projektion'!$H16*Szenarien!S$34+W16*'Daten Projektion'!$I16*Szenarien!S$35+W16*'Daten Projektion'!$J16*Szenarien!S$36+W16*'Daten Projektion'!$K16*Szenarien!S$37+W16*'Daten Projektion'!$L16*Szenarien!S$38+W16*'Daten Projektion'!$M16*Szenarien!S$39 -> 0 | Y16: =X16+X16*$E16*Szenarien!T$31+X16*$F16*Szenarien!T$32+X16*'Daten Projektion'!$G16*Szenarien!T$33+X16*'Daten Projektion'!$H16*Szenarien!T$34+X16*'Daten Projektion'!$I16*Szenarien!T$35+X16*'Daten Projektion'!$J16*Szenarien!T$36+X16*'Daten Projektion'!$K16*Szenarien!T$37+X16*'Daten Projektion'!$L16*Szenarien!T$38+X16*'Daten Projektion'!$M16*Szenarien!T$39 -> 0 | AA16: =N16+N16*$E16*Szenarien!X$31+N16*$F16*Szenarien!X$32+N16*'Daten Projektion'!$G16*Szenarien!X$33+N16*'Daten Projektion'!$H16*Szenarien!X$34+N16*'Daten Projektion'!$I16*Szenarien!X$35+N16*'Daten Projektion'!$J16*Szenarien!X$36+N16*'Daten Projektion'!$K16*Szenarien!X$37+N16*'Daten Projektion'!$L16*Szenarien!X$38+N16*'Daten Projektion'!$M16*Szenarien!X$39 -> 0 | AB16: =AA16+AA16*$E16*Szenarien!Y$31+AA16*$F16*Szenarien!Y$32+AA16*'Daten Projektion'!$G16*Szenarien!Y$33+AA16*'Daten Projektion'!$H16*Szenarien!Y$34+AA16*'Daten Projektion'!$I16*Szenarien!Y$35+AA16*'Daten Projektion'!$J16*Szenarien!Y$36+AA16*'Daten Projektion'!$K16*Szenarien!Y$37+AA16*'Daten Projektion'!$L16*Szenarien!Y$38+AA16*'Daten Projektion'!$M16*Szenarien!Y$39 -> 0 | AC16: =AB16+AB16*$E16*Szenarien!Z$31+AB16*$F16*Szenarien!Z$32+AB16*'Daten Projektion'!$G16*Szenarien!Z$33+AB16*'Daten Projektion'!$H16*Szenarien!Z$34+AB16*'Daten Projektion'!$I16*Szenarien!Z$35+AB16*'Daten Projektion'!$J16*Szenarien!Z$36+AB16*'Daten Projektion'!$K16*Szenarien!Z$37+AB16*'Daten Projektion'!$L16*Szenarien!Z$38+AB16*'Daten Projektion'!$M16*Szenarien!Z$39 -> 0 | AD16: =AC16+AC16*$E16*Szenarien!AA$31+AC16*$F16*Szenarien!AA$32+AC16*'Daten Projektion'!$G16*Szenarien!AA$33+AC16*'Daten Projektion'!$H16*Szenarien!AA$34+AC16*'Daten Projektion'!$I16*Szenarien!AA$35+AC16*'Daten Projektion'!$J16*Szenarien!AA$36+AC16*'Daten Projektion'!$K16*Szenarien!AA$37+AC16*'Daten Projektion'!$L16*Szenarien!AA$38+AC16*'Daten Projektion'!$M16*Szenarien!AA$39 -> 0 | AE16: =AD16+AD16*$E16*Szenarien!AB$31+AD16*$F16*Szenarien!AB$32+AD16*'Daten Projektion'!$G16*Szenarien!AB$33+AD16*'Daten Projektion'!$H16*Szenarien!AB$34+AD16*'Daten Projektion'!$I16*Szenarien!AB$35+AD16*'Daten Projektion'!$J16*Szenarien!AB$36+AD16*'Daten Projektion'!$K16*Szenarien!AB$37+AD16*'Daten Projektion'!$L16*Szenarien!AB$38+AD16*'Daten Projektion'!$M16*Szenarien!AB$39 -> 0
B17: =Vermögen!E15 -> 5. | C17: =IF(Vermögen!F15=0,"",Vermögen!F15) ->  | D17: =Vermögen!I15 -> Bitte auswählen | E17: =Vermögen!J15 -> 0.0% | F17: =Vermögen!K15 -> 0.0% | G17: =Vermögen!L15 -> 0.0% | H17: =Vermögen!M15 -> 0.0% | I17: =Vermögen!N15 -> 0.0% | J17: 0.0% | K17: 0.0% | L17: 0.0% | M17: 0.0% | N17: =Daten_Vermögen!C48 -> 0 | O17: =N17+N17*Vermögen!V15 -> 0 | P17: =O17+O17*Vermögen!$V15 -> 0 | Q17: =P17+P17*Vermögen!$V15 -> 0 | R17: =Q17+Q17*Vermögen!$V15 -> 0 | S17: =R17+R17*Vermögen!$V15 -> 0 | U17: =N17+N17*$E17*Szenarien!P$31+N17*$F17*Szenarien!P$32+N17*'Daten Projektion'!$G17*Szenarien!P$33+N17*'Daten Projektion'!$H17*Szenarien!P$34+N17*'Daten Projektion'!$I17*Szenarien!P$35+N17*'Daten Projektion'!$J17*Szenarien!P$36+N17*'Daten Projektion'!$K17*Szenarien!P$37+N17*'Daten Projektion'!$L17*Szenarien!P$38+N17*'Daten Projektion'!$M17*Szenarien!P$39 -> 0 | V17: =U17+U17*$E17*Szenarien!Q$31+U17*$F17*Szenarien!Q$32+U17*'Daten Projektion'!$G17*Szenarien!Q$33+U17*'Daten Projektion'!$H17*Szenarien!Q$34+U17*'Daten Projektion'!$I17*Szenarien!Q$35+U17*'Daten Projektion'!$J17*Szenarien!Q$36+U17*'Daten Projektion'!$K17*Szenarien!Q$37+U17*'Daten Projektion'!$L17*Szenarien!Q$38+U17*'Daten Projektion'!$M17*Szenarien!Q$39 -> 0 | W17: =V17+V17*$E17*Szenarien!R$31+V17*$F17*Szenarien!R$32+V17*'Daten Projektion'!$G17*Szenarien!R$33+V17*'Daten Projektion'!$H17*Szenarien!R$34+V17*'Daten Projektion'!$I17*Szenarien!R$35+V17*'Daten Projektion'!$J17*Szenarien!R$36+V17*'Daten Projektion'!$K17*Szenarien!R$37+V17*'Daten Projektion'!$L17*Szenarien!R$38+V17*'Daten Projektion'!$M17*Szenarien!R$39 -> 0 | X17: =W17+W17*$E17*Szenarien!S$31+W17*$F17*Szenarien!S$32+W17*'Daten Projektion'!$G17*Szenarien!S$33+W17*'Daten Projektion'!$H17*Szenarien!S$34+W17*'Daten Projektion'!$I17*Szenarien!S$35+W17*'Daten Projektion'!$J17*Szenarien!S$36+W17*'Daten Projektion'!$K17*Szenarien!S$37+W17*'Daten Projektion'!$L17*Szenarien!S$38+W17*'Daten Projektion'!$M17*Szenarien!S$39 -> 0 | Y17: =X17+X17*$E17*Szenarien!T$31+X17*$F17*Szenarien!T$32+X17*'Daten Projektion'!$G17*Szenarien!T$33+X17*'Daten Projektion'!$H17*Szenarien!T$34+X17*'Daten Projektion'!$I17*Szenarien!T$35+X17*'Daten Projektion'!$J17*Szenarien!T$36+X17*'Daten Projektion'!$K17*Szenarien!T$37+X17*'Daten Projektion'!$L17*Szenarien!T$38+X17*'Daten Projektion'!$M17*Szenarien!T$39 -> 0 | AA17: =N17+N17*$E17*Szenarien!X$31+N17*$F17*Szenarien!X$32+N17*'Daten Projektion'!$G17*Szenarien!X$33+N17*'Daten Projektion'!$H17*Szenarien!X$34+N17*'Daten Projektion'!$I17*Szenarien!X$35+N17*'Daten Projektion'!$J17*Szenarien!X$36+N17*'Daten Projektion'!$K17*Szenarien!X$37+N17*'Daten Projektion'!$L17*Szenarien!X$38+N17*'Daten Projektion'!$M17*Szenarien!X$39 -> 0 | AB17: =AA17+AA17*$E17*Szenarien!Y$31+AA17*$F17*Szenarien!Y$32+AA17*'Daten Projektion'!$G17*Szenarien!Y$33+AA17*'Daten Projektion'!$H17*Szenarien!Y$34+AA17*'Daten Projektion'!$I17*Szenarien!Y$35+AA17*'Daten Projektion'!$J17*Szenarien!Y$36+AA17*'Daten Projektion'!$K17*Szenarien!Y$37+AA17*'Daten Projektion'!$L17*Szenarien!Y$38+AA17*'Daten Projektion'!$M17*Szenarien!Y$39 -> 0 | AC17: =AB17+AB17*$E17*Szenarien!Z$31+AB17*$F17*Szenarien!Z$32+AB17*'Daten Projektion'!$G17*Szenarien!Z$33+AB17*'Daten Projektion'!$H17*Szenarien!Z$34+AB17*'Daten Projektion'!$I17*Szenarien!Z$35+AB17*'Daten Projektion'!$J17*Szenarien!Z$36+AB17*'Daten Projektion'!$K17*Szenarien!Z$37+AB17*'Daten Projektion'!$L17*Szenarien!Z$38+AB17*'Daten Projektion'!$M17*Szenarien!Z$39 -> 0 | AD17: =AC17+AC17*$E17*Szenarien!AA$31+AC17*$F17*Szenarien!AA$32+AC17*'Daten Projektion'!$G17*Szenarien!AA$33+AC17*'Daten Projektion'!$H17*Szenarien!AA$34+AC17*'Daten Projektion'!$I17*Szenarien!AA$35+AC17*'Daten Projektion'!$J17*Szenarien!AA$36+AC17*'Daten Projektion'!$K17*Szenarien!AA$37+AC17*'Daten Projektion'!$L17*Szenarien!AA$38+AC17*'Daten Projektion'!$M17*Szenarien!AA$39 -> 0 | AE17: =AD17+AD17*$E17*Szenarien!AB$31+AD17*$F17*Szenarien!AB$32+AD17*'Daten Projektion'!$G17*Szenarien!AB$33+AD17*'Daten Projektion'!$H17*Szenarien!AB$34+AD17*'Daten Projektion'!$I17*Szenarien!AB$35+AD17*'Daten Projektion'!$J17*Szenarien!AB$36+AD17*'Daten Projektion'!$K17*Szenarien!AB$37+AD17*'Daten Projektion'!$L17*Szenarien!AB$38+AD17*'Daten Projektion'!$M17*Szenarien!AB$39 -> 0
B18: =Vermögen!E16 -> 6. | C18: =IF(Vermögen!F16=0,"",Vermögen!F16) ->  | D18: =Vermögen!I16 -> Bitte auswählen | E18: =Vermögen!J16 -> 0.0% | F18: =Vermögen!K16 -> 0.0% | G18: =Vermögen!L16 -> 0.0% | H18: =Vermögen!M16 -> 0.0% | I18: =Vermögen!N16 -> 0.0% | J18: 0.0% | K18: 0.0% | L18: 0.0% | M18: 0.0% | N18: =Daten_Vermögen!C49 -> 0 | O18: =N18+N18*Vermögen!V16 -> 0 | P18: =O18+O18*Vermögen!$V16 -> 0 | Q18: =P18+P18*Vermögen!$V16 -> 0 | R18: =Q18+Q18*Vermögen!$V16 -> 0 | S18: =R18+R18*Vermögen!$V16 -> 0 | U18: =N18+N18*$E18*Szenarien!P$31+N18*$F18*Szenarien!P$32+N18*'Daten Projektion'!$G18*Szenarien!P$33+N18*'Daten Projektion'!$H18*Szenarien!P$34+N18*'Daten Projektion'!$I18*Szenarien!P$35+N18*'Daten Projektion'!$J18*Szenarien!P$36+N18*'Daten Projektion'!$K18*Szenarien!P$37+N18*'Daten Projektion'!$L18*Szenarien!P$38+N18*'Daten Projektion'!$M18*Szenarien!P$39 -> 0 | V18: =U18+U18*$E18*Szenarien!Q$31+U18*$F18*Szenarien!Q$32+U18*'Daten Projektion'!$G18*Szenarien!Q$33+U18*'Daten Projektion'!$H18*Szenarien!Q$34+U18*'Daten Projektion'!$I18*Szenarien!Q$35+U18*'Daten Projektion'!$J18*Szenarien!Q$36+U18*'Daten Projektion'!$K18*Szenarien!Q$37+U18*'Daten Projektion'!$L18*Szenarien!Q$38+U18*'Daten Projektion'!$M18*Szenarien!Q$39 -> 0 | W18: =V18+V18*$E18*Szenarien!R$31+V18*$F18*Szenarien!R$32+V18*'Daten Projektion'!$G18*Szenarien!R$33+V18*'Daten Projektion'!$H18*Szenarien!R$34+V18*'Daten Projektion'!$I18*Szenarien!R$35+V18*'Daten Projektion'!$J18*Szenarien!R$36+V18*'Daten Projektion'!$K18*Szenarien!R$37+V18*'Daten Projektion'!$L18*Szenarien!R$38+V18*'Daten Projektion'!$M18*Szenarien!R$39 -> 0 | X18: =W18+W18*$E18*Szenarien!S$31+W18*$F18*Szenarien!S$32+W18*'Daten Projektion'!$G18*Szenarien!S$33+W18*'Daten Projektion'!$H18*Szenarien!S$34+W18*'Daten Projektion'!$I18*Szenarien!S$35+W18*'Daten Projektion'!$J18*Szenarien!S$36+W18*'Daten Projektion'!$K18*Szenarien!S$37+W18*'Daten Projektion'!$L18*Szenarien!S$38+W18*'Daten Projektion'!$M18*Szenarien!S$39 -> 0 | Y18: =X18+X18*$E18*Szenarien!T$31+X18*$F18*Szenarien!T$32+X18*'Daten Projektion'!$G18*Szenarien!T$33+X18*'Daten Projektion'!$H18*Szenarien!T$34+X18*'Daten Projektion'!$I18*Szenarien!T$35+X18*'Daten Projektion'!$J18*Szenarien!T$36+X18*'Daten Projektion'!$K18*Szenarien!T$37+X18*'Daten Projektion'!$L18*Szenarien!T$38+X18*'Daten Projektion'!$M18*Szenarien!T$39 -> 0 | AA18: =N18+N18*$E18*Szenarien!X$31+N18*$F18*Szenarien!X$32+N18*'Daten Projektion'!$G18*Szenarien!X$33+N18*'Daten Projektion'!$H18*Szenarien!X$34+N18*'Daten Projektion'!$I18*Szenarien!X$35+N18*'Daten Projektion'!$J18*Szenarien!X$36+N18*'Daten Projektion'!$K18*Szenarien!X$37+N18*'Daten Projektion'!$L18*Szenarien!X$38+N18*'Daten Projektion'!$M18*Szenarien!X$39 -> 0 | AB18: =AA18+AA18*$E18*Szenarien!Y$31+AA18*$F18*Szenarien!Y$32+AA18*'Daten Projektion'!$G18*Szenarien!Y$33+AA18*'Daten Projektion'!$H18*Szenarien!Y$34+AA18*'Daten Projektion'!$I18*Szenarien!Y$35+AA18*'Daten Projektion'!$J18*Szenarien!Y$36+AA18*'Daten Projektion'!$K18*Szenarien!Y$37+AA18*'Daten Projektion'!$L18*Szenarien!Y$38+AA18*'Daten Projektion'!$M18*Szenarien!Y$39 -> 0 | AC18: =AB18+AB18*$E18*Szenarien!Z$31+AB18*$F18*Szenarien!Z$32+AB18*'Daten Projektion'!$G18*Szenarien!Z$33+AB18*'Daten Projektion'!$H18*Szenarien!Z$34+AB18*'Daten Projektion'!$I18*Szenarien!Z$35+AB18*'Daten Projektion'!$J18*Szenarien!Z$36+AB18*'Daten Projektion'!$K18*Szenarien!Z$37+AB18*'Daten Projektion'!$L18*Szenarien!Z$38+AB18*'Daten Projektion'!$M18*Szenarien!Z$39 -> 0 | AD18: =AC18+AC18*$E18*Szenarien!AA$31+AC18*$F18*Szenarien!AA$32+AC18*'Daten Projektion'!$G18*Szenarien!AA$33+AC18*'Daten Projektion'!$H18*Szenarien!AA$34+AC18*'Daten Projektion'!$I18*Szenarien!AA$35+AC18*'Daten Projektion'!$J18*Szenarien!AA$36+AC18*'Daten Projektion'!$K18*Szenarien!AA$37+AC18*'Daten Projektion'!$L18*Szenarien!AA$38+AC18*'Daten Projektion'!$M18*Szenarien!AA$39 -> 0 | AE18: =AD18+AD18*$E18*Szenarien!AB$31+AD18*$F18*Szenarien!AB$32+AD18*'Daten Projektion'!$G18*Szenarien!AB$33+AD18*'Daten Projektion'!$H18*Szenarien!AB$34+AD18*'Daten Projektion'!$I18*Szenarien!AB$35+AD18*'Daten Projektion'!$J18*Szenarien!AB$36+AD18*'Daten Projektion'!$K18*Szenarien!AB$37+AD18*'Daten Projektion'!$L18*Szenarien!AB$38+AD18*'Daten Projektion'!$M18*Szenarien!AB$39 -> 0
B19: =Vermögen!E17 -> 7. | C19: =IF(Vermögen!F17=0,"",Vermögen!F17) ->  | D19: =Vermögen!I17 -> Bitte auswählen | E19: =Vermögen!J17 -> 0.0% | F19: =Vermögen!K17 -> 0.0% | G19: =Vermögen!L17 -> 0.0% | H19: =Vermögen!M17 -> 0.0% | I19: =Vermögen!N17 -> 0.0% | J19: 0.0% | K19: 0.0% | L19: 0.0% | M19: 0.0% | N19: =Daten_Vermögen!C50 -> 0 | O19: =N19+N19*Vermögen!V17 -> 0 | P19: =O19+O19*Vermögen!$V17 -> 0 | Q19: =P19+P19*Vermögen!$V17 -> 0 | R19: =Q19+Q19*Vermögen!$V17 -> 0 | S19: =R19+R19*Vermögen!$V17 -> 0 | U19: =N19+N19*$E19*Szenarien!P$31+N19*$F19*Szenarien!P$32+N19*'Daten Projektion'!$G19*Szenarien!P$33+N19*'Daten Projektion'!$H19*Szenarien!P$34+N19*'Daten Projektion'!$I19*Szenarien!P$35+N19*'Daten Projektion'!$J19*Szenarien!P$36+N19*'Daten Projektion'!$K19*Szenarien!P$37+N19*'Daten Projektion'!$L19*Szenarien!P$38+N19*'Daten Projektion'!$M19*Szenarien!P$39 -> 0 | V19: =U19+U19*$E19*Szenarien!Q$31+U19*$F19*Szenarien!Q$32+U19*'Daten Projektion'!$G19*Szenarien!Q$33+U19*'Daten Projektion'!$H19*Szenarien!Q$34+U19*'Daten Projektion'!$I19*Szenarien!Q$35+U19*'Daten Projektion'!$J19*Szenarien!Q$36+U19*'Daten Projektion'!$K19*Szenarien!Q$37+U19*'Daten Projektion'!$L19*Szenarien!Q$38+U19*'Daten Projektion'!$M19*Szenarien!Q$39 -> 0 | W19: =V19+V19*$E19*Szenarien!R$31+V19*$F19*Szenarien!R$32+V19*'Daten Projektion'!$G19*Szenarien!R$33+V19*'Daten Projektion'!$H19*Szenarien!R$34+V19*'Daten Projektion'!$I19*Szenarien!R$35+V19*'Daten Projektion'!$J19*Szenarien!R$36+V19*'Daten Projektion'!$K19*Szenarien!R$37+V19*'Daten Projektion'!$L19*Szenarien!R$38+V19*'Daten Projektion'!$M19*Szenarien!R$39 -> 0 | X19: =W19+W19*$E19*Szenarien!S$31+W19*$F19*Szenarien!S$32+W19*'Daten Projektion'!$G19*Szenarien!S$33+W19*'Daten Projektion'!$H19*Szenarien!S$34+W19*'Daten Projektion'!$I19*Szenarien!S$35+W19*'Daten Projektion'!$J19*Szenarien!S$36+W19*'Daten Projektion'!$K19*Szenarien!S$37+W19*'Daten Projektion'!$L19*Szenarien!S$38+W19*'Daten Projektion'!$M19*Szenarien!S$39 -> 0 | Y19: =X19+X19*$E19*Szenarien!T$31+X19*$F19*Szenarien!T$32+X19*'Daten Projektion'!$G19*Szenarien!T$33+X19*'Daten Projektion'!$H19*Szenarien!T$34+X19*'Daten Projektion'!$I19*Szenarien!T$35+X19*'Daten Projektion'!$J19*Szenarien!T$36+X19*'Daten Projektion'!$K19*Szenarien!T$37+X19*'Daten Projektion'!$L19*Szenarien!T$38+X19*'Daten Projektion'!$M19*Szenarien!T$39 -> 0 | AA19: =N19+N19*$E19*Szenarien!X$31+N19*$F19*Szenarien!X$32+N19*'Daten Projektion'!$G19*Szenarien!X$33+N19*'Daten Projektion'!$H19*Szenarien!X$34+N19*'Daten Projektion'!$I19*Szenarien!X$35+N19*'Daten Projektion'!$J19*Szenarien!X$36+N19*'Daten Projektion'!$K19*Szenarien!X$37+N19*'Daten Projektion'!$L19*Szenarien!X$38+N19*'Daten Projektion'!$M19*Szenarien!X$39 -> 0 | AB19: =AA19+AA19*$E19*Szenarien!Y$31+AA19*$F19*Szenarien!Y$32+AA19*'Daten Projektion'!$G19*Szenarien!Y$33+AA19*'Daten Projektion'!$H19*Szenarien!Y$34+AA19*'Daten Projektion'!$I19*Szenarien!Y$35+AA19*'Daten Projektion'!$J19*Szenarien!Y$36+AA19*'Daten Projektion'!$K19*Szenarien!Y$37+AA19*'Daten Projektion'!$L19*Szenarien!Y$38+AA19*'Daten Projektion'!$M19*Szenarien!Y$39 -> 0 | AC19: =AB19+AB19*$E19*Szenarien!Z$31+AB19*$F19*Szenarien!Z$32+AB19*'Daten Projektion'!$G19*Szenarien!Z$33+AB19*'Daten Projektion'!$H19*Szenarien!Z$34+AB19*'Daten Projektion'!$I19*Szenarien!Z$35+AB19*'Daten Projektion'!$J19*Szenarien!Z$36+AB19*'Daten Projektion'!$K19*Szenarien!Z$37+AB19*'Daten Projektion'!$L19*Szenarien!Z$38+AB19*'Daten Projektion'!$M19*Szenarien!Z$39 -> 0 | AD19: =AC19+AC19*$E19*Szenarien!AA$31+AC19*$F19*Szenarien!AA$32+AC19*'Daten Projektion'!$G19*Szenarien!AA$33+AC19*'Daten Projektion'!$H19*Szenarien!AA$34+AC19*'Daten Projektion'!$I19*Szenarien!AA$35+AC19*'Daten Projektion'!$J19*Szenarien!AA$36+AC19*'Daten Projektion'!$K19*Szenarien!AA$37+AC19*'Daten Projektion'!$L19*Szenarien!AA$38+AC19*'Daten Projektion'!$M19*Szenarien!AA$39 -> 0 | AE19: =AD19+AD19*$E19*Szenarien!AB$31+AD19*$F19*Szenarien!AB$32+AD19*'Daten Projektion'!$G19*Szenarien!AB$33+AD19*'Daten Projektion'!$H19*Szenarien!AB$34+AD19*'Daten Projektion'!$I19*Szenarien!AB$35+AD19*'Daten Projektion'!$J19*Szenarien!AB$36+AD19*'Daten Projektion'!$K19*Szenarien!AB$37+AD19*'Daten Projektion'!$L19*Szenarien!AB$38+AD19*'Daten Projektion'!$M19*Szenarien!AB$39 -> 0
B20: =Vermögen!E18 -> 8. | C20: =IF(Vermögen!F18=0,"",Vermögen!F18) ->  | D20: =Vermögen!I18 -> Bitte auswählen | E20: =Vermögen!J18 -> 0.0% | F20: =Vermögen!K18 -> 0.0% | G20: =Vermögen!L18 -> 0.0% | H20: =Vermögen!M18 -> 0.0% | I20: =Vermögen!N18 -> 0.0% | J20: 0.0% | K20: 0.0% | L20: 0.0% | M20: 0.0% | N20: =Daten_Vermögen!C51 -> 0 | O20: =N20+N20*Vermögen!V18 -> 0 | P20: =O20+O20*Vermögen!$V18 -> 0 | Q20: =P20+P20*Vermögen!$V18 -> 0 | R20: =Q20+Q20*Vermögen!$V18 -> 0 | S20: =R20+R20*Vermögen!$V18 -> 0 | U20: =N20+N20*$E20*Szenarien!P$31+N20*$F20*Szenarien!P$32+N20*'Daten Projektion'!$G20*Szenarien!P$33+N20*'Daten Projektion'!$H20*Szenarien!P$34+N20*'Daten Projektion'!$I20*Szenarien!P$35+N20*'Daten Projektion'!$J20*Szenarien!P$36+N20*'Daten Projektion'!$K20*Szenarien!P$37+N20*'Daten Projektion'!$L20*Szenarien!P$38+N20*'Daten Projektion'!$M20*Szenarien!P$39 -> 0 | V20: =U20+U20*$E20*Szenarien!Q$31+U20*$F20*Szenarien!Q$32+U20*'Daten Projektion'!$G20*Szenarien!Q$33+U20*'Daten Projektion'!$H20*Szenarien!Q$34+U20*'Daten Projektion'!$I20*Szenarien!Q$35+U20*'Daten Projektion'!$J20*Szenarien!Q$36+U20*'Daten Projektion'!$K20*Szenarien!Q$37+U20*'Daten Projektion'!$L20*Szenarien!Q$38+U20*'Daten Projektion'!$M20*Szenarien!Q$39 -> 0 | W20: =V20+V20*$E20*Szenarien!R$31+V20*$F20*Szenarien!R$32+V20*'Daten Projektion'!$G20*Szenarien!R$33+V20*'Daten Projektion'!$H20*Szenarien!R$34+V20*'Daten Projektion'!$I20*Szenarien!R$35+V20*'Daten Projektion'!$J20*Szenarien!R$36+V20*'Daten Projektion'!$K20*Szenarien!R$37+V20*'Daten Projektion'!$L20*Szenarien!R$38+V20*'Daten Projektion'!$M20*Szenarien!R$39 -> 0 | X20: =W20+W20*$E20*Szenarien!S$31+W20*$F20*Szenarien!S$32+W20*'Daten Projektion'!$G20*Szenarien!S$33+W20*'Daten Projektion'!$H20*Szenarien!S$34+W20*'Daten Projektion'!$I20*Szenarien!S$35+W20*'Daten Projektion'!$J20*Szenarien!S$36+W20*'Daten Projektion'!$K20*Szenarien!S$37+W20*'Daten Projektion'!$L20*Szenarien!S$38+W20*'Daten Projektion'!$M20*Szenarien!S$39 -> 0 | Y20: =X20+X20*$E20*Szenarien!T$31+X20*$F20*Szenarien!T$32+X20*'Daten Projektion'!$G20*Szenarien!T$33+X20*'Daten Projektion'!$H20*Szenarien!T$34+X20*'Daten Projektion'!$I20*Szenarien!T$35+X20*'Daten Projektion'!$J20*Szenarien!T$36+X20*'Daten Projektion'!$K20*Szenarien!T$37+X20*'Daten Projektion'!$L20*Szenarien!T$38+X20*'Daten Projektion'!$M20*Szenarien!T$39 -> 0 | AA20: =N20+N20*$E20*Szenarien!X$31+N20*$F20*Szenarien!X$32+N20*'Daten Projektion'!$G20*Szenarien!X$33+N20*'Daten Projektion'!$H20*Szenarien!X$34+N20*'Daten Projektion'!$I20*Szenarien!X$35+N20*'Daten Projektion'!$J20*Szenarien!X$36+N20*'Daten Projektion'!$K20*Szenarien!X$37+N20*'Daten Projektion'!$L20*Szenarien!X$38+N20*'Daten Projektion'!$M20*Szenarien!X$39 -> 0 | AB20: =AA20+AA20*$E20*Szenarien!Y$31+AA20*$F20*Szenarien!Y$32+AA20*'Daten Projektion'!$G20*Szenarien!Y$33+AA20*'Daten Projektion'!$H20*Szenarien!Y$34+AA20*'Daten Projektion'!$I20*Szenarien!Y$35+AA20*'Daten Projektion'!$J20*Szenarien!Y$36+AA20*'Daten Projektion'!$K20*Szenarien!Y$37+AA20*'Daten Projektion'!$L20*Szenarien!Y$38+AA20*'Daten Projektion'!$M20*Szenarien!Y$39 -> 0 | AC20: =AB20+AB20*$E20*Szenarien!Z$31+AB20*$F20*Szenarien!Z$32+AB20*'Daten Projektion'!$G20*Szenarien!Z$33+AB20*'Daten Projektion'!$H20*Szenarien!Z$34+AB20*'Daten Projektion'!$I20*Szenarien!Z$35+AB20*'Daten Projektion'!$J20*Szenarien!Z$36+AB20*'Daten Projektion'!$K20*Szenarien!Z$37+AB20*'Daten Projektion'!$L20*Szenarien!Z$38+AB20*'Daten Projektion'!$M20*Szenarien!Z$39 -> 0 | AD20: =AC20+AC20*$E20*Szenarien!AA$31+AC20*$F20*Szenarien!AA$32+AC20*'Daten Projektion'!$G20*Szenarien!AA$33+AC20*'Daten Projektion'!$H20*Szenarien!AA$34+AC20*'Daten Projektion'!$I20*Szenarien!AA$35+AC20*'Daten Projektion'!$J20*Szenarien!AA$36+AC20*'Daten Projektion'!$K20*Szenarien!AA$37+AC20*'Daten Projektion'!$L20*Szenarien!AA$38+AC20*'Daten Projektion'!$M20*Szenarien!AA$39 -> 0 | AE20: =AD20+AD20*$E20*Szenarien!AB$31+AD20*$F20*Szenarien!AB$32+AD20*'Daten Projektion'!$G20*Szenarien!AB$33+AD20*'Daten Projektion'!$H20*Szenarien!AB$34+AD20*'Daten Projektion'!$I20*Szenarien!AB$35+AD20*'Daten Projektion'!$J20*Szenarien!AB$36+AD20*'Daten Projektion'!$K20*Szenarien!AB$37+AD20*'Daten Projektion'!$L20*Szenarien!AB$38+AD20*'Daten Projektion'!$M20*Szenarien!AB$39 -> 0
B21: =Vermögen!E19 -> 9. | C21: =IF(Vermögen!F19=0,"",Vermögen!F19) ->  | D21: =Vermögen!I19 -> Bitte auswählen | E21: =Vermögen!J19 -> 0.0% | F21: =Vermögen!K19 -> 0.0% | G21: =Vermögen!L19 -> 0.0% | H21: =Vermögen!M19 -> 0.0% | I21: =Vermögen!N19 -> 0.0% | J21: 0.0% | K21: 0.0% | L21: 0.0% | M21: 0.0% | N21: =Daten_Vermögen!C52 -> 0 | O21: =N21+N21*Vermögen!V19 -> 0 | P21: =O21+O21*Vermögen!$V19 -> 0 | Q21: =P21+P21*Vermögen!$V19 -> 0 | R21: =Q21+Q21*Vermögen!$V19 -> 0 | S21: =R21+R21*Vermögen!$V19 -> 0 | U21: =N21+N21*$E21*Szenarien!P$31+N21*$F21*Szenarien!P$32+N21*'Daten Projektion'!$G21*Szenarien!P$33+N21*'Daten Projektion'!$H21*Szenarien!P$34+N21*'Daten Projektion'!$I21*Szenarien!P$35+N21*'Daten Projektion'!$J21*Szenarien!P$36+N21*'Daten Projektion'!$K21*Szenarien!P$37+N21*'Daten Projektion'!$L21*Szenarien!P$38+N21*'Daten Projektion'!$M21*Szenarien!P$39 -> 0 | V21: =U21+U21*$E21*Szenarien!Q$31+U21*$F21*Szenarien!Q$32+U21*'Daten Projektion'!$G21*Szenarien!Q$33+U21*'Daten Projektion'!$H21*Szenarien!Q$34+U21*'Daten Projektion'!$I21*Szenarien!Q$35+U21*'Daten Projektion'!$J21*Szenarien!Q$36+U21*'Daten Projektion'!$K21*Szenarien!Q$37+U21*'Daten Projektion'!$L21*Szenarien!Q$38+U21*'Daten Projektion'!$M21*Szenarien!Q$39 -> 0 | W21: =V21+V21*$E21*Szenarien!R$31+V21*$F21*Szenarien!R$32+V21*'Daten Projektion'!$G21*Szenarien!R$33+V21*'Daten Projektion'!$H21*Szenarien!R$34+V21*'Daten Projektion'!$I21*Szenarien!R$35+V21*'Daten Projektion'!$J21*Szenarien!R$36+V21*'Daten Projektion'!$K21*Szenarien!R$37+V21*'Daten Projektion'!$L21*Szenarien!R$38+V21*'Daten Projektion'!$M21*Szenarien!R$39 -> 0 | X21: =W21+W21*$E21*Szenarien!S$31+W21*$F21*Szenarien!S$32+W21*'Daten Projektion'!$G21*Szenarien!S$33+W21*'Daten Projektion'!$H21*Szenarien!S$34+W21*'Daten Projektion'!$I21*Szenarien!S$35+W21*'Daten Projektion'!$J21*Szenarien!S$36+W21*'Daten Projektion'!$K21*Szenarien!S$37+W21*'Daten Projektion'!$L21*Szenarien!S$38+W21*'Daten Projektion'!$M21*Szenarien!S$39 -> 0 | Y21: =X21+X21*$E21*Szenarien!T$31+X21*$F21*Szenarien!T$32+X21*'Daten Projektion'!$G21*Szenarien!T$33+X21*'Daten Projektion'!$H21*Szenarien!T$34+X21*'Daten Projektion'!$I21*Szenarien!T$35+X21*'Daten Projektion'!$J21*Szenarien!T$36+X21*'Daten Projektion'!$K21*Szenarien!T$37+X21*'Daten Projektion'!$L21*Szenarien!T$38+X21*'Daten Projektion'!$M21*Szenarien!T$39 -> 0 | AA21: =N21+N21*$E21*Szenarien!X$31+N21*$F21*Szenarien!X$32+N21*'Daten Projektion'!$G21*Szenarien!X$33+N21*'Daten Projektion'!$H21*Szenarien!X$34+N21*'Daten Projektion'!$I21*Szenarien!X$35+N21*'Daten Projektion'!$J21*Szenarien!X$36+N21*'Daten Projektion'!$K21*Szenarien!X$37+N21*'Daten Projektion'!$L21*Szenarien!X$38+N21*'Daten Projektion'!$M21*Szenarien!X$39 -> 0 | AB21: =AA21+AA21*$E21*Szenarien!Y$31+AA21*$F21*Szenarien!Y$32+AA21*'Daten Projektion'!$G21*Szenarien!Y$33+AA21*'Daten Projektion'!$H21*Szenarien!Y$34+AA21*'Daten Projektion'!$I21*Szenarien!Y$35+AA21*'Daten Projektion'!$J21*Szenarien!Y$36+AA21*'Daten Projektion'!$K21*Szenarien!Y$37+AA21*'Daten Projektion'!$L21*Szenarien!Y$38+AA21*'Daten Projektion'!$M21*Szenarien!Y$39 -> 0 | AC21: =AB21+AB21*$E21*Szenarien!Z$31+AB21*$F21*Szenarien!Z$32+AB21*'Daten Projektion'!$G21*Szenarien!Z$33+AB21*'Daten Projektion'!$H21*Szenarien!Z$34+AB21*'Daten Projektion'!$I21*Szenarien!Z$35+AB21*'Daten Projektion'!$J21*Szenarien!Z$36+AB21*'Daten Projektion'!$K21*Szenarien!Z$37+AB21*'Daten Projektion'!$L21*Szenarien!Z$38+AB21*'Daten Projektion'!$M21*Szenarien!Z$39 -> 0 | AD21: =AC21+AC21*$E21*Szenarien!AA$31+AC21*$F21*Szenarien!AA$32+AC21*'Daten Projektion'!$G21*Szenarien!AA$33+AC21*'Daten Projektion'!$H21*Szenarien!AA$34+AC21*'Daten Projektion'!$I21*Szenarien!AA$35+AC21*'Daten Projektion'!$J21*Szenarien!AA$36+AC21*'Daten Projektion'!$K21*Szenarien!AA$37+AC21*'Daten Projektion'!$L21*Szenarien!AA$38+AC21*'Daten Projektion'!$M21*Szenarien!AA$39 -> 0 | AE21: =AD21+AD21*$E21*Szenarien!AB$31+AD21*$F21*Szenarien!AB$32+AD21*'Daten Projektion'!$G21*Szenarien!AB$33+AD21*'Daten Projektion'!$H21*Szenarien!AB$34+AD21*'Daten Projektion'!$I21*Szenarien!AB$35+AD21*'Daten Projektion'!$J21*Szenarien!AB$36+AD21*'Daten Projektion'!$K21*Szenarien!AB$37+AD21*'Daten Projektion'!$L21*Szenarien!AB$38+AD21*'Daten Projektion'!$M21*Szenarien!AB$39 -> 0
B22: =Vermögen!E20 -> 10. | C22: =IF(Vermögen!F20=0,"",Vermögen!F20) ->  | D22: =Vermögen!I20 -> Bitte auswählen | E22: =Vermögen!J20 -> 0.0% | F22: =Vermögen!K20 -> 0.0% | G22: =Vermögen!L20 -> 0.0% | H22: =Vermögen!M20 -> 0.0% | I22: =Vermögen!N20 -> 0.0% | J22: 0.0% | K22: 0.0% | L22: 0.0% | M22: 0.0% | N22: =Daten_Vermögen!C53 -> 0 | O22: =N22+N22*Vermögen!V20 -> 0 | P22: =O22+O22*Vermögen!$V20 -> 0 | Q22: =P22+P22*Vermögen!$V20 -> 0 | R22: =Q22+Q22*Vermögen!$V20 -> 0 | S22: =R22+R22*Vermögen!$V20 -> 0 | U22: =N22+N22*$E22*Szenarien!P$31+N22*$F22*Szenarien!P$32+N22*'Daten Projektion'!$G22*Szenarien!P$33+N22*'Daten Projektion'!$H22*Szenarien!P$34+N22*'Daten Projektion'!$I22*Szenarien!P$35+N22*'Daten Projektion'!$J22*Szenarien!P$36+N22*'Daten Projektion'!$K22*Szenarien!P$37+N22*'Daten Projektion'!$L22*Szenarien!P$38+N22*'Daten Projektion'!$M22*Szenarien!P$39 -> 0 | V22: =U22+U22*$E22*Szenarien!Q$31+U22*$F22*Szenarien!Q$32+U22*'Daten Projektion'!$G22*Szenarien!Q$33+U22*'Daten Projektion'!$H22*Szenarien!Q$34+U22*'Daten Projektion'!$I22*Szenarien!Q$35+U22*'Daten Projektion'!$J22*Szenarien!Q$36+U22*'Daten Projektion'!$K22*Szenarien!Q$37+U22*'Daten Projektion'!$L22*Szenarien!Q$38+U22*'Daten Projektion'!$M22*Szenarien!Q$39 -> 0 | W22: =V22+V22*$E22*Szenarien!R$31+V22*$F22*Szenarien!R$32+V22*'Daten Projektion'!$G22*Szenarien!R$33+V22*'Daten Projektion'!$H22*Szenarien!R$34+V22*'Daten Projektion'!$I22*Szenarien!R$35+V22*'Daten Projektion'!$J22*Szenarien!R$36+V22*'Daten Projektion'!$K22*Szenarien!R$37+V22*'Daten Projektion'!$L22*Szenarien!R$38+V22*'Daten Projektion'!$M22*Szenarien!R$39 -> 0 | X22: =W22+W22*$E22*Szenarien!S$31+W22*$F22*Szenarien!S$32+W22*'Daten Projektion'!$G22*Szenarien!S$33+W22*'Daten Projektion'!$H22*Szenarien!S$34+W22*'Daten Projektion'!$I22*Szenarien!S$35+W22*'Daten Projektion'!$J22*Szenarien!S$36+W22*'Daten Projektion'!$K22*Szenarien!S$37+W22*'Daten Projektion'!$L22*Szenarien!S$38+W22*'Daten Projektion'!$M22*Szenarien!S$39 -> 0 | Y22: =X22+X22*$E22*Szenarien!T$31+X22*$F22*Szenarien!T$32+X22*'Daten Projektion'!$G22*Szenarien!T$33+X22*'Daten Projektion'!$H22*Szenarien!T$34+X22*'Daten Projektion'!$I22*Szenarien!T$35+X22*'Daten Projektion'!$J22*Szenarien!T$36+X22*'Daten Projektion'!$K22*Szenarien!T$37+X22*'Daten Projektion'!$L22*Szenarien!T$38+X22*'Daten Projektion'!$M22*Szenarien!T$39 -> 0 | AA22: =N22+N22*$E22*Szenarien!X$31+N22*$F22*Szenarien!X$32+N22*'Daten Projektion'!$G22*Szenarien!X$33+N22*'Daten Projektion'!$H22*Szenarien!X$34+N22*'Daten Projektion'!$I22*Szenarien!X$35+N22*'Daten Projektion'!$J22*Szenarien!X$36+N22*'Daten Projektion'!$K22*Szenarien!X$37+N22*'Daten Projektion'!$L22*Szenarien!X$38+N22*'Daten Projektion'!$M22*Szenarien!X$39 -> 0 | AB22: =AA22+AA22*$E22*Szenarien!Y$31+AA22*$F22*Szenarien!Y$32+AA22*'Daten Projektion'!$G22*Szenarien!Y$33+AA22*'Daten Projektion'!$H22*Szenarien!Y$34+AA22*'Daten Projektion'!$I22*Szenarien!Y$35+AA22*'Daten Projektion'!$J22*Szenarien!Y$36+AA22*'Daten Projektion'!$K22*Szenarien!Y$37+AA22*'Daten Projektion'!$L22*Szenarien!Y$38+AA22*'Daten Projektion'!$M22*Szenarien!Y$39 -> 0 | AC22: =AB22+AB22*$E22*Szenarien!Z$31+AB22*$F22*Szenarien!Z$32+AB22*'Daten Projektion'!$G22*Szenarien!Z$33+AB22*'Daten Projektion'!$H22*Szenarien!Z$34+AB22*'Daten Projektion'!$I22*Szenarien!Z$35+AB22*'Daten Projektion'!$J22*Szenarien!Z$36+AB22*'Daten Projektion'!$K22*Szenarien!Z$37+AB22*'Daten Projektion'!$L22*Szenarien!Z$38+AB22*'Daten Projektion'!$M22*Szenarien!Z$39 -> 0 | AD22: =AC22+AC22*$E22*Szenarien!AA$31+AC22*$F22*Szenarien!AA$32+AC22*'Daten Projektion'!$G22*Szenarien!AA$33+AC22*'Daten Projektion'!$H22*Szenarien!AA$34+AC22*'Daten Projektion'!$I22*Szenarien!AA$35+AC22*'Daten Projektion'!$J22*Szenarien!AA$36+AC22*'Daten Projektion'!$K22*Szenarien!AA$37+AC22*'Daten Projektion'!$L22*Szenarien!AA$38+AC22*'Daten Projektion'!$M22*Szenarien!AA$39 -> 0 | AE22: =AD22+AD22*$E22*Szenarien!AB$31+AD22*$F22*Szenarien!AB$32+AD22*'Daten Projektion'!$G22*Szenarien!AB$33+AD22*'Daten Projektion'!$H22*Szenarien!AB$34+AD22*'Daten Projektion'!$I22*Szenarien!AB$35+AD22*'Daten Projektion'!$J22*Szenarien!AB$36+AD22*'Daten Projektion'!$K22*Szenarien!AB$37+AD22*'Daten Projektion'!$L22*Szenarien!AB$38+AD22*'Daten Projektion'!$M22*Szenarien!AB$39 -> 0
B23: =Vermögen!E21 -> 11. | C23: =IF(Vermögen!F21=0,"",Vermögen!F21) ->  | D23: =Vermögen!I21 -> Bitte auswählen | E23: =Vermögen!J21 -> 0.0% | F23: =Vermögen!K21 -> 0.0% | G23: =Vermögen!L21 -> 0.0% | H23: =Vermögen!M21 -> 0.0% | I23: =Vermögen!N21 -> 0.0% | J23: 0.0% | K23: 0.0% | L23: 0.0% | M23: 0.0% | N23: =Daten_Vermögen!C54 -> 0 | O23: =N23+N23*Vermögen!V21 -> 0 | P23: =O23+O23*Vermögen!$V21 -> 0 | Q23: =P23+P23*Vermögen!$V21 -> 0 | R23: =Q23+Q23*Vermögen!$V21 -> 0 | S23: =R23+R23*Vermögen!$V21 -> 0 | U23: =N23+N23*$E23*Szenarien!P$31+N23*$F23*Szenarien!P$32+N23*'Daten Projektion'!$G23*Szenarien!P$33+N23*'Daten Projektion'!$H23*Szenarien!P$34+N23*'Daten Projektion'!$I23*Szenarien!P$35+N23*'Daten Projektion'!$J23*Szenarien!P$36+N23*'Daten Projektion'!$K23*Szenarien!P$37+N23*'Daten Projektion'!$L23*Szenarien!P$38+N23*'Daten Projektion'!$M23*Szenarien!P$39 -> 0 | V23: =U23+U23*$E23*Szenarien!Q$31+U23*$F23*Szenarien!Q$32+U23*'Daten Projektion'!$G23*Szenarien!Q$33+U23*'Daten Projektion'!$H23*Szenarien!Q$34+U23*'Daten Projektion'!$I23*Szenarien!Q$35+U23*'Daten Projektion'!$J23*Szenarien!Q$36+U23*'Daten Projektion'!$K23*Szenarien!Q$37+U23*'Daten Projektion'!$L23*Szenarien!Q$38+U23*'Daten Projektion'!$M23*Szenarien!Q$39 -> 0 | W23: =V23+V23*$E23*Szenarien!R$31+V23*$F23*Szenarien!R$32+V23*'Daten Projektion'!$G23*Szenarien!R$33+V23*'Daten Projektion'!$H23*Szenarien!R$34+V23*'Daten Projektion'!$I23*Szenarien!R$35+V23*'Daten Projektion'!$J23*Szenarien!R$36+V23*'Daten Projektion'!$K23*Szenarien!R$37+V23*'Daten Projektion'!$L23*Szenarien!R$38+V23*'Daten Projektion'!$M23*Szenarien!R$39 -> 0 | X23: =W23+W23*$E23*Szenarien!S$31+W23*$F23*Szenarien!S$32+W23*'Daten Projektion'!$G23*Szenarien!S$33+W23*'Daten Projektion'!$H23*Szenarien!S$34+W23*'Daten Projektion'!$I23*Szenarien!S$35+W23*'Daten Projektion'!$J23*Szenarien!S$36+W23*'Daten Projektion'!$K23*Szenarien!S$37+W23*'Daten Projektion'!$L23*Szenarien!S$38+W23*'Daten Projektion'!$M23*Szenarien!S$39 -> 0 | Y23: =X23+X23*$E23*Szenarien!T$31+X23*$F23*Szenarien!T$32+X23*'Daten Projektion'!$G23*Szenarien!T$33+X23*'Daten Projektion'!$H23*Szenarien!T$34+X23*'Daten Projektion'!$I23*Szenarien!T$35+X23*'Daten Projektion'!$J23*Szenarien!T$36+X23*'Daten Projektion'!$K23*Szenarien!T$37+X23*'Daten Projektion'!$L23*Szenarien!T$38+X23*'Daten Projektion'!$M23*Szenarien!T$39 -> 0 | AA23: =N23+N23*$E23*Szenarien!X$31+N23*$F23*Szenarien!X$32+N23*'Daten Projektion'!$G23*Szenarien!X$33+N23*'Daten Projektion'!$H23*Szenarien!X$34+N23*'Daten Projektion'!$I23*Szenarien!X$35+N23*'Daten Projektion'!$J23*Szenarien!X$36+N23*'Daten Projektion'!$K23*Szenarien!X$37+N23*'Daten Projektion'!$L23*Szenarien!X$38+N23*'Daten Projektion'!$M23*Szenarien!X$39 -> 0 | AB23: =AA23+AA23*$E23*Szenarien!Y$31+AA23*$F23*Szenarien!Y$32+AA23*'Daten Projektion'!$G23*Szenarien!Y$33+AA23*'Daten Projektion'!$H23*Szenarien!Y$34+AA23*'Daten Projektion'!$I23*Szenarien!Y$35+AA23*'Daten Projektion'!$J23*Szenarien!Y$36+AA23*'Daten Projektion'!$K23*Szenarien!Y$37+AA23*'Daten Projektion'!$L23*Szenarien!Y$38+AA23*'Daten Projektion'!$M23*Szenarien!Y$39 -> 0 | AC23: =AB23+AB23*$E23*Szenarien!Z$31+AB23*$F23*Szenarien!Z$32+AB23*'Daten Projektion'!$G23*Szenarien!Z$33+AB23*'Daten Projektion'!$H23*Szenarien!Z$34+AB23*'Daten Projektion'!$I23*Szenarien!Z$35+AB23*'Daten Projektion'!$J23*Szenarien!Z$36+AB23*'Daten Projektion'!$K23*Szenarien!Z$37+AB23*'Daten Projektion'!$L23*Szenarien!Z$38+AB23*'Daten Projektion'!$M23*Szenarien!Z$39 -> 0 | AD23: =AC23+AC23*$E23*Szenarien!AA$31+AC23*$F23*Szenarien!AA$32+AC23*'Daten Projektion'!$G23*Szenarien!AA$33+AC23*'Daten Projektion'!$H23*Szenarien!AA$34+AC23*'Daten Projektion'!$I23*Szenarien!AA$35+AC23*'Daten Projektion'!$J23*Szenarien!AA$36+AC23*'Daten Projektion'!$K23*Szenarien!AA$37+AC23*'Daten Projektion'!$L23*Szenarien!AA$38+AC23*'Daten Projektion'!$M23*Szenarien!AA$39 -> 0 | AE23: =AD23+AD23*$E23*Szenarien!AB$31+AD23*$F23*Szenarien!AB$32+AD23*'Daten Projektion'!$G23*Szenarien!AB$33+AD23*'Daten Projektion'!$H23*Szenarien!AB$34+AD23*'Daten Projektion'!$I23*Szenarien!AB$35+AD23*'Daten Projektion'!$J23*Szenarien!AB$36+AD23*'Daten Projektion'!$K23*Szenarien!AB$37+AD23*'Daten Projektion'!$L23*Szenarien!AB$38+AD23*'Daten Projektion'!$M23*Szenarien!AB$39 -> 0
B24: =Vermögen!E22 -> 12. | C24: =IF(Vermögen!F22=0,"",Vermögen!F22) ->  | D24: =Vermögen!I22 -> Bitte auswählen | E24: =Vermögen!J22 -> 0.0% | F24: =Vermögen!K22 -> 0.0% | G24: =Vermögen!L22 -> 0.0% | H24: =Vermögen!M22 -> 0.0% | I24: =Vermögen!N22 -> 0.0% | J24: 0.0% | K24: 0.0% | L24: 0.0% | M24: 0.0% | N24: =Daten_Vermögen!C55 -> 0 | O24: =N24+N24*Vermögen!V22 -> 0 | P24: =O24+O24*Vermögen!$V22 -> 0 | Q24: =P24+P24*Vermögen!$V22 -> 0 | R24: =Q24+Q24*Vermögen!$V22 -> 0 | S24: =R24+R24*Vermögen!$V22 -> 0 | U24: =N24+N24*$E24*Szenarien!P$31+N24*$F24*Szenarien!P$32+N24*'Daten Projektion'!$G24*Szenarien!P$33+N24*'Daten Projektion'!$H24*Szenarien!P$34+N24*'Daten Projektion'!$I24*Szenarien!P$35+N24*'Daten Projektion'!$J24*Szenarien!P$36+N24*'Daten Projektion'!$K24*Szenarien!P$37+N24*'Daten Projektion'!$L24*Szenarien!P$38+N24*'Daten Projektion'!$M24*Szenarien!P$39 -> 0 | V24: =U24+U24*$E24*Szenarien!Q$31+U24*$F24*Szenarien!Q$32+U24*'Daten Projektion'!$G24*Szenarien!Q$33+U24*'Daten Projektion'!$H24*Szenarien!Q$34+U24*'Daten Projektion'!$I24*Szenarien!Q$35+U24*'Daten Projektion'!$J24*Szenarien!Q$36+U24*'Daten Projektion'!$K24*Szenarien!Q$37+U24*'Daten Projektion'!$L24*Szenarien!Q$38+U24*'Daten Projektion'!$M24*Szenarien!Q$39 -> 0 | W24: =V24+V24*$E24*Szenarien!R$31+V24*$F24*Szenarien!R$32+V24*'Daten Projektion'!$G24*Szenarien!R$33+V24*'Daten Projektion'!$H24*Szenarien!R$34+V24*'Daten Projektion'!$I24*Szenarien!R$35+V24*'Daten Projektion'!$J24*Szenarien!R$36+V24*'Daten Projektion'!$K24*Szenarien!R$37+V24*'Daten Projektion'!$L24*Szenarien!R$38+V24*'Daten Projektion'!$M24*Szenarien!R$39 -> 0 | X24: =W24+W24*$E24*Szenarien!S$31+W24*$F24*Szenarien!S$32+W24*'Daten Projektion'!$G24*Szenarien!S$33+W24*'Daten Projektion'!$H24*Szenarien!S$34+W24*'Daten Projektion'!$I24*Szenarien!S$35+W24*'Daten Projektion'!$J24*Szenarien!S$36+W24*'Daten Projektion'!$K24*Szenarien!S$37+W24*'Daten Projektion'!$L24*Szenarien!S$38+W24*'Daten Projektion'!$M24*Szenarien!S$39 -> 0 | Y24: =X24+X24*$E24*Szenarien!T$31+X24*$F24*Szenarien!T$32+X24*'Daten Projektion'!$G24*Szenarien!T$33+X24*'Daten Projektion'!$H24*Szenarien!T$34+X24*'Daten Projektion'!$I24*Szenarien!T$35+X24*'Daten Projektion'!$J24*Szenarien!T$36+X24*'Daten Projektion'!$K24*Szenarien!T$37+X24*'Daten Projektion'!$L24*Szenarien!T$38+X24*'Daten Projektion'!$M24*Szenarien!T$39 -> 0 | AA24: =N24+N24*$E24*Szenarien!X$31+N24*$F24*Szenarien!X$32+N24*'Daten Projektion'!$G24*Szenarien!X$33+N24*'Daten Projektion'!$H24*Szenarien!X$34+N24*'Daten Projektion'!$I24*Szenarien!X$35+N24*'Daten Projektion'!$J24*Szenarien!X$36+N24*'Daten Projektion'!$K24*Szenarien!X$37+N24*'Daten Projektion'!$L24*Szenarien!X$38+N24*'Daten Projektion'!$M24*Szenarien!X$39 -> 0 | AB24: =AA24+AA24*$E24*Szenarien!Y$31+AA24*$F24*Szenarien!Y$32+AA24*'Daten Projektion'!$G24*Szenarien!Y$33+AA24*'Daten Projektion'!$H24*Szenarien!Y$34+AA24*'Daten Projektion'!$I24*Szenarien!Y$35+AA24*'Daten Projektion'!$J24*Szenarien!Y$36+AA24*'Daten Projektion'!$K24*Szenarien!Y$37+AA24*'Daten Projektion'!$L24*Szenarien!Y$38+AA24*'Daten Projektion'!$M24*Szenarien!Y$39 -> 0 | AC24: =AB24+AB24*$E24*Szenarien!Z$31+AB24*$F24*Szenarien!Z$32+AB24*'Daten Projektion'!$G24*Szenarien!Z$33+AB24*'Daten Projektion'!$H24*Szenarien!Z$34+AB24*'Daten Projektion'!$I24*Szenarien!Z$35+AB24*'Daten Projektion'!$J24*Szenarien!Z$36+AB24*'Daten Projektion'!$K24*Szenarien!Z$37+AB24*'Daten Projektion'!$L24*Szenarien!Z$38+AB24*'Daten Projektion'!$M24*Szenarien!Z$39 -> 0 | AD24: =AC24+AC24*$E24*Szenarien!AA$31+AC24*$F24*Szenarien!AA$32+AC24*'Daten Projektion'!$G24*Szenarien!AA$33+AC24*'Daten Projektion'!$H24*Szenarien!AA$34+AC24*'Daten Projektion'!$I24*Szenarien!AA$35+AC24*'Daten Projektion'!$J24*Szenarien!AA$36+AC24*'Daten Projektion'!$K24*Szenarien!AA$37+AC24*'Daten Projektion'!$L24*Szenarien!AA$38+AC24*'Daten Projektion'!$M24*Szenarien!AA$39 -> 0 | AE24: =AD24+AD24*$E24*Szenarien!AB$31+AD24*$F24*Szenarien!AB$32+AD24*'Daten Projektion'!$G24*Szenarien!AB$33+AD24*'Daten Projektion'!$H24*Szenarien!AB$34+AD24*'Daten Projektion'!$I24*Szenarien!AB$35+AD24*'Daten Projektion'!$J24*Szenarien!AB$36+AD24*'Daten Projektion'!$K24*Szenarien!AB$37+AD24*'Daten Projektion'!$L24*Szenarien!AB$38+AD24*'Daten Projektion'!$M24*Szenarien!AB$39 -> 0
B25: =Vermögen!E23 -> 13. | C25: =IF(Vermögen!F23=0,"",Vermögen!F23) ->  | D25: =Vermögen!I23 -> Bitte auswählen | E25: =Vermögen!J23 -> 0.0% | F25: =Vermögen!K23 -> 0.0% | G25: =Vermögen!L23 -> 0.0% | H25: =Vermögen!M23 -> 0.0% | I25: =Vermögen!N23 -> 0.0% | J25: 0.0% | K25: 0.0% | L25: 0.0% | M25: 0.0% | N25: =Daten_Vermögen!C56 -> 0 | O25: =N25+N25*Vermögen!V23 -> 0 | P25: =O25+O25*Vermögen!$V23 -> 0 | Q25: =P25+P25*Vermögen!$V23 -> 0 | R25: =Q25+Q25*Vermögen!$V23 -> 0 | S25: =R25+R25*Vermögen!$V23 -> 0 | U25: =N25+N25*$E25*Szenarien!P$31+N25*$F25*Szenarien!P$32+N25*'Daten Projektion'!$G25*Szenarien!P$33+N25*'Daten Projektion'!$H25*Szenarien!P$34+N25*'Daten Projektion'!$I25*Szenarien!P$35+N25*'Daten Projektion'!$J25*Szenarien!P$36+N25*'Daten Projektion'!$K25*Szenarien!P$37+N25*'Daten Projektion'!$L25*Szenarien!P$38+N25*'Daten Projektion'!$M25*Szenarien!P$39 -> 0 | V25: =U25+U25*$E25*Szenarien!Q$31+U25*$F25*Szenarien!Q$32+U25*'Daten Projektion'!$G25*Szenarien!Q$33+U25*'Daten Projektion'!$H25*Szenarien!Q$34+U25*'Daten Projektion'!$I25*Szenarien!Q$35+U25*'Daten Projektion'!$J25*Szenarien!Q$36+U25*'Daten Projektion'!$K25*Szenarien!Q$37+U25*'Daten Projektion'!$L25*Szenarien!Q$38+U25*'Daten Projektion'!$M25*Szenarien!Q$39 -> 0 | W25: =V25+V25*$E25*Szenarien!R$31+V25*$F25*Szenarien!R$32+V25*'Daten Projektion'!$G25*Szenarien!R$33+V25*'Daten Projektion'!$H25*Szenarien!R$34+V25*'Daten Projektion'!$I25*Szenarien!R$35+V25*'Daten Projektion'!$J25*Szenarien!R$36+V25*'Daten Projektion'!$K25*Szenarien!R$37+V25*'Daten Projektion'!$L25*Szenarien!R$38+V25*'Daten Projektion'!$M25*Szenarien!R$39 -> 0 | X25: =W25+W25*$E25*Szenarien!S$31+W25*$F25*Szenarien!S$32+W25*'Daten Projektion'!$G25*Szenarien!S$33+W25*'Daten Projektion'!$H25*Szenarien!S$34+W25*'Daten Projektion'!$I25*Szenarien!S$35+W25*'Daten Projektion'!$J25*Szenarien!S$36+W25*'Daten Projektion'!$K25*Szenarien!S$37+W25*'Daten Projektion'!$L25*Szenarien!S$38+W25*'Daten Projektion'!$M25*Szenarien!S$39 -> 0 | Y25: =X25+X25*$E25*Szenarien!T$31+X25*$F25*Szenarien!T$32+X25*'Daten Projektion'!$G25*Szenarien!T$33+X25*'Daten Projektion'!$H25*Szenarien!T$34+X25*'Daten Projektion'!$I25*Szenarien!T$35+X25*'Daten Projektion'!$J25*Szenarien!T$36+X25*'Daten Projektion'!$K25*Szenarien!T$37+X25*'Daten Projektion'!$L25*Szenarien!T$38+X25*'Daten Projektion'!$M25*Szenarien!T$39 -> 0 | AA25: =N25+N25*$E25*Szenarien!X$31+N25*$F25*Szenarien!X$32+N25*'Daten Projektion'!$G25*Szenarien!X$33+N25*'Daten Projektion'!$H25*Szenarien!X$34+N25*'Daten Projektion'!$I25*Szenarien!X$35+N25*'Daten Projektion'!$J25*Szenarien!X$36+N25*'Daten Projektion'!$K25*Szenarien!X$37+N25*'Daten Projektion'!$L25*Szenarien!X$38+N25*'Daten Projektion'!$M25*Szenarien!X$39 -> 0 | AB25: =AA25+AA25*$E25*Szenarien!Y$31+AA25*$F25*Szenarien!Y$32+AA25*'Daten Projektion'!$G25*Szenarien!Y$33+AA25*'Daten Projektion'!$H25*Szenarien!Y$34+AA25*'Daten Projektion'!$I25*Szenarien!Y$35+AA25*'Daten Projektion'!$J25*Szenarien!Y$36+AA25*'Daten Projektion'!$K25*Szenarien!Y$37+AA25*'Daten Projektion'!$L25*Szenarien!Y$38+AA25*'Daten Projektion'!$M25*Szenarien!Y$39 -> 0 | AC25: =AB25+AB25*$E25*Szenarien!Z$31+AB25*$F25*Szenarien!Z$32+AB25*'Daten Projektion'!$G25*Szenarien!Z$33+AB25*'Daten Projektion'!$H25*Szenarien!Z$34+AB25*'Daten Projektion'!$I25*Szenarien!Z$35+AB25*'Daten Projektion'!$J25*Szenarien!Z$36+AB25*'Daten Projektion'!$K25*Szenarien!Z$37+AB25*'Daten Projektion'!$L25*Szenarien!Z$38+AB25*'Daten Projektion'!$M25*Szenarien!Z$39 -> 0 | AD25: =AC25+AC25*$E25*Szenarien!AA$31+AC25*$F25*Szenarien!AA$32+AC25*'Daten Projektion'!$G25*Szenarien!AA$33+AC25*'Daten Projektion'!$H25*Szenarien!AA$34+AC25*'Daten Projektion'!$I25*Szenarien!AA$35+AC25*'Daten Projektion'!$J25*Szenarien!AA$36+AC25*'Daten Projektion'!$K25*Szenarien!AA$37+AC25*'Daten Projektion'!$L25*Szenarien!AA$38+AC25*'Daten Projektion'!$M25*Szenarien!AA$39 -> 0 | AE25: =AD25+AD25*$E25*Szenarien!AB$31+AD25*$F25*Szenarien!AB$32+AD25*'Daten Projektion'!$G25*Szenarien!AB$33+AD25*'Daten Projektion'!$H25*Szenarien!AB$34+AD25*'Daten Projektion'!$I25*Szenarien!AB$35+AD25*'Daten Projektion'!$J25*Szenarien!AB$36+AD25*'Daten Projektion'!$K25*Szenarien!AB$37+AD25*'Daten Projektion'!$L25*Szenarien!AB$38+AD25*'Daten Projektion'!$M25*Szenarien!AB$39 -> 0
B26: =Vermögen!E24 -> 14. | C26: =IF(Vermögen!F24=0,"",Vermögen!F24) ->  | D26: =Vermögen!I24 -> Bitte auswählen | E26: =Vermögen!J24 -> 0.0% | F26: =Vermögen!K24 -> 0.0% | G26: =Vermögen!L24 -> 0.0% | H26: =Vermögen!M24 -> 0.0% | I26: =Vermögen!N24 -> 0.0% | J26: 0.0% | K26: 0.0% | L26: 0.0% | M26: 0.0% | N26: =Daten_Vermögen!C57 -> 0 | O26: =N26+N26*Vermögen!V24 -> 0 | P26: =O26+O26*Vermögen!$V24 -> 0 | Q26: =P26+P26*Vermögen!$V24 -> 0 | R26: =Q26+Q26*Vermögen!$V24 -> 0 | S26: =R26+R26*Vermögen!$V24 -> 0 | U26: =N26+N26*$E26*Szenarien!P$31+N26*$F26*Szenarien!P$32+N26*'Daten Projektion'!$G26*Szenarien!P$33+N26*'Daten Projektion'!$H26*Szenarien!P$34+N26*'Daten Projektion'!$I26*Szenarien!P$35+N26*'Daten Projektion'!$J26*Szenarien!P$36+N26*'Daten Projektion'!$K26*Szenarien!P$37+N26*'Daten Projektion'!$L26*Szenarien!P$38+N26*'Daten Projektion'!$M26*Szenarien!P$39 -> 0 | V26: =U26+U26*$E26*Szenarien!Q$31+U26*$F26*Szenarien!Q$32+U26*'Daten Projektion'!$G26*Szenarien!Q$33+U26*'Daten Projektion'!$H26*Szenarien!Q$34+U26*'Daten Projektion'!$I26*Szenarien!Q$35+U26*'Daten Projektion'!$J26*Szenarien!Q$36+U26*'Daten Projektion'!$K26*Szenarien!Q$37+U26*'Daten Projektion'!$L26*Szenarien!Q$38+U26*'Daten Projektion'!$M26*Szenarien!Q$39 -> 0 | W26: =V26+V26*$E26*Szenarien!R$31+V26*$F26*Szenarien!R$32+V26*'Daten Projektion'!$G26*Szenarien!R$33+V26*'Daten Projektion'!$H26*Szenarien!R$34+V26*'Daten Projektion'!$I26*Szenarien!R$35+V26*'Daten Projektion'!$J26*Szenarien!R$36+V26*'Daten Projektion'!$K26*Szenarien!R$37+V26*'Daten Projektion'!$L26*Szenarien!R$38+V26*'Daten Projektion'!$M26*Szenarien!R$39 -> 0 | X26: =W26+W26*$E26*Szenarien!S$31+W26*$F26*Szenarien!S$32+W26*'Daten Projektion'!$G26*Szenarien!S$33+W26*'Daten Projektion'!$H26*Szenarien!S$34+W26*'Daten Projektion'!$I26*Szenarien!S$35+W26*'Daten Projektion'!$J26*Szenarien!S$36+W26*'Daten Projektion'!$K26*Szenarien!S$37+W26*'Daten Projektion'!$L26*Szenarien!S$38+W26*'Daten Projektion'!$M26*Szenarien!S$39 -> 0 | Y26: =X26+X26*$E26*Szenarien!T$31+X26*$F26*Szenarien!T$32+X26*'Daten Projektion'!$G26*Szenarien!T$33+X26*'Daten Projektion'!$H26*Szenarien!T$34+X26*'Daten Projektion'!$I26*Szenarien!T$35+X26*'Daten Projektion'!$J26*Szenarien!T$36+X26*'Daten Projektion'!$K26*Szenarien!T$37+X26*'Daten Projektion'!$L26*Szenarien!T$38+X26*'Daten Projektion'!$M26*Szenarien!T$39 -> 0 | AA26: =N26+N26*$E26*Szenarien!X$31+N26*$F26*Szenarien!X$32+N26*'Daten Projektion'!$G26*Szenarien!X$33+N26*'Daten Projektion'!$H26*Szenarien!X$34+N26*'Daten Projektion'!$I26*Szenarien!X$35+N26*'Daten Projektion'!$J26*Szenarien!X$36+N26*'Daten Projektion'!$K26*Szenarien!X$37+N26*'Daten Projektion'!$L26*Szenarien!X$38+N26*'Daten Projektion'!$M26*Szenarien!X$39 -> 0 | AB26: =AA26+AA26*$E26*Szenarien!Y$31+AA26*$F26*Szenarien!Y$32+AA26*'Daten Projektion'!$G26*Szenarien!Y$33+AA26*'Daten Projektion'!$H26*Szenarien!Y$34+AA26*'Daten Projektion'!$I26*Szenarien!Y$35+AA26*'Daten Projektion'!$J26*Szenarien!Y$36+AA26*'Daten Projektion'!$K26*Szenarien!Y$37+AA26*'Daten Projektion'!$L26*Szenarien!Y$38+AA26*'Daten Projektion'!$M26*Szenarien!Y$39 -> 0 | AC26: =AB26+AB26*$E26*Szenarien!Z$31+AB26*$F26*Szenarien!Z$32+AB26*'Daten Projektion'!$G26*Szenarien!Z$33+AB26*'Daten Projektion'!$H26*Szenarien!Z$34+AB26*'Daten Projektion'!$I26*Szenarien!Z$35+AB26*'Daten Projektion'!$J26*Szenarien!Z$36+AB26*'Daten Projektion'!$K26*Szenarien!Z$37+AB26*'Daten Projektion'!$L26*Szenarien!Z$38+AB26*'Daten Projektion'!$M26*Szenarien!Z$39 -> 0 | AD26: =AC26+AC26*$E26*Szenarien!AA$31+AC26*$F26*Szenarien!AA$32+AC26*'Daten Projektion'!$G26*Szenarien!AA$33+AC26*'Daten Projektion'!$H26*Szenarien!AA$34+AC26*'Daten Projektion'!$I26*Szenarien!AA$35+AC26*'Daten Projektion'!$J26*Szenarien!AA$36+AC26*'Daten Projektion'!$K26*Szenarien!AA$37+AC26*'Daten Projektion'!$L26*Szenarien!AA$38+AC26*'Daten Projektion'!$M26*Szenarien!AA$39 -> 0 | AE26: =AD26+AD26*$E26*Szenarien!AB$31+AD26*$F26*Szenarien!AB$32+AD26*'Daten Projektion'!$G26*Szenarien!AB$33+AD26*'Daten Projektion'!$H26*Szenarien!AB$34+AD26*'Daten Projektion'!$I26*Szenarien!AB$35+AD26*'Daten Projektion'!$J26*Szenarien!AB$36+AD26*'Daten Projektion'!$K26*Szenarien!AB$37+AD26*'Daten Projektion'!$L26*Szenarien!AB$38+AD26*'Daten Projektion'!$M26*Szenarien!AB$39 -> 0
B27: =Vermögen!E25 -> 15. | C27: =IF(Vermögen!F25=0,"",Vermögen!F25) ->  | D27: =Vermögen!I25 -> Bitte auswählen | E27: =Vermögen!J25 -> 0.0% | F27: =Vermögen!K25 -> 0.0% | G27: =Vermögen!L25 -> 0.0% | H27: =Vermögen!M25 -> 0.0% | I27: =Vermögen!N25 -> 0.0% | J27: 0.0% | K27: 0.0% | L27: 0.0% | M27: 0.0% | N27: =Daten_Vermögen!C58 -> 0 | O27: =N27+N27*Vermögen!V25 -> 0 | P27: =O27+O27*Vermögen!$V25 -> 0 | Q27: =P27+P27*Vermögen!$V25 -> 0 | R27: =Q27+Q27*Vermögen!$V25 -> 0 | S27: =R27+R27*Vermögen!$V25 -> 0 | U27: =N27+N27*$E27*Szenarien!P$31+N27*$F27*Szenarien!P$32+N27*'Daten Projektion'!$G27*Szenarien!P$33+N27*'Daten Projektion'!$H27*Szenarien!P$34+N27*'Daten Projektion'!$I27*Szenarien!P$35+N27*'Daten Projektion'!$J27*Szenarien!P$36+N27*'Daten Projektion'!$K27*Szenarien!P$37+N27*'Daten Projektion'!$L27*Szenarien!P$38+N27*'Daten Projektion'!$M27*Szenarien!P$39 -> 0 | V27: =U27+U27*$E27*Szenarien!Q$31+U27*$F27*Szenarien!Q$32+U27*'Daten Projektion'!$G27*Szenarien!Q$33+U27*'Daten Projektion'!$H27*Szenarien!Q$34+U27*'Daten Projektion'!$I27*Szenarien!Q$35+U27*'Daten Projektion'!$J27*Szenarien!Q$36+U27*'Daten Projektion'!$K27*Szenarien!Q$37+U27*'Daten Projektion'!$L27*Szenarien!Q$38+U27*'Daten Projektion'!$M27*Szenarien!Q$39 -> 0 | W27: =V27+V27*$E27*Szenarien!R$31+V27*$F27*Szenarien!R$32+V27*'Daten Projektion'!$G27*Szenarien!R$33+V27*'Daten Projektion'!$H27*Szenarien!R$34+V27*'Daten Projektion'!$I27*Szenarien!R$35+V27*'Daten Projektion'!$J27*Szenarien!R$36+V27*'Daten Projektion'!$K27*Szenarien!R$37+V27*'Daten Projektion'!$L27*Szenarien!R$38+V27*'Daten Projektion'!$M27*Szenarien!R$39 -> 0 | X27: =W27+W27*$E27*Szenarien!S$31+W27*$F27*Szenarien!S$32+W27*'Daten Projektion'!$G27*Szenarien!S$33+W27*'Daten Projektion'!$H27*Szenarien!S$34+W27*'Daten Projektion'!$I27*Szenarien!S$35+W27*'Daten Projektion'!$J27*Szenarien!S$36+W27*'Daten Projektion'!$K27*Szenarien!S$37+W27*'Daten Projektion'!$L27*Szenarien!S$38+W27*'Daten Projektion'!$M27*Szenarien!S$39 -> 0 | Y27: =X27+X27*$E27*Szenarien!T$31+X27*$F27*Szenarien!T$32+X27*'Daten Projektion'!$G27*Szenarien!T$33+X27*'Daten Projektion'!$H27*Szenarien!T$34+X27*'Daten Projektion'!$I27*Szenarien!T$35+X27*'Daten Projektion'!$J27*Szenarien!T$36+X27*'Daten Projektion'!$K27*Szenarien!T$37+X27*'Daten Projektion'!$L27*Szenarien!T$38+X27*'Daten Projektion'!$M27*Szenarien!T$39 -> 0 | AA27: =N27+N27*$E27*Szenarien!X$31+N27*$F27*Szenarien!X$32+N27*'Daten Projektion'!$G27*Szenarien!X$33+N27*'Daten Projektion'!$H27*Szenarien!X$34+N27*'Daten Projektion'!$I27*Szenarien!X$35+N27*'Daten Projektion'!$J27*Szenarien!X$36+N27*'Daten Projektion'!$K27*Szenarien!X$37+N27*'Daten Projektion'!$L27*Szenarien!X$38+N27*'Daten Projektion'!$M27*Szenarien!X$39 -> 0 | AB27: =AA27+AA27*$E27*Szenarien!Y$31+AA27*$F27*Szenarien!Y$32+AA27*'Daten Projektion'!$G27*Szenarien!Y$33+AA27*'Daten Projektion'!$H27*Szenarien!Y$34+AA27*'Daten Projektion'!$I27*Szenarien!Y$35+AA27*'Daten Projektion'!$J27*Szenarien!Y$36+AA27*'Daten Projektion'!$K27*Szenarien!Y$37+AA27*'Daten Projektion'!$L27*Szenarien!Y$38+AA27*'Daten Projektion'!$M27*Szenarien!Y$39 -> 0 | AC27: =AB27+AB27*$E27*Szenarien!Z$31+AB27*$F27*Szenarien!Z$32+AB27*'Daten Projektion'!$G27*Szenarien!Z$33+AB27*'Daten Projektion'!$H27*Szenarien!Z$34+AB27*'Daten Projektion'!$I27*Szenarien!Z$35+AB27*'Daten Projektion'!$J27*Szenarien!Z$36+AB27*'Daten Projektion'!$K27*Szenarien!Z$37+AB27*'Daten Projektion'!$L27*Szenarien!Z$38+AB27*'Daten Projektion'!$M27*Szenarien!Z$39 -> 0 | AD27: =AC27+AC27*$E27*Szenarien!AA$31+AC27*$F27*Szenarien!AA$32+AC27*'Daten Projektion'!$G27*Szenarien!AA$33+AC27*'Daten Projektion'!$H27*Szenarien!AA$34+AC27*'Daten Projektion'!$I27*Szenarien!AA$35+AC27*'Daten Projektion'!$J27*Szenarien!AA$36+AC27*'Daten Projektion'!$K27*Szenarien!AA$37+AC27*'Daten Projektion'!$L27*Szenarien!AA$38+AC27*'Daten Projektion'!$M27*Szenarien!AA$39 -> 0 | AE27: =AD27+AD27*$E27*Szenarien!AB$31+AD27*$F27*Szenarien!AB$32+AD27*'Daten Projektion'!$G27*Szenarien!AB$33+AD27*'Daten Projektion'!$H27*Szenarien!AB$34+AD27*'Daten Projektion'!$I27*Szenarien!AB$35+AD27*'Daten Projektion'!$J27*Szenarien!AB$36+AD27*'Daten Projektion'!$K27*Szenarien!AB$37+AD27*'Daten Projektion'!$L27*Szenarien!AB$38+AD27*'Daten Projektion'!$M27*Szenarien!AB$39 -> 0
